Workbook

Sheet cover
C11: SOLE E TERRA
C13: Autore: Hume

Sheet VO ORBITA CADUTA( 4 anni)
A1: GRAVITAZIONE - TERRA(1) E SOLE(2)
H2: 6 | K2: kg= costante gravitazione universale | L2: 6.67428e-11 | M2: N*m^2/kg^2 | R2: Ep | S2: =-L2*L3*L4/A4 -> -5.390356429e+33 | T2: J
A3: xterra (m) | B3: yterra (m) | C3: vx terra (m/s) | D3: vy terra (m/s) | E3: massasole (kg) | F3: tf (g) | G3: NSTEP | K3: M= massa Sole | L3: 1.9891e+30 | M3: kg | R3: Ec | S3: =0.5*L4*D4^2 -> 6.719175e+32 | T3: J
A4: =147098074000 -> 147098074000 | B4: 0 | C4: 0 | D4: 15000 | E4: 1.9891e+30 | F4: =365*H2 -> 2190 | G4: =200*H2 -> 1200 | K4: m=massa Terra | L4: 5.9726e+24 | M4: kg | R4: Ec | S4: =SUM(S2:S3) -> -4.718438929e+33 | T4: J
C10: =MAX(C19:C3000) -> 147098074000 | D10: 5.550707199e+10 | E10: 65202.85018 | F10: 23194.36991 | G10: 105246.251 | H10: 147098074000 | I10: dmax | K10: E0 | L10: =0.5*L4*D4^2-L2*L3*L4/A4 -> -4.718438929e+33 | M10: J | N10: --->> ellisse
C11: =MIN(C19:C3000) -> -2.107331233e+10 | D11: -5.443260979e+10 | E11: -60150.42091 | F11: -105107.2821 | G11: 15000 | H11: 2.094646305e+10 | I11: dmin
C12: CONCLUSIONE: SIMULAZIONE QUASI PERFETTA .AUMENTANDO GLI STEPS I RISULTATI NON CAMBIANO | L12: =0.5*L4*D4^2 -> 6.719175e+32
A14: MOTO TERRA ATTORNO AL SOLE"
A18: step | B18: t(giorni) | C18: xterra | D18: yterra | E18: vxterra | F18: vyterra | G18: vterra | H18: distanza | I18: angolo | J18: E | Q18: (x,y) sole
A19: 1 | B19: 0 | C19: 147098074000 | D19: 0 | E19: 0 | F19: 15000 | G19: 15000 | H19: 147098074000 | I19: 0 | J19: =0.5*$L$4*G19^2-$L$2*$L$3*$L$4/H19 -> -4.718438929e+33 | K19: =J19-$J$19 -> 0 | L19: =K19/J19 -> 0
A20: 2 | B20: 1.825 | C20: 1.470217928e+11 | D20: 2364791082 | E20: -967.6486321 | F20: 14992.21837 | G20: 15023.41358 | H20: 1.4704081e+11 | I20: 0.9215019278 | J20: =0.5*$L$4*G20^2-$L$2*$L$3*$L$4/H20 -> -4.718438929e+33 | K20: =J20-$J$19 -> -2.94386977e+22 | L20: =K20/J20 -> 6.239075708e-12
A21: 3 | B21: 3.65 | C21: 1.467928502e+11 | D21: 4727125702 | E21: -1936.555619 | F21: 14968.82692 | G21: 15093.57569 | H21: 1.468689436e+11 | I21: 1.844441243 | J21: -4.718438929e+33 | K21: 1.061944469e+23 | L21: -2.250626711e-11
A22: 4 | B22: 5.475 | C22: 1.46410948e+11 | D22: 7084532684 | E22: -2907.988042 | F22: 14929.68527 | G22: 15210.2563 | H22: 1.465822509e+11 | I22: 2.770267323 | J22: -4.718438928e+33 | K22: 4.140371707e+23 | L22: -8.774876119e-11
A23: 5 | B23: 7.3 | C23: 1.458755869e+11 | D23: 9434511174 | E23: -3883.230579 | F23: 14874.55697 | G23: 15373.09093 | H23: 1.461803573e+11 | I23: 3.700453767 | J23: -4.718438928e+33 | K23: 9.072650609e+23 | L23: -1.92280768e-10
A24: 6 | B24: 9.125 | C24: 1.451860633e+11 | D24: 1.177451523e+10 | E24: -4863.594652 | F24: 14803.1057 | G24: 15581.60747 | H24: 1.456627344e+11 | I24: 4.636511109 | J24: -4.718438927e+33 | K24: 1.605808671e+24 | L24: -3.403262596e-10
A25: 7 | B25: 10.95 | C25: 1.443414638e+11 | D25: 1.410193765e+10 | E25: -5850.428032 | F25: 14714.88983 | G25: 15835.261 | H25: 1.450286965e+11 | I25: 5.580000281 | J25: -4.718438926e+33 | K25: 2.537447646e+24 | L25: -5.37772701e-10
A26: 8 | B26: 12.775 | C26: 1.433406592e+11 | D26: 1.641409284e+10 | E26: -6845.125027 | F26: 14609.35512 | G26: 16133.47432 | H26: 1.442773961e+11 | I26: 6.532547118 | J26: -4.718438925e+33 | K26: 3.739357361e+24 | L26: -7.924988372e-10
A27: 9 | B27: 14.6 | C27: 1.421822958e+11 | D27: 1.870819831e+10 | E27: -7849.137477 | F27: 14485.82525 | G27: 16475.68184 | H27: 1.434078168e+11 | I27: 7.495858234 | J27: -4.718438924e+33 | K27: 5.260264317e+24 | L27: -1.114831494e-09
A28: 10 | B28: 16.425 | C28: 1.408647858e+11 | D28: 2.098135457e+10 | E28: -8863.986738 | F28: 14343.4901 | G28: 16861.37507 | H28: 1.424187668e+11 | I28: 8.471738663 | J28: -4.718438922e+33 | K28: 7.163361292e+24 | L28: -1.518163403e-09
A29: 11 | B29: 18.25 | C29: 1.393862953e+11 | D29: 2.32305229e+10 | E29: -9891.2769 | F29: 14181.39116 | G29: 17290.14788 | H29: 1.413088692e+11 | I29: 9.462111706 | J29: -4.718438919e+33 | K29: 9.530244001e+24 | L29: -2.019787511e-09
A30: 12 | B30: 20.075 | C30: 1.377447297e+11 | D30: 2.545250056e+10 | E30: -10932.70951 | F30: 13998.40356 | G30: 17761.74089 | H30: 1.400765518e+11 | I30: 10.46904155 | J30: -4.718438916e+33 | K30: 1.246627967e+25 | L30: -2.642034768e-09
A31: 13 | B31: 21.9 | C31: 1.359377177e+11 | D31: 2.764389296e+10 | E31: -11990.10016 | F31: 13793.21425 | G31: 18276.08441 | H31: 1.387200342e+11 | I31: 11.49475931 | J31: -4.718438913e+33 | K31: 1.61078445e+25 | L31: -3.413807998e-09
A32: 14 | B32: 23.725 | C32: 1.339625911e+11 | D32: 2.980108189e+10 | E32: -13065.39723 | F32: 13564.29525 | G32: 18833.34039 | H32: 1.372373137e+11 | I32: 12.54169338 | J32: -4.718438908e+33 | K32: 2.063229298e+25 | L32: -4.372694737e-09
A33: 15 | B33: 25.55 | C33: 1.318163628e+11 | D33: 3.192018915e+10 | E33: -14160.70338 | F33: 13309.87096 | G33: 19433.94414 | H33: 1.356261479e+11 | I33: 13.612505 | J33: -4.718438902e+33 | K33: 2.62716327e+25 | L33: -5.567865399e-09
A34: 16 | B34: 27.375 | C34: 1.294957007e+11 | D34: 3.39970345e+10 | E34: -15278.30023 | F34: 13027.87815 | G34: 20078.64704 | H34: 1.338840351e+11 | I34: 14.71013059 | J34: -4.718438895e+33 | K34: 3.333160288e+25 | L34: -7.064116674e-09
A35: 17 | B35: 29.2 | C35: 1.269968964e+11 | D35: 3.602708651e+10 | E35: -16420.67698 | F35: 12715.91673 | G35: 20768.56208 | H35: 1.320081916e+11 | I35: 15.83783222 | J35: -4.718438887e+33 | K35: 4.221847575e+25 | L35: -8.947551672e-09
A36: 18 | B36: 31.025 | C36: 1.243158309e+11 | D36: 3.800540481e+10 | E36: -17590.56371 | F36: 12371.1888 | G36: 21505.21435 | H36: 1.299955253e+11 | I36: 16.99925865 | J36: -4.718438875e+33 | K36: 5.347717448e+25 | L36: -1.133365842e-08
A37: 19 | B37: 32.85 | C37: 1.21447933e+11 | D37: 3.992657169e+10 | E37: -18790.97042 | F37: 11990.42294 | G37: 22290.59918 | H37: 1.278426047e+11 | I37: 18.19851965 | J37: -4.718438861e+33 | K37: 6.784613896e+25 | L37: -1.437893781e-08
A38: 20 | B38: 34.675 | C38: 1.183881321e+11 | D38: 4.178461012e+10 | E38: -20025.23296 | F38: 11569.77928 | G38: 23127.25119 | H38: 1.25545623e+11 | I38: 19.44027733 | J38: -4.718438842e+33 | K38: 8.63373858e+25 | L38: -1.829787111e-08
A39: 21 | B39: 36.5 | C39: 1.151308021e+11 | D39: 4.357288516e+10 | E39: -21297.06737 | F39: 11104.72971 | G39: 24018.32843 | H39: 1.231003571e+11 | I39: 20.72985936 | J39: -4.718438818e+33 | K39: 1.103550062e+26 | L39: -2.338803373e-08
A40: 22 | B40: 38.325 | C40: 1.11669697e+11 | D40: 4.528398381e+10 | E40: -22610.63439 | F40: 10589.90522 | G40: 24967.71676 | H40: 1.205021179e+11 | I40: 22.07340097 | J40: -4.718438787e+33 | K40: 1.41873338e+26 | L40: -3.0067856e-08
A41: 23 | B41: 40.15 | C41: 1.079978748e+11 | D41: 4.690956766e+10 | E41: -23970.61621 | F41: 10018.89962 | G41: 25980.16149 | H41: 1.177456941e+11 | I41: 23.47802467 | J41: -4.718438745e+33 | K41: 1.83709434e+26 | L41: -3.893436875e-08
A42: 24 | B42: 41.975 | C42: 1.041076078e+11 | D42: 4.844019012e+10 | E42: -25382.30813 | F42: 9384.014269 | G42: 27061.43547 | H42: 1.148252848e+11 | I42: 24.95207037 | J42: -4.718438689e+33 | K42: 2.399474768e+26 | L42: -5.085315135e-08
A43: 25 | B43: 43.8 | C43: 9.999027853e+10 | D43: 4.986506733e+10 | E43: -26851.72772 | F43: 8675.922401 | G43: 28218.55615 | H43: 1.117344206e+11 | I43: 26.50539378 | J43: -4.718438612e+33 | K43: 3.166132226e+26 | L43: -6.710126985e-08
A44: 26 | B44: 45.625 | C44: 9.563625489e+10 | D44: 5.117178801e+10 | E44: -28385.74475 | F44: 7883.22165 | G44: 29460.06939 | H44: 1.084658708e+11 | I44: 28.14975824 | J44: -4.718438506e+33 | K44: 4.227694876e+26 | L44: -8.959944842e-08
A45: 27 | B45: 47.45 | C45: 9.103474469e+10 | D45: 5.234594083e+10 | E45: -29992.23423 | F45: 6991.829234 | G45: 30796.42496 | H45: 1.050115339e+11 | I45: 29.89935715 | J45: -4.718438356e+33 | K45: 5.723385293e+26 | L45: -1.212982953e-07
A46: 28 | B46: 49.275 | C46: 8.617362322e+10 | D46: 5.337062991e+10 | E46: -31680.25389 | F46: 5984.151312 | G46: 32240.48005 | H46: 1.01362308e+11 | I46: 31.77152132 | J46: -4.718438142e+33 | K46: 7.872143283e+26 | L46: -1.668379037e-07
A47: 29 | B47: 51.1 | C47: 8.103923135e+10 | D47: 5.422583493e+10 | E47: -33460.24298 | F47: 4837.922157 | G47: 33808.18467 | H47: 9.750793912e+10 | I47: 33.7876942 | J47: -4.718437826e+33 | K47: 1.1027335e+27 | L47: -2.337073288e-07
A48: 30 | B48: 52.925 | C48: 7.561614136e+10 | D48: 5.488755193e+10 | E48: -35344.22936 | F48: 3524.550102 | G48: 35519.52988 | H48: 9.343684601e+10 | I48: 35.97480321 | J48: -4.718437351e+33 | K48: 1.577603599e+27 | L48: -3.343487434e-07
A49: 31 | B49: 54.75 | C49: 6.988689147e+10 | D49: 5.532661834e+10 | E49: -37346.00976 | F49: 2006.709259 | G49: 37399.88405 | H49: 8.913592034e+10 | I49: 38.36723134 | J49: -4.718436616e+33 | K49: 2.312565899e+27 | L49: -4.9011274e-07
A50: 32 | B50: 56.575 | C50: 6.383169919e+10 | D50: 5.550707199e+10 | E50: -39481.21727 | F50: 234.7474211 | G50: 39481.91514 | H50: 8.459031187e+10 | I50: 41.00972406 | J50: -4.718435442e+33 | K50: 3.486866496e+27 | L50: -7.389878572e-07
A51: 33 | B51: 58.4 | C51: 5.742818487e+10 | D51: 5.538380562e+10 | E51: -41767.07663 | F51: -1858.818375 | G51: 41808.41896 | H51: 7.978322093e+10 | I51: 43.96179934 | J51: -4.718433496e+33 | K51: 5.4326392e+27 | L51: -1.151365004e-06
A52: 34 | B52: 60.225 | C52: 5.065118593e+10 | D52: 5.48991241e+10 | E52: -44221.38335 | F52: -4367.995223 | G52: 44436.58546 | H52: 7.469575934e+10 | I52: 47.30466068 | J52: -4.718430135e+33 | K52: 8.793815001e+27 | L52: -1.863716268e-06
A53: 35 | B53: 62.05 | C53: 4.347285838e+10 | D53: 5.397753798e+10 | E53: -46859.60759 | F53: -7427.512572 | G53: 47444.60734 | H53: 6.930702722e+10 | I53: 51.15245018 | J53: -4.718424046e+33 | K53: 1.48826294e+28 | L53: -3.154152583e-06
A54: 36 | B54: 63.875 | C54: 3.58635415e+10 | D54: 5.251761964e+10 | E54: -49687.42229 | F54: -11236.87566 | G54: 50942.19576 | H54: 6.359476379e+10 | I54: 55.67138238 | J54: -4.71841241e+33 | K54: 2.651836947e+28 | L54: -5.620188989e-06
A55: 37 | B55: 65.7 | C55: 2.779456844e+10 | D55: 5.037877943e+10 | E55: -52681.66989 | F55: -16102.69202 | G55: 55087.7031 | H55: 5.753746129e+10 | I55: 61.11395898 | J55: -4.718388859e+33 | K55: 5.006945082e+28 | L55: -1.061155668e-05
A56: 38 | B56: 67.525 | C56: 1.924610014e+10 | D56: 4.73589311e+10 | E56: -55740.48437 | F56: -22515.69243 | G56: 60116.20417 | H56: 5.112025749e+10 | I56: 67.88376643 | J56: -4.718338603e+33 | K56: 1.00326008e+29 | L56: -2.126299455e-05
A57: 39 | B57: 69.35 | C57: 1.022852036e+10 | D57: 4.315543231e+10 | E57: -58545.17295 | F57: -31292.20056 | G57: 66383.27419 | H57: 4.435103118e+10 | I57: 76.66604441 | J57: -4.718229759e+33 | K57: 2.091693535e+29 | L57: -4.433216783e-05
A58: 40 | B58: 71.175 | C58: 842899841.4 | D58: 3.729636704e+10 | E58: -60150.42091 | F58: -43809.89233 | G58: 74413.5727 | H58: 3.730589062e+10 | I58: 88.70533277 | J58: -4.718034972e+33 | K58: 4.039564562e+29 | L58: -8.561964008e-05
A59: 41 | B59: 73 | C59: -8538927199 | D59: 2.903486863e+10 | E59: -57716.26655 | F59: -62145.70137 | G59: 84813.06281 | H59: 3.026444902e+10 | I59: 106.3881962 | J59: -4.718201988e+33 | K59: 2.36940534e+29 | L59: -5.02183956e-05
A60: 42 | B60: 74.825 | C60: -1.674608243e+10 | D60: 1.733597463e+10 | E60: -43259.06486 | F60: -86966.97233 | G60: 97131.87411 | H60: 2.410326312e+10 | I60: 134.0084237 | J60: -4.721870371e+33 | K60: -3.431442508e+30 | L60: 0.0007267125606
A61: 43 | B61: 76.65 | C61: -2.088386132e+10 | D61: 1917580382 | E61: -5406.716299 | F61: -105107.2821 | G61: 105246.251 | H61: 2.097171376e+10 | I61: 174.7537459 | J61: -4.730027577e+33 | K61: -1.158864848e+31 | L61: 0.002450017107
A62: 44 | B62: 78.475 | C62: -1.818610262e+10 | D62: -1.403475763e+10 | E62: 37005.35486 | F62: -92603.8244 | G62: 99723.94186 | H62: 2.29719122e+10 | I62: 217.6584397 | J62: -4.818196234e+33 | K62: -9.975730492e+31 | L62: 0.02070428436
A63: 45 | B63: 80.3 | C63: -1.055113942e+10 | D63: -2.660954865e+10 | E63: 56194.00279 | F63: -67054.80736 | G63: 87487.78852 | H63: 2.862506982e+10 | I63: 248.3708305 | J63: -4.842403669e+33 | K63: -1.239647402e+32 | L63: 0.02559983608
A64: 46 | B64: 82.125 | C64: -1243411291 | D64: -3.550098149e+10 | E64: 60402.255 | F64: -46942.02045 | G64: 76498.27249 | H64: 3.552274988e+10 | I64: 267.9940524 | J64: -4.845433261e+33 | K64: -1.269943323e+32 | L64: 0.02620907677
A65: 47 | B65: 83.95 | C65: 8230742999 | D65: -4.174783968e+10 | E65: 59301.84841 | F65: -33172.12409 | G65: 67949.23871 | H65: 4.255146587e+10 | I65: 281.1530409 | J65: -4.846122433e+33 | K65: -1.276835043e+32 | L65: 0.02634756057
A66: 48 | B66: 85.775 | C66: 1.737705211e+10 | D66: -4.618054843e+10 | E66: 56579.01193 | F66: -23603.54754 | G66: 61305.07359 | H66: 4.934171656e+10 | I66: 290.6205708 | J66: -4.84634325e+33 | K66: -1.279043213e+32 | L66: 0.02639192371
A67: 49 | B67: 87.6 | C67: 2.605422473e+10 | D67: -4.932891106e+10 | E67: 53463.49385 | F67: -16680.86714 | G67: 56005.32567 | H67: 5.578677346e+10 | I67: 297.8418281 | J67: -4.846426324e+33 | K67: -1.279873954e+32 | L67: 0.02640861261
A68: 50 | B68: 89.425 | C68: 3.423887246e+10 | D68: -5.153033555e+10 | E68: 50369.47206 | F68: -11474.30343 | G68: 51659.88148 | H68: 6.186821372e+10 | I68: 303.6016965 | J68: -4.84646138e+33 | K68: -1.280224513e+32 | L68: 0.02641565489
A69: 51 | B69: 91.25 | C69: 4.194712879e+10 | D69: -5.300796069e+10 | E69: 47432.28712 | F69: -7428.406875 | G69: 48010.44772 | H69: 6.759737799e+10 | I69: 308.3558511 | J69: -4.846477627e+33 | K69: -1.280386983e+32 | L69: 0.02641891867
A70: 52 | B70: 93.075 | C70: 4.920724475e+10 | D70: -5.391560779e+10 | E70: 44686.9669 | F70: -4199.311723 | G70: 44883.84152 | H70: 7.299483337e+10 | I70: 312.385816 | J70: -4.846485769e+33 | K70: -1.280468398e+32 | L70: 0.02642055418
A71: 53 | B71: 94.9 | C71: 5.604960785e+10 | D71: -5.436336536e+10 | E71: 42131.73603 | F71: -1565.301995 | G71: 42160.80349 | H71: 7.808286645e+10 | I71: 315.8749612 | J71: -4.846490124e+33 | K71: -1.280511956e+32 | L71: 0.02642142919
A72: 54 | B72: 96.725 | C72: 6.25031262e+10 | D72: -5.443260979e+10 | E72: 39751.98308 | F72: 622.1160718 | G72: 39756.85082 | H72: 8.288274726e+10 | I72: 318.9481038 | J72: -4.846492587e+33 | K72: -1.280536582e+32 | L72: 0.02642192387
A73: 55 | B73: 98.55 | C73: 6.859405667e+10 | D73: -5.418517416e+10 | E73: 37529.62511 | F73: 2465.798219 | G73: 37610.54269 | H73: 8.74138302e+10 | I73: 321.6933889 | J73: -4.846494046e+33 | K73: -1.280551172e+32 | L73: 0.02642221696
A74: 56 | B74: 100.375 | C74: 7.434579106e+10 | D74: -5.366916155e+10 | E74: 35446.75813 | F74: 4039.106693 | G74: 35676.14112 | H74: 9.16933779e+10 | I74: 324.1750217 | J74: -4.846494946e+33 | K74: -1.28056017e+32 | L74: 0.02642239771
A75: 57 | B75: 102.2 | C75: 7.977900759e+10 | D75: -5.292276037e+10 | E75: 33486.98234 | F75: 5395.715477 | G75: 33918.89933 | H75: 9.573666287e+10 | I75: 326.4410178 | J75: -4.84649552e+33 | K75: -1.280565915e+32 | L75: 0.02642251312
A76: 58 | B76: 104.025 | C76: 8.49119445e+10 | D76: -5.197682657e+10 | E76: 31635.76594 | F76: 6575.772695 | G76: 32311.95558 | H76: 9.955716357e+10 | I76: 328.5281073 | J76: -4.846495898e+33 | K76: -1.280569695e+32 | L76: 0.02642258905
A77: 59 | B77: 105.85 | C77: 8.976069559e+10 | D77: -5.085667942e+10 | E77: 29880.41889 | F77: 7609.895132 | G77: 30834.2332 | H77: 1.031667791e+11 | I77: 330.4649454 | J77: -4.846496154e+33 | K77: -1.280572248e+32 | L77: 0.02642264035
A78: 60 | B78: 107.675 | C78: 9.433948806e+10 | D78: -4.958338077e+10 | E78: 28209.92136 | F78: 8521.830128 | G78: 29468.98797 | H78: 1.065760323e+11 | I78: 332.2742763 | J78: -4.84649633e+33 | K78: -1.280574014e+32 | L78: 0.02642267582
A79: 61 | B79: 109.5 | C79: 9.866092937e+10 | D79: -4.817466603e+10 | E79: 26614.71219 | F79: 9330.27388 | G79: 28202.78205 | H79: 1.097942504e+11 | I79: 333.9744304 | J79: -4.846496455e+33 | K79: -1.28057526e+32 | L79: 0.02642270086
A80: 62 | B80: 111.325 | C80: 1.027362206e+11 | D80: -4.66456347e+10 | E80: 25086.48109 | F80: 10050.14127 | G80: 27024.74556 | H80: 1.128297224e+11 | I80: 335.5803836 | J80: -4.846496544e+33 | K80: -1.280576157e+32 | L80: 0.02642271886
A81: 63 | B81: 113.15 | C81: 1.065753386e+11 | D81: -4.500927136e+10 | E81: 23617.98131 | F81: 10693.47044 | G81: 25926.03616 | H81: 1.156898324e+11 | I81: 337.1045231 | J81: -4.84649661e+33 | K81: -1.280576812e+32 | L81: 0.02642273202
A82: 64 | B82: 114.975 | C82: 1.101871907e+11 | D82: -4.327684483e+10 | E82: 22202.8672 | F82: 11270.07882 | G82: 24899.43751 | H82: 1.183811737e+11 | I82: 338.55721 | J82: -4.846496659e+33 | K82: -1.280577298e+32 | L82: 0.02642274179
A83: 65 | B83: 116.8 | C83: 1.135797453e+11 | D83: -4.14582184e+10 | E83: 20835.55611 | F83: 11788.04657 | G83: 23939.05679 | H83: 1.209096457e+11 | I83: 339.9472006 | J83: -4.846496695e+33 | K83: -1.280577663e+32 | L83: 0.02642274913
A84: 66 | B84: 118.625 | C84: 1.16760143e+11 | D84: -3.95620938e+10 | E84: 19511.11213 | F84: 12254.07811 | G84: 23040.0939 | H84: 1.232805348e+11 | I84: 341.2819658 | J84: =0.5*$L$4*G84^2-$L$2*$L$3*$L$4/H84 -> -4.846496723e+33 | K84: =J84-$J$19 -> -1.280577941e+32 | L84: =K84/J84 -> 0.02642275471
A85: 67 | B85: 120.45 | C85: 1.197347907e+11 | D85: -3.759620566e+10 | E85: 18225.14857 | F85: 12673.7761 | G85: 22198.66304 | H85: 1.254985848e+11 | I85: 342.5679373 | J85: -4.846496744e+33 | K85: -1.280578155e+32 | L85: 0.02642275901
A86: 68 | B86: 122.275 | C86: 1.225094412e+11 | D86: -3.556747788e+10 | E86: 16973.74612 | F86: 13051.8514 | G86: 21411.65296 | H86: 1.27568055e+11 | I86: 343.8106985 | J86: -4.846496761e+33 | K86: -1.280578321e+32 | L86: 0.02642276235
A87: 69 | B87: 124.1 | C87: 1.250892617e+11 | D87: -3.34821509e+10 | E87: 15753.38426 | F87: 13392.28604 | G87: 20676.6158 | H87: 1.294927713e+11 | I87: 345.0151362 | J87: -4.846496774e+33 | K87: -1.280578452e+32 | L87: 0.02642276497
A88: 70 | B88: 125.925 | C88: 1.274788919e+11 | D88: -3.134588619e+10 | E88: 14560.88331 | F88: 13698.46054 | G88: 19991.67687 | H88: 1.312761687e+11 | I88: 346.1855605 | J88: -4.846496784e+33 | K88: -1.280578555e+32 | L88: 0.02642276704
A89: 71 | B89: 127.75 | C89: 1.296824937e+11 | D89: -2.916385284e+10 | E89: 13393.35559 | F89: 13973.25467 | G89: 19355.45969 | H89: 1.329213282e+11 | I89: 347.3258019 | J89: -4.846496792e+33 | K89: -1.280578637e+32 | L89: 0.02642276869
A90: 72 | B90: 129.575 | C90: 1.317037938e+11 | D90: -2.694079996e+10 | E90: 12248.16375 | F90: 14219.12746 | G90: 18767.02164 | H90: 1.344310084e+11 | I90: 348.4392898 | J90: -4.846496799e+33 | K90: -1.280578703e+32 | L90: 0.02642277001
A91: 73 | B91: 131.4 | C91: 1.335461207e+11 | D91: -2.468111777e+10 | E91: 11122.88532 | F91: 14438.18143 | G91: 18225.79657 | H91: 1.358076725e+11 | I91: 349.5291177 | J91: -4.846496804e+33 | K91: -1.280578755e+32 | L91: 0.02642277107
A92: 74 | B92: 133.225 | C92: 1.352124355e+11 | D92: -2.238888964e+10 | E92: 10015.28208 | F92: 14632.21418 | G92: 17731.54159 | H92: 1.370535118e+11 | I92: 350.5980961 | J92: -4.846496809e+33 | K92: -1.280578798e+32 | L92: 0.02642277193
A93: 75 | B93: 135.05 | C93: 1.367053593e+11 | D93: -2.00679367e+10 | E93: 8923.273725 | F93: 14802.76033 | G93: 17284.28556 | H93: 1.381704648e+11 | I93: 351.6487982 | J93: -4.846496812e+33 | K93: -1.280578833e+32 | L93: 0.02642277262
A94: 76 | B94: 136.875 | C94: 1.380271961e+11 | D94: -1.772185659e+10 | E94: 7844.914735 | F94: 14951.12533 | G94: 16884.27777 | H94: 1.391602352e+11 | I94: 352.6835971 | J94: -4.846496815e+33 | K94: -1.280578861e+32 | L94: 0.02642277319
A95: 77 | B95: 138.7 | C95: 1.391799525e+11 | D95: -1.535405729e+10 | E95: 6778.374188 | F95: 15078.41308 | G95: 16531.93569 | H95: 1.400243059e+11 | I95: 353.7046986 | J95: -4.846496817e+33 | K95: -1.280578884e+32 | L95: 0.02642277365
A96: 78 | B96: 140.525 | C96: 1.40165354e+11 | D96: -1.296778715e+10 | E96: 5721.917792 | F96: 15185.54828 | G96: 16227.79158 | H96: 1.407639512e+11 | I96: 354.7141689 | J96: -4.846496819e+33 | K96: -1.280578902e+32 | L96: 0.02642277401
A97: 79 | B97: 142.35 | C97: 1.409848593e+11 | D97: -1.05661616e+10 | E97: 4673.891817 | F97: 15273.29442 | G97: 15972.43836 | H97: 1.413802473e+11 | I97: 355.7139596 | J97: -4.84649682e+33 | K97: -1.280578917e+32 | L97: 0.02642277431
A98: 80 | B98: 144.175 | C98: 1.41639672e+11 | D98: -8152187439 | E98: 3632.708546 | F98: 15342.26824 | G98: 15766.47602 | H98: 1.418740809e+11 | I98: 356.7059286 | J98: -4.846496822e+33 | K98: -1.280578928e+32 | L98: 0.02642277454
A99: 81 | B99: 146 | C99: 1.421307492e+11 | D99: -5728785028 | E99: 2596.832948 | F99: 15392.95104 | G99: 15610.4607 | H99: 1.422461558e+11 | I99: 357.6918603 | J99: -4.846496822e+33 | K99: -1.280578937e+32 | L99: 0.02642277471
A100: 82 | B100: 147.825 | C100: 1.424588095e+11 | D100: -3298808920 | E100: 1564.770297 | F100: 15425.69737 | G100: 15504.85877 | H100: 1.424969984e+11 | I100: 358.6734828 | J100: -4.846496823e+33 | K100: -1.280578943e+32 | L100: 0.02642277483
A101: 83 | B101: 149.65 | C101: 1.426243384e+11 | D101: -865067336.8 | E101: 535.0545137 | F101: 15440.74123 | G101: 15450.00884 | H101: 1.426269619e+11 | I101: 359.652485 | J101: -4.846496823e+33 | K101: -1.280578947e+32 | L101: 0.02642277491
A102: 84 | B102: 151.475 | C102: 1.426275915e+11 | D102: 1569659183 | E102: -493.7629979 | F102: 15438.20027 | G102: 15446.09431 | H102: 1.426362285e+11 | I102: 0.6305316868 | J102: -4.846496824e+33 | K102: -1.280578948e+32 | L102: 0.02642277495
A103: 85 | B103: 153.3 | C103: 1.424685967e+11 | D103: 4002599621 | E103: -1523.124205 | F103: 15418.07777 | G103: 15493.12846 | H103: 1.425248114e+11 | I103: 1.609279247 | J103: -4.846496824e+33 | K103: -1.280578948e+32 | L103: 0.02642277493
A104: 86 | B104: 155.125 | C104: 1.421471545e+11 | D104: 6430974485 | E104: -2554.475185 | F104: 15380.26283 | G104: 15590.95341 | H104: 1.422925541e+11 | I104: 2.590390299 | J104: -4.846496823e+33 | K104: -1.280578945e+32 | L104: 0.02642277488
A105: 87 | B105: 156.95 | C105: 1.416628361e+11 | D105: 8851977679 | E105: -3589.276945 | F105: 15324.52844 | G105: 15739.25287 | H105: 1.419391301e+11 | I105: 3.575548931 | J105: -4.846496823e+33 | K105: -1.28057894e+32 | L105: 0.02642277478
A106: 88 | B106: 158.775 | C106: 1.410149807e+11 | D106: 1.126275793e+10 | E106: -4629.016485 | F106: 15250.5277 | G106: 15937.57788 | H106: 1.414640396e+11 | I106: 4.56647626 | J106: -4.846496822e+33 | K106: -1.280578932e+32 | L106: 0.02642277462
A107: 89 | B107: 160.6 | C107: 1.4020269e+11 | D107: 1.366039941e+10 | E107: -5675.218329 | F107: 15157.78772 | G107: 16185.38327 | H107: 1.408666064e+11 | I107: 5.564946819 | J107: -4.846496821e+33 | K107: -1.280578922e+32 | L107: 0.02642277441
A108: 90 | B108: 162.425 | C108: 1.392248216e+11 | D108: 1.604190129e+10 | E108: -6729.456716 | F108: 15045.70131 | G108: 16482.07255 | H108: 1.401459723e+11 | I108: 6.572806133 | J108: -4.84649682e+33 | K108: -1.280578908e+32 | L108: 0.02642277413
A109: 91 | B109: 164.25 | C109: 1.380799803e+11 | D109: 1.840415568e+10 | E109: -7793.368679 | F109: 14913.51597 | G109: 16827.04828 | H109: 1.393010908e+11 | I109: 7.591989904 | J109: -4.846496818e+33 | K109: -1.28057889e+32 | L109: 0.02642277377
A110: 92 | B110: 166.075 | C110: 1.367665066e+11 | D110: 2.07439237e+10 | E110: -8868.66829 | F110: 14760.31985 | G110: 17219.76537 | H110: 1.383307186e+11 | I110: 8.624545307 | J110: -4.846496815e+33 | K110: -1.280578867e+32 | L110: 0.02642277331
A111: 93 | B111: 167.9 | C111: 1.352824639e+11 | D111: 2.305780899e+10 | E111: -9957.162334 | F111: 14585.02423 | G111: 17659.78521 | H111: 1.372334055e+11 | I111: 9.672654981 | J111: -4.846496813e+33 | K111: -1.280578838e+32 | L111: 0.02642277273
A112: 94 | B112: 169.725 | C112: 1.33625622e+11 | D112: 2.534222818e+10 | E112: -11060.76778 | F112: 14386.34171 | G112: 18146.82925 | H112: 1.360074829e+11 | I112: 10.73866441 | J112: -4.846496809e+33 | K112: -1.280578803e+32 | L112: 0.02642277201
A113: 95 | B113: 171.55 | C113: 1.317934388e+11 | D113: 2.759337751e+10 | E113: -12181.53146 | F113: 14162.75941 | G113: 18680.83142 | H113: 1.34651049e+11 | I113: 11.82511357 | J113: -4.846496805e+33 | K113: -1.280578758e+32 | L113: 0.02642277111
A114: 96 | B114: 173.375 | C114: 1.297830374e+11 | D114: 2.980719476e+10 | E114: -13321.65235 | F114: 13912.50591 | G114: 19261.98956 | H114: 1.331619527e+11 | I114: 12.93477394 | J114: -4.846496799e+33 | K114: -1.280578701e+32 | L114: 0.02642276998
A115: 97 | B115: 175.2 | C115: 1.275911808e+11 | D115: 3.197931543e+10 | E115: -14483.50717 | F115: 13633.51061 | G115: 19890.81676 | H115: 1.315377741e+11 | I115: 14.07069219 | J115: -4.846496792e+33 | K115: -1.28057863e+32 | L115: 0.02642276856
A116: 98 | B116: 177.025 | C116: 1.252142411e+11 | D116: 3.410502167e+10 | E116: -15669.67985 | F116: 13323.35343 | G116: 20568.19422 | H116: 1.297758016e+11 | I116: 15.23624233 | J116: -4.846496783e+33 | K116: -1.280578541e+32 | L116: 0.02642276676
A117: 99 | B117: 178.85 | C117: 1.226481647e+11 | D117: 3.617918251e+10 | E117: -16882.99578 | F117: 12979.20257 | G117: 21295.42782 | H117: 1.278730056e+11 | I117: 16.43518849 | J117: -4.846496771e+33 | K117: -1.280578427e+32 | L117: 0.02642276448
A118: 100 | B118: 180.675 | C118: 1.198884306e+11 | D118: 3.819618299e+10 | E118: -18126.56175 | F118: 12597.73677 | G118: 22074.31115 | H118: 1.258260076e+11 | I118: 17.67176135 | J118: -4.846496757e+33 | K118: -1.280578282e+32 | L118: 0.02642276155
A119: 101 | B119: 182.5 | C119: 1.169300029e+11 | D119: 4.014983963e+10 | E119: -19403.81298 | F119: 12175.04786 | G119: 22907.19862 | H119: 1.236310446e+11 | I119: 18.95075187 | J119: -4.846496738e+33 | K119: -1.280578094e+32 | L119: 0.02642275778
A120: 102 | B120: 184.325 | C120: 1.137672743e+11 | D120: 4.203329855e+10 | E120: -20718.56853 | F120: 11706.51747 | G120: 23797.09295 | H120: 1.212839268e+11 | I120: 20.27762766 | J120: -4.846496714e+33 | K120: -1.28057785e+32 | L120: 0.02642275287
A121: 103 | B121: 186.15 | C121: 1.103940011e+11 | D121: 4.383891158e+10 | E121: -22075.09698 | F121: 11186.65981 | G121: 24747.75271 | H121: 1.187799884e+11 | I121: 21.65867868 | J121: -4.846496682e+33 | K121: -1.280577528e+32 | L121: 0.02642274642
A122: 104 | B122: 187.975 | C122: 1.06803226e+11 | D122: 4.555808422e+10 | E122: -23478.19454 | F122: 10608.91921 | G122: 25763.82708 | H122: 1.161140306e+11 | I122: 23.10120179 | J122: -4.846496639e+33 | K122: -1.280577101e+32 | L122: 0.02642273783
A123: 105 | B123: 189.8 | C123: 1.029871876e+11 | D123: 4.718108712e+10 | E123: -24933.27796 | F123: 9965.406614 | G123: 26851.02752 | H123: 1.132802533e+11 | I123: 24.61373721 | J123: -4.846496581e+33 | K123: -1.280576525e+32 | L123: 0.02642272626
A124: 106 | B124: 191.625 | C124: 9.893721461e+10 | D124: 4.869681971e+10 | E124: -26446.49511 | F124: 9246.55256 | G124: 28016.34947 | H124: 1.102721755e+11 | I124: 26.20637518 | J124: -4.846496503e+33 | K124: -1.280575738e+32 | L124: 0.02642271046
A125: 107 | B125: 193.45 | C125: 9.464360016e+10 | D125: 5.00925106e+10 | E125: -28024.85604 | F125: 8440.644264 | G125: 29268.3623 | H125: 1.070825414e+11 | I125: 27.89115914 | J125: -4.846496393e+33 | K125: -1.280574647e+32 | L125: 0.02642268854
A126: 108 | B126: 195.275 | C126: 9.009545407e+10 | D126: 5.135333271e+10 | E126: -29676.38681 | F126: 7533.199089 | G126: 30617.59335 | H126: 1.037032093e+11 | I126: 29.68262365 | J126: -4.846496239e+33 | K126: -1.280573106e+32 | L126: 0.02642265758
A127: 109 | B127: 197.1 | C127: 8.528052909e+10 | D127: 5.246190238e+10 | E127: -31410.30664 | F127: 6506.10312 | G127: 32077.04384 | H127: 1.001250211e+11 | I127: 31.5985236 | J127: -4.846496018e+33 | K127: -1.280570888e+32 | L127: 0.02642261302
A128: 110 | B128: 198.925 | C128: 8.018501738e+10 | D128: 5.339761718e+10 | E128: -33237.22407 | F128: 5336.405764 | G128: 33662.89189 | H128: 9.633764857e+10 | I128: 33.66084097 | J128: -4.846495691e+33 | K128: -1.280567622e+32 | L128: 0.02642254742
A129: 111 | B129: 200.75 | C129: 7.479331563e+10 | D129: 5.413576595e+10 | E129: -35169.33686 | F129: 3994.599822 | G129: 35395.46698 | H129: 9.232941686e+10 | I129: 35.89720246 | J129: -4.846495198e+33 | K129: -1.280562696e+32 | L129: 0.02642244846
A130: 112 | B130: 202.575 | C130: 6.908776065e+10 | D130: 5.46463101e+10 | E130: -37220.5954 | F130: 2442.113496 | G130: 37300.6252 | H130: 8.808710393e+10 | I130: 38.34292121 | J130: -4.846494434e+33 | K130: -1.280555051e+32 | L130: 0.02642229488
A131: 113 | B131: 204.4 | C131: 6.304834779e+10 | D131: 5.489217931e+10 | E131: -39406.734 | F131: 627.5634269 | G131: 39411.73075 | H131: 8.359572661e+10 | I131: 41.04401293 | J131: -4.846493209e+33 | K131: -1.2805428e+32 | L131: 0.02642204879
A132: 114 | B132: 206.225 | C132: 5.665246804e+10 | D132: 5.48268315e+10 | E132: -41744.94901 | F132: -1518.99734 | G132: 41772.57618 | H132: 7.883833831e+10 | I132: 44.0617817 | J132: -4.846491172e+33 | K132: -1.280522437e+32 | L132: 0.02642163972
A133: 115 | B133: 208.05 | C133: 4.98747541e+10 | D133: 5.43906652e+10 | E133: -44252.71261 | F133: -4095.181166 | G133: 44441.79431 | H133: 7.379590474e+10 | I133: 47.48002682 | J133: -4.846487643e+33 | K133: -1.280487137e+32 | L133: 0.02642093062
A134: 116 | B134: 209.875 | C134: 4.268725322e+10 | D134: 5.350558319e+10 | E134: -46944.51294 | F134: -7241.160481 | G134: 47499.70211 | H134: 6.844741792e+10 | I134: 51.41680797 | J134: -4.846481224e+33 | K134: -1.280422949e+32 | L134: 0.02641964118
A135: 117 | B135: 211.7 | C135: 3.506045224e+10 | D135: 5.206647167e+10 | E135: -49823.54809 | F135: -11164.94805 | G135: 51059.20102 | H135: 6.277063632e+10 | I135: 56.04451559 | J135: -4.846468909e+33 | K135: -1.280299801e+32 | L135: 0.02641716733
A136: 118 | B136: 213.525 | C136: 2.69664586e+10 | D136: 4.99273362e+10 | E136: -52860.67117 | F136: -16186.93917 | G136: 55283.51976 | H136: 5.674441638e+10 | I136: 61.62589212 | J136: -4.846443894e+33 | K136: -1.280049655e+32 | L136: 0.02641214224
A137: 119 | B137: 215.35 | C137: 1.838773389e+10 | D137: 4.687785063e+10 | E137: -55939.26699 | F137: -22820.91615 | G137: 60415.19515 | H137: 5.035515502e+10 | I137: 68.5825147 | J137: -4.846390435e+33 | K137: -1.27951506e+32 | L137: 0.02640140279
A138: 120 | B138: 217.175 | C138: 9340822683 | D138: 4.260236512e+10 | E138: -58702.43623 | F138: -31921.84096 | G138: 66820.50546 | H138: 4.361436097e+10 | I138: 77.63324982 | J138: -4.846275464e+33 | K138: -1.278365355e+32 | L138: 0.02637830565
A139: 121 | B139: 219 | C139: -56665457.23 | D139: 3.660833373e+10 | E139: -60099.30788 | F139: -44924.19541 | G139: 75034.05987 | H139: 3.660837758e+10 | I139: 90.08868714 | J139: -4.846080677e+33 | K139: -1.27641748e+32 | L139: 0.02633917109
A140: 122 | B140: 220.825 | C140: -9387055924 | D140: 2.812075794e+10 | E140: -56992.76734 | F140: -63915.08225 | G140: 85634.7667 | H140: 2.964614386e+10 | I140: 108.4596457 | J140: -4.846367552e+33 | K140: -1.27928623e+32 | L140: 0.02639680578
A141: 123 | B141: 222.65 | C141: -1.73604086e+10 | D141: 1.610588984e+10 | E141: -40805.90609 | F141: -89010.88999 | G141: 97918.6423 | H141: 2.368086726e+10 | I141: 137.1467863 | J141: -4.850367899e+33 | K141: -1.319289704e+32 | L141: 0.02719978632
A142: 124 | B142: 224.475 | C142: -2.094070149e+10 | D142: 491258932.7 | E142: -1127.530707 | F142: -105103.3405 | G142: 105109.3884 | H142: 2.094646305e+10 | I142: 178.6561146 | J142: -4.861580434e+33 | K142: -1.43141505e+32 | L142: 0.0294434098
A143: 125 | B143: 226.3 | C143: -1.765039454e+10 | D143: -1.524393299e+10 | E143: 39808.67673 | F143: -90238.8843 | G143: 98629.54416 | H143: 2.332196219e+10 | I143: 220.815847 | J143: -4.948380468e+33 | K143: -2.299415387e+32 | L143: 0.04646803944
A144: 126 | B144: 228.125 | C144: -9727049083 | D144: -2.742785976e+10 | E144: 57234.82116 | F144: -64684.55009 | G144: 86370.80394 | H144: 2.910159746e+10 | I144: 250.4733967 | J144: -4.968760188e+33 | K144: -2.503212592e+32 | L144: 0.05037901806
A145: 127 | B145: 229.95 | C145: -322710061.1 | D145: -3.598316154e+10 | E145: 60706.23183 | F145: -45040.15407 | G145: 75590.09235 | H145: 3.59846086e+10 | I145: 269.4861644 | J145: -4.971421338e+33 | K145: -2.529824097e+32 | L145: 0.05088734035
A146: 128 | B146: 231.775 | C146: 9173304937 | D146: -4.195838464e+10 | E146: 59316.34168 | F146: -31601.91002 | G146: 67209.4421 | H146: 4.294945361e+10 | I146: 282.3324517 | J146: -4.972050343e+33 | K146: -2.536114147e+32 | L146: 0.05100741087
A147: 129 | B147: 233.6 | C147: 1.830993914e+10 | D147: -4.61607769e+10 | E147: 56456.03452 | F147: -22235.64674 | G147: 60677.0782 | H147: 4.965955292e+10 | I147: 291.6360387 | J147: -4.972254872e+33 | K147: -2.538159434e+32 | L147: 0.05104644671
A148: 130 | B148: 235.425 | C148: 2.69607532e+10 | D148: -4.910412812e+10 | E148: 53257.55436 | F148: -15438.94165 | G148: 55450.23008 | H148: 5.601872554e+10 | I148: 298.7691054 | J148: =0.5*$L$4*G148^2-$L$2*$L$3*$L$4/H148 -> -4.972332587e+33 | K148: =J148-$J$19 -> -2.538936582e+32 | L148: =K148/J148 -> 0.05106127834
A149: 131 | B149: 237.25 | C149: 3.510791638e+10 | D149: -5.111667253e+10 | E149: 50102.25275 | F149: -10315.0651 | G149: 51153.06734 | H149: 6.201193436e+10 | I149: 304.4820303 | J149: -4.972365653e+33 | K149: -2.53926724e+32 | L149: 0.05106758869
A150: 132 | B150: 239.075 | C150: 4.27698785e+10 | D150: -5.24162941e+10 | E150: 47113.39382 | F150: -6326.63973 | G150: 47536.28348 | H150: 6.765153653e+10 | I150: 309.2132525 | J150: -4.972381084e+33 | K150: -2.539421549e+32 | L150: 0.05107053354
A151: 133 | B151: 240.9 | C151: 4.997596591e+10 | D151: -5.315369916e+10 | E151: 44321.13046 | F151: -3139.753024 | G151: 44432.20289 | H151: 7.295829564e+10 | I151: 313.2351042 | J151: -4.972388861e+33 | K151: -2.539499323e+32 | L151: 0.05107201778
A152: 134 | B152: 242.725 | C152: 5.675712084e+10 | D152: -5.343705814e+10 | E152: 41721.53817 | F152: -538.3719305 | G152: 41725.01158 | H152: 7.795440942e+10 | I152: 316.7257541 | J152: -4.972393042e+33 | K152: -2.539541134e+32 | L152: 0.05107281569
A153: 135 | B153: 244.55 | C153: 6.314256768e+10 | D153: -5.334652564e+10 | E153: 39298.9718 | F153: 1622.616939 | G153: 39332.45569 | H153: 8.266096813e+10 | I153: 319.8069254 | J153: -4.972395415e+33 | K153: -2.539564867e+32 | L153: 0.05107326861
A154: 136 | B154: 246.375 | C154: 6.915876019e+10 | D154: -5.294313483e+10 | E154: 37034.80302 | F154: 3443.977722 | G154: 37194.59124 | H154: 8.70971276e+10 | I154: 322.5648449 | J154: -4.972396826e+33 | K154: -2.539578976e+32 | L154: 0.05107353787
A155: 137 | B155: 248.2 | C155: 7.482922111e+10 | D155: -5.227445442e+10 | E155: 34910.80933 | F155: 4997.730543 | G155: 35266.72538 | H155: 9.127995901e+10 | I155: 325.062488 | J155: -4.972397699e+33 | K155: -2.539587702e+32 | L155: 0.0510737044
A156: 138 | B156: 250.025 | C156: 8.017471916e+10 | D156: -5.137831154e+10 | E156: 32910.38361 | F156: 6336.658931 | G156: 33514.87126 | H156: 9.522455823e+10 | I156: 327.34706 | J156: -4.972398257e+33 | K156: -2.539593287e+32 | L156: 0.05107381098
A157: 139 | B157: 251.85 | C157: 8.521355542e+10 | D157: -5.028531743e+10 | E157: 31018.84413 | F157: 7500.30161 | G157: 31912.74378 | H157: 9.894424276e+10 | I157: 329.4547471 | J157: -4.972398626e+33 | K157: -2.539596969e+32 | L157: 0.05107388125
A158: 140 | B158: 253.675 | C158: 8.996186554e+10 | D158: -4.90206275e+10 | E158: 29223.38204 | F158: 8518.845836 | G158: 30439.72392 | H158: 1.024507646e+11 | I158: 331.4138338 | J158: -4.972398875e+33 | K158: -2.539599461e+32 | L158: 0.05107392881
A159: 141 | B159: 255.5 | C159: 9.44339014e+10 | D159: -4.760519756e+10 | E159: 27512.8764 | F159: 9415.727386 | G159: 29079.4479 | H159: 1.057545109e+11 | I159: 333.2468104 | J159: -4.972399047e+33 | K159: -2.539601187e+32 | L159: 0.05107396174
A160: 142 | B160: 257.325 | C160: 9.864228003e+10 | D160: -4.605669946e+10 | E160: 25877.67545 | F160: 10209.40986 | G160: 27818.80904 | H160: 1.088646819e+11 | I160: 334.9718342 | J160: -4.972399169e+33 | K160: -2.539602407e+32 | L160: 0.05107398502
A161: 143 | B161: 259.15 | C161: 1.025981984e+11 | D161: -4.439020131e+10 | E161: 24309.38477 | F161: 10914.62931 | G161: 26647.23852 | H161: 1.117894462e+11 | I161: 336.6037648 | J161: -4.972399257e+33 | K161: -2.539603285e+32 | L161: 0.05107400177
A162: 144 | B162: 260.975 | C162: 1.063116164e+11 | D162: -4.261868141e+10 | E162: 22800.67753 | F162: 11543.28207 | G162: 25556.17844 | H162: 1.14536072e+11 | I162: 338.1549148 | J162: -4.972399321e+33 | K162: -2.539603927e+32 | L162: 0.05107401403
A163: 145 | B163: 262.8 | C163: 1.097914117e+11 | D163: -4.075342251e+10 | E163: 21345.13044 | F163: 12105.06948 | G163: 24538.68987 | H163: 1.171110393e+11 | I163: 339.6356014 | J163: -4.972399369e+33 | K163: -2.539604404e+32 | L163: 0.05107402312
A164: 146 | B164: 264.625 | C164: 1.130455113e+11 | D164: -3.88043186e+10 | E164: 19937.08459 | F164: 12607.97343 | G164: 23589.15717 | H164: 1.195201354e+11 | I164: 341.0545606 | J164: -4.972399405e+33 | K164: -2.539604762e+32 | L164: 0.05107402997
A165: 147 | B165: 266.45 | C165: 1.160810022e+11 | D165: -3.678011666e+10 | E165: 18571.52827 | F165: 13058.61235 | G165: 22703.06188 | H165: 1.217685348e+11 | I165: 342.4192616 | J165: -4.972399432e+33 | K165: -2.539605035e+32 | L165: 0.05107403518
A166: 148 | B166: 268.275 | C166: 1.189042257e+11 | D166: -3.468860935e+10 | E166: 17243.99879 | F166: 13462.51101 | G166: 21876.80729 | H166: 1.238608675e+11 | I166: 343.7361493 | J166: -4.972399453e+33 | K166: -2.539605245e+32 | L166: 0.05107403918
A167: 149 | B167: 270.1 | C167: 1.215208571e+11 | D167: -3.25367905e+10 | E167: 15950.50001 | F167: 13824.3076 | G167: 21107.57994 | H167: 1.258012776e+11 | I167: 345.0108332 | J167: -4.97239947e+33 | K167: -2.539605408e+32 | L167: 0.0510740423
A168: 150 | B168: 271.925 | C168: 1.239359738e+11 | D168: -3.033098169e+10 | E168: 14687.43305 | F168: 14147.91419 | G168: 20393.23823 | H168: 1.275934718e+11 | I168: 346.248237 | J168: -4.972399482e+33 | K168: -2.539605536e+32 | L168: 0.05107404474
A169: 151 | B169: 273.75 | C169: 1.261541132e+11 | D169: -2.807693644e+10 | E169: 13451.53793 | F169: 14436.64232 | G169: 19732.2202 | H169: 1.292407623e+11 | I169: 347.4527178 | J169: -4.972399492e+33 | K169: -2.539605637e+32 | L169: 0.05107404667
A170: 152 | B170: 275.575 | C170: 1.281793221e+11 | D170: -2.57799268e+10 | E170: 12239.84395 | F170: 14693.30212 | G170: 19123.46483 | H170: 1.307461022e+11 | I170: 348.6281622 | J170: -4.972399501e+33 | K170: -2.539605717e+32 | L170: 0.0510740482
A171: 153 | B171: 277.4 | C171: 1.300151986e+11 | D171: -2.344481597e+10 | E171: 11049.62757 | F171: 14920.28102 | G171: 18566.342 | H171: 1.321121163e+11 | I171: 349.7780651 | J171: -4.972399507e+33 | K171: -2.539605782e+32 | L171: 0.05107404942
A172: 154 | B172: 279.225 | C172: 1.316649288e+11 | D172: -2.10761198e+10 | E172: 9878.376191 | F172: 15119.60674 | G172: 18060.58759 | H172: 1.333411276e+11 | I172: 350.9055942 | J172: -4.972399512e+33 | K172: -2.539605833e+32 | L172: 0.0510740504
A173: 155 | B173: 281.05 | C173: 1.33131317e+11 | D173: -1.867805938e+10 | E173: 8723.756957 | F173: 15292.99777 | G173: 17606.24083 | H173: 1.344351795e+11 | I173: 352.0136436 | J173: -4.972399516e+33 | K173: -2.539605874e+32 | L173: 0.05107405119
A174: 156 | B174: 282.875 | C174: 1.34416812e+11 | D174: -1.625460647e+10 | E174: 7583.589581 | F174: 15441.9041 | G174: 17203.58199 | H174: 1.353960545e+11 | I174: 353.1048796 | J174: -4.97239952e+33 | K174: -2.539605908e+32 | L174: 0.05107405183
A175: 157 | B175: 284.7 | C175: 1.355235293e+11 | D175: -1.380952319e+10 | E175: 6455.822506 | F175: 15567.53994 | G175: 16853.06928 | H175: 1.36225291e+11 | I175: 354.1817789 | J175: -4.972399522e+33 | K175: -2.539605935e+32 | L175: 0.05107405234
A176: 158 | B176: 286.525 | C176: 1.364532695e+11 | D176: -1.134639701e+10 | E176: 5338.511789 | F176: 15670.91004 | G176: 16555.27498 | H176: 1.369241961e+11 | I176: 355.246662 | J176: -4.972399524e+33 | K176: -2.539605956e+32 | L176: 0.05107405275
A177: 159 | B177: 288.35 | C177: 1.372075342e+11 | D177: -8868672061 | E177: 4229.802183 | F177: 15752.8307 | G177: 16310.82161 | H177: 1.374938572e+11 | I177: 356.3017221 | J177: -4.972399526e+33 | K177: -2.539605973e+32 | L177: 0.05107405307
A178: 160 | B178: 290.175 | C178: 1.377875381e+11 | D178: -6379677535 | E178: 3127.90999 | F178: 15813.9463 | G178: 16120.32005 | H178: 1.379351512e+11 | I178: 357.349051 | J178: -4.972399527e+33 | K178: -2.539605985e+32 | L178: 0.05107405331
A179: 161 | B179: 292 | C179: 1.381942192e+11 | D179: -3882653693 | E179: 2031.107307 | F179: 15854.74205 | G179: 15984.31238 | H179: 1.382487513e+11 | I179: 358.3906623 | J179: -4.972399528e+33 | K179: -2.539605995e+32 | L179: 0.05107405349
A180: 162 | B180: 293.825 | C180: 1.384282468e+11 | D180: -1380776204 | E180: 937.7073421 | F180: 15875.55338 | G180: 15903.22263 | H180: 1.38435133e+11 | I180: 359.4285124 | J180: -4.972399529e+33 | K180: -2.539606001e+32 | L180: 0.05107405361
A181: 163 | B181: 295.65 | C181: 1.384900262e+11 | D181: 1122820787 | E181: -153.9495051 | F181: 15876.5724 | G181: 15877.31878 | H181: 1.384945778e+11 | I181: 0.4645206913 | J181: -4.972399529e+33 | K181: -2.539606004e+32 | L181: 0.05107405367
A182: 164 | B182: 297.475 | C182: 1.383797024e+11 | D182: 3625022392 | E182: -1245.509047 | F182: 15857.85161 | G182: 15906.68886 | H182: 1.384271752e+11 | I182: 1.50058852 | J182: -4.972399529e+33 | K182: -2.539606005e+32 | L182: 0.05107405368
A183: 165 | B183: 299.3 | C183: 1.380971611e+11 | D183: 6122711079 | E183: -2338.616462 | F183: 15819.305 | G183: 15991.23315 | H183: 1.382328235e+11 | I183: 2.538617825 | J183: -4.972399529e+33 | K183: -2.539606002e+32 | L183: 0.05107405363
A184: 166 | B184: 301.125 | C184: 1.376420279e+11 | D184: 8612744755 | E184: -3434.929439 | F184: 15760.70658 | G184: 16130.67302 | H184: 1.379112295e+11 | I184: 3.580529757 | J184: -4.972399528e+33 | K184: -2.539605997e+32 | L184: 0.05107405353
A185: 167 | B185: 302.95 | C185: 1.370136649e+11 | D185: 1.109193441e+10 | E185: -4536.131545 | F185: 15681.68629 | G185: 16324.57578 | H185: 1.374619052e+11 | I185: 4.628283781 | J185: -4.972399528e+33 | K185: -2.539605988e+32 | L185: 0.05107405336
A186: 168 | B186: 304.775 | C186: 1.362111661e+11 | D186: 1.355702089e+10 | E186: -5643.94608 | F186: 15581.72323 | G186: 16572.39349 | H186: 1.368841648e+11 | I186: 5.683897656 | J186: -4.972399526e+33 | K186: -2.539605976e+32 | L186: 0.05107405313
A187: 169 | B187: 306.6 | C187: 1.352333493e+11 | D187: 1.600465039e+10 | E187: -6760.150678 | F187: 15460.13574 | G187: 16873.5128 | H187: 1.361771185e+11 | I187: 6.749468827 | J187: -4.972399525e+33 | K187: -2.539605959e+32 | L187: 0.05107405281
A188: 170 | B188: 308.425 | C188: 1.340787471e+11 | D188: 1.843134811e+10 | E188: -7886.592937 | F188: 15316.06828 | G188: 17227.31249 | H188: 1.353396654e+11 | I188: 7.827197751 | J188: -4.972399522e+33 | K188: -2.539605937e+32 | L188: 0.05107405239
A189: 171 | B189: 310.25 | C189: 1.327455939e+11 | D189: 2.083348954e+10 | E189: -9025.207412 | F189: 15148.47432 | G189: 17633.22554 | H189: 1.343704841e+11 | I189: 8.919413814 | J189: -4.97239952e+33 | K189: -2.539605909e+32 | L189: 0.05107405186
A190: 172 | B190: 312.075 | C190: 1.312318111e+11 | D190: 2.320726872e+10 | E190: -10178.03433 | F190: 14956.0948 | G190: 18090.80304 | H190: 1.332680215e+11 | I190: 10.0286046 | J190: -4.972399516e+33 | K190: -2.539605874e+32 | L190: 0.05107405118
A191: 173 | B191: 313.9 | C191: 1.295349886e+11 | D191: 2.554866265e+10 | E191: -11347.24047 | F191: 14737.43108 | G191: 18599.77798 | H191: 1.320304791e+11 | I191: 11.15744942 | J191: -4.972399512e+33 | K191: -2.539605829e+32 | L191: 0.05107405033
A192: 174 | B192: 315.725 | C192: 1.276523632e+11 | D192: 2.7853391e+10 | E192: -12535.14267 | F192: 14490.7114 | G192: 19160.12836 | H192: 1.306557967e+11 | I192: 12.30885827 | J192: -4.972399506e+33 | K192: -2.539605772e+32 | L192: 0.05107404925
A193: 175 | B193: 317.55 | C193: 1.255807929e+11 | D193: 3.011686987e+10 | E193: -13744.23461 | F193: 14213.84926 | G193: 19772.13938 | H193: 1.29141633e+11 | I193: 13.48601762 | J193: -4.972399499e+33 | K193: -2.539605701e+32 | L193: 0.05107404788
A194: 176 | B194: 319.375 | C194: 1.233167264e+11 | D194: 3.233415819e+10 | E194: -14977.21753 | F194: 13904.39168 | G194: 20436.46625 | H194: 1.274853434e+11 | I194: 14.69244486 | J194: -4.97239949e+33 | K194: -2.53960561e+32 | L194: 0.05107404614
A195: 177 | B195: 321.2 | C195: 1.208561679e+11 | D195: 3.449989512e+10 | E195: -16237.0358 | F195: 13559.45485 | G195: 21154.19928 | H195: 1.256839532e+11 | I195: 15.93205371 | J195: -4.972399478e+33 | K195: -2.539605494e+32 | L195: 0.05107404392
A196: 178 | B196: 323.025 | C196: 1.181946356e+11 | D196: 3.660822595e+10 | E196: -17526.91831 | F196: 13175.64364 | G196: 21926.93437 | H196: 1.237341266e+11 | I196: 17.20923374 | J196: -4.972399463e+33 | K196: -2.539605344e+32 | L196: 0.05107404108
A197: 179 | B197: 324.85 | C197: 1.153271128e+11 | D197: 3.865271381e+10 | E197: -18850.42699 | F197: 12748.95026 | G197: 22756.85239 | H197: 1.216321307e+11 | I197: 18.5289479 | J197: -4.972399444e+33 | K197: -2.539605151e+32 | L197: 0.05107403739
A198: 180 | B198: 326.675 | C198: 1.122479912e+11 | D198: 4.062623339e+10 | E198: -20211.51392 | F198: 12274.62592 | G198: 23646.81239 | H198: 1.193737927e+11 | I198: 19.89685338 | J198: -4.972399419e+33 | K198: -2.539604899e+32 | L198: 0.05107403258
A199: 181 | B199: 328.5 | C199: 1.089510045e+11 | D199: 4.252084164e+10 | E199: -21614.5889 | F199: 11747.01672 | G199: 24600.46454 | H199: 1.169544499e+11 | I199: 21.31945322 | J199: -4.972399385e+33 | K199: -2.539604567e+32 | L199: 0.05107402624
A200: 182 | B200: 330.325 | C200: 1.054291495e+11 | D200: 4.432761915e+10 | E200: -23064.59963 | F200: 11159.35205 | G200: 25622.39048 | H200: 1.143688917e+11 | I200: 22.80428833 | J200: -4.972399341e+33 | K200: -2.539604123e+32 | L200: 0.05107401777
A201: 183 | B201: 332.15 | C201: 1.016745944e+11 | D201: 4.603647323e+10 | E201: -24567.12682 | F201: 10503.46857 | G201: 26718.28161 | H201: 1.116112898e+11 | I201: 24.36018377 | J201: -4.972399281e+33 | K201: -2.539603524e+32 | L201: 0.05107400634
A202: 184 | B202: 333.975 | C202: 9.767857037e+10 | D202: 4.763589103e+10 | E202: -26128.49723 | F202: 9769.446177 | G202: 27895.16887 | H202: 1.086751178e+11 | I202: 25.99756863 | J202: -4.972399199e+33 | K202: -2.539602703e+32 | L202: 0.05107399067
A203: 185 | B203: 335.8 | C203: 9.343124333e+10 | D203: 4.911262601e+10 | E203: -27755.91697 | F203: 8945.121387 | G203: 29161.7236 | H203: 1.055530543e+11 | I203: 27.72889715 | J203: -4.972399085e+33 | K203: -2.539601561e+32 | L203: 0.05107396887
A204: 186 | B204: 337.625 | C204: 8.892156369e+10 | D204: 5.045129492e+10 | E204: -29457.62717 | F204: 8015.427485 | G204: 30528.65664 | H204: 1.022368703e+11 | I204: 29.56921152 | J204: -4.972398923e+33 | K204: -2.539599943e+32 | L204: 0.05107393799
A205: 187 | B205: 339.45 | C205: 8.413708923e+10 | D205: 5.163385227e+10 | E205: -31243.08173 | F205: 6961.485352 | G205: 32009.25545 | H205: 9.871729576e+10 | I205: 31.5369066 | J205: -4.972398689e+33 | K205: -2.539597605e+32 | L205: 0.05107389339
A206: 188 | B206: 341.275 | C206: 7.906377875e+10 | D206: 5.263889448e+10 | E206: -33123.1409 | F206: 5759.328329 | G206: 33620.11787 | H206: 9.498386349e+10 | I206: 33.65478787 | J206: -4.972398344e+33 | K206: -2.539594153e+32 | L206: 0.0510738275
A207: 189 | B207: 343.1 | C207: 7.368575511e+10 | D207: 5.344072275e+10 | E207: -35110.26202 | F207: 4378.078211 | G207: 35382.17161 | H207: 9.102472935e+10 | I207: 35.95156532 | J207: -4.972397821e+33 | K207: -2.539588923e+32 | L207: 0.0510737277
A208: 190 | B208: 344.925 | C208: 6.798504107e+10 | D208: 5.400805671e+10 | E208: -37218.63973 | F208: 2777.278146 | G208: 37322.11699 | H208: 8.682647061e+10 | I208: 38.46401138 | J208: -4.972397006e+33 | K208: -2.539580772e+32 | L208: 0.05107357215
A209: 191 | B209: 346.75 | C209: 6.194128385e+10 | D209: 5.430223091e+10 | E209: -39464.1842 | F209: 902.895799 | G209: 39474.51147 | H209: 8.237387284e+10 | I209: 41.24015963 | J209: -4.972395694e+33 | K209: -2.539567649e+32 | L209: 0.0510733217
... 1010 more rows

Sheet VO ORBITA CADUTA (16 anni)
A1: GRAVITAZIONE - TERRA(1) E SOLE(2)
H2: 16 | K2: kg= costante gravitazione universale | L2: 6.67428e-11 | M2: N*m^2/kg^2 | R2: Ep | S2: =-L2*L3*L4/A4 -> -5.390356429e+33 | T2: J
A3: xterra (m) | B3: yterra (m) | C3: vx terra (m/s) | D3: vy terra (m/s) | E3: massasole (kg) | F3: tf (g) | G3: NSTEP | K3: M= massa Sole | L3: 1.9891e+30 | M3: kg | R3: Ec | S3: =0.5*L4*D4^2 -> 6.719175e+32 | T3: J
A4: =147098074000 -> 147098074000 | B4: 0 | C4: 0 | D4: 15000 | E4: 1.9891e+30 | F4: =365*H2 -> 5840 | G4: =200*H2 -> 3200 | K4: m=massa Terra | L4: 5.9726e+24 | M4: kg | R4: Ec | S4: =SUM(S2:S3) -> -4.718438929e+33 | T4: J
C10: =MAX(C19:C3219) -> 147098074000 | D10: 5.550707199e+10 | E10: 80607.0969 | F10: 59182.13763 | G10: 105246.251 | H10: 147098074000 | I10: dmax | K10: E0 | L10: =0.5*L4*D4^2-L2*L3*L4/A4 -> -4.718438929e+33 | M10: J | N10: --->> ellisse
C11: =MIN(C19:C3219) -> -2.167827548e+10 | D11: =MIN(D19:D3219) -> -5.443260979e+10 | E11: =MIN(E19:E3219) -> -63221.23482 | F11: =MIN(F19:F3219) -> -105107.2821 | G11: =MIN(G19:G3219) -> 15000 | H11: =MIN(H19:H385) -> 2.094646305e+10 | I11: dmin
C12: CONCLUSIONE: SIMULAZIONE QUASI PERFETTA .AUMENTANDO GLI STEPS I RISULTATI NON CAMBIANO | L12: =0.5*L4*D4^2 -> 6.719175e+32
A14: MOTO TERRA ATTORNO AL SOLE"
A18: step | B18: t(giorni) | C18: xterra | D18: yterra | E18: vxterra | F18: vyterra | G18: vterra | H18: distanza | I18: angolo | J18: E | Q18: (x,y) sole
A19: 1 | B19: 0 | C19: 147098074000 | D19: 0 | E19: 0 | F19: 15000 | G19: 15000 | H19: 147098074000 | I19: 0 | J19: =0.5*$L$4*G19^2-$L$2*$L$3*$L$4/H19 -> -4.718438929e+33 | K19: =J19-$J$19 -> 0 | L19: =K19/J19 -> 0
A20: 2 | B20: 1.825 | C20: 1.470217928e+11 | D20: 2364791082 | E20: -967.6486321 | F20: 14992.21837 | G20: 15023.41358 | H20: 1.4704081e+11 | I20: 0.9215019278 | J20: =0.5*$L$4*G20^2-$L$2*$L$3*$L$4/H20 -> -4.718438929e+33 | K20: =J20-$J$19 -> -2.94386977e+22 | L20: =K20/J20 -> 6.239075708e-12
A21: 3 | B21: 3.65 | C21: 1.467928502e+11 | D21: 4727125702 | E21: -1936.555619 | F21: 14968.82692 | G21: 15093.57569 | H21: 1.468689436e+11 | I21: 1.844441243 | J21: -4.718438929e+33 | K21: 1.061944469e+23 | L21: -2.250626711e-11
A22: 4 | B22: 5.475 | C22: 1.46410948e+11 | D22: 7084532684 | E22: -2907.988042 | F22: 14929.68527 | G22: 15210.2563 | H22: 1.465822509e+11 | I22: 2.770267323 | J22: -4.718438928e+33 | K22: 4.140371707e+23 | L22: -8.774876119e-11
A23: 5 | B23: 7.3 | C23: 1.458755869e+11 | D23: 9434511174 | E23: -3883.230579 | F23: 14874.55697 | G23: 15373.09093 | H23: 1.461803573e+11 | I23: 3.700453767 | J23: -4.718438928e+33 | K23: 9.072650609e+23 | L23: -1.92280768e-10
A24: 6 | B24: 9.125 | C24: 1.451860633e+11 | D24: 1.177451523e+10 | E24: -4863.594652 | F24: 14803.1057 | G24: 15581.60747 | H24: 1.456627344e+11 | I24: 4.636511109 | J24: -4.718438927e+33 | K24: 1.605808671e+24 | L24: -3.403262596e-10
A25: 7 | B25: 10.95 | C25: 1.443414638e+11 | D25: 1.410193765e+10 | E25: -5850.428032 | F25: 14714.88983 | G25: 15835.261 | H25: 1.450286965e+11 | I25: 5.580000281 | J25: -4.718438926e+33 | K25: 2.537447646e+24 | L25: -5.37772701e-10
A26: 8 | B26: 12.775 | C26: 1.433406592e+11 | D26: 1.641409284e+10 | E26: -6845.125027 | F26: 14609.35512 | G26: 16133.47432 | H26: 1.442773961e+11 | I26: 6.532547118 | J26: -4.718438925e+33 | K26: 3.739357361e+24 | L26: -7.924988372e-10
A27: 9 | B27: 14.6 | C27: 1.421822958e+11 | D27: 1.870819831e+10 | E27: -7849.137477 | F27: 14485.82525 | G27: 16475.68184 | H27: 1.434078168e+11 | I27: 7.495858234 | J27: -4.718438924e+33 | K27: 5.260264317e+24 | L27: -1.114831494e-09
A28: 10 | B28: 16.425 | C28: 1.408647858e+11 | D28: 2.098135457e+10 | E28: -8863.986738 | F28: 14343.4901 | G28: 16861.37507 | H28: 1.424187668e+11 | I28: 8.471738663 | J28: -4.718438922e+33 | K28: 7.163361292e+24 | L28: -1.518163403e-09
A29: 11 | B29: 18.25 | C29: 1.393862953e+11 | D29: 2.32305229e+10 | E29: -9891.2769 | F29: 14181.39116 | G29: 17290.14788 | H29: 1.413088692e+11 | I29: 9.462111706 | J29: -4.718438919e+33 | K29: 9.530244001e+24 | L29: -2.019787511e-09
A30: 12 | B30: 20.075 | C30: 1.377447297e+11 | D30: 2.545250056e+10 | E30: -10932.70951 | F30: 13998.40356 | G30: 17761.74089 | H30: 1.400765518e+11 | I30: 10.46904155 | J30: -4.718438916e+33 | K30: 1.246627967e+25 | L30: -2.642034768e-09
A31: 13 | B31: 21.9 | C31: 1.359377177e+11 | D31: 2.764389296e+10 | E31: -11990.10016 | F31: 13793.21425 | G31: 18276.08441 | H31: 1.387200342e+11 | I31: 11.49475931 | J31: -4.718438913e+33 | K31: 1.61078445e+25 | L31: -3.413807998e-09
A32: 14 | B32: 23.725 | C32: 1.339625911e+11 | D32: 2.980108189e+10 | E32: -13065.39723 | F32: 13564.29525 | G32: 18833.34039 | H32: 1.372373137e+11 | I32: 12.54169338 | J32: -4.718438908e+33 | K32: 2.063229298e+25 | L32: -4.372694737e-09
A33: 15 | B33: 25.55 | C33: 1.318163628e+11 | D33: 3.192018915e+10 | E33: -14160.70338 | F33: 13309.87096 | G33: 19433.94414 | H33: 1.356261479e+11 | I33: 13.612505 | J33: -4.718438902e+33 | K33: 2.62716327e+25 | L33: -5.567865399e-09
A34: 16 | B34: 27.375 | C34: 1.294957007e+11 | D34: 3.39970345e+10 | E34: -15278.30023 | F34: 13027.87815 | G34: 20078.64704 | H34: 1.338840351e+11 | I34: 14.71013059 | J34: -4.718438895e+33 | K34: 3.333160288e+25 | L34: -7.064116674e-09
A35: 17 | B35: 29.2 | C35: 1.269968964e+11 | D35: 3.602708651e+10 | E35: -16420.67698 | F35: 12715.91673 | G35: 20768.56208 | H35: 1.320081916e+11 | I35: 15.83783222 | J35: -4.718438887e+33 | K35: 4.221847575e+25 | L35: -8.947551672e-09
A36: 18 | B36: 31.025 | C36: 1.243158309e+11 | D36: 3.800540481e+10 | E36: -17590.56371 | F36: 12371.1888 | G36: 21505.21435 | H36: 1.299955253e+11 | I36: 16.99925865 | J36: -4.718438875e+33 | K36: 5.347717448e+25 | L36: -1.133365842e-08
A37: 19 | B37: 32.85 | C37: 1.21447933e+11 | D37: 3.992657169e+10 | E37: -18790.97042 | F37: 11990.42294 | G37: 22290.59918 | H37: 1.278426047e+11 | I37: 18.19851965 | J37: -4.718438861e+33 | K37: 6.784613896e+25 | L37: -1.437893781e-08
A38: 20 | B38: 34.675 | C38: 1.183881321e+11 | D38: 4.178461012e+10 | E38: -20025.23296 | F38: 11569.77928 | G38: 23127.25119 | H38: 1.25545623e+11 | I38: 19.44027733 | J38: -4.718438842e+33 | K38: 8.63373858e+25 | L38: -1.829787111e-08
A39: 21 | B39: 36.5 | C39: 1.151308021e+11 | D39: 4.357288516e+10 | E39: -21297.06737 | F39: 11104.72971 | G39: 24018.32843 | H39: 1.231003571e+11 | I39: 20.72985936 | J39: -4.718438818e+33 | K39: 1.103550062e+26 | L39: -2.338803373e-08
A40: 22 | B40: 38.325 | C40: 1.11669697e+11 | D40: 4.528398381e+10 | E40: -22610.63439 | F40: 10589.90522 | G40: 24967.71676 | H40: 1.205021179e+11 | I40: 22.07340097 | J40: -4.718438787e+33 | K40: 1.41873338e+26 | L40: -3.0067856e-08
A41: 23 | B41: 40.15 | C41: 1.079978748e+11 | D41: 4.690956766e+10 | E41: -23970.61621 | F41: 10018.89962 | G41: 25980.16149 | H41: 1.177456941e+11 | I41: 23.47802467 | J41: -4.718438745e+33 | K41: 1.83709434e+26 | L41: -3.893436875e-08
A42: 24 | B42: 41.975 | C42: 1.041076078e+11 | D42: 4.844019012e+10 | E42: -25382.30813 | F42: 9384.014269 | G42: 27061.43547 | H42: 1.148252848e+11 | I42: 24.95207037 | J42: -4.718438689e+33 | K42: 2.399474768e+26 | L42: -5.085315135e-08
A43: 25 | B43: 43.8 | C43: 9.999027853e+10 | D43: 4.986506733e+10 | E43: -26851.72772 | F43: 8675.922401 | G43: 28218.55615 | H43: 1.117344206e+11 | I43: 26.50539378 | J43: -4.718438612e+33 | K43: 3.166132226e+26 | L43: -6.710126985e-08
A44: 26 | B44: 45.625 | C44: 9.563625489e+10 | D44: 5.117178801e+10 | E44: -28385.74475 | F44: 7883.22165 | G44: 29460.06939 | H44: 1.084658708e+11 | I44: 28.14975824 | J44: -4.718438506e+33 | K44: 4.227694876e+26 | L44: -8.959944842e-08
A45: 27 | B45: 47.45 | C45: 9.103474469e+10 | D45: 5.234594083e+10 | E45: -29992.23423 | F45: 6991.829234 | G45: 30796.42496 | H45: 1.050115339e+11 | I45: 29.89935715 | J45: -4.718438356e+33 | K45: 5.723385293e+26 | L45: -1.212982953e-07
A46: 28 | B46: 49.275 | C46: 8.617362322e+10 | D46: 5.337062991e+10 | E46: -31680.25389 | F46: 5984.151312 | G46: 32240.48005 | H46: 1.01362308e+11 | I46: 31.77152132 | J46: -4.718438142e+33 | K46: 7.872143283e+26 | L46: -1.668379037e-07
A47: 29 | B47: 51.1 | C47: 8.103923135e+10 | D47: 5.422583493e+10 | E47: -33460.24298 | F47: 4837.922157 | G47: 33808.18467 | H47: 9.750793912e+10 | I47: 33.7876942 | J47: -4.718437826e+33 | K47: 1.1027335e+27 | L47: -2.337073288e-07
A48: 30 | B48: 52.925 | C48: 7.561614136e+10 | D48: 5.488755193e+10 | E48: -35344.22936 | F48: 3524.550102 | G48: 35519.52988 | H48: 9.343684601e+10 | I48: 35.97480321 | J48: -4.718437351e+33 | K48: 1.577603599e+27 | L48: -3.343487434e-07
A49: 31 | B49: 54.75 | C49: 6.988689147e+10 | D49: 5.532661834e+10 | E49: -37346.00976 | F49: 2006.709259 | G49: 37399.88405 | H49: 8.913592034e+10 | I49: 38.36723134 | J49: -4.718436616e+33 | K49: 2.312565899e+27 | L49: -4.9011274e-07
A50: 32 | B50: 56.575 | C50: 6.383169919e+10 | D50: 5.550707199e+10 | E50: -39481.21727 | F50: 234.7474211 | G50: 39481.91514 | H50: 8.459031187e+10 | I50: 41.00972406 | J50: -4.718435442e+33 | K50: 3.486866496e+27 | L50: -7.389878572e-07
A51: 33 | B51: 58.4 | C51: 5.742818487e+10 | D51: 5.538380562e+10 | E51: -41767.07663 | F51: -1858.818375 | G51: 41808.41896 | H51: 7.978322093e+10 | I51: 43.96179934 | J51: -4.718433496e+33 | K51: 5.4326392e+27 | L51: -1.151365004e-06
A52: 34 | B52: 60.225 | C52: 5.065118593e+10 | D52: 5.48991241e+10 | E52: -44221.38335 | F52: -4367.995223 | G52: 44436.58546 | H52: 7.469575934e+10 | I52: 47.30466068 | J52: -4.718430135e+33 | K52: 8.793815001e+27 | L52: -1.863716268e-06
A53: 35 | B53: 62.05 | C53: 4.347285838e+10 | D53: 5.397753798e+10 | E53: -46859.60759 | F53: -7427.512572 | G53: 47444.60734 | H53: 6.930702722e+10 | I53: 51.15245018 | J53: -4.718424046e+33 | K53: 1.48826294e+28 | L53: -3.154152583e-06
A54: 36 | B54: 63.875 | C54: 3.58635415e+10 | D54: 5.251761964e+10 | E54: -49687.42229 | F54: -11236.87566 | G54: 50942.19576 | H54: 6.359476379e+10 | I54: 55.67138238 | J54: -4.71841241e+33 | K54: 2.651836947e+28 | L54: -5.620188989e-06
A55: 37 | B55: 65.7 | C55: 2.779456844e+10 | D55: 5.037877943e+10 | E55: -52681.66989 | F55: -16102.69202 | G55: 55087.7031 | H55: 5.753746129e+10 | I55: 61.11395898 | J55: -4.718388859e+33 | K55: 5.006945082e+28 | L55: -1.061155668e-05
A56: 38 | B56: 67.525 | C56: 1.924610014e+10 | D56: 4.73589311e+10 | E56: -55740.48437 | F56: -22515.69243 | G56: 60116.20417 | H56: 5.112025749e+10 | I56: 67.88376643 | J56: -4.718338603e+33 | K56: 1.00326008e+29 | L56: -2.126299455e-05
A57: 39 | B57: 69.35 | C57: 1.022852036e+10 | D57: 4.315543231e+10 | E57: -58545.17295 | F57: -31292.20056 | G57: 66383.27419 | H57: 4.435103118e+10 | I57: 76.66604441 | J57: -4.718229759e+33 | K57: 2.091693535e+29 | L57: -4.433216783e-05
A58: 40 | B58: 71.175 | C58: 842899841.4 | D58: 3.729636704e+10 | E58: -60150.42091 | F58: -43809.89233 | G58: 74413.5727 | H58: 3.730589062e+10 | I58: 88.70533277 | J58: -4.718034972e+33 | K58: 4.039564562e+29 | L58: -8.561964008e-05
A59: 41 | B59: 73 | C59: -8538927199 | D59: 2.903486863e+10 | E59: -57716.26655 | F59: -62145.70137 | G59: 84813.06281 | H59: 3.026444902e+10 | I59: 106.3881962 | J59: -4.718201988e+33 | K59: 2.36940534e+29 | L59: -5.02183956e-05
A60: 42 | B60: 74.825 | C60: -1.674608243e+10 | D60: 1.733597463e+10 | E60: -43259.06486 | F60: -86966.97233 | G60: 97131.87411 | H60: 2.410326312e+10 | I60: 134.0084237 | J60: -4.721870371e+33 | K60: -3.431442508e+30 | L60: 0.0007267125606
A61: 43 | B61: 76.65 | C61: -2.088386132e+10 | D61: 1917580382 | E61: -5406.716299 | F61: -105107.2821 | G61: 105246.251 | H61: 2.097171376e+10 | I61: 174.7537459 | J61: -4.730027577e+33 | K61: -1.158864848e+31 | L61: 0.002450017107
A62: 44 | B62: 78.475 | C62: -1.818610262e+10 | D62: -1.403475763e+10 | E62: 37005.35486 | F62: -92603.8244 | G62: 99723.94186 | H62: 2.29719122e+10 | I62: 217.6584397 | J62: -4.818196234e+33 | K62: -9.975730492e+31 | L62: 0.02070428436
A63: 45 | B63: 80.3 | C63: -1.055113942e+10 | D63: -2.660954865e+10 | E63: 56194.00279 | F63: -67054.80736 | G63: 87487.78852 | H63: 2.862506982e+10 | I63: 248.3708305 | J63: -4.842403669e+33 | K63: -1.239647402e+32 | L63: 0.02559983608
A64: 46 | B64: 82.125 | C64: -1243411291 | D64: -3.550098149e+10 | E64: 60402.255 | F64: -46942.02045 | G64: 76498.27249 | H64: 3.552274988e+10 | I64: 267.9940524 | J64: -4.845433261e+33 | K64: -1.269943323e+32 | L64: 0.02620907677
A65: 47 | B65: 83.95 | C65: 8230742999 | D65: -4.174783968e+10 | E65: 59301.84841 | F65: -33172.12409 | G65: 67949.23871 | H65: 4.255146587e+10 | I65: 281.1530409 | J65: -4.846122433e+33 | K65: -1.276835043e+32 | L65: 0.02634756057
A66: 48 | B66: 85.775 | C66: 1.737705211e+10 | D66: -4.618054843e+10 | E66: 56579.01193 | F66: -23603.54754 | G66: 61305.07359 | H66: 4.934171656e+10 | I66: 290.6205708 | J66: -4.84634325e+33 | K66: -1.279043213e+32 | L66: 0.02639192371
A67: 49 | B67: 87.6 | C67: 2.605422473e+10 | D67: -4.932891106e+10 | E67: 53463.49385 | F67: -16680.86714 | G67: 56005.32567 | H67: 5.578677346e+10 | I67: 297.8418281 | J67: -4.846426324e+33 | K67: -1.279873954e+32 | L67: 0.02640861261
A68: 50 | B68: 89.425 | C68: 3.423887246e+10 | D68: -5.153033555e+10 | E68: 50369.47206 | F68: -11474.30343 | G68: 51659.88148 | H68: 6.186821372e+10 | I68: 303.6016965 | J68: -4.84646138e+33 | K68: -1.280224513e+32 | L68: 0.02641565489
A69: 51 | B69: 91.25 | C69: 4.194712879e+10 | D69: -5.300796069e+10 | E69: 47432.28712 | F69: -7428.406875 | G69: 48010.44772 | H69: 6.759737799e+10 | I69: 308.3558511 | J69: -4.846477627e+33 | K69: -1.280386983e+32 | L69: 0.02641891867
A70: 52 | B70: 93.075 | C70: 4.920724475e+10 | D70: -5.391560779e+10 | E70: 44686.9669 | F70: -4199.311723 | G70: 44883.84152 | H70: 7.299483337e+10 | I70: 312.385816 | J70: -4.846485769e+33 | K70: -1.280468398e+32 | L70: 0.02642055418
A71: 53 | B71: 94.9 | C71: 5.604960785e+10 | D71: -5.436336536e+10 | E71: 42131.73603 | F71: -1565.301995 | G71: 42160.80349 | H71: 7.808286645e+10 | I71: 315.8749612 | J71: -4.846490124e+33 | K71: -1.280511956e+32 | L71: 0.02642142919
A72: 54 | B72: 96.725 | C72: 6.25031262e+10 | D72: -5.443260979e+10 | E72: 39751.98308 | F72: 622.1160718 | G72: 39756.85082 | H72: 8.288274726e+10 | I72: 318.9481038 | J72: -4.846492587e+33 | K72: -1.280536582e+32 | L72: 0.02642192387
A73: 55 | B73: 98.55 | C73: 6.859405667e+10 | D73: -5.418517416e+10 | E73: 37529.62511 | F73: 2465.798219 | G73: 37610.54269 | H73: 8.74138302e+10 | I73: 321.6933889 | J73: -4.846494046e+33 | K73: -1.280551172e+32 | L73: 0.02642221696
A74: 56 | B74: 100.375 | C74: 7.434579106e+10 | D74: -5.366916155e+10 | E74: 35446.75813 | F74: 4039.106693 | G74: 35676.14112 | H74: 9.16933779e+10 | I74: 324.1750217 | J74: -4.846494946e+33 | K74: -1.28056017e+32 | L74: 0.02642239771
A75: 57 | B75: 102.2 | C75: 7.977900759e+10 | D75: -5.292276037e+10 | E75: 33486.98234 | F75: 5395.715477 | G75: 33918.89933 | H75: 9.573666287e+10 | I75: 326.4410178 | J75: -4.84649552e+33 | K75: -1.280565915e+32 | L75: 0.02642251312
A76: 58 | B76: 104.025 | C76: 8.49119445e+10 | D76: -5.197682657e+10 | E76: 31635.76594 | F76: 6575.772695 | G76: 32311.95558 | H76: 9.955716357e+10 | I76: 328.5281073 | J76: -4.846495898e+33 | K76: -1.280569695e+32 | L76: 0.02642258905
A77: 59 | B77: 105.85 | C77: 8.976069559e+10 | D77: -5.085667942e+10 | E77: 29880.41889 | F77: 7609.895132 | G77: 30834.2332 | H77: 1.031667791e+11 | I77: 330.4649454 | J77: -4.846496154e+33 | K77: -1.280572248e+32 | L77: 0.02642264035
A78: 60 | B78: 107.675 | C78: 9.433948806e+10 | D78: -4.958338077e+10 | E78: 28209.92136 | F78: 8521.830128 | G78: 29468.98797 | H78: 1.065760323e+11 | I78: 332.2742763 | J78: -4.84649633e+33 | K78: -1.280574014e+32 | L78: 0.02642267582
A79: 61 | B79: 109.5 | C79: 9.866092937e+10 | D79: -4.817466603e+10 | E79: 26614.71219 | F79: 9330.27388 | G79: 28202.78205 | H79: 1.097942504e+11 | I79: 333.9744304 | J79: -4.846496455e+33 | K79: -1.28057526e+32 | L79: 0.02642270086
A80: 62 | B80: 111.325 | C80: 1.027362206e+11 | D80: -4.66456347e+10 | E80: 25086.48109 | F80: 10050.14127 | G80: 27024.74556 | H80: 1.128297224e+11 | I80: 335.5803836 | J80: -4.846496544e+33 | K80: -1.280576157e+32 | L80: 0.02642271886
A81: 63 | B81: 113.15 | C81: 1.065753386e+11 | D81: -4.500927136e+10 | E81: 23617.98131 | F81: 10693.47044 | G81: 25926.03616 | H81: 1.156898324e+11 | I81: 337.1045231 | J81: -4.84649661e+33 | K81: -1.280576812e+32 | L81: 0.02642273202
A82: 64 | B82: 114.975 | C82: 1.101871907e+11 | D82: -4.327684483e+10 | E82: 22202.8672 | F82: 11270.07882 | G82: 24899.43751 | H82: 1.183811737e+11 | I82: 338.55721 | J82: -4.846496659e+33 | K82: -1.280577298e+32 | L82: 0.02642274179
A83: 65 | B83: 116.8 | C83: 1.135797453e+11 | D83: -4.14582184e+10 | E83: 20835.55611 | F83: 11788.04657 | G83: 23939.05679 | H83: 1.209096457e+11 | I83: 339.9472006 | J83: -4.846496695e+33 | K83: -1.280577663e+32 | L83: 0.02642274913
A84: 66 | B84: 118.625 | C84: 1.16760143e+11 | D84: -3.95620938e+10 | E84: 19511.11213 | F84: 12254.07811 | G84: 23040.0939 | H84: 1.232805348e+11 | I84: 341.2819658 | J84: =0.5*$L$4*G84^2-$L$2*$L$3*$L$4/H84 -> -4.846496723e+33 | K84: =J84-$J$19 -> -1.280577941e+32 | L84: =K84/J84 -> 0.02642275471
A85: 67 | B85: 120.45 | C85: 1.197347907e+11 | D85: -3.759620566e+10 | E85: 18225.14857 | F85: 12673.7761 | G85: 22198.66304 | H85: 1.254985848e+11 | I85: 342.5679373 | J85: -4.846496744e+33 | K85: -1.280578155e+32 | L85: 0.02642275901
A86: 68 | B86: 122.275 | C86: 1.225094412e+11 | D86: -3.556747788e+10 | E86: 16973.74612 | F86: 13051.8514 | G86: 21411.65296 | H86: 1.27568055e+11 | I86: 343.8106985 | J86: -4.846496761e+33 | K86: -1.280578321e+32 | L86: 0.02642276235
A87: 69 | B87: 124.1 | C87: 1.250892617e+11 | D87: -3.34821509e+10 | E87: 15753.38426 | F87: 13392.28604 | G87: 20676.6158 | H87: 1.294927713e+11 | I87: 345.0151362 | J87: -4.846496774e+33 | K87: -1.280578452e+32 | L87: 0.02642276497
A88: 70 | B88: 125.925 | C88: 1.274788919e+11 | D88: -3.134588619e+10 | E88: 14560.88331 | F88: 13698.46054 | G88: 19991.67687 | H88: 1.312761687e+11 | I88: 346.1855605 | J88: -4.846496784e+33 | K88: -1.280578555e+32 | L88: 0.02642276704
A89: 71 | B89: 127.75 | C89: 1.296824937e+11 | D89: -2.916385284e+10 | E89: 13393.35559 | F89: 13973.25467 | G89: 19355.45969 | H89: 1.329213282e+11 | I89: 347.3258019 | J89: -4.846496792e+33 | K89: -1.280578637e+32 | L89: 0.02642276869
A90: 72 | B90: 129.575 | C90: 1.317037938e+11 | D90: -2.694079996e+10 | E90: 12248.16375 | F90: 14219.12746 | G90: 18767.02164 | H90: 1.344310084e+11 | I90: 348.4392898 | J90: -4.846496799e+33 | K90: -1.280578703e+32 | L90: 0.02642277001
A91: 73 | B91: 131.4 | C91: 1.335461207e+11 | D91: -2.468111777e+10 | E91: 11122.88532 | F91: 14438.18143 | G91: 18225.79657 | H91: 1.358076725e+11 | I91: 349.5291177 | J91: -4.846496804e+33 | K91: -1.280578755e+32 | L91: 0.02642277107
A92: 74 | B92: 133.225 | C92: 1.352124355e+11 | D92: -2.238888964e+10 | E92: 10015.28208 | F92: 14632.21418 | G92: 17731.54159 | H92: 1.370535118e+11 | I92: 350.5980961 | J92: -4.846496809e+33 | K92: -1.280578798e+32 | L92: 0.02642277193
A93: 75 | B93: 135.05 | C93: 1.367053593e+11 | D93: -2.00679367e+10 | E93: 8923.273725 | F93: 14802.76033 | G93: 17284.28556 | H93: 1.381704648e+11 | I93: 351.6487982 | J93: -4.846496812e+33 | K93: -1.280578833e+32 | L93: 0.02642277262
A94: 76 | B94: 136.875 | C94: 1.380271961e+11 | D94: -1.772185659e+10 | E94: 7844.914735 | F94: 14951.12533 | G94: 16884.27777 | H94: 1.391602352e+11 | I94: 352.6835971 | J94: -4.846496815e+33 | K94: -1.280578861e+32 | L94: 0.02642277319
A95: 77 | B95: 138.7 | C95: 1.391799525e+11 | D95: -1.535405729e+10 | E95: 6778.374188 | F95: 15078.41308 | G95: 16531.93569 | H95: 1.400243059e+11 | I95: 353.7046986 | J95: -4.846496817e+33 | K95: -1.280578884e+32 | L95: 0.02642277365
A96: 78 | B96: 140.525 | C96: 1.40165354e+11 | D96: -1.296778715e+10 | E96: 5721.917792 | F96: 15185.54828 | G96: 16227.79158 | H96: 1.407639512e+11 | I96: 354.7141689 | J96: -4.846496819e+33 | K96: -1.280578902e+32 | L96: 0.02642277401
A97: 79 | B97: 142.35 | C97: 1.409848593e+11 | D97: -1.05661616e+10 | E97: 4673.891817 | F97: 15273.29442 | G97: 15972.43836 | H97: 1.413802473e+11 | I97: 355.7139596 | J97: -4.84649682e+33 | K97: -1.280578917e+32 | L97: 0.02642277431
A98: 80 | B98: 144.175 | C98: 1.41639672e+11 | D98: -8152187439 | E98: 3632.708546 | F98: 15342.26824 | G98: 15766.47602 | H98: 1.418740809e+11 | I98: 356.7059286 | J98: -4.846496822e+33 | K98: -1.280578928e+32 | L98: 0.02642277454
A99: 81 | B99: 146 | C99: 1.421307492e+11 | D99: -5728785028 | E99: 2596.832948 | F99: 15392.95104 | G99: 15610.4607 | H99: 1.422461558e+11 | I99: 357.6918603 | J99: -4.846496822e+33 | K99: -1.280578937e+32 | L99: 0.02642277471
A100: 82 | B100: 147.825 | C100: 1.424588095e+11 | D100: -3298808920 | E100: 1564.770297 | F100: 15425.69737 | G100: 15504.85877 | H100: 1.424969984e+11 | I100: 358.6734828 | J100: -4.846496823e+33 | K100: -1.280578943e+32 | L100: 0.02642277483
A101: 83 | B101: 149.65 | C101: 1.426243384e+11 | D101: -865067336.8 | E101: 535.0545137 | F101: 15440.74123 | G101: 15450.00884 | H101: 1.426269619e+11 | I101: 359.652485 | J101: -4.846496823e+33 | K101: -1.280578947e+32 | L101: 0.02642277491
A102: 84 | B102: 151.475 | C102: 1.426275915e+11 | D102: 1569659183 | E102: -493.7629979 | F102: 15438.20027 | G102: 15446.09431 | H102: 1.426362285e+11 | I102: 0.6305316868 | J102: -4.846496824e+33 | K102: -1.280578948e+32 | L102: 0.02642277495
A103: 85 | B103: 153.3 | C103: 1.424685967e+11 | D103: 4002599621 | E103: -1523.124205 | F103: 15418.07777 | G103: 15493.12846 | H103: 1.425248114e+11 | I103: 1.609279247 | J103: -4.846496824e+33 | K103: -1.280578948e+32 | L103: 0.02642277493
A104: 86 | B104: 155.125 | C104: 1.421471545e+11 | D104: 6430974485 | E104: -2554.475185 | F104: 15380.26283 | G104: 15590.95341 | H104: 1.422925541e+11 | I104: 2.590390299 | J104: -4.846496823e+33 | K104: -1.280578945e+32 | L104: 0.02642277488
A105: 87 | B105: 156.95 | C105: 1.416628361e+11 | D105: 8851977679 | E105: -3589.276945 | F105: 15324.52844 | G105: 15739.25287 | H105: 1.419391301e+11 | I105: 3.575548931 | J105: -4.846496823e+33 | K105: -1.28057894e+32 | L105: 0.02642277478
A106: 88 | B106: 158.775 | C106: 1.410149807e+11 | D106: 1.126275793e+10 | E106: -4629.016485 | F106: 15250.5277 | G106: 15937.57788 | H106: 1.414640396e+11 | I106: 4.56647626 | J106: -4.846496822e+33 | K106: -1.280578932e+32 | L106: 0.02642277462
A107: 89 | B107: 160.6 | C107: 1.4020269e+11 | D107: 1.366039941e+10 | E107: -5675.218329 | F107: 15157.78772 | G107: 16185.38327 | H107: 1.408666064e+11 | I107: 5.564946819 | J107: -4.846496821e+33 | K107: -1.280578922e+32 | L107: 0.02642277441
A108: 90 | B108: 162.425 | C108: 1.392248216e+11 | D108: 1.604190129e+10 | E108: -6729.456716 | F108: 15045.70131 | G108: 16482.07255 | H108: 1.401459723e+11 | I108: 6.572806133 | J108: -4.84649682e+33 | K108: -1.280578908e+32 | L108: 0.02642277413
A109: 91 | B109: 164.25 | C109: 1.380799803e+11 | D109: 1.840415568e+10 | E109: -7793.368679 | F109: 14913.51597 | G109: 16827.04828 | H109: 1.393010908e+11 | I109: 7.591989904 | J109: -4.846496818e+33 | K109: -1.28057889e+32 | L109: 0.02642277377
A110: 92 | B110: 166.075 | C110: 1.367665066e+11 | D110: 2.07439237e+10 | E110: -8868.66829 | F110: 14760.31985 | G110: 17219.76537 | H110: 1.383307186e+11 | I110: 8.624545307 | J110: -4.846496815e+33 | K110: -1.280578867e+32 | L110: 0.02642277331
A111: 93 | B111: 167.9 | C111: 1.352824639e+11 | D111: 2.305780899e+10 | E111: -9957.162334 | F111: 14585.02423 | G111: 17659.78521 | H111: 1.372334055e+11 | I111: 9.672654981 | J111: -4.846496813e+33 | K111: -1.280578838e+32 | L111: 0.02642277273
A112: 94 | B112: 169.725 | C112: 1.33625622e+11 | D112: 2.534222818e+10 | E112: -11060.76778 | F112: 14386.34171 | G112: 18146.82925 | H112: 1.360074829e+11 | I112: 10.73866441 | J112: -4.846496809e+33 | K112: -1.280578803e+32 | L112: 0.02642277201
A113: 95 | B113: 171.55 | C113: 1.317934388e+11 | D113: 2.759337751e+10 | E113: -12181.53146 | F113: 14162.75941 | G113: 18680.83142 | H113: 1.34651049e+11 | I113: 11.82511357 | J113: -4.846496805e+33 | K113: -1.280578758e+32 | L113: 0.02642277111
A114: 96 | B114: 173.375 | C114: 1.297830374e+11 | D114: 2.980719476e+10 | E114: -13321.65235 | F114: 13912.50591 | G114: 19261.98956 | H114: 1.331619527e+11 | I114: 12.93477394 | J114: -4.846496799e+33 | K114: -1.280578701e+32 | L114: 0.02642276998
A115: 97 | B115: 175.2 | C115: 1.275911808e+11 | D115: 3.197931543e+10 | E115: -14483.50717 | F115: 13633.51061 | G115: 19890.81676 | H115: 1.315377741e+11 | I115: 14.07069219 | J115: -4.846496792e+33 | K115: -1.28057863e+32 | L115: 0.02642276856
A116: 98 | B116: 177.025 | C116: 1.252142411e+11 | D116: 3.410502167e+10 | E116: -15669.67985 | F116: 13323.35343 | G116: 20568.19422 | H116: 1.297758016e+11 | I116: 15.23624233 | J116: -4.846496783e+33 | K116: -1.280578541e+32 | L116: 0.02642276676
A117: 99 | B117: 178.85 | C117: 1.226481647e+11 | D117: 3.617918251e+10 | E117: -16882.99578 | F117: 12979.20257 | G117: 21295.42782 | H117: 1.278730056e+11 | I117: 16.43518849 | J117: -4.846496771e+33 | K117: -1.280578427e+32 | L117: 0.02642276448
A118: 100 | B118: 180.675 | C118: 1.198884306e+11 | D118: 3.819618299e+10 | E118: -18126.56175 | F118: 12597.73677 | G118: 22074.31115 | H118: 1.258260076e+11 | I118: 17.67176135 | J118: -4.846496757e+33 | K118: -1.280578282e+32 | L118: 0.02642276155
A119: 101 | B119: 182.5 | C119: 1.169300029e+11 | D119: 4.014983963e+10 | E119: -19403.81298 | F119: 12175.04786 | G119: 22907.19862 | H119: 1.236310446e+11 | I119: 18.95075187 | J119: -4.846496738e+33 | K119: -1.280578094e+32 | L119: 0.02642275778
A120: 102 | B120: 184.325 | C120: 1.137672743e+11 | D120: 4.203329855e+10 | E120: -20718.56853 | F120: 11706.51747 | G120: 23797.09295 | H120: 1.212839268e+11 | I120: 20.27762766 | J120: -4.846496714e+33 | K120: -1.28057785e+32 | L120: 0.02642275287
A121: 103 | B121: 186.15 | C121: 1.103940011e+11 | D121: 4.383891158e+10 | E121: -22075.09698 | F121: 11186.65981 | G121: 24747.75271 | H121: 1.187799884e+11 | I121: 21.65867868 | J121: -4.846496682e+33 | K121: -1.280577528e+32 | L121: 0.02642274642
A122: 104 | B122: 187.975 | C122: 1.06803226e+11 | D122: 4.555808422e+10 | E122: -23478.19454 | F122: 10608.91921 | G122: 25763.82708 | H122: 1.161140306e+11 | I122: 23.10120179 | J122: -4.846496639e+33 | K122: -1.280577101e+32 | L122: 0.02642273783
A123: 105 | B123: 189.8 | C123: 1.029871876e+11 | D123: 4.718108712e+10 | E123: -24933.27796 | F123: 9965.406614 | G123: 26851.02752 | H123: 1.132802533e+11 | I123: 24.61373721 | J123: -4.846496581e+33 | K123: -1.280576525e+32 | L123: 0.02642272626
A124: 106 | B124: 191.625 | C124: 9.893721461e+10 | D124: 4.869681971e+10 | E124: -26446.49511 | F124: 9246.55256 | G124: 28016.34947 | H124: 1.102721755e+11 | I124: 26.20637518 | J124: -4.846496503e+33 | K124: -1.280575738e+32 | L124: 0.02642271046
A125: 107 | B125: 193.45 | C125: 9.464360016e+10 | D125: 5.00925106e+10 | E125: -28024.85604 | F125: 8440.644264 | G125: 29268.3623 | H125: 1.070825414e+11 | I125: 27.89115914 | J125: -4.846496393e+33 | K125: -1.280574647e+32 | L125: 0.02642268854
A126: 108 | B126: 195.275 | C126: 9.009545407e+10 | D126: 5.135333271e+10 | E126: -29676.38681 | F126: 7533.199089 | G126: 30617.59335 | H126: 1.037032093e+11 | I126: 29.68262365 | J126: -4.846496239e+33 | K126: -1.280573106e+32 | L126: 0.02642265758
A127: 109 | B127: 197.1 | C127: 8.528052909e+10 | D127: 5.246190238e+10 | E127: -31410.30664 | F127: 6506.10312 | G127: 32077.04384 | H127: 1.001250211e+11 | I127: 31.5985236 | J127: -4.846496018e+33 | K127: -1.280570888e+32 | L127: 0.02642261302
A128: 110 | B128: 198.925 | C128: 8.018501738e+10 | D128: 5.339761718e+10 | E128: -33237.22407 | F128: 5336.405764 | G128: 33662.89189 | H128: 9.633764857e+10 | I128: 33.66084097 | J128: -4.846495691e+33 | K128: -1.280567622e+32 | L128: 0.02642254742
A129: 111 | B129: 200.75 | C129: 7.479331563e+10 | D129: 5.413576595e+10 | E129: -35169.33686 | F129: 3994.599822 | G129: 35395.46698 | H129: 9.232941686e+10 | I129: 35.89720246 | J129: -4.846495198e+33 | K129: -1.280562696e+32 | L129: 0.02642244846
A130: 112 | B130: 202.575 | C130: 6.908776065e+10 | D130: 5.46463101e+10 | E130: -37220.5954 | F130: 2442.113496 | G130: 37300.6252 | H130: 8.808710393e+10 | I130: 38.34292121 | J130: -4.846494434e+33 | K130: -1.280555051e+32 | L130: 0.02642229488
A131: 113 | B131: 204.4 | C131: 6.304834779e+10 | D131: 5.489217931e+10 | E131: -39406.734 | F131: 627.5634269 | G131: 39411.73075 | H131: 8.359572661e+10 | I131: 41.04401293 | J131: -4.846493209e+33 | K131: -1.2805428e+32 | L131: 0.02642204879
A132: 114 | B132: 206.225 | C132: 5.665246804e+10 | D132: 5.48268315e+10 | E132: -41744.94901 | F132: -1518.99734 | G132: 41772.57618 | H132: 7.883833831e+10 | I132: 44.0617817 | J132: -4.846491172e+33 | K132: -1.280522437e+32 | L132: 0.02642163972
A133: 115 | B133: 208.05 | C133: 4.98747541e+10 | D133: 5.43906652e+10 | E133: -44252.71261 | F133: -4095.181166 | G133: 44441.79431 | H133: 7.379590474e+10 | I133: 47.48002682 | J133: -4.846487643e+33 | K133: -1.280487137e+32 | L133: 0.02642093062
A134: 116 | B134: 209.875 | C134: 4.268725322e+10 | D134: 5.350558319e+10 | E134: -46944.51294 | F134: -7241.160481 | G134: 47499.70211 | H134: 6.844741792e+10 | I134: 51.41680797 | J134: -4.846481224e+33 | K134: -1.280422949e+32 | L134: 0.02641964118
A135: 117 | B135: 211.7 | C135: 3.506045224e+10 | D135: 5.206647167e+10 | E135: -49823.54809 | F135: -11164.94805 | G135: 51059.20102 | H135: 6.277063632e+10 | I135: 56.04451559 | J135: -4.846468909e+33 | K135: -1.280299801e+32 | L135: 0.02641716733
A136: 118 | B136: 213.525 | C136: 2.69664586e+10 | D136: 4.99273362e+10 | E136: -52860.67117 | F136: -16186.93917 | G136: 55283.51976 | H136: 5.674441638e+10 | I136: 61.62589212 | J136: -4.846443894e+33 | K136: -1.280049655e+32 | L136: 0.02641214224
A137: 119 | B137: 215.35 | C137: 1.838773389e+10 | D137: 4.687785063e+10 | E137: -55939.26699 | F137: -22820.91615 | G137: 60415.19515 | H137: 5.035515502e+10 | I137: 68.5825147 | J137: -4.846390435e+33 | K137: -1.27951506e+32 | L137: 0.02640140279
A138: 120 | B138: 217.175 | C138: 9340822683 | D138: 4.260236512e+10 | E138: -58702.43623 | F138: -31921.84096 | G138: 66820.50546 | H138: 4.361436097e+10 | I138: 77.63324982 | J138: -4.846275464e+33 | K138: -1.278365355e+32 | L138: 0.02637830565
A139: 121 | B139: 219 | C139: -56665457.23 | D139: 3.660833373e+10 | E139: -60099.30788 | F139: -44924.19541 | G139: 75034.05987 | H139: 3.660837758e+10 | I139: 90.08868714 | J139: -4.846080677e+33 | K139: -1.27641748e+32 | L139: 0.02633917109
A140: 122 | B140: 220.825 | C140: -9387055924 | D140: 2.812075794e+10 | E140: -56992.76734 | F140: -63915.08225 | G140: 85634.7667 | H140: 2.964614386e+10 | I140: 108.4596457 | J140: -4.846367552e+33 | K140: -1.27928623e+32 | L140: 0.02639680578
A141: 123 | B141: 222.65 | C141: -1.73604086e+10 | D141: 1.610588984e+10 | E141: -40805.90609 | F141: -89010.88999 | G141: 97918.6423 | H141: 2.368086726e+10 | I141: 137.1467863 | J141: -4.850367899e+33 | K141: -1.319289704e+32 | L141: 0.02719978632
A142: 124 | B142: 224.475 | C142: -2.094070149e+10 | D142: 491258932.7 | E142: -1127.530707 | F142: -105103.3405 | G142: 105109.3884 | H142: 2.094646305e+10 | I142: 178.6561146 | J142: -4.861580434e+33 | K142: -1.43141505e+32 | L142: 0.0294434098
A143: 125 | B143: 226.3 | C143: -1.765039454e+10 | D143: -1.524393299e+10 | E143: 39808.67673 | F143: -90238.8843 | G143: 98629.54416 | H143: 2.332196219e+10 | I143: 220.815847 | J143: -4.948380468e+33 | K143: -2.299415387e+32 | L143: 0.04646803944
A144: 126 | B144: 228.125 | C144: -9727049083 | D144: -2.742785976e+10 | E144: 57234.82116 | F144: -64684.55009 | G144: 86370.80394 | H144: 2.910159746e+10 | I144: 250.4733967 | J144: -4.968760188e+33 | K144: -2.503212592e+32 | L144: 0.05037901806
A145: 127 | B145: 229.95 | C145: -322710061.1 | D145: -3.598316154e+10 | E145: 60706.23183 | F145: -45040.15407 | G145: 75590.09235 | H145: 3.59846086e+10 | I145: 269.4861644 | J145: -4.971421338e+33 | K145: -2.529824097e+32 | L145: 0.05088734035
A146: 128 | B146: 231.775 | C146: 9173304937 | D146: -4.195838464e+10 | E146: 59316.34168 | F146: -31601.91002 | G146: 67209.4421 | H146: 4.294945361e+10 | I146: 282.3324517 | J146: -4.972050343e+33 | K146: -2.536114147e+32 | L146: 0.05100741087
A147: 129 | B147: 233.6 | C147: 1.830993914e+10 | D147: -4.61607769e+10 | E147: 56456.03452 | F147: -22235.64674 | G147: 60677.0782 | H147: 4.965955292e+10 | I147: 291.6360387 | J147: -4.972254872e+33 | K147: -2.538159434e+32 | L147: 0.05104644671
A148: 130 | B148: 235.425 | C148: 2.69607532e+10 | D148: -4.910412812e+10 | E148: 53257.55436 | F148: -15438.94165 | G148: 55450.23008 | H148: 5.601872554e+10 | I148: 298.7691054 | J148: =0.5*$L$4*G148^2-$L$2*$L$3*$L$4/H148 -> -4.972332587e+33 | K148: =J148-$J$19 -> -2.538936582e+32 | L148: =K148/J148 -> 0.05106127834
A149: 131 | B149: 237.25 | C149: 3.510791638e+10 | D149: -5.111667253e+10 | E149: 50102.25275 | F149: -10315.0651 | G149: 51153.06734 | H149: 6.201193436e+10 | I149: 304.4820303 | J149: -4.972365653e+33 | K149: -2.53926724e+32 | L149: 0.05106758869
A150: 132 | B150: 239.075 | C150: 4.27698785e+10 | D150: -5.24162941e+10 | E150: 47113.39382 | F150: -6326.63973 | G150: 47536.28348 | H150: 6.765153653e+10 | I150: 309.2132525 | J150: -4.972381084e+33 | K150: -2.539421549e+32 | L150: 0.05107053354
A151: 133 | B151: 240.9 | C151: 4.997596591e+10 | D151: -5.315369916e+10 | E151: 44321.13046 | F151: -3139.753024 | G151: 44432.20289 | H151: 7.295829564e+10 | I151: 313.2351042 | J151: -4.972388861e+33 | K151: -2.539499323e+32 | L151: 0.05107201778
A152: 134 | B152: 242.725 | C152: 5.675712084e+10 | D152: -5.343705814e+10 | E152: 41721.53817 | F152: -538.3719305 | G152: 41725.01158 | H152: 7.795440942e+10 | I152: 316.7257541 | J152: -4.972393042e+33 | K152: -2.539541134e+32 | L152: 0.05107281569
A153: 135 | B153: 244.55 | C153: 6.314256768e+10 | D153: -5.334652564e+10 | E153: 39298.9718 | F153: 1622.616939 | G153: 39332.45569 | H153: 8.266096813e+10 | I153: 319.8069254 | J153: -4.972395415e+33 | K153: -2.539564867e+32 | L153: 0.05107326861
A154: 136 | B154: 246.375 | C154: 6.915876019e+10 | D154: -5.294313483e+10 | E154: 37034.80302 | F154: 3443.977722 | G154: 37194.59124 | H154: 8.70971276e+10 | I154: 322.5648449 | J154: -4.972396826e+33 | K154: -2.539578976e+32 | L154: 0.05107353787
A155: 137 | B155: 248.2 | C155: 7.482922111e+10 | D155: -5.227445442e+10 | E155: 34910.80933 | F155: 4997.730543 | G155: 35266.72538 | H155: 9.127995901e+10 | I155: 325.062488 | J155: -4.972397699e+33 | K155: -2.539587702e+32 | L155: 0.0510737044
A156: 138 | B156: 250.025 | C156: 8.017471916e+10 | D156: -5.137831154e+10 | E156: 32910.38361 | F156: 6336.658931 | G156: 33514.87126 | H156: 9.522455823e+10 | I156: 327.34706 | J156: -4.972398257e+33 | K156: -2.539593287e+32 | L156: 0.05107381098
A157: 139 | B157: 251.85 | C157: 8.521355542e+10 | D157: -5.028531743e+10 | E157: 31018.84413 | F157: 7500.30161 | G157: 31912.74378 | H157: 9.894424276e+10 | I157: 329.4547471 | J157: -4.972398626e+33 | K157: -2.539596969e+32 | L157: 0.05107388125
A158: 140 | B158: 253.675 | C158: 8.996186554e+10 | D158: -4.90206275e+10 | E158: 29223.38204 | F158: 8518.845836 | G158: 30439.72392 | H158: 1.024507646e+11 | I158: 331.4138338 | J158: -4.972398875e+33 | K158: -2.539599461e+32 | L158: 0.05107392881
A159: 141 | B159: 255.5 | C159: 9.44339014e+10 | D159: -4.760519756e+10 | E159: 27512.8764 | F159: 9415.727386 | G159: 29079.4479 | H159: 1.057545109e+11 | I159: 333.2468104 | J159: -4.972399047e+33 | K159: -2.539601187e+32 | L159: 0.05107396174
A160: 142 | B160: 257.325 | C160: 9.864228003e+10 | D160: -4.605669946e+10 | E160: 25877.67545 | F160: 10209.40986 | G160: 27818.80904 | H160: 1.088646819e+11 | I160: 334.9718342 | J160: -4.972399169e+33 | K160: -2.539602407e+32 | L160: 0.05107398502
A161: 143 | B161: 259.15 | C161: 1.025981984e+11 | D161: -4.439020131e+10 | E161: 24309.38477 | F161: 10914.62931 | G161: 26647.23852 | H161: 1.117894462e+11 | I161: 336.6037648 | J161: -4.972399257e+33 | K161: -2.539603285e+32 | L161: 0.05107400177
A162: 144 | B162: 260.975 | C162: 1.063116164e+11 | D162: -4.261868141e+10 | E162: 22800.67753 | F162: 11543.28207 | G162: 25556.17844 | H162: 1.14536072e+11 | I162: 338.1549148 | J162: -4.972399321e+33 | K162: -2.539603927e+32 | L162: 0.05107401403
A163: 145 | B163: 262.8 | C163: 1.097914117e+11 | D163: -4.075342251e+10 | E163: 21345.13044 | F163: 12105.06948 | G163: 24538.68987 | H163: 1.171110393e+11 | I163: 339.6356014 | J163: -4.972399369e+33 | K163: -2.539604404e+32 | L163: 0.05107402312
A164: 146 | B164: 264.625 | C164: 1.130455113e+11 | D164: -3.88043186e+10 | E164: 19937.08459 | F164: 12607.97343 | G164: 23589.15717 | H164: 1.195201354e+11 | I164: 341.0545606 | J164: -4.972399405e+33 | K164: -2.539604762e+32 | L164: 0.05107402997
A165: 147 | B165: 266.45 | C165: 1.160810022e+11 | D165: -3.678011666e+10 | E165: 18571.52827 | F165: 13058.61235 | G165: 22703.06188 | H165: 1.217685348e+11 | I165: 342.4192616 | J165: -4.972399432e+33 | K165: -2.539605035e+32 | L165: 0.05107403518
A166: 148 | B166: 268.275 | C166: 1.189042257e+11 | D166: -3.468860935e+10 | E166: 17243.99879 | F166: 13462.51101 | G166: 21876.80729 | H166: 1.238608675e+11 | I166: 343.7361493 | J166: -4.972399453e+33 | K166: -2.539605245e+32 | L166: 0.05107403918
A167: 149 | B167: 270.1 | C167: 1.215208571e+11 | D167: -3.25367905e+10 | E167: 15950.50001 | F167: 13824.3076 | G167: 21107.57994 | H167: 1.258012776e+11 | I167: 345.0108332 | J167: -4.97239947e+33 | K167: -2.539605408e+32 | L167: 0.0510740423
A168: 150 | B168: 271.925 | C168: 1.239359738e+11 | D168: -3.033098169e+10 | E168: 14687.43305 | F168: 14147.91419 | G168: 20393.23823 | H168: 1.275934718e+11 | I168: 346.248237 | J168: -4.972399482e+33 | K168: -2.539605536e+32 | L168: 0.05107404474
A169: 151 | B169: 273.75 | C169: 1.261541132e+11 | D169: -2.807693644e+10 | E169: 13451.53793 | F169: 14436.64232 | G169: 19732.2202 | H169: 1.292407623e+11 | I169: 347.4527178 | J169: -4.972399492e+33 | K169: -2.539605637e+32 | L169: 0.05107404667
A170: 152 | B170: 275.575 | C170: 1.281793221e+11 | D170: -2.57799268e+10 | E170: 12239.84395 | F170: 14693.30212 | G170: 19123.46483 | H170: 1.307461022e+11 | I170: 348.6281622 | J170: -4.972399501e+33 | K170: -2.539605717e+32 | L170: 0.0510740482
A171: 153 | B171: 277.4 | C171: 1.300151986e+11 | D171: -2.344481597e+10 | E171: 11049.62757 | F171: 14920.28102 | G171: 18566.342 | H171: 1.321121163e+11 | I171: 349.7780651 | J171: -4.972399507e+33 | K171: -2.539605782e+32 | L171: 0.05107404942
A172: 154 | B172: 279.225 | C172: 1.316649288e+11 | D172: -2.10761198e+10 | E172: 9878.376191 | F172: 15119.60674 | G172: 18060.58759 | H172: 1.333411276e+11 | I172: 350.9055942 | J172: -4.972399512e+33 | K172: -2.539605833e+32 | L172: 0.0510740504
A173: 155 | B173: 281.05 | C173: 1.33131317e+11 | D173: -1.867805938e+10 | E173: 8723.756957 | F173: 15292.99777 | G173: 17606.24083 | H173: 1.344351795e+11 | I173: 352.0136436 | J173: -4.972399516e+33 | K173: -2.539605874e+32 | L173: 0.05107405119
A174: 156 | B174: 282.875 | C174: 1.34416812e+11 | D174: -1.625460647e+10 | E174: 7583.589581 | F174: 15441.9041 | G174: 17203.58199 | H174: 1.353960545e+11 | I174: 353.1048796 | J174: -4.97239952e+33 | K174: -2.539605908e+32 | L174: 0.05107405183
A175: 157 | B175: 284.7 | C175: 1.355235293e+11 | D175: -1.380952319e+10 | E175: 6455.822506 | F175: 15567.53994 | G175: 16853.06928 | H175: 1.36225291e+11 | I175: 354.1817789 | J175: -4.972399522e+33 | K175: -2.539605935e+32 | L175: 0.05107405234
A176: 158 | B176: 286.525 | C176: 1.364532695e+11 | D176: -1.134639701e+10 | E176: 5338.511789 | F176: 15670.91004 | G176: 16555.27498 | H176: 1.369241961e+11 | I176: 355.246662 | J176: -4.972399524e+33 | K176: -2.539605956e+32 | L176: 0.05107405275
A177: 159 | B177: 288.35 | C177: 1.372075342e+11 | D177: -8868672061 | E177: 4229.802183 | F177: 15752.8307 | G177: 16310.82161 | H177: 1.374938572e+11 | I177: 356.3017221 | J177: -4.972399526e+33 | K177: -2.539605973e+32 | L177: 0.05107405307
A178: 160 | B178: 290.175 | C178: 1.377875381e+11 | D178: -6379677535 | E178: 3127.90999 | F178: 15813.9463 | G178: 16120.32005 | H178: 1.379351512e+11 | I178: 357.349051 | J178: -4.972399527e+33 | K178: -2.539605985e+32 | L178: 0.05107405331
A179: 161 | B179: 292 | C179: 1.381942192e+11 | D179: -3882653693 | E179: 2031.107307 | F179: 15854.74205 | G179: 15984.31238 | H179: 1.382487513e+11 | I179: 358.3906623 | J179: -4.972399528e+33 | K179: -2.539605995e+32 | L179: 0.05107405349
A180: 162 | B180: 293.825 | C180: 1.384282468e+11 | D180: -1380776204 | E180: 937.7073421 | F180: 15875.55338 | G180: 15903.22263 | H180: 1.38435133e+11 | I180: 359.4285124 | J180: -4.972399529e+33 | K180: -2.539606001e+32 | L180: 0.05107405361
A181: 163 | B181: 295.65 | C181: 1.384900262e+11 | D181: 1122820787 | E181: -153.9495051 | F181: 15876.5724 | G181: 15877.31878 | H181: 1.384945778e+11 | I181: 0.4645206913 | J181: -4.972399529e+33 | K181: -2.539606004e+32 | L181: 0.05107405367
A182: 164 | B182: 297.475 | C182: 1.383797024e+11 | D182: 3625022392 | E182: -1245.509047 | F182: 15857.85161 | G182: 15906.68886 | H182: 1.384271752e+11 | I182: 1.50058852 | J182: -4.972399529e+33 | K182: -2.539606005e+32 | L182: 0.05107405368
A183: 165 | B183: 299.3 | C183: 1.380971611e+11 | D183: 6122711079 | E183: -2338.616462 | F183: 15819.305 | G183: 15991.23315 | H183: 1.382328235e+11 | I183: 2.538617825 | J183: -4.972399529e+33 | K183: -2.539606002e+32 | L183: 0.05107405363
A184: 166 | B184: 301.125 | C184: 1.376420279e+11 | D184: 8612744755 | E184: -3434.929439 | F184: 15760.70658 | G184: 16130.67302 | H184: 1.379112295e+11 | I184: 3.580529757 | J184: -4.972399528e+33 | K184: -2.539605997e+32 | L184: 0.05107405353
A185: 167 | B185: 302.95 | C185: 1.370136649e+11 | D185: 1.109193441e+10 | E185: -4536.131545 | F185: 15681.68629 | G185: 16324.57578 | H185: 1.374619052e+11 | I185: 4.628283781 | J185: -4.972399528e+33 | K185: -2.539605988e+32 | L185: 0.05107405336
A186: 168 | B186: 304.775 | C186: 1.362111661e+11 | D186: 1.355702089e+10 | E186: -5643.94608 | F186: 15581.72323 | G186: 16572.39349 | H186: 1.368841648e+11 | I186: 5.683897656 | J186: -4.972399526e+33 | K186: -2.539605976e+32 | L186: 0.05107405313
A187: 169 | B187: 306.6 | C187: 1.352333493e+11 | D187: 1.600465039e+10 | E187: -6760.150678 | F187: 15460.13574 | G187: 16873.5128 | H187: 1.361771185e+11 | I187: 6.749468827 | J187: -4.972399525e+33 | K187: -2.539605959e+32 | L187: 0.05107405281
A188: 170 | B188: 308.425 | C188: 1.340787471e+11 | D188: 1.843134811e+10 | E188: -7886.592937 | F188: 15316.06828 | G188: 17227.31249 | H188: 1.353396654e+11 | I188: 7.827197751 | J188: -4.972399522e+33 | K188: -2.539605937e+32 | L188: 0.05107405239
A189: 171 | B189: 310.25 | C189: 1.327455939e+11 | D189: 2.083348954e+10 | E189: -9025.207412 | F189: 15148.47432 | G189: 17633.22554 | H189: 1.343704841e+11 | I189: 8.919413814 | J189: -4.97239952e+33 | K189: -2.539605909e+32 | L189: 0.05107405186
A190: 172 | B190: 312.075 | C190: 1.312318111e+11 | D190: 2.320726872e+10 | E190: -10178.03433 | F190: 14956.0948 | G190: 18090.80304 | H190: 1.332680215e+11 | I190: 10.0286046 | J190: -4.972399516e+33 | K190: -2.539605874e+32 | L190: 0.05107405118
A191: 173 | B191: 313.9 | C191: 1.295349886e+11 | D191: 2.554866265e+10 | E191: -11347.24047 | F191: 14737.43108 | G191: 18599.77798 | H191: 1.320304791e+11 | I191: 11.15744942 | J191: -4.972399512e+33 | K191: -2.539605829e+32 | L191: 0.05107405033
A192: 174 | B192: 315.725 | C192: 1.276523632e+11 | D192: 2.7853391e+10 | E192: -12535.14267 | F192: 14490.7114 | G192: 19160.12836 | H192: 1.306557967e+11 | I192: 12.30885827 | J192: -4.972399506e+33 | K192: -2.539605772e+32 | L192: 0.05107404925
A193: 175 | B193: 317.55 | C193: 1.255807929e+11 | D193: 3.011686987e+10 | E193: -13744.23461 | F193: 14213.84926 | G193: 19772.13938 | H193: 1.29141633e+11 | I193: 13.48601762 | J193: -4.972399499e+33 | K193: -2.539605701e+32 | L193: 0.05107404788
A194: 176 | B194: 319.375 | C194: 1.233167264e+11 | D194: 3.233415819e+10 | E194: -14977.21753 | F194: 13904.39168 | G194: 20436.46625 | H194: 1.274853434e+11 | I194: 14.69244486 | J194: -4.97239949e+33 | K194: -2.53960561e+32 | L194: 0.05107404614
A195: 177 | B195: 321.2 | C195: 1.208561679e+11 | D195: 3.449989512e+10 | E195: -16237.0358 | F195: 13559.45485 | G195: 21154.19928 | H195: 1.256839532e+11 | I195: 15.93205371 | J195: -4.972399478e+33 | K195: -2.539605494e+32 | L195: 0.05107404392
A196: 178 | B196: 323.025 | C196: 1.181946356e+11 | D196: 3.660822595e+10 | E196: -17526.91831 | F196: 13175.64364 | G196: 21926.93437 | H196: 1.237341266e+11 | I196: 17.20923374 | J196: -4.972399463e+33 | K196: -2.539605344e+32 | L196: 0.05107404108
A197: 179 | B197: 324.85 | C197: 1.153271128e+11 | D197: 3.865271381e+10 | E197: -18850.42699 | F197: 12748.95026 | G197: 22756.85239 | H197: 1.216321307e+11 | I197: 18.5289479 | J197: -4.972399444e+33 | K197: -2.539605151e+32 | L197: 0.05107403739
A198: 180 | B198: 326.675 | C198: 1.122479912e+11 | D198: 4.062623339e+10 | E198: -20211.51392 | F198: 12274.62592 | G198: 23646.81239 | H198: 1.193737927e+11 | I198: 19.89685338 | J198: -4.972399419e+33 | K198: -2.539604899e+32 | L198: 0.05107403258
A199: 181 | B199: 328.5 | C199: 1.089510045e+11 | D199: 4.252084164e+10 | E199: -21614.5889 | F199: 11747.01672 | G199: 24600.46454 | H199: 1.169544499e+11 | I199: 21.31945322 | J199: -4.972399385e+33 | K199: -2.539604567e+32 | L199: 0.05107402624
A200: 182 | B200: 330.325 | C200: 1.054291495e+11 | D200: 4.432761915e+10 | E200: -23064.59963 | F200: 11159.35205 | G200: 25622.39048 | H200: 1.143688917e+11 | I200: 22.80428833 | J200: -4.972399341e+33 | K200: -2.539604123e+32 | L200: 0.05107401777
A201: 183 | B201: 332.15 | C201: 1.016745944e+11 | D201: 4.603647323e+10 | E201: -24567.12682 | F201: 10503.46857 | G201: 26718.28161 | H201: 1.116112898e+11 | I201: 24.36018377 | J201: -4.972399281e+33 | K201: -2.539603524e+32 | L201: 0.05107400634
A202: 184 | B202: 333.975 | C202: 9.767857037e+10 | D202: 4.763589103e+10 | E202: -26128.49723 | F202: 9769.446177 | G202: 27895.16887 | H202: 1.086751178e+11 | I202: 25.99756863 | J202: -4.972399199e+33 | K202: -2.539602703e+32 | L202: 0.05107399067
A203: 185 | B203: 335.8 | C203: 9.343124333e+10 | D203: 4.911262601e+10 | E203: -27755.91697 | F203: 8945.121387 | G203: 29161.7236 | H203: 1.055530543e+11 | I203: 27.72889715 | J203: -4.972399085e+33 | K203: -2.539601561e+32 | L203: 0.05107396887
A204: 186 | B204: 337.625 | C204: 8.892156369e+10 | D204: 5.045129492e+10 | E204: -29457.62717 | F204: 8015.427485 | G204: 30528.65664 | H204: 1.022368703e+11 | I204: 29.56921152 | J204: -4.972398923e+33 | K204: -2.539599943e+32 | L204: 0.05107393799
A205: 187 | B205: 339.45 | C205: 8.413708923e+10 | D205: 5.163385227e+10 | E205: -31243.08173 | F205: 6961.485352 | G205: 32009.25545 | H205: 9.871729576e+10 | I205: 31.5369066 | J205: -4.972398689e+33 | K205: -2.539597605e+32 | L205: 0.05107389339
A206: 188 | B206: 341.275 | C206: 7.906377875e+10 | D206: 5.263889448e+10 | E206: -33123.1409 | F206: 5759.328329 | G206: 33620.11787 | H206: 9.498386349e+10 | I206: 33.65478787 | J206: -4.972398344e+33 | K206: -2.539594153e+32 | L206: 0.0510738275
A207: 189 | B207: 343.1 | C207: 7.368575511e+10 | D207: 5.344072275e+10 | E207: -35110.26202 | F207: 4378.078211 | G207: 35382.17161 | H207: 9.102472935e+10 | I207: 35.95156532 | J207: -4.972397821e+33 | K207: -2.539588923e+32 | L207: 0.0510737277
A208: 190 | B208: 344.925 | C208: 6.798504107e+10 | D208: 5.400805671e+10 | E208: -37218.63973 | F208: 2777.278146 | G208: 37322.11699 | H208: 8.682647061e+10 | I208: 38.46401138 | J208: -4.972397006e+33 | K208: -2.539580772e+32 | L208: 0.05107357215
A209: 191 | B209: 346.75 | C209: 6.194128385e+10 | D209: 5.430223091e+10 | E209: -39464.1842 | F209: 902.895799 | G209: 39474.51147 | H209: 8.237387284e+10 | I209: 41.24015963 | J209: -4.972395694e+33 | K209: -2.539567649e+32 | L209: 0.0510733217
... 3145 more rows

Sheet VO ORBITA CIRCOLARE
A1: GRAVITAZIONE - TERRA(1) E SOLE(2)
K2: kg= costante gravitazione universale | L2: 6.67428e-11 | M2: N*m^2/kg^2 | R2: Ep | S2: =-L2*L3*L4/A4 -> -5.390356429e+33 | T2: J
A3: xterra (m) | B3: yterra (m) | C3: vx terra (m/s) | D3: vy terra (m/s) | E3: massasole (kg) | F3: tf (g) | G3: NSTEP | K3: M= massa Sole | L3: 1.9891e+30 | M3: kg | R3: Ec | S3: =0.5*L4*D4^2 -> 2.695178214e+33 | T3: J
A4: =147098074000 -> 147098074000 | B4: 0 | C4: 0 | D4: 30041.87444 | E4: 1.9891e+30 | F4: 356.08 | G4: 100 | K4: m=massa Terra | L4: 5.9726e+24 | M4: kg | R4: E | S4: =SUM(S2:S3) -> -2.695178214e+33 | T4: J
C10: =MAX(C19:C385) -> 147098074000 | D10: 1.470980349e+11 | E10: 30041.88428 | F10: 30041.877 | G10: 30041.8904 | H10: 147098074000 | I10: dmax | K10: E0 | L10: =0.5*L4*D4^2-L2*L3*L4/A4 -> -2.695178214e+33 | M10: J | N10: --->> ellisse | R10: Ep/Ec | S10: =S2/S3 -> -2
C11: =MIN(C19:C385) -> -1.470979899e+11 | D11: -1.470980163e+11 | E11: -30041.88177 | F11: -30041.89033 | G11: 30041.87444 | H11: 1.470979892e+11 | I11: dmin
C12: CONCLUSIONE: SIMULAZIONE QUASI PERFETTA .AUMENTANDO GLI STEPS I RISULTATI NON CAMBIANO | L12: =0.5*L4*D4^2 -> 2.695178214e+33
A14: MOTO TERRA ATTORNO AL SOLE"
A18: step | B18: t(giorni) | C18: xterra | D18: yterra | E18: vxterra | F18: vyterra | G18: vterra | H18: distanza | I18: angolo | J18: E | Q18: (x,y) sole
A19: 1 | B19: 0 | C19: 147098074000 | D19: 0 | E19: 0 | F19: 30041.87444 | G19: 30041.87444 | H19: 147098074000 | I19: 0 | J19: =0.5*$L$4*G19^2-$L$2*$L$3*$L$4/H19 -> -2.695178214e+33
A20: 2 | B20: 3.5608 | C20: 1.468078075e+11 | D20: 9236395047 | E20: -1886.351605 | F20: 29982.59324 | G20: 30041.87444 | H20: 1.470980739e+11 | I20: 3.600011929 | J20: =0.5*$L$4*G20^2-$L$2*$L$3*$L$4/H20 -> -2.695178219e+33
A21: 3 | B21: 7.1216 | C21: 1.459381537e+11 | D21: 1.8436338e+10 | E21: -3765.258598 | F21: 29804.98363 | G21: 30041.87447 | H21: 1.470980736e+11 | I21: 7.200023865 | J21: -2.695178224e+33
A22: 4 | B22: 10.6824 | C22: 1.444925447e+11 | D22: 2.756352065e+10 | E22: -5629.305744 | F22: 29509.74656 | G22: 30041.87453 | H22: 1.470980732e+11 | I22: 10.80003582 | J22: -2.695178228e+33
A23: 5 | B23: 14.2432 | C23: 1.424766857e+11 | D23: 3.658192192e+10 | E23: -7471.136457 | F23: 29098.0472 | G23: 30041.87462 | H23: 1.470980726e+11 | I23: 14.40004779 | J23: -2.695178233e+33
A24: 6 | B24: 17.804 | C24: 1.398985324e+11 | D24: 4.545595004e+10 | E24: -9283.481825 | F24: 28571.51033 | G24: 30041.87473 | H24: 1.470980719e+11 | I24: 18.00005978 | J24: -2.695178237e+33
A25: 7 | B25: 21.3648 | C25: 1.367682597e+11 | D25: 5.415058306e+10 | E25: -11059.18931 | F25: 27932.21399 | G25: 30041.87488 | H25: 1.470980711e+11 | I25: 21.60007182 | J25: -2.695178242e+33
A26: 8 | B26: 24.9256 | C26: 1.330982215e+11 | D26: 6.263150697e+10 | E26: -12791.25095 | F26: 27182.68117 | G26: 30041.87505 | H26: 1.470980701e+11 | I26: 25.20008389 | J26: -2.695178247e+33
A27: 9 | B27: 28.4864 | C27: 1.289029017e+11 | D27: 7.086525122e+10 | E27: -14472.83105 | F27: 26325.86998 | G27: 30041.87525 | H27: 1.47098069e+11 | I27: 28.80009601 | J27: -2.695178251e+33
A28: 10 | B28: 32.0472 | C28: 1.241988576e+11 | D28: 7.881932073e+10 | E28: -16097.29314 | F28: 25365.16185 | G28: 30041.87548 | H28: 1.470980678e+11 | I28: 32.40010819 | J28: -2.695178256e+33
A29: 11 | B29: 35.608 | C29: 1.190046538e+11 | D29: 8.646232422e+10 | E29: -17658.22616 | F29: 24304.3483 | G29: 30041.87573 | H29: 1.470980664e+11 | I29: 36.00012043 | J29: -2.69517826e+33
A30: 12 | B30: 39.1688 | C30: 1.133407898e+11 | D30: 9.376409801e+10 | E30: -19149.46978 | F30: 23147.61588 | G30: 30041.87601 | H30: 1.470980649e+11 | I30: 39.60013273 | J30: -2.695178265e+33
A31: 13 | B31: 42.7296 | C31: 1.072296183e+11 | D31: 1.006958251e+11 | E31: -20565.13871 | F31: 21899.52972 | G31: 30041.87631 | H31: 1.470980633e+11 | I31: 43.2001451 | J31: -2.69517827e+33
A32: 14 | B32: 46.2904 | C32: 1.006952575e+11 | D32: 1.07230149e+11 | E32: -21899.6459 | F32: 20565.01546 | G32: 30041.87663 | H32: 1.470980616e+11 | I32: 46.80015755 | J32: -2.695178274e+33
A33: 15 | B33: 49.8512 | C33: 9.37634957e+10 | D33: 1.133412814e+11 | E33: -23147.72463 | F33: 19149.33985 | G33: 30041.87697 | H33: 1.470980598e+11 | I33: 50.40017009 | J33: -2.695178279e+33
A34: 16 | B34: 53.412 | C34: 8.646168956e+10 | D34: 1.190051044e+11 | E34: -24304.44925 | F34: 17658.08996 | G34: 30041.87734 | H34: 1.470980579e+11 | I34: 54.00018271 | J34: -2.695178284e+33
A35: 17 | B35: 56.9728 | C35: 7.88186562e+10 | D35: 1.241992652e+11 | E35: -25365.25466 | F35: 16097.15108 | G35: 30041.87772 | H35: 1.470980559e+11 | I35: 57.60019543 | J35: -2.695178288e+33
A36: 18 | B36: 60.5336 | C36: 7.086455936e+10 | D36: 1.289032648e+11 | E36: -26325.95432 | F36: 14472.68359 | G36: 30041.87812 | H36: 1.470980538e+11 | I36: 61.20020824 | J36: -2.695178293e+33
A37: 19 | B37: 64.0944 | C37: 6.263079045e+10 | D37: 1.330985383e+11 | E37: -27182.75675 | F37: 12791.09853 | G37: 30041.87854 | H37: 1.470980517e+11 | I37: 64.80022116 | J37: -2.695178297e+33
A38: 20 | B38: 67.6552 | C38: 5.414984462e+10 | D38: 1.367685288e+11 | E38: -27932.2805 | F38: 11059.03241 | G38: 30041.87897 | H38: 1.470980494e+11 | I38: 68.40023418 | J38: -2.695178302e+33
A39: 21 | B39: 71.216 | C39: 4.545519253e+10 | D39: 1.398987524e+11 | E39: -28571.56753 | F39: 9283.320943 | G39: 30041.87942 | H39: 1.470980471e+11 | I39: 72.00024731 | J39: -2.695178307e+33
A40: 22 | B40: 74.7768 | C40: 3.658114823e+10 | D40: 1.424768555e+11 | E40: -29098.09482 | F40: 7470.972091 | G40: 30041.87987 | H40: 1.470980448e+11 | I40: 75.60026054 | J40: -2.695178311e+33
A41: 23 | B41: 78.3376 | C41: 2.756273379e+10 | D41: 1.444926634e+11 | E41: -29509.78439 | F41: 5629.138417 | G41: 30041.88034 | H41: 1.470980424e+11 | I41: 79.2002739 | J41: -2.695178316e+33
A42: 24 | B42: 81.8984 | C42: 1.843554102e+10 | D42: 1.459382204e+11 | E42: -29805.01147 | F42: 3765.08885 | G42: 30041.88081 | H42: 1.470980399e+11 | I42: 82.80028736 | J42: -2.69517832e+33
A43: 25 | B43: 85.4592 | C43: 9235591047 | D43: 1.468078216e+11 | E43: -29982.6109 | F43: 1886.179992 | G43: 30041.88129 | H43: 1.470980374e+11 | I43: 86.40030095 | J43: -2.695178325e+33
A44: 26 | B44: 89.02 | C44: -807851.7379 | D44: 1.470980349e+11 | E44: -30041.88177 | F44: -0.1729069491 | G44: 30041.88177 | H44: 1.470980349e+11 | I44: 90.00031465 | J44: -2.69517833e+33
A45: 27 | B45: 92.5808 | C45: -9237203554 | D45: 1.468077151e+11 | E45: -29982.59015 | F45: -1886.525218 | G45: 30041.88226 | H45: 1.470980324e+11 | I45: 93.60032847 | J45: -2.695178334e+33
A46: 28 | B46: 96.1416 | C46: -1.843714395e+10 | D46: 1.459380078e+11 | E46: -29804.97003 | F46: -3765.432313 | G46: 30041.88274 | H46: 1.470980299e+11 | I46: 97.20034242 | J46: -2.695178339e+33
A47: 29 | B47: 99.7024 | C47: -2.756432078e+10 | D47: 1.444923455e+11 | E47: -29509.72238 | F47: -5629.478945 | G47: 30041.88323 | H47: 1.470980274e+11 | I47: 100.8003565 | J47: -2.695178343e+33
A48: 30 | B48: 103.2632 | C48: -3.658271297e+10 | D48: 1.424764333e+11 | E48: -29098.01241 | F48: -7471.308514 | G48: 30041.88371 | H48: 1.47098025e+11 | I48: 104.4003707 | J48: -2.695178348e+33
A49: 31 | B49: 106.824 | C49: -4.545672877e+10 | D49: 1.398982274e+11 | E49: -28571.46495 | F49: -9283.652101 | G49: 30041.88419 | H49: 1.470980225e+11 | I49: 108.000385 | J49: -2.695178353e+33
A50: 32 | B50: 110.3848 | C50: -5.415134619e+10 | D50: 1.367679027e+11 | E50: -27932.15805 | F50: -11059.35715 | G50: 30041.88466 | H50: 1.470980201e+11 | I50: 111.6003994 | J50: -2.695178357e+33
A51: 33 | B51: 113.9456 | C51: -6.263225128e+10 | D51: 1.330978133e+11 | E51: -27182.61477 | F51: -12791.41571 | G51: 30041.88512 | H51: 1.470980177e+11 | I51: 115.2004139 | J51: -2.695178362e+33
A52: 34 | B52: 117.5064 | C52: -7.08659735e+10 | D52: 1.289024434e+11 | E52: -26325.79323 | F52: -14472.99207 | G52: 30041.88557 | H52: 1.470980153e+11 | I52: 118.8004285 | J52: -2.695178367e+33
A53: 35 | B53: 121.0672 | C53: -7.882001784e+10 | D53: 1.241983504e+11 | E53: -25365.07493 | F53: -16097.44976 | G53: 30041.88601 | H53: 1.47098013e+11 | I53: 122.4004433 | J53: -2.695178371e+33
A54: 36 | B54: 124.628 | C54: -8.646299305e+10 | D54: 1.190040992e+11 | E54: -24304.25142 | F54: -17658.37772 | G54: 30041.88644 | H54: 1.470980108e+11 | I54: 126.0004582 | J54: -2.695178376e+33
A55: 37 | B55: 128.1888 | C55: -9.376473553e+10 | D55: 1.133401894e+11 | E55: -23147.50929 | F55: -19149.61564 | G55: 30041.88685 | H55: 1.470980087e+11 | I55: 129.6004731 | J55: -2.69517838e+33
A56: 38 | B56: 131.7496 | C56: -1.006964284e+11 | D56: 1.07228974e+11 | E56: -21899.41373 | F56: -20565.27821 | G56: 30041.88725 | H56: 1.470980066e+11 | I56: 133.2004882 | J56: -2.695178385e+33
A57: 39 | B57: 135.3104 | C57: -1.072307152e+11 | D57: 1.006945713e+11 | E57: -20564.89041 | F57: -21899.77841 | G57: 30041.88762 | H57: 1.470980047e+11 | I57: 136.8005033 | J57: -2.69517839e+33
A58: 40 | B58: 138.8712 | C58: -1.133418078e+11 | D58: 9.37627699e+10 | E58: -19149.20615 | F58: -23147.84952 | G58: 30041.88798 | H58: 1.470980028e+11 | I58: 140.4005186 | J58: -2.695178394e+33
A59: 41 | B59: 142.432 | C59: -1.190055884e+11 | D59: 8.64609266e+10 | E59: -17657.94804 | F59: -24304.56593 | G59: 30041.88832 | H59: 1.47098001e+11 | I59: 144.0005339 | J59: -2.695178399e+33
A60: 42 | B60: 145.9928 | C60: -1.241997043e+11 | D60: 7.881785867e+10 | E60: -16097.00143 | F60: -25365.36256 | G60: 30041.88864 | H60: 1.470979993e+11 | I60: 147.6005493 | J60: -2.695178403e+33
A61: 43 | B61: 149.5536 | C61: -1.289036567e+11 | D61: 7.086373006e+10 | E61: -14472.52673 | F61: -26326.05288 | G61: 30041.88893 | H61: 1.470979978e+11 | I61: 151.2005648 | J61: -2.695178408e+33
A62: 44 | B62: 153.1144 | C62: -1.330988809e+11 | D62: 6.262993233e+10 | E62: -12790.93505 | F62: -27182.84545 | G62: 30041.8892 | H62: 1.470979963e+11 | I62: 154.8005804 | J62: -2.695178413e+33
A63: 45 | B63: 156.6752 | C63: -1.367688202e+11 | D63: 5.414896079e+10 | E63: -11058.86293 | F63: -27932.35887 | G63: 30041.88944 | H63: 1.47097995e+11 | I63: 158.400596 | J63: -2.695178417e+33
A64: 46 | B64: 160.236 | C64: -1.398989909e+11 | D64: 4.545428624e+10 | E64: -9283.146103 | F64: -28571.63511 | G64: 30041.88966 | H64: 1.470979938e+11 | I64: 162.0006117 | J64: -2.695178422e+33
A65: 47 | B65: 163.7968 | C65: -1.424770394e+11 | D65: 3.658022286e+10 | E65: -7470.792593 | F65: -29098.15121 | G65: 30041.88985 | H65: 1.470979928e+11 | I65: 165.6006275 | J65: -2.695178426e+33
A66: 48 | B66: 167.3576 | C66: -1.444927914e+11 | D66: 2.756179284e+10 | E66: -5628.954991 | F66: -29509.82923 | G66: 30041.89001 | H66: 1.470979918e+11 | I66: 169.2006432 | J66: -2.695178431e+33
A67: 49 | B67: 170.9184 | C67: -1.459382915e+11 | D67: 1.843458809e+10 | E67: -3764.902255 | F67: -29805.04445 | G67: 30041.89015 | H67: 1.47097991e+11 | I67: 172.8006591 | J67: -2.695178436e+33
A68: 50 | B68: 174.4792 | C68: -1.468078349e+11 | D68: 9234629829 | E68: -1885.991017 | F68: -29982.63177 | G68: 30041.89025 | H68: 1.470979904e+11 | I68: 176.4006749 | J68: -2.69517844e+33
A69: 51 | B69: 178.04 | C69: -1.470979899e+11 | D69: -1773601.548 | E69: 0.3634513763 | F69: -30041.89033 | G69: 30041.89033 | H69: 1.470979899e+11 | I69: 180.0006909 | J69: -2.695178445e+33
A70: 52 | B70: 181.6008 | C70: -1.468076113e+11 | D70: -9238170025 | E70: 1886.7165 | F70: -29982.58626 | G70: 30041.89038 | H70: 1.470979895e+11 | I70: 183.6007068 | J70: -2.69517845e+33
A71: 53 | B71: 185.1616 | C71: -1.459378452e+11 | D71: -1.843810729e+10 | E71: 3765.623487 | F71: -29804.95359 | G71: 30041.8904 | H71: 1.470979893e+11 | I71: 187.2007227 | J71: -2.695178454e+33
A72: 54 | B72: 188.7224 | C72: -1.444921241e+11 | D72: -2.756527714e+10 | E72: 5629.669155 | F72: -29509.69339 | G72: 30041.8904 | H72: 1.470979892e+11 | I72: 190.8007386 | J72: -2.695178459e+33
A73: 55 | B73: 192.2832 | C73: -1.424761537e+11 | D73: -3.658365848e+10 | E73: 7471.496898 | F73: -29097.9709 | G73: 30041.89036 | H73: 1.470979893e+11 | I73: 194.4007545 | J73: -2.695178463e+33
A74: 56 | B74: 195.844 | C74: -1.398978902e+11 | D74: -4.54576596e+10 | E74: 9283.837798 | F74: -28571.41103 | G74: 30041.89029 | H74: 1.470979894e+11 | I74: 198.0007704 | J74: -2.695178468e+33
A75: 57 | B75: 199.4048 | C75: -1.367675089e+11 | D75: -5.415225855e+10 | E75: 11059.5393 | F75: -27932.09189 | G75: 30041.8902 | H75: 1.470979898e+11 | I75: 201.6007863 | J75: -2.695178473e+33
A76: 58 | B76: 202.9656 | C76: -1.330973641e+11 | D76: -6.263314143e+10 | E76: 12791.59347 | F76: -27182.5366 | G76: 30041.89008 | H76: 1.470979902e+11 | I76: 205.2008022 | J76: -2.695178477e+33
A77: 59 | B77: 206.5264 | C77: -1.289019403e+11 | D77: -7.086683779e+10 | E77: 14473.16461 | F77: -26325.70335 | G77: 30041.88993 | H77: 1.470979908e+11 | I77: 208.800818 | J77: -2.695178482e+33
A78: 60 | B78: 210.0872 | C78: -1.241977951e+11 | D78: -7.882085271e+10 | E78: 16097.61627 | F78: -25364.9737 | G78: 30041.88976 | H78: 1.470979916e+11 | I78: 212.4008338 | J78: -2.695178486e+33
A79: 61 | B79: 213.648 | C79: -1.190034937e+11 | D79: -8.646379508e+10 | E79: 17658.53742 | F79: -24304.13924 | G79: 30041.88956 | H79: 1.470979924e+11 | I79: 216.0008495 | J79: -2.695178491e+33
A80: 62 | B80: 217.2088 | C80: -1.133395359e+11 | D80: -9.376550143e+10 | E80: 19149.76776 | F80: -23147.38666 | G80: 30041.88933 | H80: 1.470979934e+11 | I80: 219.6008653 | J80: -2.695178496e+33
A81: 63 | B81: 220.7696 | C81: -1.07228275e+11 | D81: -1.00697155e+11 | E81: 20565.42205 | F81: -21899.28116 | G81: 30041.88908 | H81: 1.470979945e+11 | I81: 223.2008809 | J81: -2.6951785e+33
A82: 64 | B82: 224.3304 | C82: -1.006938294e+11 | D82: -1.072313996e+11 | E82: 21899.91329 | F82: -20564.74851 | G82: 30041.88881 | H82: 1.470979957e+11 | I82: 226.8008965 | J82: -2.695178505e+33
A83: 65 | B83: 227.8912 | C83: -9.376198797e+10 | D83: -1.133424472e+11 | E83: 23147.97481 | F83: -19149.05553 | G83: 30041.88852 | H83: 1.47097997e+11 | I83: 230.400912 | J83: -2.695178509e+33
A84: 66 | B84: 231.452 | C84: -8.646010767e+10 | D84: -1.190061802e+11 | E84: 24304.68104 | F84: -17657.78939 | G84: 30041.8882 | H84: 1.470979984e+11 | I84: 234.0009275 | J84: =0.5*$L$4*G84^2-$L$2*$L$3*$L$4/H84 -> -2.695178514e+33
A85: 67 | B85: 235.0128 | C85: -7.881700596e+10 | D85: -1.242002462e+11 | E85: 25365.46697 | F85: -16096.83548 | G85: 30041.88787 | H85: 1.470979999e+11 | I85: 237.6009429 | J85: -2.695178519e+33
A86: 68 | B86: 238.5736 | C86: -7.086284693e+10 | D86: -1.289041464e+11 | E86: 26326.14611 | F86: -14472.35423 | G86: 30041.88752 | H86: 1.470980015e+11 | I86: 241.2009582 | J86: -2.695178523e+33
A87: 69 | B87: 242.1344 | C87: -6.26290223e+10 | D87: -1.330993167e+11 | E87: 27182.92708 | F87: -12790.7568 | G87: 30041.88716 | H87: 1.470980032e+11 | I87: 244.8009734 | J87: -2.695178528e+33
A88: 70 | B88: 245.6952 | C88: -5.414802748e+10 | D88: -1.367692004e+11 | E88: 27932.42853 | F88: -11058.67973 | G88: 30041.88678 | H88: 1.470980049e+11 | I88: 248.4009886 | J88: -2.695178532e+33
A89: 71 | B89: 249.256 | C89: -4.545333337e+10 | D89: -1.39899314e+11 | E89: 28571.69252 | F89: -9282.958804 | G89: 30041.88638 | H89: 1.470980067e+11 | I89: 252.0010036 | J89: -2.695178537e+33
A90: 72 | B90: 252.8168 | C90: -3.657925425e+10 | D90: -1.424773044e+11 | E90: 29098.19613 | F90: -7470.60205 | G90: 30041.88598 | H90: 1.470980086e+11 | I90: 255.6010186 | J90: -2.695178542e+33
A91: 73 | B91: 256.3776 | C91: -2.756081235e+10 | D91: -1.444929974e+11 | E91: 29509.8615 | F91: -5628.762072 | G91: 30041.88556 | H91: 1.470980105e+11 | I91: 259.2010335 | J91: -2.695178546e+33
A92: 74 | B92: 259.9384 | C92: -1.843359963e+10 | D92: -1.459384379e+11 | E92: 29805.06396 | F92: -3764.707835 | G92: 30041.88514 | H92: 1.470980124e+11 | I92: 262.8010482 | J92: -2.695178551e+33
A93: 75 | B93: 263.4992 | C93: -9233637334 | D93: -1.468079214e+11 | E93: 29982.63849 | F93: -1885.795971 | G93: 30041.88472 | H93: 1.470980144e+11 | I93: 266.4010629 | J93: -2.695178556e+33
A94: 76 | B94: 267.06 | C94: 2766197.922 | D94: -1.470980163e+11 | E94: 30041.88428 | F94: 0.5582505262 | G94: 30041.88428 | H94: 1.470980164e+11 | I94: 270.0010775 | J94: -2.69517856e+33
A95: 77 | B95: 270.6208 | C95: 9239158805 | D95: -1.46807578e+11 | E95: 29982.56752 | F95: 1886.910191 | G95: 30041.88385 | H95: 1.470980184e+11 | I95: 273.6010919 | J95: -2.695178565e+33
A96: 78 | B96: 274.1816 | C96: 1.843908837e+10 | D96: -1.459377525e+11 | E96: 29804.92233 | F96: 3765.81522 | G96: 30041.88341 | H96: 1.470980204e+11 | I96: 277.2011063 | J96: -2.695178569e+33
A97: 79 | B97: 277.7424 | C97: 2.75662467e+10 | D97: -1.444919729e+11 | E97: 29509.64979 | F97: 5629.858101 | G97: 30041.88298 | H97: 1.470980224e+11 | I97: 280.8011206 | J97: -2.695178574e+33
A98: 80 | B98: 281.3032 | C98: 3.658461277e+10 | D98: -1.424759449e+11 | E98: 29097.91524 | F98: 7471.682251 | G98: 30041.88255 | H98: 1.470980243e+11 | I98: 284.4011347 | J98: -2.695178579e+33
A99: 81 | B99: 284.864 | C99: 4.545859495e+10 | D99: -1.39897625e+11 | E99: 28571.34363 | F99: 9284.018778 | G99: 30041.88212 | H99: 1.470980263e+11 | I99: 288.0011488 | J99: -2.695178583e+33
A100: 82 | B100: 288.4248 | C100: 5.41531714e+10 | D100: -1.367671888e+11 | E100: 27932.01312 | F100: 11059.71516 | G100: 30041.88171 | H100: 1.470980282e+11 | I100: 291.6011628 | J100: -2.695178588e+33
A101: 83 | B101: 291.9856 | C101: 6.263402835e+10 | D101: -1.330969908e+11 | E101: 27182.44688 | F101: 12791.7635 | G101: 30041.88129 | H101: 1.470980301e+11 | I101: 295.2011766 | J101: -2.695178592e+33
A102: 84 | B102: 295.5464 | C102: 7.086769549e+10 | D102: -1.289015157e+11 | E102: 26325.60314 | F102: 14473.32813 | G102: 30041.88089 | H102: 1.470980319e+11 | I102: 298.8011904 | J102: -2.695178597e+33
A103: 85 | B103: 299.1072 | C103: 7.882167803e+10 | D103: -1.241973212e+11 | E103: 25364.8635 | F103: 16097.77264 | G103: 30041.88051 | H103: 1.470980337e+11 | I103: 302.4012041 | J103: -2.695178602e+33
A104: 86 | B104: 302.668 | C104: 8.646458503e+10 | D104: -1.190029729e+11 | E104: 24304.0196 | F104: 17658.68605 | G104: 30041.88013 | H104: 1.470980354e+11 | I104: 306.0012177 | J104: -2.695178606e+33
A105: 87 | B105: 306.2288 | C105: 9.376625319e+10 | D105: -1.133389707e+11 | E105: 23147.25815 | F105: 19149.9081 | G105: 30041.87977 | H105: 1.470980371e+11 | I105: 309.6012312 | J105: -2.695178611e+33
A106: 88 | B106: 309.7896 | C106: 1.00697866e+11 | D106: -1.072276679e+11 | E106: 21899.14438 | F106: 20565.5536 | G106: 30041.87943 | H106: 1.470980386e+11 | I106: 313.2012446 | J106: -2.695178615e+33
A107: 89 | B107: 313.3504 | C107: 1.072320672e+11 | D107: -1.006931833e+11 | E107: 20564.60408 | F107: 21900.03559 | G107: 30041.8791 | H107: 1.470980401e+11 | I107: 316.801258 | J107: -2.69517862e+33
A108: 90 | B108: 316.9112 | C108: 1.133430693e+11 | D108: -9.376130567e+10 | E108: 19148.90412 | F108: 23148.08745 | G108: 30041.87879 | H108: 1.470980415e+11 | I108: 320.4012713 | J108: -2.695178625e+33
A109: 91 | B109: 320.472 | C109: 1.190067547e+11 | D109: -8.645939224e+10 | E109: 17657.63164 | F109: 24304.78366 | G109: 30041.87851 | H109: 1.470980428e+11 | I109: 324.0012845 | J109: -2.695178629e+33
A110: 92 | B110: 324.0328 | C110: 1.242007713e+11 | D110: -7.881626055e+10 | E110: 16096.67208 | F110: 25365.55925 | G110: 30041.87824 | H110: 1.470980439e+11 | I110: 327.6012976 | J110: -2.695178634e+33
A111: 93 | B111: 327.5936 | C111: 1.289046205e+11 | D111: -7.086207475e+10 | E111: 14472.18587 | F111: 26326.22779 | G111: 30041.878 | H111: 1.47098045e+11 | I111: 331.2013107 | J111: -2.695178639e+33
A112: 94 | B112: 331.1544 | C112: 1.330997383e+11 | D112: -6.262822665e+10 | E112: 12790.58417 | F112: 27182.99795 | G112: 30041.87778 | H112: 1.470980459e+11 | I112: 334.8013238 | J112: -2.695178643e+33
A113: 95 | B113: 334.7152 | C113: 1.367695683e+11 | D113: -5.414721171e+10 | E113: 11058.50352 | F113: 27932.48842 | G113: 30041.87759 | H113: 1.470980467e+11 | I113: 338.4013368 | J113: -2.695178648e+33
A114: 96 | B114: 338.276 | C114: 1.398996273e+11 | D114: -4.545250088e+10 | E114: 9282.779723 | F114: 28571.74128 | G114: 30041.87743 | H114: 1.470980474e+11 | I114: 342.0013497 | J114: -2.695178652e+33
A115: 97 | B115: 341.8368 | C115: 1.424775623e+11 | D115: -3.657840848e+10 | E115: 7470.420785 | F115: 29098.2337 | G115: 30041.87729 | H115: 1.47098048e+11 | I115: 345.6013626 | J115: -2.695178657e+33
A116: 98 | B116: 345.3976 | C116: 1.444931992e+11 | D116: -2.755995675e+10 | E116: 5628.579311 | F116: 29509.88782 | G116: 30041.87717 | H116: 1.470980484e+11 | I116: 349.2013755 | J116: -2.695178662e+33
A117: 99 | B117: 348.9584 | C117: 1.459385833e+11 | D117: -1.843273767e+10 | E117: 3764.524257 | F117: 29805.07903 | G117: 30041.87709 | H117: 1.470980487e+11 | I117: 352.8013884 | J117: -2.695178666e+33
A118: 100 | B118: 352.5192 | C118: 1.468080103e+11 | D118: -9232772464 | E118: 1885.612246 | F118: 29982.64235 | G118: 30041.87703 | H118: 1.470980488e+11 | I118: 356.4014013 | J118: -2.695178671e+33
A119: 101 | B119: 356.08 | C119: 1.470980488e+11 | D119: 3630539.3 | E119: -0.7414662273 | F119: 30041.877 | G119: 30041.87701 | H119: 1.470980488e+11 | I119: 0.001414122123 | J119: -2.695178675e+33
Q385: 0

Sheet VO REALE
A1: GRAVITAZIONE - TERRA(1) E SOLE(2) | F1: giorno 1 = Perielio ( 3 gennaio 2018)
D2: 30287 | K2: kg= costante gravitazione universale | L2: 6.67428e-11 | M2: N*m^2/kg^2 | R2: Ep | S2: =-L2*L3*L4/A4 -> -5.390469077e+33 | T2: J
A3: xterra (m) | B3: yterra (m) | C3: vx terra (m/s) | D3: vy terra (m/s) | E3: massasole (kg) | F3: tf (g) | G3: NSTEP | K3: M= massa Sole | L3: 1.9891e+30 | M3: kg | R3: Ec | S3: =0.5*L4*D4^2 -> 2.740642643e+33 | T3: J
A4: =147095000000 -> 147095000000 | B4: 0 | C4: 0 | D4: 30294.2 | E4: 1.9891e+30 | F4: 365.256363 | G4: 100 | K4: m=massa Terra | L4: 5.9726e+24 | M4: kg | R4: Ec | S4: =SUM(S2:S3) -> -2.649826434e+33 | T4: J
C10: =MAX(C19:C385) -> 147095000000 | D10: 1.495731835e+11 | E10: 29779.64084 | F10: 30294.20209 | G10: 30294.20212 | H10: 1.521362252e+11 | I10: dmax | K10: E0 | L10: =0.5*L4*D4^2-L2*L3*L4/A4 -> -2.649826434e+33 | M10: J | N10: --->> ellisse | R10: =G10*3.6 -> 109059.1276 | T10: =S3/S2 -> -0.5084237761
C11: =MIN(C19:C385) -> -1.521362251e+11 | D11: -1.495730645e+11 | E11: -29779.60131 | F11: -29290.36231 | G11: 29290.36231 | H11: 1.47094977e+11 | I11: dmin | R11: =G11*3.6 -> 105445.3043
C12: CONCLUSIONE: SIMULAZIONE QUASI PERFETTA .AUMENTANDO GLI STEPS I RISULTATI NON CAMBIANO | L12: =0.5*L4*D4^2 -> 2.740642643e+33
R13: semiasse | S13: =C10-C11 -> 2.992312251e+11
A14: MOTO TERRA ATTORNO AL SOLE"
A18: step | B18: t(giorni) | C18: xterra | D18: yterra | E18: vxterra | F18: vyterra | G18: vterra | H18: distanza | I18: angolo | J18: U | K18: T | L18: E | Q18: (x,y) sole
A19: 1 | B19: 0 | C19: 147095000000 | D19: 0 | E19: 0 | F19: 30294.2 | G19: 30294.2 | H19: 147095000000 | I19: 0 | J19: =-$L$2*$L$3*$L$4/H19 -> -5.390469077e+33 | K19: =0.5*$L$4*G19^2 -> 2.740642643e+33 | L19: =J19+K19 -> -2.649826434e+33
A20: 2 | B20: 3.65256363 | C20: 1.467895779e+11 | D20: 9553669901 | E20: -1934.910543 | F20: 30231.30055 | G20: 30293.15784 | H20: 1.471001455e+11 | I20: 3.723793155 | J20: =-$L$2*$L$3*$L$4/H20 -> -5.390280522e+33 | K20: =0.5*$L$4*G20^2 -> 2.740454082e+33 | L20: =J20+K20 -> -2.64982644e+33
A21: 3 | B21: 7.30512726 | C21: 1.45874644e+11 | D21: 1.906767164e+10 | E21: -3861.382451 | F21: 30042.90292 | G21: 30290.03616 | H21: 1.471155595e+11 | I21: 7.447065712 | J21: -5.389715754e+33 | K21: 2.739889309e+33 | L21: -2.649826445e+33
A22: 4 | B22: 10.95769089 | C22: 1.443541872e+11 | D22: 2.850252663e+10 | E22: -5771.02429 | F22: 29729.90702 | G22: 30284.84922 | H22: 1.47141175e+11 | I22: 11.16929967 | J22: -5.388777471e+33 | K22: 2.73895102e+33 | L22: -2.649826451e+33
A23: 5 | B23: 14.61025452 | C23: 1.422348311e+11 | D23: 3.781913402e+10 | E23: -7655.538577 | F23: 29293.80559 | G23: 30277.62073 | H23: 1.471768803e+11 | I23: 14.88998219 | J23: -5.387470147e+33 | K23: 2.73764369e+33 | L23: -2.649826457e+33
A24: 6 | B24: 18.26281815 | C24: 1.395257971e+11 | D24: 4.69789563e+10 | E24: -9506.76763 | F24: 28736.6737 | G24: 30268.38361 | H24: 1.4722252e+11 | I24: 18.60860816 | J24: -5.385800003e+33 | K24: 2.735973541e+33 | L24: -2.649826463e+33
A25: 7 | B25: 21.91538178 | C25: 1.362388529e+11 | D25: 5.594420078e+10 | E25: -11316.73809 | F25: 28061.15416 | G25: 30257.17987 | H25: 1.47277896e+11 | I25: 22.32468264 | J25: -5.383774962e+33 | K25: 2.733948493e+33 | L25: -2.649826469e+33
A26: 8 | B26: 25.56794541 | C26: 1.323882477e+11 | D26: 6.467799606e+10 | E26: -13077.70369 | F26: 27270.43913 | G26: 30244.06031 | H26: 1.473427681e+11 | I26: 26.03772328 | J26: -5.381404593e+33 | K26: 2.731578118e+33 | L26: -2.649826475e+33
A27: 9 | B27: 29.22050904 | C27: 1.279906341e+11 | D27: 7.314456191e+10 | E27: -14782.18595 | F27: 26368.24812 | G27: 30229.08418 | H27: 1.474168558e+11 | I27: 29.74726261 | J27: -5.378700046e+33 | K27: 2.728873565e+33 | L27: -2.649826481e+33
A28: 10 | B28: 32.87307267 | C28: 1.230649776e+11 | D28: 8.130937187e+10 | E28: -16423.01237 | F28: 25358.80272 | G28: 30212.31886 | H28: 1.474998395e+11 | I28: 33.45285024 | J28: -5.375673976e+33 | K28: 2.725847489e+33 | L28: -2.649826487e+33
A29: 11 | B29: 36.5256363 | C29: 1.176324539e+11 | D29: 8.913930726e+10 | E29: -17993.35192 | F29: 24246.79826 | G29: 30193.83942 | H29: 1.475913626e+11 | I29: 37.15405493 | J29: -5.372340459e+33 | K29: 2.722513966e+33 | L29: -2.649826493e+33
A30: 12 | B30: 40.17819993 | C30: 1.117163367e+11 | D30: 9.660280187e+10 | E30: -19486.74745 | F30: 23037.37281 | G30: 30173.72818 | H30: 1.476910329e+11 | I30: 40.85046648 | J30: -5.368714898e+33 | K30: 2.718888399e+33 | L30: -2.6498265e+33
A31: 13 | B31: 43.83076356 | C31: 1.053418741e+11 | D31: 1.036699765e+11 | E31: -20897.14495 | F31: 21736.07399 | G31: 30152.07422 | H31: 1.477984251e+11 | I31: 44.54169759 | J31: -5.364813923e+33 | K31: 2.714987417e+33 | L31: -2.649826506e+33
A32: 14 | B32: 47.48332719 | C32: 9.853615805e+10 | D32: 1.103127626e+11 | E32: -22218.91942 | F32: 20348.8237 | G32: 30128.97286 | H32: 1.479130827e+11 | I32: 48.22738536 | J32: -5.360655286e+33 | K32: 2.710828774e+33 | L32: -2.649826512e+33
A33: 15 | B33: 51.13589082 | C33: 9.132798477e+10 | D33: 1.165050149e+11 | E33: -23446.8972 | F33: 18881.88143 | G33: 30104.52515 | H33: 1.480345207e+11 | I33: 51.90719286 | J33: -5.356257752e+33 | K33: 2.706431234e+33 | L33: -2.649826518e+33
A34: 16 | B34: 54.78845445 | C34: 8.37477095e+10 | D34: 1.222226117e+11 | E34: -24576.37482 | F34: 17341.80643 | G34: 30078.83724 | H34: 1.481622275e+11 | I34: 55.58081033 | J34: -5.351640984e+33 | K34: 2.701814459e+33 | L34: -2.649826525e+33
A35: 17 | B35: 58.44101808 | C35: 7.582709558e+10 | D35: 1.274435433e+11 | E35: -25603.13427 | F35: 15735.41908 | G35: 30052.01987 | H35: 1.482956681e+11 | I35: 59.24795632 | J35: -5.346825428e+33 | K35: 2.696998897e+33 | L35: -2.649826531e+33
A36: 18 | B36: 62.09358171 | C36: 6.759915927e+10 | D36: 1.321479889e+11 | E36: -26523.4547 | F36: 14069.7619 | G36: 30024.18774 | H36: 1.484342862e+11 | I36: 62.90837861 | J36: -5.341832195e+33 | K36: 2.692005658e+33 | L36: -2.649826537e+33
A37: 19 | B37: 65.74614534 | C37: 5.909801148e+10 | D37: 1.363183798e+11 | E37: -27334.12075 | F37: 12352.06053 | G37: 29995.45894 | H37: 1.485775072e+11 | I37: 66.56185497 | J37: -5.336682947e+33 | K37: 2.686856403e+33 | L37: -2.649826544e+33
A38: 20 | B38: 69.39870897 | C38: 5.035869737e+10 | D38: 1.399394515e+11 | E38: -28032.42747 | F38: 10589.68501 | G38: 29965.95433 | H38: 1.487247406e+11 | I38: 70.20819375 | J38: -5.331399776e+33 | K38: 2.681573226e+33 | L38: -2.64982655e+33
A39: 21 | B39: 73.0512726 | C39: 4.141703492e+10 | D39: 1.429982829e+11 | E39: -28616.18208 | F39: 8790.111674 | G39: 29935.79697 | H39: 1.488753831e+11 | I39: 73.8472343 | J39: -5.326005095e+33 | K39: 2.676178539e+33 | L39: -2.649826556e+33
A40: 22 | B40: 76.70383623 | C40: 3.230945345e+10 | D40: 1.454843244e+11 | E40: -29083.70269 | F40: 6960.885962 | G40: 29905.11152 | H40: 1.490288208e+11 | I40: 77.47884718 | J40: -5.320521523e+33 | K40: 2.670694961e+33 | L40: -2.649826562e+33
A41: 23 | B41: 80.35639986 | C41: 2.307283292e+10 | D41: 1.473894138e+11 | E41: -29433.81422 | F41: 5109.586312 | G41: 29874.0237 | H41: 1.491844325e+11 | I41: 81.10293429 | J41: -5.314971779e+33 | K41: 2.665145211e+33 | L41: -2.649826568e+33
A42: 24 | B42: 84.00896349 | C42: 1.374434499e+10 | D42: 1.487077808e+11 | E42: -29665.84173 | F42: 3243.789447 | G42: 29842.65966 | H42: 1.49341592e+11 | I42: 84.71942882 | J42: -5.309378576e+33 | K42: 2.659552002e+33 | L42: -2.649826575e+33
A43: 25 | B43: 87.66152712 | C43: 4361296597 | D43: 1.494360418e+11 | E43: -29779.60131 | F43: 1371.037178 | G43: 29811.14552 | H43: 1.494996706e+11 | I43: 88.328295 | J43: -5.303764522e+33 | K43: 2.653937942e+33 | L43: -2.649826581e+33
A44: 26 | B44: 91.31409075 | C44: -5039023347 | D44: 1.495731835e+11 | E44: -29775.3889 | F44: -501.1951202 | G44: 29779.6068 | H44: 1.496580402e+11 | I44: 91.9295278 | J44: -5.298152027e+33 | K44: 2.648325441e+33 | L44: -2.649826586e+33
A45: 27 | B45: 94.96665438 | C45: -1.441949332e+10 | D45: 1.491205373e+11 | E45: -29653.96719 | F45: -2365.528238 | G45: 29748.16791 | H45: 1.498160753e+11 | I45: 95.52315247 | J45: -5.292563212e+33 | K45: 2.642736619e+33 | L45: -2.649826592e+33
A46: 28 | B46: 98.61921801 | C46: -2.374330423e+10 | D46: 1.480817444e+11 | E46: -29416.55086 | F46: -4214.706997 | G46: 29716.95172 | H46: 1.49973156e+11 | I46: 99.10922394 | J46: -5.287019825e+33 | K46: 2.637193227e+33 | L46: -2.649826598e+33
A47: 29 | B47: 102.2717816 | C47: -3.297409952e+10 | D47: 1.464627126e+11 | E47: -29064.79044 | F47: -6041.626189 | G47: 29686.07906 | H47: 1.501286695e+11 | I47: 102.6878262 | J47: -5.281543167e+33 | K47: 2.631716564e+33 | L47: -2.649826604e+33
A48: 30 | B48: 105.9243453 | C48: -4.207611001e+10 | D48: 1.442715652e+11 | E48: -28600.75494 | F48: -7839.354572 | G48: 29655.66832 | H48: 1.502820135e+11 | I48: 106.2590714 | J48: -5.276154016e+33 | K48: 2.626327407e+33 | L48: -2.649826609e+33
A49: 31 | B49: 109.5769089 | C49: -5.101428313e+10 | D49: 1.415185825e+11 | E49: -28026.91361 | F49: -9601.15693 | G49: 29625.83502 | H49: 1.504325972e+11 | I49: 109.8230991 | J49: -5.270872563e+33 | K49: 2.621045947e+33 | L49: -2.649826615e+33
A50: 32 | B50: 113.2294725 | C50: -5.975440618e+10 | D50: 1.382161367e+11 | E50: -27346.11679 | F50: -11320.51421 | G50: 29596.69146 | H50: 1.505798443e+11 | I50: 113.3800753 | J50: -5.265718349e+33 | K50: 2.615891728e+33 | L50: -2.64982662e+33
A51: 33 | B51: 116.8820362 | C51: -6.826322354e+10 | D51: 1.343786206e+11 | E51: -26561.57642 | F51: -12991.1418 | G51: 29568.34637 | H51: 1.507231945e+11 | I51: 116.9301914 | J51: -5.260710214e+33 | K51: 2.610883588e+33 | L51: -2.649826626e+33
A52: 34 | B52: 120.5345998 | C52: -7.650854768e+10 | D52: 1.300223713e+11 | E52: -25676.84595 | F52: -14607.006 | G52: 29540.90456 | H52: 1.508621056e+11 | I52: 120.4736632 | J52: -5.255866247e+33 | K52: 2.606039616e+33 | L52: -2.649826631e+33
A53: 35 | B53: 124.1871634 | C53: -8.445936367e+10 | D53: 1.251655885e+11 | E53: -24695.80019 | F53: -16162.33876 | G53: 29514.46664 | H53: 1.509960551e+11 | I53: 124.0107298 | J53: -5.251203738e+33 | K53: 2.601377102e+33 | L53: -2.649826636e+33
A54: 36 | B54: 127.8397271 | C54: -9.208592745e+10 | D54: 1.198282483e+11 | E54: -23622.615 | F54: -17651.65075 | G54: 29489.12874 | H54: 1.511245418e+11 | I54: 127.5416521 | J54: -5.246739143e+33 | K54: 2.596912502e+33 | L54: -2.649826641e+33
A55: 37 | B55: 131.4922907 | C55: -9.935985763e+10 | D55: 1.140320139e+11 | E55: -22461.74705 | F55: -19069.74302 | G55: 29464.98226 | H55: 1.512470876e+11 | I55: 131.0667122 | J55: -5.242488048e+33 | K55: 2.592661401e+33 | L55: -2.649826646e+33
A56: 38 | B56: 135.1448543 | C56: -1.062542209e+11 | D56: 1.078001418e+11 | E56: -21217.91371 | F56: -20411.71705 | G56: 29442.11364 | H56: 1.513632387e+11 | I56: 134.5862116 | J56: -5.238465136e+33 | K56: 2.588638485e+33 | L56: -2.649826651e+33
A57: 39 | B57: 138.7974179 | C57: -1.127436113e+11 | D57: 1.011573859e+11 | E57: -19896.07323 | F57: -21672.9836 | G57: 29420.60415 | H57: 1.514725672e+11 | I57: 138.1004704 | J57: -5.234684165e+33 | K57: 2.584857509e+33 | L57: -2.649826656e+33
A58: 40 | B58: 142.4499816 | C58: -1.188042228e+11 | D58: 9.412989857e+10 | E58: -18501.40513 | F58: -22849.27034 | G58: 29400.52971 | H58: 1.515746719e+11 | I58: 141.6098257 | J58: -5.231157943e+33 | K58: 2.581331283e+33 | L58: -2.649826661e+33
A59: 41 | B59: 146.1025452 | C59: -1.244139165e+11 | D59: 8.674512953e+10 | E59: -17039.29105 | F59: -23936.62834 | G59: 29381.96072 | H59: 1.516691799e+11 | I59: 145.1146303 | J59: -5.227898308e+33 | K59: 2.578071642e+33 | L59: -2.649826665e+33
A60: 42 | B60: 149.7551088 | C60: -1.295522813e+11 | D60: 7.903172296e+10 | E60: -15515.29591 | F60: -24931.4376 | G60: 29364.96191 | H60: 1.517557473e+11 | I60: 148.6152517 | J60: -5.224916111e+33 | K60: 2.575089441e+33 | L60: -2.64982667e+33
A61: 43 | B61: 153.4076725 | C61: -1.342006886e+11 | D61: 7.101941292e+10 | E61: -13935.14954 | F61: -25830.41174 | G61: 29349.59222 | H61: 1.518340602e+11 | I61: 152.1120706 | J61: -5.222221204e+33 | K61: 2.57239453e+33 | L61: -2.649826674e+33
A62: 44 | B62: 157.0602361 | C62: -1.383423419e+11 | D62: 6.273891744e+10 | E62: -12304.7287 | F62: -26630.60182 | G62: 29335.90465 | H62: 1.519038358e+11 | I62: 155.6054794 | J62: -5.219822428e+33 | K62: 2.569995749e+33 | L62: -2.649826679e+33
A63: 45 | B63: 160.7127997 | C63: -1.419623199e+11 | D63: 5.422183147e+10 | E63: -10630.03954 | F63: -27329.39956 | G63: 29323.94621 | H63: 1.519648225e+11 | I63: 159.0958814 | J63: -5.217727601e+33 | K63: 2.567900918e+33 | L63: -2.649826683e+33
A64: 46 | B64: 164.3653634 | C64: -1.450476151e+11 | D64: 4.550051903e+10 | E64: -8917.200411 | F64: -27924.53997 | G64: 29313.75779 | H64: 1.520168013e+11 | I64: 162.5836889 | J64: -5.215943514e+33 | K64: 2.566116826e+33 | L64: -2.649826687e+33
A65: 47 | B65: 168.017927 | C65: -1.475871663e+11 | D65: 3.660800445e+10 | E65: -7172.425115 | F65: -28414.10337 | G65: 29305.37412 | H65: 1.520595858e+11 | I65: 166.0693221 | J65: -5.21447592e+33 | K65: 2.564649229e+33 | L65: -2.649826691e+33
A66: 48 | B66: 171.6704906 | C66: -1.495718861e+11 | D66: 2.757786318e+10 | E66: -5402.006435 | F66: -28796.51708 | G66: 29298.82369 | H66: 1.52093023e+11 | I66: 169.553208 | J66: -5.213329536e+33 | K66: 2.56350284e+33 | L66: -2.649826695e+33
A67: 49 | B67: 175.3230542 | C67: -1.509946832e+11 | D67: 1.844411206e+10 | E67: -3612.299976 | F67: -29070.55668 | G67: 29294.12871 | H67: 1.521169932e+11 | I67: 173.0357787 | J67: -5.21250803e+33 | K67: 2.562681331e+33 | L67: -2.649826699e+33
A68: 50 | B68: 178.9756179 | C68: -1.518504802e+11 | D68: 9241099236 | E68: -1809.708248 | F68: -29235.34691 | G68: 29291.30507 | H68: 1.521314111e+11 | I68: 176.5174704 | J68: -5.212014028e+33 | K68: 2.562187325e+33 | L68: -2.649826703e+33
A69: 51 | B69: 182.6281815 | C69: -1.521362251e+11 | D69: 3393910.671 | E69: -0.6649240602 | F69: -29290.36231 | G69: 29290.36231 | H69: 1.521362252e+11 | I69: 179.9987218 | J69: -5.211849104e+33 | K69: 2.562022397e+33 | L69: -2.649826707e+33
A70: 52 | B70: 186.2807451 | C70: -1.518508995e+11 | D70: -9234324148 | E70: 1808.380767 | F70: -29235.42761 | G70: 29291.30363 | H70: 1.521314183e+11 | I70: 183.4799731 | J70: -5.212013783e+33 | K70: 2.562187072e+33 | L70: -2.649826711e+33
A71: 53 | B71: 189.9333088 | C71: -1.509955204e+11 | D71: -1.843737513e+10 | E71: 3610.979592 | F71: -29070.71782 | G71: 29294.12583 | H71: 1.521170075e+11 | I71: 186.9616643 | J71: -5.212507542e+33 | K71: 2.562680828e+33 | L71: -2.649826714e+33
A72: 54 | B72: 193.5858724 | C72: -1.49573138e+11 | D72: -2.757118972e+10 | E72: 5400.697858 | F72: -28796.75815 | G72: 29298.81939 | H72: 1.520930443e+11 | I72: 190.4442342 | J72: -5.213328805e+33 | K72: 2.563502087e+33 | L72: -2.649826718e+33
A73: 55 | B73: 197.238436 | C73: -1.475888286e+11 | D73: -3.660141956e+10 | E73: 7171.13303 | F73: -28414.4236 | G73: 29305.36841 | H73: 1.520596141e+11 | I73: 193.9281189 | J73: -5.21447495e+33 | K73: 2.564648229e+33 | L73: -2.649826721e+33
A74: 56 | B74: 200.8909997 | C74: -1.450496819e+11 | D74: -4.549404752e+10 | E74: 8915.929461 | F74: -27924.93833 | G74: 29313.75068 | H74: 1.520168365e+11 | I74: 197.4137506 | J74: -5.215942307e+33 | K74: 2.566115582e+33 | L74: -2.649826725e+33
A75: 57 | B75: 204.5435633 | C75: -1.419647837e+11 | D75: -5.421549781e+10 | E75: 10628.79432 | F75: -27329.87478 | G75: 29323.93774 | H75: 1.519648644e+11 | I75: 200.9015563 | J75: -5.217726163e+33 | K75: 2.567899434e+33 | L75: -2.649826728e+33
A76: 58 | B76: 208.1961269 | C76: -1.383451939e+11 | D76: -6.273274563e+10 | E76: 12303.51374 | F76: -26631.15236 | G76: 29335.89484 | H76: 1.519038842e+11 | I76: 204.3919562 | J76: -5.219820762e+33 | K76: 2.569994031e+33 | L76: -2.649826732e+33
A77: 59 | B77: 211.8486905 | C77: -1.342039186e+11 | D77: -7.101342646e+10 | E77: 13933.96928 | F77: -25831.03581 | G77: 29349.58111 | H77: 1.518341151e+11 | I77: 207.8853626 | J77: -5.222219317e+33 | K77: 2.572392582e+33 | L77: -2.649826735e+33
A78: 60 | B78: 215.5012542 | C78: -1.295558776e+11 | D78: -7.902594473e+10 | E78: 15514.15473 | F78: -24932.13317 | G78: 29364.94954 | H78: 1.517558083e+11 | I78: 211.3821788 | J78: -5.224914009e+33 | K78: 2.575087271e+33 | L78: -2.649826738e+33
A79: 61 | B79: 219.1538178 | C79: -1.244178661e+11 | D79: -8.673958173e+10 | E79: 17038.19321 | F79: -23937.39312 | G79: 29381.94713 | H79: 1.516692469e+11 | I79: 214.8827972 | J79: -5.227895999e+33 | K79: 2.578069258e+33 | L79: -2.649826742e+33
A80: 62 | B80: 222.8063814 | C80: -1.188085113e+11 | D80: -9.412460264e+10 | E80: 18500.35478 | F80: -22850.1018 | G80: 29400.51495 | H80: 1.515747446e+11 | I80: 218.3875985 | J80: -5.231155435e+33 | K80: 2.581328691e+33 | L80: -2.649826745e+33
A81: 63 | B81: 226.4589451 | C81: -1.127482232e+11 | D81: -1.011523624e+11 | E81: 19895.07439 | F81: -21673.87896 | G81: 29420.58827 | H81: 1.514726452e+11 | I81: 221.8969502 | J81: -5.234681467e+33 | K81: 2.58485472e+33 | L81: -2.649826748e+33
A82: 64 | B82: 230.1115087 | C82: -1.062591393e+11 | D82: -1.077954105e+11 | E82: 21216.97027 | F82: -20412.67329 | G82: 29442.0967 | H82: 1.513633219e+11 | I82: 225.4112052 | J82: -5.238462258e+33 | K82: 2.588635507e+33 | L82: -2.649826751e+33
A83: 65 | B83: 233.7640723 | C83: -9.936506442e+10 | D83: -1.140275935e+11 | E83: 22460.86273 | F83: -19070.75689 | G83: 29464.96433 | H83: 1.512471755e+11 | I83: 228.9307006 | J83: -5.242485e+33 | K83: 2.592658246e+33 | L83: -2.649826754e+33
A84: 66 | B84: 237.416636 | C84: -9.209140344e+10 | D84: -1.198241564e+11 | E84: 23621.79336 | F84: -17652.71876 | G84: 29489.10988 | H84: 1.511246341e+11 | I84: 232.4557564 | J84: =-$L$2*$L$3*$L$4/H84 -> -5.246735937e+33 | K84: =0.5*$L$4*G84^2 -> 2.59690918e+33 | L84: =J84+K84 -> -2.649826757e+33
A85: 67 | B85: 241.0691996 | C85: -8.446508854e+10 | D85: -1.251618416e+11 | E85: 24695.04461 | F85: -16163.4572 | G85: 29514.44692 | H85: 1.509961515e+11 | I85: 235.9866743 | J85: -5.251200385e+33 | K85: 2.601373625e+33 | L85: -2.64982676e+33
A86: 68 | B86: 244.7217632 | C86: -7.651450009e+10 | D86: -1.300189847e+11 | E86: 25676.1596 | F86: -14608.17095 | G86: 29540.88405 | H86: 1.508622057e+11 | I86: 239.5237361 | J86: -5.25586276e+33 | K86: 2.606035997e+33 | L86: -2.649826763e+33
A87: 69 | B87: 248.3743268 | C87: -6.826938117e+10 | D87: -1.343756083e+11 | E87: 26560.96227 | F87: -12992.34912 | G87: 29568.32515 | H87: 1.507232978e+11 | I87: 243.0672031 | J87: -5.260706607e+33 | K87: 2.610879841e+33 | L87: -2.649826766e+33
A88: 70 | B88: 252.0268905 | C88: -5.97607458e+10 | D88: -1.382135114e+11 | E88: 27345.57757 | F88: -11321.75956 | G88: 29596.66962 | H88: 1.505799505e+11 | I88: 246.6173142 | J88: -5.265714635e+33 | K88: 2.615887866e+33 | L88: -2.649826769e+33
A89: 71 | B89: 255.6794541 | C89: -5.102078072e+10 | D89: -1.415163556e+11 | E89: 28026.45181 | F89: -9602.435778 | G89: 29625.81263 | H89: 1.504327058e+11 | I89: 250.1742852 | J89: -5.270868757e+33 | K89: 2.621041985e+33 | L89: -2.649826772e+33
A90: 72 | B90: 259.3320177 | C90: -4.208274078e+10 | D90: -1.442697464e+11 | E90: 28600.3728 | F90: -7840.662211 | G90: 29655.64547 | H90: 1.50282124e+11 | I90: 253.7383076 | J90: -5.276150135e+33 | K90: 2.626323359e+33 | L90: -2.649826775e+33
A91: 73 | B91: 262.9845814 | C91: -3.298083802e+10 | D91: -1.464613102e+11 | E91: 29064.4899 | F91: -6042.957742 | G91: 29686.05584 | H91: 1.501287816e+11 | I91: 257.3095474 | J91: -5.281539225e+33 | K91: 2.631712447e+33 | L91: -2.649826778e+33
A92: 74 | B92: 266.637145 | C92: -2.375012444e+10 | D92: -1.480807652e+11 | E92: 29416.33361 | F92: -4216.057435 | G92: 29716.92823 | H92: 1.499732691e+11 | I92: 260.8881441 | J92: -5.287015838e+33 | K92: 2.637189057e+33 | L92: -2.649826782e+33
A93: 75 | B93: 270.2897086 | C93: -1.442636875e+10 | D93: -1.491199865e+11 | E93: 29653.83459 | F93: -2366.892393 | G93: 29748.14423 | H93: 1.49816189e+11 | I93: 264.47421 | J93: -5.292559197e+33 | K93: 2.642732413e+33 | L93: -2.649826785e+33
A94: 76 | B94: 273.9422723 | C94: -5045927107 | D94: -1.495730645e+11 | E94: 29775.342 | F94: -502.5677056 | G94: 29779.58303 | H94: 1.496581539e+11 | I94: 268.0678291 | J94: -5.298148002e+33 | K94: 2.648321214e+33 | L94: -2.649826788e+33
A95: 77 | B95: 277.5948359 | C95: 4354391666 | D95: -1.494363565e+11 | E95: 29779.64084 | F95: 1369.66155 | G95: 29811.12177 | H95: 1.494997838e+11 | I95: 271.6690563 | J95: -5.303760504e+33 | K95: 2.653933713e+33 | L95: -2.649826791e+33
A96: 78 | B96: 281.2473995 | C96: 1.373746623e+10 | D96: -1.487085292e+11 | E96: 29665.96807 | F96: 3242.416248 | G96: 29842.63602 | H96: 1.493417043e+11 | I96: 275.2779169 | J96: -5.309374582e+33 | K96: 2.659547788e+33 | L96: -2.649826794e+33
A97: 79 | B97: 284.8999631 | C97: 2.306600772e+10 | D97: -1.473905943e+11 | E97: 29434.02741 | F97: 5108.221073 | G97: 29874.00027 | H97: 1.491845435e+11 | I97: 278.8944058 | J97: -5.314967827e+33 | K97: 2.66514103e+33 | L97: -2.649826797e+33
A98: 80 | B98: 288.5525268 | C98: 3.230270918e+10 | D98: -1.454859337e+11 | E98: 29084.00239 | F98: 6959.534251 | G98: 29905.0884 | H98: 1.490289298e+11 | I98: 282.5184874 | J98: -5.320517631e+33 | K98: 2.670690831e+33 | L98: -2.649826801e+33
A99: 81 | B99: 292.2050904 | C99: 4.141039877e+10 | D99: -1.430003158e+11 | E99: 28616.56762 | F99: 8788.779074 | G99: 29935.77425 | H99: 1.488754897e+11 | I99: 286.1500949 | J99: -5.326001281e+33 | K99: 2.676174477e+33 | L99: -2.649826804e+33
A100: 82 | B100: 295.857654 | C100: 5.035219626e+10 | D100: -1.39941901e+11 | E100: 28032.89779 | F100: 10588.37709 | G100: 29965.93212 | H100: 1.487248443e+11 | I100: 289.7891301 | J100: -5.331396058e+33 | K100: 2.681569251e+33 | L100: -2.649826807e+33
A101: 83 | B101: 299.5102177 | C101: 5.909167194e+10 | D101: -1.363212374e+11 | E101: 27334.6744 | F101: 12350.78282 | G101: 29995.43733 | H101: 1.485776075e+11 | I101: 293.4354637 | J101: -5.336679343e+33 | K101: 2.686852532e+33 | L101: -2.649826811e+33 | R101: 30264 | S101: =360+T101 -> 361.1444658 | T101: 1.144465845
A102: 84 | B102: 303.1627813 | C102: 6.759300732e+10 | D102: -1.321512441e+11 | E102: 26524.08985 | F102: 14068.51988 | G102: 30024.16683 | H102: 1.484343827e+11 | I102: 297.0889351 | J102: -5.341828724e+33 | K102: 2.692001909e+33 | L102: -2.649826815e+33 | R102: 30287 | S102: 360.2716249 | T102: 0.2716248933
A103: 85 | B103: 306.8153449 | C103: 7.582115659e+10 | D103: -1.27447184e+11 | E103: 25603.84873 | F103: 15734.2181 | G103: 30051.99976 | H103: 1.482957602e+11 | I103: 300.7493525 | J103: -5.346822106e+33 | K103: 2.696995287e+33 | L103: -2.649826818e+33 | R103: 30290 | S103: 360.1573762 | T103: 0.1573761873
A104: 86 | B104: 310.4679086 | C104: 8.37420081e+10 | D104: -1.22226624e+11 | E104: 24577.16603 | F104: 17340.65175 | G104: 30078.81801 | H104: 1.481623149e+11 | I104: 304.4164938 | J104: -5.351637828e+33 | K104: 2.701811006e+33 | L104: -2.649826822e+33 | R104: 30292 | S104: 360.081159 | T104: 0.08115899897
A105: 87 | B105: 314.1204722 | C105: 9.13225447e+10 | D105: -1.165093836e+11 | E105: 23447.7622 | F105: 18880.77815 | G105: 30104.5069 | H105: 1.480346028e+11 | I105: 308.0901069 | J105: -5.356254778e+33 | K105: 2.706427953e+33 | L105: -2.649826826e+33 | R105: 30293 | S105: 360.043035 | T105: 0.04303498222
A106: 88 | B106: 317.7730358 | C106: 9.853100209e+10 | D106: -1.103174706e+11 | E106: 22219.8549 | F106: 20347.77674 | G106: 30128.95568 | H106: 1.479131593e+11 | I106: 311.7699102 | J106: -5.360652511e+33 | K106: 2.710825681e+33 | L106: -2.64982683e+33 | R106: 30293.5 | S106: 360.0239691 | T106: 0.02396911715
A107: 89 | B107: 321.4255994 | C107: 1.053370239e+11 | D107: -1.036750053e+11 | E107: 20898.14726 | F107: 21735.08806 | G107: 30152.05817 | H107: 1.477984957e+11 | I107: 315.4555941 | J107: -5.364811361e+33 | K107: 2.714984527e+33 | L107: -2.649826834e+33 | R107: 30293.7 | S107: 360.0163421 | T107: 0.01634205108
A108: 90 | B108: 325.0781631 | C108: 1.117118127e+11 | D108: -9.660813147e+10 | E108: 19487.81258 | F108: 23036.45239 | G108: 30173.71335 | H108: 1.476910971e+11 | I108: 319.1468216 | J108: -5.368712565e+33 | K108: 2.718885727e+33 | L108: -2.649826838e+33 | R108: 30294 | S108: 360.0049007 | T108: 0.004900680517
A109: 91 | B109: 328.7307267 | C109: 1.176282754e+11 | D109: -8.914491635e+10 | E109: 17994.47554 | F109: 24245.94753 | G109: 30193.82589 | H109: 1.475914201e+11 | I109: 322.8432299 | J109: -5.372338368e+33 | K109: 2.722511525e+33 | L109: -2.649826842e+33 | R109: 30294.2 | S109: 359.9972726
A110: 92 | B110: 332.3832903 | C110: 1.230611621e+11 | D110: -8.131523783e+10 | E110: 16424.18986 | F110: 25358.02561 | G110: 30212.30669 | H110: 1.474998899e+11 | I110: 326.5444316 | J110: -5.375672139e+33 | K110: 2.725845293e+33 | L110: -2.649826847e+33 | R110: 30294.5 | S110: 359.9858297
A111: 93 | B111: 336.035854 | C111: 1.27987198e+11 | D111: -7.315066094e+10 | E111: 14783.41237 | F111: 26367.54822 | G111: 30229.07343 | H111: 1.474168988e+11 | I111: 330.2500166 | J111: -5.378698475e+33 | K111: 2.728871624e+33 | L111: -2.649826851e+33 | R111: 30300 | S111: =T111 -> 359.7758788 | T111: 359.7758788
A112: 94 | B112: 339.6884176 | C112: 1.323852055e+11 | D112: -6.468430328e+10 | E112: 13078.97386 | F112: 27269.81969 | G112: 30244.05104 | H112: 1.473428035e+11 | I112: 333.9595537 | J112: -5.3814033e+33 | K112: 2.731576444e+33 | L112: -2.649826856e+33 | R112: 30350 | S112: 357.8528942
A113: 95 | B113: 343.3409812 | C113: 1.362362177e+11 | D113: -5.595069035e+10 | E113: 11318.0466 | F113: 28060.61807 | G113: 30257.17213 | H113: 1.472779235e+11 | I113: 337.6725925 | J113: -5.383773956e+33 | K113: 2.733947095e+33 | L113: -2.649826861e+33 | R113: 30400 | S113: 355.9038933
A114: 96 | B114: 346.9935449 | C114: 1.3952358e+11 | D114: -4.698560151e+10 | E114: 9508.108847 | F114: 28736.22347 | G114: 30268.37744 | H114: 1.472225395e+11 | I114: 341.3886655 | J114: -5.385799292e+33 | K114: 2.735972426e+33 | L114: -2.649826865e+33
A115: 97 | B115: 350.6461085 | C115: 1.422330416e+11 | D115: -3.782590745e+10 | E115: 7656.906689 | F115: 29293.44331 | G115: 30277.61617 | H115: 1.471768915e+11 | I115: 345.1072904 | J115: -5.387469737e+33 | K115: 2.737642867e+33 | L115: -2.64982687e+33 | R115: =-(S115-1520.8141)/0.0383 -> 30177.91384 | S115: 365
A116: 98 | B116: 354.2986721 | C116: 1.443528327e+11 | D116: -2.850940024e+10 | E116: 5772.413338 | F116: 29729.63438 | G116: 30284.84631 | H116: 1.471411778e+11 | I116: 348.8279723 | J116: -5.388777369e+33 | K116: 2.738950493e+33 | L116: -2.649826875e+33
A117: 99 | B117: 357.9512357 | C117: 1.458737302e+11 | D117: -1.907461696e+10 | E117: 3862.786362 | F117: 30042.72119 | G117: 30290.03491 | H117: 1.471155538e+11 | I117: 352.550206 | J117: -5.389715964e+33 | K117: 2.739889083e+33 | L117: -2.649826881e+33
A118: 100 | B118: 361.6037994 | C118: 1.467891086e+11 | D118: -9560658096 | E118: 1936.323162 | F118: 30231.21054 | G118: 30293.15827 | H118: 1.471001311e+11 | I118: 356.2734788 | J118: -5.390281047e+33 | K118: 2.740454161e+33 | L118: -2.649826886e+33
A119: 101 | B119: 365.256363 | C119: 1.470949769e+11 | D119: -7002067.864 | E119: 1.415124637 | F119: 30294.20209 | G119: 30294.20212 | H119: 1.47094977e+11 | I119: 359.9972726 | J119: -5.390469918e+33 | K119: 2.740643027e+33 | L119: -2.649826891e+33
Q385: 0

Sheet VO > VO reale
A1: GRAVITAZIONE - TERRA(1) E SOLE(2)
D2: 30287 | F2: =F4/365 -> 1.445753425 | G2: anni | H2: 2 | K2: kg= costante gravitazione universale | L2: 6.67428e-11 | M2: N*m^2/kg^2 | R2: Ep | S2: =-L2*L3*L4/A4 -> -5.390469077e+33 | T2: J
A3: xterra (m) | B3: yterra (m) | C3: vx terra (m/s) | D3: vy terra (m/s) | E3: massasole (kg) | F3: tf (g) | G3: NSTEP | K3: M= massa Sole | L3: 1.9891e+30 | M3: kg | R3: Ec | S3: =0.5*L4*D4^2 -> 3.316177598e+33 | T3: J
A4: =147095000000 -> 147095000000 | B4: 0 | C4: 0 | D4: =1.1*'VO REALE'!D4 -> 33323.62 | E4: 1.9891e+30 | F4: 527.7 | G4: =200*H2 -> 400 | K4: m=massa Terra | L4: 5.9726e+24 | M4: kg | R4: Ec | S4: =SUM(S2:S3) -> -2.074291479e+33 | T4: J
C10: =MAX(C19:C385) -> 147095000000 | D10: 1.859848886e+11 | E10: 27083.8196 | F10: 33323.62 | G10: 33323.62 | H10: 2.351612757e+11 | I10: dmax | K10: E0 | L10: =0.5*L4*D4^2-L2*L3*L4/A4 -> -2.074291479e+33 | M10: J | N10: --->> ellisse | R10: =G10*3.6 -> 119965.032
C11: =MIN(C19:C385) -> -2.351610977e+11 | D11: -1.859815298e+11 | E11: -27083.83258 | F11: -20844.12895 | G11: 20844.15558 | H11: 147095000000 | I11: dmin | R11: =G11*3.6 -> 75038.96008
C12: CONCLUSIONE: SIMULAZIONE QUASI PERFETTA .AUMENTANDO GLI STEPS I RISULTATI NON CAMBIANO | L12: =0.5*L4*D4^2 -> 3.316177598e+33
R13: Semiasse
A14: MOTO TERRA ATTORNO AL SOLE" | R14: =C10-C11 -> 3.822560977e+11 | S14: m
R15: =R14/'VO REALE'!S13-1 -> 0.2774605911
A18: step | B18: t(giorni) | C18: xterra | D18: yterra | E18: vxterra | F18: vyterra | G18: vterra | H18: distanza | I18: angolo | J18: E | Q18: (x,y) sole
A19: 1 | B19: 0 | C19: 147095000000 | D19: 0 | E19: 0 | F19: 33323.62 | G19: 33323.62 | H19: 147095000000 | I19: 0 | J19: =0.5*$L$4*G19^2-$L$2*$L$3*$L$4/H19 -> -2.074291479e+33
A20: 2 | B20: 1.31925 | C20: 1.470551449e+11 | D20: 3797989783 | E20: -699.2616832 | F20: 33314.5916 | G20: 33321.92942 | H20: 1.47104182e+11 | I20: 1.479447867 | J20: =0.5*$L$4*G20^2-$L$2*$L$3*$L$4/H20 -> -2.074291479e+33
A21: 3 | B21: 2.6385 | C21: 1.469356162e+11 | D21: 7593921965 | E21: -1397.882852 | F21: 33287.52142 | G21: 33316.85998 | H21: 1.471317197e+11 | I21: 2.958526475 | J21: -2.074291479e+33
A22: 4 | B22: 3.95775 | C22: 1.467365232e+11 | D22: 1.138574237e+10 | E22: -2095.224821 | F22: 33242.45449 | G22: 33308.41856 | H22: 1.471775879e+11 | I22: 4.436867319 | J22: -2.074291479e+33
A23: 5 | B23: 5.277 | C23: 1.46458048e+11 | D23: 1.517140364e+10 | E23: -2790.652547 | F23: 33179.4656 | G23: 33296.61664 | H23: 1.472417445e+11 | I23: 5.914103394 | J23: -2.074291479e+33
A24: 6 | B24: 6.59625 | C24: 1.461004449e+11 | D24: 1.894886866e+10 | E24: -3483.536424 | F24: 33098.65904 | G24: 33281.47016 | H24: 1.473241311e+11 | I24: 7.389869935 | J24: -2.074291479e+33
A25: 7 | B25: 7.9155 | C25: 1.456640391e+11 | D25: 2.271611382e+10 | E25: -4173.25404 | F25: 33000.16805 | G25: 33262.99958 | H25: 1.474246727e+11 | I25: 8.863805152 | J25: -2.074291479e+33
A26: 8 | B26: 9.23475 | C26: 1.451492268e+11 | D26: 2.647113235e+10 | E26: -4859.191892 | F26: 32884.15432 | G26: 33241.22968 | H26: 1.47543278e+11 | I26: 10.33555094 | J26: -2.074291479e+33
A27: 9 | B27: 10.554 | C27: 1.445564732e+11 | D27: 3.021193747e+10 | E27: -5540.747039 | F27: 32750.80719 | G27: 33216.18957 | H27: 1.476798399e+11 | I27: 11.80475356 | J27: -2.074291479e+33
A28: 10 | B28: 11.87325 | C28: 1.438863116e+11 | D28: 3.393656555e+10 | E28: -6217.328692 | F28: 32600.34293 | G28: 33187.91248 | H28: 1.478342354e+11 | I28: 13.27106436 | J28: -2.074291479e+33
A29: 11 | B29: 13.1925 | C29: 1.43139342e+11 | D29: 3.764307908e+10 | E29: -6888.359734 | F29: 32433.00373 | G29: 33156.43573 | H29: 1.480063264e+11 | I29: 14.73414035 | J29: -2.074291479e+33
A30: 12 | B30: 14.51175 | C30: 1.423162293e+11 | D30: 4.132956959e+10 | E30: -7553.278148 | F30: 32249.0567 | G30: 33121.80051 | H30: 1.481959596e+11 | I30: 16.1936449 | J30: -2.07429148e+33
A31: 13 | B31: 15.831 | C31: 1.414177014e+11 | D31: 4.499416044e+10 | E31: -8211.538359 | F31: 32048.79279 | G31: 33084.05177 | H31: 1.484029674e+11 | I31: 17.64924826 | J31: -2.07429148e+33
A32: 14 | B32: 17.15025 | C32: 1.404445475e+11 | D32: 4.863500942e+10 | E32: -8862.612482 | F32: 31832.52551 | G32: 33043.23804 | H32: 1.48627168e+11 | I32: 19.10062816 | J32: -2.07429148e+33
A33: 15 | B33: 18.4695 | C33: 1.39397616e+11 | D33: 5.225031132e+10 | E33: -9505.991458 | F33: 31600.58973 | G33: 32999.41128 | H33: 1.488683659e+11 | I33: 20.54747033 | J33: -2.07429148e+33
A34: 16 | B34: 19.78875 | C34: 1.382778119e+11 | D34: 5.583830022e+10 | E34: -10141.18609 | F34: 31353.34029 | G34: 32952.62664 | H34: 1.491263526e+11 | I34: 21.98946896 | J34: -2.07429148e+33
A35: 17 | B35: 21.108 | C35: 1.370860951e+11 | D35: 5.939725174e+10 | E35: -10767.72799 | F35: 31091.15065 | G35: 32902.94234 | H35: 1.494009069e+11 | I35: 23.42632715 | J35: -2.07429148e+33
A36: 18 | B36: 22.42725 | C36: 1.358234775e+11 | D36: 6.292548506e+10 | E36: -11385.17033 | F36: 30814.41144 | G36: 32850.41942 | H36: 1.496917957e+11 | I36: 24.85775736 | J36: -2.07429148e+33
A37: 19 | B37: 23.7465 | C37: 1.344910207e+11 | D37: 6.642136479e+10 | E37: -11993.08862 | F37: 30523.529 | G37: 32795.12155 | H37: 1.499987745e+11 | I37: 26.28348169 | J37: -2.07429148e+33
A38: 20 | B38: 25.06575 | C38: 1.330898334e+11 | D38: 6.988330267e+10 | E38: -12591.08123 | F38: 30218.92387 | G38: 32737.11482 | H38: 1.503215877e+11 | I38: 27.70323231 | J38: -2.07429148e+33
A39: 21 | B39: 26.385 | C39: 1.316210687e+11 | D39: 7.330975912e+10 | E39: -13178.76988 | F39: 29901.02934 | G39: 32676.46754 | H39: 1.506599699e+11 | I39: 29.11675164 | J39: -2.07429148e+33
A40: 22 | B40: 27.70425 | C40: 1.300859217e+11 | D40: 7.669924462e+10 | E40: -13755.80002 | F40: 29570.28988 | G40: 32613.25004 | H40: 1.510136455e+11 | I40: 30.52379268 | J40: -2.07429148e+33
A41: 23 | B41: 29.0235 | C41: 1.284856261e+11 | D41: 8.005032085e+10 | E41: -14321.84102 | F41: 29227.15971 | G41: 32547.53439 | H41: 1.513823305e+11 | I41: 31.92411915 | J41: -2.07429148e+33
A42: 24 | B42: 30.34275 | C42: 1.268214523e+11 | D42: 8.336160177e+10 | E42: -14876.58638 | F42: 28872.10127 | G42: 32479.39429 | H42: 1.51765732e+11 | I42: 33.31750568 | J42: -2.074291481e+33
A43: 25 | B43: 31.662 | C43: 1.250947042e+11 | D43: 8.663175443e+10 | E43: -15419.7537 | F43: 28505.58376 | G43: 32408.90478 | H43: 1.521635498e+11 | I43: 34.70373795 | J43: -2.074291481e+33
A44: 26 | B44: 32.98125 | C44: 1.233067164e+11 | D44: 8.985949971e+10 | E44: -15951.08466 | F44: 28128.08174 | G44: 32336.14207 | H44: 1.525754764e+11 | I44: 36.08261271 | J44: -2.074291481e+33
A45: 27 | B45: 34.3005 | C45: 1.214588515e+11 | D45: 9.304361278e+10 | E45: -16470.34488 | F45: 27740.0737 | G45: 32261.18332 | H45: 1.530011977e+11 | I45: 37.45393791 | J45: -2.074291481e+33
A46: 28 | B46: 35.61975 | C46: 1.195524978e+11 | D46: 9.618292354e+10 | E46: -16977.32361 | F46: 27342.04074 | G46: 32184.10646 | H46: 1.53440394e+11 | I46: 38.81753264 | J46: -2.074291481e+33
A47: 29 | B47: 36.939 | C47: 1.17589066e+11 | D47: 9.92763168e+10 | E47: -17471.83347 | F47: 26934.46524 | G47: 32104.98999 | H47: 1.538927403e+11 | I47: 40.17322715 | J47: -2.074291481e+33
A48: 30 | B48: 38.25825 | C48: 1.155699868e+11 | D48: 1.023227324e+11 | E48: -17953.71001 | F48: 26517.82961 | G48: 32023.91279 | H48: 1.543579069e+11 | I48: 41.5208628 | J48: -2.074291481e+33
A49: 31 | B49: 39.5775 | C49: 1.134967087e+11 | D49: 1.05321165e+11 | E49: -18422.81127 | F49: 26092.61512 | G49: 31940.95394 | H49: 1.548355602e+11 | I49: 42.86029192 | J49: -2.074291481e+33
A50: 32 | B50: 40.89675 | C50: 1.113706949e+11 | D50: 1.082706641e+11 | E50: -18879.01719 | F50: 25659.30075 | G50: 31856.19257 | H50: 1.55325363e+11 | I50: 44.19137777 | J50: -2.074291481e+33
A51: 33 | B51: 42.216 | C51: 1.091934209e+11 | D51: 1.111703337e+11 | E51: -19322.22907 | F51: 25218.36212 | G51: 31769.70765 | H51: 1.558269754e+11 | I51: 45.51399434 | J51: -2.074291481e+33
A52: 34 | B52: 43.53525 | C52: 1.069663726e+11 | D52: 1.140193316e+11 | E52: -19752.36891 | F52: 24770.2705 | G52: 31681.5779 | H52: 1.563400551e+11 | I52: 46.8280262 | J52: -2.074291481e+33
A53: 35 | B53: 44.8545 | C53: 1.046910434e+11 | D53: 1.16816869e+11 | E53: -20169.37871 | F53: 24315.49186 | G53: 31591.88158 | H53: 1.568642581e+11 | I53: 48.13336835 | J53: -2.074291482e+33
A54: 36 | B54: 46.17375 | C54: 1.023689323e+11 | D54: 1.195622101e+11 | E54: -20573.21974 | F54: 23854.486 | G54: 31500.69638 | H54: 1.573992389e+11 | I54: 49.42992596 | J54: -2.074291482e+33
A55: 37 | B55: 47.493 | C55: 1.000015417e+11 | D55: 1.22254671e+11 | E55: -20963.87182 | F55: 23387.70576 | G55: 31408.09931 | H55: 1.579446514e+11 | I55: 50.71761417 | J55: -2.074291482e+33
A56: 38 | B56: 48.81225 | C56: 9.759037513e+10 | D56: 1.248936187e+11 | E56: -21341.33248 | F56: 22915.59632 | G56: 31314.16655 | H56: 1.585001493e+11 | I56: 51.99635784 | J56: -2.074291482e+33
A57: 39 | B57: 50.1315 | C57: 9.513693561e+10 | D57: 1.274784711e+11 | E57: -21705.61621 | F57: 22438.59445 | G57: 31218.97333 | H57: 1.590653862e+11 | I57: 53.26609129 | J57: -2.074291482e+33
A58: 40 | B58: 51.45075 | C58: 9.264272346e+10 | D58: 1.300086947e+11 | E58: -22056.75361 | F58: 21957.128 | G58: 31122.59388 | H58: 1.596400166e+11 | I58: 54.52675805 | J58: -2.074291482e+33
A59: 41 | B59: 52.77 | C59: 9.010923466e+10 | D59: 1.324838048e+11 | E59: -22394.79054 | F59: 21471.61534 | G59: 31025.10127 | H59: 1.602236958e+11 | I59: 55.77831054 | J59: -2.074291482e+33
A60: 42 | B60: 54.08925 | C60: 8.753795915e+10 | D60: 1.349033634e+11 | E60: -22719.78737 | F60: 20982.46487 | G60: 30926.56738 | H60: 1.608160805e+11 | I60: 57.02070982 | J60: -2.074291482e+33
A61: 43 | B61: 55.4085 | C61: 8.493037919e+10 | D61: 1.372669787e+11 | E61: -23031.81804 | F61: 20490.07463 | G61: 30827.0628 | H61: 1.614168292e+11 | I61: 58.25392527 | J61: -2.074291482e+33
A62: 44 | B62: 56.72775 | C62: 8.228796788e+10 | D62: 1.395743035e+11 | E62: -23330.96931 | F62: 19994.83197 | G62: 30726.65674 | H62: 1.620256025e+11 | I62: 59.4779343 | J62: -2.074291482e+33
A63: 45 | B63: 58.047 | C63: 7.961218773e+10 | D63: 1.418250345e+11 | E63: -23617.3399 | F63: 19497.11323 | G63: 30625.41703 | H63: 1.626420635e+11 | I63: 60.69272202 | J63: -2.074291482e+33
A64: 46 | B64: 59.36625 | C64: 7.690448936e+10 | D64: 1.440189101e+11 | E64: -23891.03967 | F64: 18997.28353 | G64: 30523.41 | H64: 1.632658781e+11 | I64: 61.89828096 | J64: -2.074291482e+33
A65: 47 | B65: 60.6855 | C65: 7.416631029e+10 | D65: 1.4615571e+11 | E65: -24152.18888 | F65: 18495.69655 | G65: 30420.70049 | H65: 1.638967149e+11 | I65: 63.09461075 | J65: -2.074291482e+33
A66: 48 | B66: 62.00475 | C66: 7.139907375e+10 | D66: 1.482352537e+11 | E66: -24400.9173 | F66: 17992.69444 | G66: 30317.35177 | H66: 1.645342462e+11 | I66: 64.28171781 | J66: -2.074291482e+33
A67: 49 | B67: 63.324 | C67: 6.860418769e+10 | D67: 1.502573986e+11 | E67: -24637.36358 | F67: 17488.60767 | G67: 30213.42554 | H67: 1.651781475e+11 | I67: 65.45961501 | J67: -2.074291482e+33
A68: 50 | B68: 64.64325 | C68: 6.578304377e+10 | D68: 1.522220395e+11 | E68: -24861.67439 | F68: 16983.75505 | G68: 30108.98187 | H68: 1.658280982e+11 | I68: 66.62832142 | J68: -2.074291483e+33
A69: 51 | B69: 65.9625 | C69: 6.293701652e+10 | D69: 1.541291067e+11 | E69: -25074.00377 | F69: 16478.44367 | G69: 30004.07924 | H69: 1.664837817e+11 | I69: 67.78786196 | J69: -2.074291483e+33
A70: 52 | B70: 67.28175 | C70: 6.006746253e+10 | D70: 1.559785648e+11 | E70: -25274.51241 | F70: 15972.96893 | G70: 29898.77445 | H70: 1.671448854e+11 | I70: 68.93826712 | J70: -2.074291483e+33
A71: 53 | B71: 68.601 | C71: 5.717571972e+10 | D71: 1.577704115e+11 | E71: -25463.36697 | F71: 15467.61462 | G71: 29793.12269 | H71: 1.678111012e+11 | I71: 70.07957266 | J71: -2.074291483e+33
A72: 54 | B72: 69.92025 | C72: 5.426310669e+10 | D72: 1.595046761e+11 | E72: -25640.73947 | F72: 14962.65303 | G72: 29687.17747 | H72: 1.684821251e+11 | I72: 71.21181932 | J72: -2.074291483e+33
A73: 55 | B73: 71.2395 | C73: 5.13309222e+10 | D73: 1.611814185e+11 | E73: -25806.80664 | F73: 14458.345 | G73: 29580.99067 | H73: 1.691576579e+11 | I73: 72.33505253 | J73: -2.074291483e+33
A74: 56 | B74: 72.55875 | C74: 4.838044457e+10 | D74: 1.628007273e+11 | E74: -25961.74934 | F74: 13954.94014 | G74: 29474.61252 | H74: 1.698374053e+11 | I74: 73.44932215 | J74: -2.074291483e+33
A75: 57 | B75: 73.878 | C75: 4.541293133e+10 | D75: 1.643627193e+11 | E75: -26105.75199 | F75: 13452.67697 | G75: 29368.09161 | H75: 1.705210774e+11 | I75: 74.55468218 | J75: -2.074291483e+33
A76: 58 | B76: 75.19725 | C76: 4.242961881e+10 | D76: 1.658675377e+11 | E76: -26239.00206 | F76: 12951.7831 | G76: 29261.47492 | H76: 1.712083895e+11 | I76: 75.65119051 | J76: -2.074291483e+33
A77: 59 | B77: 76.5165 | C77: 3.943172182e+10 | D77: 1.67315351e+11 | E77: -26361.68953 | F77: 12452.47542 | G77: 29154.80782 | H77: 1.718990615e+11 | I77: 76.73890865 | J77: -2.074291483e+33
A78: 60 | B78: 77.83575 | C78: 3.642043338e+10 | D78: 1.687063518e+11 | E78: -26474.00644 | F78: 11954.96038 | G78: 29048.1341 | H78: 1.725928188e+11 | I78: 77.81790152 | J78: -2.074291483e+33
A79: 61 | B79: 79.155 | C79: 3.339692455e+10 | D79: 1.700407558e+11 | E79: -26576.14642 | F79: 11459.43418 | G79: 28941.49599 | H79: 1.732893915e+11 | I79: 78.88823715 | J79: -2.074291483e+33
A80: 62 | B80: 80.47425 | C80: 3.036234423e+10 | D80: 1.713188004e+11 | E80: -26668.30427 | F80: 10966.08301 | G80: 28834.93418 | H80: 1.739885149e+11 | I80: 79.94998652 | J80: -2.074291483e+33
A81: 63 | B81: 81.7935 | C81: 2.731781907e+10 | D81: 1.725407437e+11 | E81: -26750.67554 | F81: 10475.08334 | G81: 28728.48783 | H81: 1.746899295e+11 | I81: 81.00322328 | J81: -2.074291483e+33
A82: 64 | B82: 83.11275 | C82: 2.426445342e+10 | D82: 1.737068632e+11 | E82: -26823.45623 | F82: 9986.60217 | G82: 28622.19465 | H82: 1.753933808e+11 | I82: 82.04802357 | J82: -2.074291483e+33
A83: 65 | B83: 84.432 | C83: 2.120332926e+10 | D83: 1.748174551e+11 | E83: -26886.84232 | F83: 9500.797287 | G83: 28516.09088 | H83: 1.760986195e+11 | I83: 83.08446579 | J83: -2.074291483e+33
A84: 66 | B84: 85.75125 | C84: 1.813550627e+10 | D84: 1.758728331e+11 | E84: -26941.02957 | F84: 9017.817561 | G84: 28410.21133 | H84: 1.768054015e+11 | I84: 84.11263043 | J84: =0.5*$L$4*G84^2-$L$2*$L$3*$L$4/H84 -> -2.074291483e+33
A85: 67 | B85: 87.0705 | C85: 1.506202183e+10 | D85: 1.768733272e+11 | E85: -26986.21313 | F85: 8537.803217 | G85: 28304.58943 | H85: 1.775134879e+11 | I85: 85.13259987 | J85: -2.074291483e+33
A86: 68 | B86: 88.38975 | C86: 1.198389113e+10 | D86: 1.77819283e+11 | E86: -27022.58732 | F86: 8060.886113 | G86: 28199.25726 | H86: 1.782226446e+11 | I86: 86.1444582 | J86: -2.074291483e+33
A87: 69 | B87: 89.709 | C87: 8902107252 | D87: 1.787110608e+11 | E87: -27050.34531 | F87: 7587.190023 | G87: 28094.24556 | H87: 1.789326431e+11 | I87: 87.14829103 | J87: -2.074291483e+33
A88: 70 | B88: 91.02825 | C88: 5817641366 | D88: 1.795490342e+11 | E88: -27069.67896 | F88: 7116.830923 | G88: 27989.5838 | H88: 1.796432594e+11 | I88: 88.14418537 | J88: -2.074291483e+33
A89: 71 | B89: 92.3475 | C89: 2731442840 | D89: 1.8033359e+11 | E89: -27080.77854 | F89: 6649.917268 | G89: 27885.30018 | H89: 1.803542749e+11 | I89: 89.13222943 | J89: -2.074291483e+33
A90: 72 | B90: 93.66675 | C90: -355560541.4 | D90: 1.810651267e+11 | E90: -27083.83258 | F90: 6186.550273 | G90: 27781.42169 | H90: 1.810654758e+11 | I90: 90.1125125 | J90: -2.074291483e+33
A91: 73 | B91: 94.986 | C91: -3442462374 | D91: 1.817440539e+11 | E91: -27079.02764 | F91: 5726.824187 | G91: 27677.97415 | H91: 1.817766533e+11 | I91: 91.0851248 | J91: -2.074291483e+33
A92: 74 | B92: 96.30525 | C92: -6528377400 | D92: 1.823707918e+11 | E92: -27066.54821 | F92: 5270.826568 | G92: 27574.98222 | H92: 1.824876035e+11 | I92: 92.05015735 | J92: -2.074291483e+33
A93: 75 | B93: 97.6245 | C93: -9612441264 | D93: 1.8294577e+11 | E93: -27046.57649 | F93: 4818.638553 | G93: 27472.46945 | H93: 1.831981272e+11 | I93: 93.00770182 | J93: -2.074291483e+33
A94: 76 | B94: 98.94375 | C94: -1.269381024e+10 | D94: 1.834694271e+11 | E94: -27019.29235 | F94: 4370.335118 | G94: 27370.45831 | H94: 1.8390803e+11 | I94: 93.95785048 | J94: -2.074291483e+33
A95: 77 | B95: 100.263 | C95: -1.577166098e+10 | D95: 1.839422098e+11 | E95: -26984.87312 | F95: 3925.985341 | G95: 27268.97024 | H95: 1.846171223e+11 | I95: 94.90069599 | J95: -2.074291483e+33
A96: 78 | B96: 101.58225 | C96: -1.884519017e+10 | D96: 1.843645725e+11 | E96: -26943.49355 | F96: 3485.652653 | G96: 27168.02568 | H96: 1.85325219e+11 | I96: 95.83633137 | J96: -2.074291484e+33
A97: 79 | B97: 102.9015 | C97: -2.191361429e+10 | D97: 1.847369764e+11 | E97: -26895.32572 | F97: 3049.395092 | G97: 27067.64408 | H97: 1.860321395e+11 | I97: 96.76484988 | J97: -2.074291484e+33
A98: 80 | B98: 104.22075 | C98: -2.497616927e+10 | D98: 1.85059889e+11 | E98: -26840.53891 | F98: 2617.265536 | G98: 26967.84396 | H98: 1.867377079e+11 | I98: 97.68634491 | J98: -2.074291484e+33
A99: 81 | B99: 105.54 | C99: -2.803211016e+10 | D99: 1.853337836e+11 | E99: -26779.2996 | F99: 2189.311947 | G99: 26868.64294 | H99: 1.874417524e+11 | I99: 98.60090992 | J99: -2.074291484e+33
A100: 82 | B100: 106.85925 | C100: -3.108071085e+10 | D100: 1.855591388e+11 | E100: -26711.77136 | F100: 1765.577596 | G100: 26770.05778 | H100: 1.881441059e+11 | I100: 99.50863832 | J100: -2.074291484e+33
A101: 83 | B101: 108.1785 | C101: -3.412126368e+10 | D101: 1.857364378e+11 | E101: -26638.11484 | F101: 1346.10129 | G101: 26672.10436 | H101: 1.888446053e+11 | I101: 100.4096234 | J101: -2.074291484e+33 | R101: 30264 | S101: =360+T101 -> 361.1444658 | T101: 1.144465845
A102: 84 | B102: 109.49775 | C102: -3.715307915e+10 | D102: 1.858661678e+11 | E102: -26558.48774 | F102: 930.9175818 | G102: 26574.7978 | H102: 1.895430917e+11 | I102: 101.3039584 | J102: -2.074291484e+33 | R102: 30287 | S102: 360.2716249 | T102: 0.2716248933
A103: 85 | B103: 110.817 | C103: -4.017548555e+10 | D103: 1.8594882e+11 | E103: -26473.04471 | F103: 520.0569868 | G103: 26478.15242 | H103: 1.902394104e+11 | I103: 102.1917362 | J103: -2.074291484e+33 | R103: 30290 | S103: 360.1573762 | T103: 0.1573761873
A104: 86 | B104: 112.13625 | C104: -4.318782864e+10 | D104: 1.859848886e+11 | E104: -26381.93744 | F104: 113.5461808 | G104: 26382.18179 | H104: 1.909334107e+11 | I104: 103.0730493 | J104: -2.074291484e+33 | R104: 30292 | S104: 360.081159 | T104: 0.08115899897
A105: 87 | B105: 113.4555 | C105: -4.618947129e+10 | D105: 1.859748708e+11 | E105: -26285.31456 | F105: -288.5918015 | G105: 26286.89877 | H105: 1.916249458e+11 | I105: 103.94799 | J105: -2.074291484e+33 | R105: 30293 | S105: 360.043035 | T105: 0.04303498222
A106: 88 | B106: 114.77475 | C106: -4.917979314e+10 | D106: 1.859192662e+11 | E106: -26183.32167 | F106: -686.3373781 | G106: 26192.31553 | H106: 1.923138727e+11 | I106: 104.8166501 | J106: -2.074291484e+33 | R106: 30293.5 | S106: 360.0239691 | T106: 0.02396911715
A107: 89 | B107: 116.094 | C107: -5.215819026e+10 | D107: 1.858185765e+11 | E107: -26076.10133 | F107: -1079.674237 | G107: 26098.44357 | H107: 1.930000523e+11 | I107: 105.6791211 | J107: -2.074291484e+33 | R107: 30293.7 | S107: 360.0163421 | T107: 0.01634205108
A108: 90 | B108: 117.41325 | C108: -5.512407478e+10 | D108: 1.856733048e+11 | E108: -25963.79307 | F108: -1468.589158 | G108: 26005.29378 | H108: 1.936833492e+11 | I108: 106.5354936 | J108: -2.074291484e+33 | R108: 30294 | S108: 360.0049007 | T108: 0.004900680517
A109: 91 | B109: 118.7325 | C109: -5.807687457e+10 | D109: 1.854839559e+11 | E109: -25846.5334 | F109: -1853.071849 | G109: 25912.87642 | H109: 1.943636315e+11 | I109: 107.3858581 | J109: -2.074291484e+33 | R109: 30294.2 | S109: 359.9972726
A110: 92 | B110: 120.05175 | C110: -6.10160329e+10 | D110: 1.852510354e+11 | E110: -25724.45584 | F110: -2233.114775 | G110: 25821.20117 | H110: 1.950407711e+11 | I110: 108.2303043 | J110: -2.074291484e+33 | R110: 30294.5 | S110: 359.9858297
A111: 93 | B111: 121.371 | C111: -6.394100807e+10 | D111: 1.849750496e+11 | E111: -25597.69089 | F111: -2608.713008 | G111: 25730.27716 | H111: 1.95714643e+11 | I111: 109.0689212 | J111: -2.074291484e+33 | R111: 30300 | S111: =T111 -> 359.7758788 | T111: 359.7758788
A112: 94 | B112: 122.69025 | C112: -6.68512731e+10 | D112: 1.846565054e+11 | E112: -25466.36613 | F112: -2979.864073 | G112: 25640.11299 | H112: 1.96385126e+11 | I112: 109.9017972 | J112: -2.074291484e+33 | R112: 30350 | S112: 357.8528942
A113: 95 | B113: 124.0095 | C113: -6.974631537e+10 | D113: 1.842959097e+11 | E113: -25330.60618 | F113: -3346.567803 | G113: 25550.71673 | H113: 1.970521019e+11 | I113: 110.7290202 | J113: -2.074291484e+33 | R113: 30400 | S113: 355.9038933
A114: 96 | B114: 125.32875 | C114: -7.262563631e+10 | D114: 1.838937693e+11 | E114: -25190.53276 | F114: -3708.826205 | G114: 25462.096 | H114: 1.977154558e+11 | I114: 111.5506771 | J114: -2.074291484e+33
A115: 97 | B115: 126.648 | C115: -7.548875107e+10 | D115: 1.834505907e+11 | E115: -25046.26472 | F115: -4066.64332 | G115: 25374.25791 | H115: 1.98375076e+11 | I115: 112.3668543 | J115: -2.074291484e+33
A116: 98 | B116: 127.96725 | C116: -7.833518815e+10 | D116: 1.829668798e+11 | E116: -24897.91808 | F116: -4420.025104 | G116: 25287.20915 | H116: 1.990308539e+11 | I116: 113.1776373 | J116: -2.074291484e+33
A117: 99 | B117: 129.2865 | C117: -8.116448916e+10 | D117: 1.824431417e+11 | E117: -24745.60607 | F117: -4768.9793 | G117: 25200.956 | H117: 1.996826839e+11 | I117: 113.9831109 | J117: -2.074291484e+33
A118: 100 | B118: 130.60575 | C118: -8.397620842e+10 | D118: 1.818798806e+11 | E118: -24589.43914 | F118: -5113.515323 | G118: 25115.50429 | H118: 2.003304634e+11 | I118: 114.783359 | J118: -2.074291484e+33
A119: 101 | B119: 131.925 | C119: -8.676991271e+10 | D119: 1.812775995e+11 | E119: -24429.52504 | F119: -5453.644153 | G119: 25030.85952 | H119: 2.009740924e+11 | I119: 115.5784649 | J119: -2.074291484e+33
A120: 102 | B120: 133.24425 | C120: -8.954518092e+10 | D120: 1.806368e+11 | E120: -24265.96886 | F120: -5789.378222 | G120: 24947.02677 | H120: 2.016134741e+11 | I120: 116.3685109 | J120: -2.074291484e+33
A121: 103 | B121: 134.5635 | C121: -9.230160379e+10 | D121: 1.799579822e+11 | E121: -24098.87304 | F121: -6120.731318 | G121: 24864.01081 | H121: 2.02248514e+11 | I121: 117.1535786 | J121: -2.074291484e+33
A122: 104 | B122: 135.88275 | C122: -9.503878356e+10 | D122: 1.792416448e+11 | E122: -23928.33745 | F122: -6447.718487 | G122: 24781.81605 | H122: 2.028791207e+11 | I122: 117.9337486 | J122: -2.074291484e+33
A123: 105 | B123: 137.202 | C123: -9.775633374e+10 | D123: 1.784882843e+11 | E123: -23754.45943 | F123: -6770.355938 | G123: 24700.4466 | H123: 2.035052049e+11 | I123: 118.7091009 | J123: -2.074291484e+33
A124: 106 | B124: 138.52125 | C124: -1.004538788e+11 | D124: 1.776983957e+11 | E124: -23577.33382 | F124: -7088.660961 | G124: 24619.90626 | H124: 2.041266803e+11 | I124: 119.4797144 | J124: -2.074291484e+33
A125: 107 | B125: 139.8405 | C125: -1.031310538e+11 | D125: 1.768724717e+11 | E125: -23397.05302 | F125: -7402.651835 | G125: 24540.19854 | H125: 2.047434627e+11 | I125: 120.2456673 | J125: -2.074291484e+33
A126: 108 | B126: 141.15975 | C126: -1.057875043e+11 | D126: 1.76011003e+11 | E126: -23213.70705 | F126: -7712.347757 | G126: 24461.32668 | H126: 2.053554704e+11 | I126: 121.0070369 | J126: -2.074291484e+33
A127: 109 | B127: 142.479 | C127: -1.084228859e+11 | D127: 1.75114478e+11 | E127: -23027.38358 | F127: -8017.768761 | G127: 24383.29368 | H127: 2.059626242e+11 | I127: 121.7638997 | J127: -2.074291484e+33
A128: 110 | B128: 143.79825 | C128: -1.110368641e+11 | D128: 1.741833828e+11 | E128: -22838.16799 | F128: -8318.935646 | G128: 24306.10227 | H128: 2.06564847e+11 | I128: 122.5163312 | J128: -2.074291484e+33
A129: 111 | B129: 145.1175 | C129: -1.136291141e+11 | D129: 1.73218201e+11 | E129: -22646.14339 | F129: -8615.869911 | G129: 24229.75495 | H129: 2.071620639e+11 | I129: 123.2644063 | J129: -2.074291484e+33
A130: 112 | B130: 146.43675 | C130: -1.161993202e+11 | D130: 1.722194139e+11 | E130: -22451.39073 | F130: -8908.593685 | G130: 24154.25402 | H130: 2.077542022e+11 | I130: 124.0081986 | J130: -2.074291484e+33
A131: 113 | B131: 147.756 | C131: -1.187471762e+11 | D131: 1.711875001e+11 | E131: -22253.98878 | F131: -9197.129669 | G131: 24079.60155 | H131: 2.083411914e+11 | I131: 124.7477814 | J131: -2.074291484e+33
A132: 114 | B132: 149.07525 | C132: -1.212723842e+11 | D132: 1.701229356e+11 | E132: -22054.01423 | F132: -9481.501078 | G132: 24005.79943 | H132: 2.089229628e+11 | I132: 125.4832268 | J132: -2.074291484e+33
A133: 115 | B133: 150.3945 | C133: -1.237746555e+11 | D133: 1.690261938e+11 | E133: -21851.54169 | F133: -9761.731581 | G133: 23932.84935 | H133: 2.094994499e+11 | I133: 126.2146061 | J133: -2.074291484e+33
A134: 116 | B134: 151.71375 | C134: -1.262537094e+11 | D134: 1.678977452e+11 | E134: -21646.64381 | F134: -10037.84525 | G134: 23860.75283 | H134: 2.100705881e+11 | I134: 126.9419898 | J134: -2.074291484e+33
A135: 117 | B135: 153.033 | C135: -1.287092735e+11 | D135: 1.667380578e+11 | E135: -21439.39123 | F135: -10309.86652 | G135: 23789.51122 | H135: 2.106363145e+11 | I135: 127.6654476 | J135: -2.074291484e+33
A136: 118 | B136: 154.35225 | C136: -1.311410833e+11 | D136: 1.655475966e+11 | E136: -21229.85272 | F136: -10577.82012 | G136: 23719.12572 | H136: 2.111965683e+11 | I136: 128.3850483 | J136: -2.074291484e+33
A137: 119 | B137: 155.6715 | C137: -1.335488823e+11 | D137: 1.643268238e+11 | E137: -21018.09516 | F137: -10841.73105 | G137: 23649.59738 | H137: 2.117512904e+11 | I137: 129.1008599 | J137: -2.074291484e+33
A138: 120 | B138: 156.99075 | C138: -1.35932421e+11 | D138: 1.630761988e+11 | E138: -20804.18363 | F138: -11101.62452 | G138: 23580.92711 | H138: 2.123004232e+11 | I138: 129.8129496 | J138: -2.074291484e+33
A139: 121 | B139: 158.31 | C139: -1.382914577e+11 | D139: 1.617961781e+11 | E139: -20588.18141 | F139: -11357.52593 | G139: 23513.11568 | H139: 2.128439112e+11 | I139: 130.5213838 | J139: -2.074291484e+33
A140: 122 | B140: 159.62925 | C140: -1.406257575e+11 | D140: 1.604872152e+11 | E140: -20370.15008 | F140: -11609.46082 | G140: 23446.16376 | H140: 2.133817001e+11 | I140: 131.2262282 | J140: -2.074291484e+33
A141: 123 | B141: 160.9485 | C141: -1.429350926e+11 | D141: 1.591497609e+11 | E141: -20150.14952 | F141: -11857.45484 | G141: 23380.07188 | H141: 2.139137375e+11 | I141: 131.9275474 | J141: -2.074291484e+33
A142: 124 | B142: 162.26775 | C142: -1.452192419e+11 | D142: 1.577842627e+11 | E142: -19928.23797 | F142: -12101.53369 | G142: 23314.84047 | H142: 2.144399725e+11 | I142: 132.6254056 | J142: -2.074291484e+33
A143: 125 | B143: 163.587 | C143: -1.474779908e+11 | D143: 1.563911656e+11 | E143: -19704.47206 | F143: -12341.72313 | G143: 23250.46987 | H143: 2.149603555e+11 | I143: 133.319866 | J143: -2.074291484e+33
A144: 126 | B144: 164.90625 | C144: -1.497111311e+11 | D144: 1.549709113e+11 | E144: -19478.90687 | F144: -12578.04894 | G144: 23186.9603 | H144: 2.154748388e+11 | I144: 134.010991 | J144: -2.074291484e+33
A145: 127 | B145: 166.2255 | C145: -1.519184608e+11 | D145: 1.535239389e+11 | E145: -19251.59596 | F145: -12810.53686 | G145: 23124.31192 | H145: 2.159833756e+11 | I145: 134.6988425 | J145: -2.074291484e+33
A146: 128 | B146: 167.54475 | C146: -1.540997838e+11 | D146: 1.520506842e+11 | E146: -19022.59143 | F146: -13039.2126 | G146: 23062.52479 | H146: 2.164859209e+11 | I146: 135.3834814 | J146: -2.074291484e+33
A147: 129 | B147: 168.864 | C147: -1.562549101e+11 | D147: 1.505515804e+11 | E147: -18791.9439 | F147: -13264.10178 | G147: 23001.59889 | H147: 2.169824308e+11 | I147: 136.064968 | J147: -2.074291484e+33
A148: 130 | B148: 170.18325 | C148: -1.583836551e+11 | D148: 1.490270575e+11 | E148: -18559.70264 | F148: -13485.22996 | G148: 22941.53415 | H148: 2.174728628e+11 | I148: 136.7433618 | J148: =0.5*$L$4*G148^2-$L$2*$L$3*$L$4/H148 -> -2.074291484e+33
A149: 131 | B149: 171.5025 | C149: -1.604858399e+11 | D149: 1.47477543e+11 | E149: -18325.91553 | F149: -13702.62255 | G149: 22882.3304 | H149: 2.179571758e+11 | I149: 137.4187217 | J149: -2.074291484e+33
A150: 132 | B150: 172.82175 | C150: -1.625612911e+11 | D150: 1.45903461e+11 | E150: -18090.62912 | F150: -13916.30485 | G150: 22823.98744 | H150: 2.184353298e+11 | I150: 138.0911058 | J150: -2.074291484e+33
A151: 133 | B151: 174.141 | C151: -1.646098403e+11 | D151: 1.443052331e+11 | E151: -17853.8887 | F151: -14126.30198 | G151: 22766.50499 | H151: 2.189072859e+11 | I151: 138.7605716 | J151: -2.074291484e+33
A152: 134 | B152: 175.46025 | C152: -1.666313243e+11 | D152: 1.426832778e+11 | E152: -17615.73828 | F152: -14332.63892 | G152: 22709.88273 | H152: 2.193730065e+11 | I152: 139.4271759 | J152: -2.074291484e+33
A153: 135 | B153: 176.7795 | C153: -1.686255848e+11 | D153: 1.410380111e+11 | E153: -17376.22067 | F153: -14535.34043 | G153: 22654.12029 | H153: 2.198324553e+11 | I153: 140.0909748 | J153: -2.074291484e+33
A154: 136 | B154: 178.09875 | C154: -1.705924684e+11 | D154: 1.393698458e+11 | E154: -17135.37749 | F154: -14734.43106 | G154: 22599.21725 | H154: 2.202855969e+11 | I154: 140.7520236 | J154: -2.074291484e+33
A155: 137 | B155: 179.418 | C155: -1.725318263e+11 | D155: 1.376791922e+11 | E155: -16893.24921 | F155: -14929.93516 | G155: 22545.17316 | H155: 2.207323969e+11 | I155: 141.4103774 | J155: -2.074291484e+33
A156: 138 | B156: 180.73725 | C156: -1.744435142e+11 | D156: 1.359664576e+11 | E156: -16649.87519 | F156: -15121.87682 | G156: 22491.98752 | H156: 2.211728221e+11 | I156: 142.0660901 | J156: -2.074291484e+33
A157: 139 | B157: 182.0565 | C157: -1.763273925e+11 | D157: 1.342320468e+11 | E157: -16405.2937 | F157: -15310.2799 | G157: 22439.6598 | H157: 2.216068404e+11 | I157: 142.7192155 | J157: -2.074291484e+33
A158: 140 | B158: 183.37575 | C158: -1.781833255e+11 | D158: 1.324763617e+11 | E158: -16159.54194 | F158: -15495.16798 | G158: 22388.18944 | H158: 2.220344206e+11 | I158: 143.3698064 | J158: -2.074291484e+33
A159: 141 | B159: 184.695 | C159: -1.80011182e+11 | D159: 1.306998018e+11 | E159: -15912.65612 | F159: -15676.56437 | G159: 22337.57586 | H159: 2.224555323e+11 | I159: 144.0179152 | J159: -2.074291484e+33
A160: 142 | B160: 186.01425 | C160: -1.818108347e+11 | D160: 1.289027636e+11 | E160: -15664.67143 | F160: -15854.49212 | G160: 22287.81845 | H160: 2.228701462e+11 | I160: 144.6635937 | J160: -2.074291484e+33
A161: 143 | B161: 187.3335 | C161: -1.835821603e+11 | D161: 1.270856412e+11 | E161: -15415.6221 | F161: -16028.97394 | G161: 22238.91657 | H161: 2.23278234e+11 | I161: 145.3068931 | J161: -2.074291484e+33
A162: 144 | B162: 188.65275 | C162: -1.853250394e+11 | D162: 1.252488262e+11 | E162: -15165.54143 | F162: -16200.03228 | G162: 22190.86958 | H162: 2.236797682e+11 | I162: 145.947864 | J162: -2.074291484e+33
A163: 145 | B163: 189.972 | C163: -1.870393562e+11 | D163: 1.233927074e+11 | E163: -14914.46182 | F163: -16367.68925 | G163: 22143.67681 | H163: 2.24074722e+11 | I163: 146.5865566 | J163: -2.074291484e+33
A164: 146 | B164: 191.29125 | C164: -1.887249988e+11 | D164: 1.215176714e+11 | E164: -14662.41476 | F164: -16531.96664 | G164: 22097.33757 | H164: 2.244630696e+11 | I164: 147.2230203 | J164: -2.074291484e+33
A165: 147 | B165: 192.6105 | C165: -1.903818586e+11 | D165: 1.196241021e+11 | E165: -14409.43092 | F165: -16692.88593 | G165: 22051.85117 | H165: 2.248447862e+11 | I165: 147.8573043 | J165: -2.074291484e+33
A166: 148 | B166: 193.92975 | C166: -1.920098304e+11 | D166: 1.177123811e+11 | E166: -14155.54011 | F166: -16850.46825 | G166: 22007.21691 | H166: 2.252198473e+11 | I166: 148.4894569 | J166: -2.074291484e+33
A167: 149 | B167: 195.249 | C167: -1.936088127e+11 | D167: 1.157828875e+11 | E167: -13900.77135 | F167: -17004.7344 | G167: 21963.43407 | H167: 2.255882297e+11 | I167: 149.1195262 | J167: -2.074291484e+33
A168: 150 | B168: 196.56825 | C168: -1.95178707e+11 | D168: 1.138359982e+11 | E168: -13645.15288 | F168: -17155.70482 | G168: 21920.50194 | H168: 2.259499107e+11 | I168: 149.7475597 | J168: -2.074291484e+33
A169: 151 | B169: 197.8875 | C169: -1.967194179e+11 | D169: 1.118720877e+11 | E169: -13388.7122 | F169: -17303.39961 | G169: 21878.41979 | H169: 2.263048682e+11 | I169: 150.3736043 | J169: -2.074291484e+33
A170: 152 | B170: 199.20675 | C170: -1.982308532e+11 | D170: 1.098915282e+11 | E170: -13131.47605 | F170: -17447.8385 | G170: 21837.18689 | H170: 2.26653081e+11 | I170: 150.9977068 | J170: -2.074291484e+33
A171: 153 | B171: 200.526 | C171: -1.997129239e+11 | D171: 1.078946897e+11 | E171: -12873.47047 | F171: -17589.04087 | G171: 21796.80253 | H171: 2.269945287e+11 | I171: 151.6199131 | J171: -2.074291484e+33
A172: 154 | B172: 201.84525 | C172: -2.011655437e+11 | D172: 1.058819401e+11 | E172: -12614.72083 | F172: -17727.02573 | G172: 21757.26597 | H172: 2.273291913e+11 | I172: 152.2402688 | J172: -2.074291484e+33
A173: 155 | B173: 203.1645 | C173: -2.025886291e+11 | D173: 1.03853645e+11 | E173: -12355.25181 | F173: -17861.81171 | G173: 21718.57649 | H173: 2.276570496e+11 | I173: 152.8588192 | J173: -2.074291484e+33
A174: 156 | B174: 204.48375 | C174: -2.039820996e+11 | D174: 1.01810168e+11 | E174: -12095.08746 | F174: -17993.41709 | G174: 21680.73337 | H174: 2.27978085e+11 | I174: 153.475609 | J174: -2.074291484e+33
A175: 157 | B175: 205.803 | C175: -2.053458771e+11 | D175: 9.975187067e+10 | E175: -11834.25122 | F175: -18121.85975 | G175: 21643.73588 | H175: 2.282922797e+11 | I175: 154.0906825 | J175: -2.074291484e+33
A176: 158 | B176: 207.12225 | C176: -2.066798865e+11 | D176: 9.767911241e+10 | E176: -11572.76591 | F176: -18247.15721 | G176: 21607.58332 | H176: 2.285996161e+11 | I176: 154.7040838 | J176: -2.074291484e+33
A177: 159 | B177: 208.4415 | C177: -2.079840551e+11 | D177: 9.559225078e+10 | E177: -11310.65376 | F177: -18369.32659 | G177: 21572.27498 | H177: 2.289000777e+11 | I177: 155.3158563 | J177: -2.074291484e+33
A178: 160 | B178: 209.76075 | C178: -2.092583126e+11 | D178: 9.349164138e+10 | E178: -11047.93646 | F178: -18488.38463 | G178: 21537.81015 | H178: 2.291936482e+11 | I178: 155.9260432 | J178: -2.074291484e+33
A179: 161 | B179: 211.08 | C179: -2.105025912e+11 | D179: 9.137763789e+10 | E179: -10784.63513 | F179: -18604.3477 | G179: 21504.18816 | H179: 2.29480312e+11 | I179: 156.5346872 | J179: -2.074291484e+33
A180: 162 | B180: 212.39925 | C180: -2.117168256e+11 | D180: 8.925059219e+10 | E180: -10520.77039 | F180: -18717.23177 | G180: 21471.40831 | H180: 2.297600541e+11 | I180: 157.1418308 | J180: -2.074291484e+33
A181: 163 | B181: 213.7185 | C181: -2.129009527e+11 | D181: 8.711085434e+10 | E181: -10256.36234 | F181: -18827.05242 | G181: 21439.46994 | H181: 2.300328598e+11 | I181: 157.747516 | J181: -2.074291484e+33
A182: 164 | B182: 215.03775 | C182: -2.140549117e+11 | D182: 8.495877264e+10 | E182: -9991.430591 | F182: -18933.82483 | G182: 21408.37238 | H182: 2.302987153e+11 | I182: 158.3517846 | J182: -2.074291484e+33
A183: 165 | B183: 216.357 | C183: -2.15178644e+11 | D183: 8.27946937e+10 | E183: -9725.994272 | F183: -19037.56381 | G183: 21378.11499 | H183: 2.30557607e+11 | I183: 158.9546778 | J183: -2.074291484e+33
A184: 166 | B184: 217.67625 | C184: -2.162720932e+11 | D184: 8.061896246e+10 | E184: -9460.072068 | F184: -19138.28376 | G184: 21348.69712 | H184: 2.308095219e+11 | I184: 159.5562367 | J184: -2.074291484e+33
A185: 167 | B185: 218.9955 | C185: -2.173352048e+11 | D185: 7.843192223e+10 | E185: -9193.682222 | F185: -19235.99869 | G185: 21320.11816 | H185: 2.310544474e+11 | I185: 160.1565021 | J185: -2.074291484e+33
A186: 168 | B186: 220.31475 | C186: -2.183679267e+11 | D186: 7.623391475e+10 | E186: -8926.84255 | F186: -19330.7222 | G186: 21292.37748 | H186: 2.312923716e+11 | I186: 160.7555144 | J186: -2.074291484e+33
A187: 169 | B187: 221.634 | C187: -2.193702085e+11 | D187: 7.402528023e+10 | E187: -8659.570464 | F187: -19422.46753 | G187: 21265.4745 | H187: 2.315232829e+11 | I187: 161.3533137 | J187: -2.074291484e+33
A188: 170 | B188: 222.95325 | C188: -2.20342002e+11 | D188: 7.180635741e+10 | E188: -8391.882982 | F188: -19511.24749 | G188: 21239.40862 | H188: 2.3174717e+11 | I188: 161.9499398 | J188: -2.074291484e+33
A189: 171 | B189: 224.2725 | C189: -2.212832607e+11 | D189: 6.957748358e+10 | E189: -8123.796745 | F189: -19597.07451 | G189: 21214.17929 | H189: 2.319640224e+11 | I189: 162.5454323 | J189: -2.074291484e+33
A190: 172 | B190: 225.59175 | C190: -2.221939402e+11 | D190: 6.733899462e+10 | E190: -7855.328033 | F190: -19679.96061 | G190: 21189.78594 | H190: 2.321738298e+11 | I190: 163.1398305 | J190: -2.074291484e+33
A191: 173 | B191: 226.911 | C191: -2.230739977e+11 | D191: 6.50912251e+10 | E191: -7586.492776 | F191: -19759.91743 | G191: 21166.22804 | H191: 2.323765823e+11 | I191: 163.7331734 | J191: -2.074291484e+33
A192: 174 | B192: 228.23025 | C192: -2.239233923e+11 | D192: 6.283450825e+10 | E192: -7317.306574 | F192: -19836.95619 | G192: 21143.50506 | H192: 2.325722706e+11 | I192: 164.3254997 | J192: -2.074291484e+33
A193: 175 | B193: 229.5495 | C193: -2.24742085e+11 | D193: 6.056917607e+10 | E193: -7047.784704 | F193: -19911.08773 | G193: 21121.61651 | H193: 2.327608855e+11 | I193: 164.9168481 | J193: -2.074291484e+33
A194: 176 | B194: 230.86875 | C194: -2.255300382e+11 | D194: 5.829555932e+10 | E194: -6777.94214 | F194: -19982.32249 | G194: 21100.56188 | H194: 2.329424186e+11 | I194: 165.5072569 | J194: -2.074291484e+33
A195: 177 | B195: 232.188 | C195: -2.262872164e+11 | D195: 5.601398763e+10 | E195: -6507.793563 | F195: -20050.6705 | G195: 21080.34072 | H195: 2.331168615e+11 | I195: 166.096764 | J195: -2.074291484e+33
A196: 178 | B196: 233.50725 | C196: -2.270135854e+11 | D196: 5.372478946e+10 | E196: -6237.353372 | F196: -20116.14141 | G196: 21060.95255 | H196: 2.332842064e+11 | I196: 166.6854075 | J196: -2.074291484e+33
A197: 179 | B197: 234.8265 | C197: -2.277091128e+11 | D197: 5.142829225e+10 | E197: -5966.635705 | F197: -20178.74446 | G197: 21042.39695 | H197: 2.334444459e+11 | I197: 167.273225 | J197: -2.074291484e+33
A198: 180 | B198: 236.14575 | C198: -2.283737679e+11 | D198: 4.912482236e+10 | E198: -5695.654442 | F198: -20238.48848 | G198: 21024.6735 | H198: 2.335975728e+11 | I198: 167.8602539 | J198: -2.074291484e+33
A199: 181 | B199: 237.465 | C199: -2.290075212e+11 | D199: 4.681470519e+10 | E199: -5424.423225 | F199: -20295.38194 | G199: 21007.78178 | H199: 2.337435804e+11 | I199: 168.4465315 | J199: -2.074291484e+33
A200: 182 | B200: 238.78425 | C200: -2.296103451e+11 | D200: 4.44982652e+10 | E200: -5152.955466 | F200: -20349.43287 | G200: 20991.72142 | H200: 2.338824623e+11 | I200: 169.032095 | J200: -2.074291484e+33
A201: 183 | B201: 240.1035 | C201: -2.301822134e+11 | D201: 4.217582595e+10 | E201: -4881.264362 | F201: -20400.64894 | G201: 20976.49205 | H201: 2.340142125e+11 | I201: 169.6169813 | J201: -2.074291484e+33
A202: 184 | B202: 241.42275 | C202: -2.307231014e+11 | D202: 3.984771014e+10 | E202: -4609.362904 | F202: -20449.03739 | G202: 20962.09332 | H202: 2.341388253e+11 | I202: 170.2012272 | J202: -2.074291484e+33
A203: 185 | B203: 242.742 | C203: -2.312329858e+11 | D203: 3.751423969e+10 | E203: -4337.263892 | F203: -20494.60509 | G203: 20948.5249 | H203: 2.342562953e+11 | I203: 170.7848694 | J203: -2.074291484e+33
A204: 186 | B204: 244.06125 | C204: -2.317118448e+11 | D204: 3.517573573e+10 | E204: -4064.979944 | F204: -20537.35849 | G204: 20935.78648 | H204: 2.343666175e+11 | I204: 171.3679443 | J204: -2.074291484e+33
A205: 187 | B205: 245.3805 | C205: -2.321596581e+11 | D205: 3.28325187e+10 | E205: -3792.523508 | F205: -20577.30367 | G205: 20923.87777 | H205: 2.344697872e+11 | I205: 171.9504882 | J205: -2.074291484e+33
A206: 188 | B206: 246.69975 | C206: -2.325764066e+11 | D206: 3.048490837e+10 | E206: -3519.906876 | F206: -20614.4463 | G206: 20912.79849 | H206: 2.345658001e+11 | I206: 172.5325375 | J206: -2.074291484e+33
A207: 189 | B207: 248.019 | C207: -2.329620729e+11 | D207: 2.813322387e+10 | E207: -3247.142191 | F207: -20648.79164 | G207: 20902.54838 | H207: 2.34654652e+11 | I207: 173.1141283 | J207: -2.074291484e+33
... 212 more rows

Sheet VO= VII ORBITA PARABOLICA
A1: GRAVITAZIONE - TERRA(1) E SOLE(2)
H2: 6 | K2: kg= costante gravitazione universale | L2: 6.67428e-11 | M2: N*m^2/kg^2 | R2: Ep | S2: =-L2*L3*L4/A4 -> -5.390356429e+33 | T2: J
A3: xterra (m) | B3: yterra (m) | C3: vx terra (m/s) | D3: vy terra (m/s) | E3: massasole (kg) | F3: tf (g) | G3: NSTEP | K3: M= massa Sole | L3: 1.9891e+30 | M3: kg | R3: Ec | S3: =0.5*L4*D4^2 -> 5.390356429e+33 | T3: J
A4: =147098074000 -> 147098074000 | B4: 0 | C4: 0 | D4: ='VI E VII'!J27 -> 42485.62627 | E4: 1.9891e+30 | F4: =365*H2 -> 2190 | G4: =200*H2 -> 1200 | K4: m=massa Terra | L4: 5.9726e+24 | M4: kg | R4: Ec | S4: =SUM(S2:S3) -> 0 | T4: J
C10: =MAX(C19:C3000) -> 147098074000 | D10: 1.21034509e+12 | E10: 0 | F10: 42485.62627 | G10: 42485.62627 | H10: 2.636824137e+12 | I10: dmax | K10: E0 | L10: =0.5*L4*D4^2-L2*L3*L4/A4 -> 0 | M10: J | N10: --->> ellisse
C11: =MIN(C19:C3000) -> -2.342628074e+12 | D11: 0 | E11: -21242.54271 | F11: 2370.105276 | G11: 10034.71156 | H11: 147098074000 | I11: dmin
C12: CONCLUSIONE: SIMULAZIONE QUASI PERFETTA .AUMENTANDO GLI STEPS I RISULTATI NON CAMBIANO | L12: =0.5*L4*D4^2 -> 5.390356429e+33
A14: MOTO TERRA ATTORNO AL SOLE"
A18: step | B18: t(giorni) | C18: xterra | D18: yterra | E18: vxterra | F18: vyterra | G18: vterra | H18: distanza | I18: angolo | J18: E | M18: T | N18: U | Q18: (x,y) sole
A19: 1 | B19: 0 | C19: 147098074000 | D19: 0 | E19: 0 | F19: 42485.62627 | G19: 42485.62627 | H19: 147098074000 | I19: 0 | J19: =0.5*$L$4*G19^2-$L$2*$L$3*$L$4/H19 -> 0 | K19: =J19-$J$19 -> 0 | M19: =0.5*$L$4*G19^2 -> 5.390356429e+33 | N19: =-$L$2*$L$3*$L$4/H19 -> -5.390356429e+33
A20: 2 | B20: 1.825 | C20: 1.470218274e+11 | D20: 6697976128 | E20: -966.7709982 | F20: 42463.61575 | G20: 42474.61958 | H20: 1.471743206e+11 | I20: 2.608460238 | J20: =0.5*$L$4*G20^2-$L$2*$L$3*$L$4/H20 -> -7.499385453e+23 | K20: =J20-$J$20 -> 0 | L20: =K20/J20 -> 0 | M20: =0.5*$L$4*G20^2 -> 5.387563848e+33 | N20: =-$L$2*$L$3*$L$4/H20 -> -5.387563848e+33
A21: 3 | B21: 3.65 | C21: 1.467934032e+11 | D21: 1.338902298e+10 | E21: -1929.547056 | F21: 42397.81155 | G21: 42441.69619 | H21: 1.474027448e+11 | I21: 5.211526658 | J21: -2.228941992e+24 | K21: =J21-$J$20 -> -1.479003447e+24 | L21: 0.6635450595 | M21: 5.379214951e+33 | N21: -5.379214953e+33
A22: 4 | B22: 5.475 | C22: 1.46413742e+11 | D22: 2.006628265e+10 | E22: -2884.405065 | F22: 42288.88918 | G22: 42387.14358 | H22: 1.47782406e+11 | I22: 7.803877576 | J22: -4.381638979e+24 | K22: -3.631700434e+24 | L22: 0.8288451995 | M22: 5.365395445e+33 | N22: -5.365395449e+33
A23: 5 | B23: 7.3 | C23: 1.458843927e+11 | D23: 2.672303786e+10 | E23: -3827.562656 | F23: 42137.95309 | G23: 42311.43257 | H23: 1.483117554e+11 | I23: 10.38033314 | J23: -7.122692562e+24 | K23: -6.372754017e+24 | L23: 0.8947113695 | M23: 5.346245454e+33 | N23: -5.346245461e+33
A24: 6 | B24: 9.125 | C24: 1.452074854e+11 | D24: 3.335277737e+10 | E24: -4755.441451 | F24: 41946.50571 | G24: 42215.20537 | H24: 1.489886626e+11 | I24: 12.93592032 | J24: -1.034374541e+25 | K24: -9.593806869e+24 | L24: 0.9274983562 | M24: 5.321955601e+33 | N24: -5.321955611e+33
A25: 7 | B25: 10.95 | C25: 1.443856948e+11 | D25: 3.994925559e+10 | E25: -5664.722356 | F25: 41716.40662 | G25: 42099.25962 | H25: 1.498104532e+11 | I25: 15.46593114 | J25: -1.392187189e+25 | K25: -1.317193335e+25 | L25: 0.9461323484 | M25: 5.292761819e+33 | N25: -5.292761833e+33
A26: 8 | B26: 12.775 | C26: 1.434221952e+11 | D26: 4.650654513e+10 | E26: -6552.391102 | F26: 41449.82381 | G26: 41964.52934 | H26: 1.507739527e+11 | I26: 17.96597269 | J26: -1.772849242e+25 | K26: -1.697855388e+25 | L26: 0.9576986848 | M26: 5.258939172e+33 | N26: -5.258939189e+33
A27: 9 | B27: 14.6 | C27: 1.4232061e+11 | D27: 5.301908123e+10 | E27: -7415.772909 | F27: 41149.1795 | G27: 41812.06359 | H27: 1.518755379e+11 | I27: 20.43200762 | J27: -2.163786017e+25 | K27: -2.088792162e+25 | L27: 0.965341372 | M27: 5.220794977e+33 | N27: -5.220794999e+33
A28: 10 | B28: 16.425 | C28: 1.410849559e+11 | D28: 5.948169737e+10 | E28: -8252.555778 | F28: 40817.09302 | G28: 41643.00373 | H28: 1.53111192e+11 | I28: 22.86038466 | J28: -2.553428175e+25 | K28: -2.478434321e+25 | L28: 0.9706301296 | M28: 5.178661564e+33 | N28: -5.178661589e+33
A29: 11 | B29: 18.25 | C29: 1.397195847e+11 | D29: 6.588965181e+10 | E29: -9060.802536 | F29: 40456.32316 | G29: 41458.56035 | H29: 1.544765632e+11 | I29: 25.24785893 | J29: -2.93175539e+25 | K29: -2.856761535e+25 | L29: 0.9744201529 | M29: 5.132888951e+33 | N29: -5.132888981e+33
A30: 12 | B30: 20.075 | C30: 1.382291239e+11 | D30: 7.223864508e+10 | E30: -9838.952354 | F30: 40069.71216 | G30: 41259.9905 | H30: 1.559670239e+11 | I30: 27.59160247 | J30: -3.290641465e+25 | K30: -3.21564761e+25 | L30: 0.9772099588 | M30: 5.083837749e+33 | N30: -5.083837782e+33
A31: 13 | B31: 21.9 | C31: 1.36618418e+11 | D31: 7.852482899e+10 | E31: -10585.81281 | F31: 39660.13319 | G31: 41048.57607 | H31: 1.575777297e+11 | I31: 29.88920554 | J31: -3.62400082e+25 | K31: -3.549006966e+25 | L31: 0.9793063362 | M31: 5.031872489e+33 | N31: -5.031872525e+33
A32: 14 | B32: 23.725 | C32: 1.348924714e+11 | D32: 8.474480766e+10 | E32: -11300.54397 | F32: 39230.44269 | G32: 40825.60383 | H32: 1.593036763e+11 | I32: 32.13866983 | J32: -3.927761164e+25 | K32: -3.85276731e+25 | L32: 0.9809067172 | M32: 4.977355584e+33 | N32: -4.977355623e+33
A33: 15 | B33: 25.55 | C33: 1.330563946e+11 | D33: 9.089563152e+10 | E33: -11982.63599 | F33: 38783.43874 | G33: 40592.34762 | H33: 1.61139753e+11 | I33: 34.33839464 | J33: -4.199704968e+25 | K33: -4.124711113e+25 | L33: 0.982143066 | M33: 4.920642036e+33 | N33: -4.920642078e+33
A34: 16 | B34: 27.375 | C34: 1.311153543e+11 | D34: 9.697478523e+10 | E34: -12631.88197 | F34: 38321.8257 | G34: 40350.05287 | H34: 1.630807932e+11 | I34: 36.48715734 | J34: -4.43921438e+25 | K34: -4.364220526e+25 | L34: 0.9831065031 | M34: 4.862074964e+33 | N34: -4.862075008e+33
A35: 17 | B35: 29.2 | C35: 1.290745278e+11 | D35: 1.029801706e+11 | E35: -13248.3476 | F35: 37848.18572 | G35: 40099.92365 | H35: 1.651216196e+11 | I35: 38.58408948 | J35: -4.646969567e+25 | K35: -4.571975712e+25 | L35: 0.983861772 | M35: 4.801981977e+33 | N35: -4.801982023e+33
A36: 18 | B36: 31.025 | C36: 1.269390627e+11 | D36: 1.089100854e+11 | E36: -13832.33895 | F36: 37364.95668 | G36: 39843.11219 | H36: 1.672570845e+11 | I36: 40.62864966 | J36: -4.824633503e+25 | K36: -4.749639648e+25 | L36: 0.9844560515 | M36: 4.740672379e+33 | N36: -4.740672427e+33
A37: 19 | B37: 32.85 | C37: 1.247140416e+11 | D37: 1.147631993e+11 | E37: -14384.36988 | F37: 36874.41629 | G37: 39580.71088 | H37: 1.694821055e+11 | I37: 42.62059448 | J37: -4.974550422e+25 | K37: -4.899556568e+25 | L37: 0.9849244961 | M37: 4.678435154e+33 | N37: -4.678435204e+33
A38: 20 | B38: 34.675 | C38: 1.224044517e+11 | D38: 1.205385281e+11 | E38: -14905.12985 | F38: 36378.67185 | G38: 39313.74647 | H38: 1.717916952e+11 | I38: 44.5599484 | J38: -5.099478114e+25 | K38: -5.02448426e+25 | L38: 0.9852938178 | M38: 4.615537667e+33 | N38: -4.615537718e+33
A39: 21 | B39: 36.5 | C39: 1.200151598e+11 | D39: 1.262354056e+11 | E39: -15395.45319 | F39: 35879.6549 | G39: 39043.17629 | H39: 1.741809869e+11 | I39: 46.44697357 | J39: -5.20236431e+25 | K39: -5.127370456e+25 | L39: 0.9855846592 | M39: 4.55222498e+33 | N39: -4.552225032e+33
A40: 22 | B40: 38.325 | C40: 1.175508916e+11 | D40: 1.318534566e+11 | E40: -15856.29028 | F40: 35379.12012 | G40: 38769.88627 | H40: 1.76645255e+11 | I40: 48.28214026 | J40: -5.286170232e+25 | K40: -5.211176378e+25 | L40: 0.9858131972 | M40: 4.488719719e+33 | N40: -4.488719772e+33
A41: 23 | B41: 40.15 | C41: 1.150162154e+11 | D41: 1.373925685e+11 | E41: -16288.68113 | F41: 34878.6477 | G41: 38494.69052 | H41: 1.79179931e+11 | I41: 50.06609837 | J41: -5.353741002e+25 | K41: -5.278747147e+25 | L41: 0.9859922521 | M41: 4.425222371e+33 | N41: -4.425222425e+33
A42: 24 | B42: 41.975 | C42: 1.124155302e+11 | D42: 1.428528647e+11 | E42: -16693.7316 | F42: 34379.6485 | G42: 38218.33206 | H42: 1.81780616e+11 | I42: 51.79965061 | J42: -5.407718077e+25 | K42: -5.332724223e+25 | L42: 0.9861320702 | M42: 4.361911937e+33 | N42: -4.361911991e+33
A43: 25 | B43: 43.8 | C43: 1.097530568e+11 | D43: 1.482346778e+11 | E43: -17072.59231 | F43: 33883.3713 | G43: 37941.48467 | H43: 1.844430893e+11 | I43: 53.48372748 | J43: -5.450485297e+25 | K43: -5.375491442e+25 | L43: 0.9862408849 | M43: 4.298946856e+33 | N43: -4.298946911e+33
A44: 26 | B44: 45.625 | C44: 1.070328322e+11 | D44: 1.535385256e+11 | E44: -17426.44032 | F44: 33390.91166 | G44: 37664.75545 | H44: 1.871633137e+11 | I44: 55.1193643 | J44: -5.484143572e+25 | K44: -5.409149717e+25 | L44: 0.9863253298 | M44: 4.236466127e+33 | N44: -4.236466182e+33
A45: 27 | B45: 47.45 | C45: 1.042587068e+11 | D45: 1.587650867e+11 | E45: -17756.46338 | F45: 32903.22173 | G45: 37388.68803 | H45: 1.899374389e+11 | I45: 56.70768036 | J45: -5.51050737e+25 | K45: -5.435513516e+25 | L45: 0.9863907532 | M45: 4.174590555e+33 | N45: -4.17459061e+33
A46: 28 | B46: 49.275 | C46: 1.014343438e+11 | D46: 1.639151796e+11 | E46: -18063.84673 | F46: 32421.12082 | G46: 37113.76609 | H46: 1.927618017e+11 | I46: 58.24986025 | J46: -5.53111394e+25 | K46: -5.456120085e+25 | L46: 0.9864414555 | M46: 4.113424088e+33 | N46: -4.113424143e+33
A47: 29 | B47: 51.1 | C47: 9.856322037e+10 | D47: 1.689897419e+11 | E47: -18349.76206 | F47: 31945.30603 | G47: 36840.41728 | H47: 1.956329249e+11 | I47: 59.74713718 | J47: -5.547245445e+25 | K47: -5.47225159e+25 | L47: 0.986480884 | M47: 4.053055172e+33 | N47: -4.053055228e+33
A48: 30 | B48: 52.925 | C48: 9.564863069e+10 | D48: 1.739898126e+11 | E48: -18615.35867 | F48: 31476.36308 | G48: 36569.01709 | H48: 1.985475143e+11 | I48: 61.20077842 | J48: -5.559952888e+25 | K48: -5.484959033e+25 | L48: 0.9865117824 | M48: 3.993558118e+33 | N48: -3.993558174e+33
A49: 31 | B49: 54.75 | C49: 9.269368987e+10 | D49: 1.789165146e+11 | E49: -18861.75633 | F49: 31014.77669 | G49: 36299.89291 | H49: 2.01502455e+11 | I49: 62.61207249 | J49: -5.570085569e+25 | K49: -5.495091715e+25 | L49: 0.9865363191 | M49: 3.934994429e+33 | N49: -3.934994484e+33
A50: 32 | B50: 56.575 | C50: 8.97013392e+10 | D50: 1.837710401e+11 | E50: -19090.03985 | F50: 30560.94078 | G50: 36033.32794 | H50: 2.044948054e+11 | I50: 63.98231826 | J50: -5.578318927e+25 | K50: -5.503325073e+25 | L50: 0.9865561909 | M50: 3.877414078e+33 | N50: -3.877414134e+33
A51: 33 | B51: 58.4 | C51: 8.667435193e+10 | D51: 1.885546368e+11 | E51: -19301.25501 | F51: 30115.16794 | G51: 35769.56507 | H51: 2.075217925e+11 | I51: 65.31281546 | J51: -5.585182212e+25 | K51: -5.510188357e+25 | L51: 0.9865727112 | M51: 3.820856729e+33 | N51: -3.820856785e+33
A52: 34 | B52: 60.225 | C52: 8.361533968e+10 | D52: 1.93268596e+11 | E52: -19496.40568 | F52: 29677.6985 | G52: 35508.81049 | H52: 2.105808045e+11 | I52: 66.60485683 | J52: -5.591082806e+25 | K52: -5.516088952e+25 | L52: 0.9865868818 | M52: 3.765352872e+33 | N52: -3.765352928e+33
A53: 35 | B53: 62.05 | C53: 8.052675922e+10 | D53: 1.979142416e+11 | E53: -19676.45193 | F53: 29248.70882 | G53: 35251.23726 | H53: 2.136693848e+11 | I53: 67.85972141 | J53: -5.596328657e+25 | K53: -5.521334802e+25 | L53: 0.9865994549 | M53: 3.710924884e+33 | N53: -3.71092494e+33
A54: 36 | B54: 63.875 | C54: 7.741091948e+10 | D54: 2.024929209e+11 | E54: -19842.30901 | F54: 28828.31906 | G54: 34996.98854 | H54: 2.167852243e+11 | I54: 69.07866911 | J54: -5.601148214e+25 | K54: -5.52615436e+25 | L54: 0.9866109855 | M54: 3.657588008e+33 | N54: -3.657588064e+33
A55: 37 | B55: 65.7 | C55: 7.42699886e+10 | D55: 2.070059962e+11 | E55: -19994.84702 | F55: 28416.60015 | G55: 34746.18067 | H55: 2.19926155e+11 | I55: 70.26293622 | J55: -5.605706001e+25 | K55: -5.530712147e+25 | L55: 0.9866218716 | M55: 3.605351244e+33 | N55: -3.6053513e+33
A56: 38 | B56: 67.525 | C56: 7.110600111e+10 | D56: 2.114548372e+11 | E56: -20134.89113 | F56: 28013.58025 | G56: 34498.90605 | H56: 2.230901423e+11 | I56: 71.41373187 | J56: -5.610117252e+25 | K56: -5.535123397e+25 | L56: 0.9866323909 | M56: 3.554218166e+33 | N56: -3.554218222e+33
A57: 39 | B57: 69.35 | C57: 6.792086488e+10 | D57: 2.158408156e+11 | E57: -20263.22222 | F57: 27619.25052 | G57: 34255.23572 | H57: 2.262752783e+11 | I57: 72.53223521 | J57: -5.614459154e+25 | K57: -5.5394653e+25 | L57: 0.9866427286 | M57: 3.504187652e+33 | N57: -3.504187708e+33
A58: 40 | B58: 71.175 | C58: 6.471636812e+10 | D58: 2.201652988e+11 | E58: -20380.57794 | F58: 27233.57034 | G58: 34015.22175 | H58: 2.294797749e+11 | I58: 73.61959335 | J58: -5.618779382e+25 | K58: -5.543785527e+25 | L58: 0.9866529989 | M58: 3.455254549e+33 | N58: -3.455254605e+33
A59: 41 | B59: 73 | C59: 6.149418604e+10 | D59: 2.244296455e+11 | E59: -20487.65393 | F59: 26856.472 | G59: 33778.89951 | H59: 2.327019568e+11 | I59: 74.67691979 | J59: -5.623104567e+25 | K59: -5.548110712e+25 | L59: 0.9866632652 | M59: 3.407410263e+33 | N59: -3.407410319e+33
A60: 42 | B60: 74.825 | C60: 5.825588736e+10 | D60: 2.286352021e+11 | E60: -20585.10537 | F60: 26487.86479 | G60: 33546.28958 | H60: 2.359402552e+11 | I60: 75.70529339 | J60: -5.627446181e+25 | K60: -5.552452326e+25 | L60: 0.9866735546 | M60: 3.36064329e+33 | N60: -3.360643346e+33
A61: 43 | B61: 76.65 | C61: 5.50029406e+10 | D61: 2.32783299e+11 | E61: -20673.54853 | F61: 26127.63878 | G61: 33317.39961 | H61: 2.391932018e+11 | I61: 76.70575777 | J61: -5.631804743e+25 | K61: -5.556810889e+25 | L61: 0.9866838681 | M61: 3.314939678e+33 | N61: -3.314939734e+33
A62: 44 | B62: 78.475 | C62: 5.173672005e+10 | D62: 2.368752482e+11 | E62: -20753.56253 | F62: 25775.668 | G62: 33092.22595 | H62: 2.424594222e+11 | I62: 77.67932096 | J62: -5.636173047e+25 | K62: -5.561179193e+25 | L62: 0.9866941888 | M62: 3.270283448e+33 | N62: -3.270283505e+33
A63: 45 | B63: 80.3 | C63: 4.845851151e+10 | D63: 2.409123403e+11 | E63: -20825.69106 | F63: 25431.81339 | G63: 32870.7551 | H63: 2.457376305e+11 | I63: 78.62695553 | J63: -5.640539968e+25 | K63: -5.565546114e+25 | L63: 0.9867044902 | M63: 3.226656957e+33 | N63: -3.226657013e+33
A64: 46 | B64: 82.125 | C64: 4.51695177e+10 | D64: 2.448958436e+11 | E64: -20890.44419 | F64: 25095.9253 | G64: 32652.96503 | H64: 2.490266241e+11 | I64: 79.54959875 | J64: -5.644891267e+25 | K64: -5.569897412e+25 | L64: 0.9867147389 | M64: 3.184041215e+33 | N64: -3.184041271e+33
A65: 47 | B65: 83.95 | C65: 4.187086348e+10 | D65: 2.488270017e+11 | E65: -20948.30011 | F65: 24767.84569 | G65: 32438.82639 | H65: 2.523252782e+11 | I65: 80.44815309 | J65: -5.649212186e+25 | K65: -5.574218332e+25 | L65: 0.9867249004 | M65: 3.142416172e+33 | N65: -3.142416228e+33
A66: 48 | B66: 85.775 | C66: 3.856360068e+10 | D66: 2.527070332e+11 | E66: -20999.70693 | F66: 24447.41005 | G66: 32228.30354 | H66: 2.556325408e+11 | I66: 81.32348683 | J66: -5.653487623e+25 | K66: -5.578493768e+25 | L66: 0.9867349396 | M66: 3.101760957e+33 | N66: -3.101761014e+33
A67: 49 | B67: 87.6 | C67: 3.524871275e+10 | D67: 2.565371298e+11 | E67: -21045.08432 | F67: 24134.44913 | G67: 32021.35551 | H67: 2.589474285e+11 | I67: 82.17643478 | J67: -5.65770328e+25 | K67: -5.582709426e+25 | L67: 0.9867448237 | M67: 3.062054096e+33 | N67: -3.062054153e+33
A68: 50 | B68: 89.425 | C68: 3.192711909e+10 | D68: 2.603184568e+11 | E68: -21084.82523 | F68: 23828.79033 | G68: 31817.93683 | H68: 2.62269022e+11 | I68: 83.00779913 | J68: -5.661846073e+25 | K68: -5.586852218e+25 | L68: 0.9867545225 | M68: 3.02327369e+33 | N68: -3.023273747e+33
A69: 51 | B69: 91.25 | C69: 2.859967914e+10 | D69: 2.640521518e+11 | E69: -21119.29746 | F69: 23530.25898 | G69: 31617.99824 | H69: 2.655964618e+11 | I69: 83.81835035 | J69: -5.665904184e+25 | K69: -5.590910329e+25 | L69: 0.9867640094 | M69: 2.985397578e+33 | N69: -2.985397635e+33
A70: 52 | B70: 93.075 | C70: 2.526719623e+10 | D70: 2.677393247e+11 | E70: -21148.84516 | F70: 23238.67941 | G70: 31421.48743 | H70: 2.689289445e+11 | I70: 84.60882816 | J70: -5.669867812e+25 | K70: -5.594873958e+25 | L70: 0.9867732623 | M70: 2.948403472e+33 | N70: -2.948403528e+33
A71: 53 | B71: 94.9 | C71: 2.193042119e+10 | D71: 2.713810578e+11 | E71: -21173.79037 | F71: 22953.87585 | G71: 31228.34954 | H71: 2.722657193e+11 | I71: 85.37994253 | J71: -5.673728082e+25 | K71: -5.598734227e+25 | L71: 0.9867822614 | M71: 2.91226907e+33 | N71: -2.912269127e+33
A72: 54 | B72: 96.725 | C72: 1.859005573e+10 | D72: 2.749784059e+11 | E72: -21194.43433 | F72: 22675.67322 | G72: 31038.52771 | H72: 2.756060846e+11 | I72: 86.13237469 | J72: -5.677478536e+25 | K72: -5.602484681e+25 | L72: 0.9867909929 | M72: 2.876972162e+33 | N72: -2.876972219e+33
A73: 55 | B73: 98.55 | C73: 1.52467556e+10 | D73: 2.78532396e+11 | E73: -21211.05884 | F73: 22403.89782 | G73: 30851.96354 | H73: 2.789493846e+11 | I73: 86.86677817 | J73: -5.681113466e+25 | K73: -5.606119612e+25 | L73: 0.9867994443 | M73: 2.842490706e+33 | N73: -2.842490762e+33
A74: 56 | B74: 100.375 | C74: 1.190113358e+10 | D74: 2.820440279e+11 | E74: -21223.92751 | F74: 22138.3778 | G74: 30668.59747 | H74: 2.822950064e+11 | I74: 87.58377986 | J74: -5.684629243e+25 | K74: -5.609635388e+25 | L74: 0.9868076085 | M74: 2.8088029e+33 | N74: -2.808802957e+33
A75: 57 | B75: 102.2 | C75: 8553762237 | D75: 2.855142746e+11 | E75: -21233.28691 | F75: 21878.9437 | G75: 30488.3691 | H75: 2.856423776e+11 | I75: 88.28398097 | J75: -5.688022983e+25 | K75: -5.613029128e+25 | L75: 0.9868154797 | M75: 2.775887245e+33 | N75: -2.775887302e+33
A76: 58 | B76: 104.025 | C76: 5205176515 | D76: 2.889440827e+11 | E76: -21239.36771 | F76: 21625.42878 | G76: 30311.21758 | H76: 2.889909631e+11 | I76: 88.96795812 | J76: -5.691293014e+25 | K76: -5.616299159e+25 | L76: 0.9868230551 | M76: 2.743722585e+33 | N76: -2.743722642e+33
A77: 59 | B77: 105.85 | C77: 1855876188 | D77: 2.923343724e+11 | E77: -21242.38568 | F77: 21377.66935 | G77: 30137.08175 | H77: 2.923402633e+11 | I77: 89.6362643 | J77: -5.694439164e+25 | K77: -5.619445309e+25 | L77: 0.9868303353 | M77: 2.712288151e+33 | N77: -2.712288208e+33
A78: 60 | B78: 107.675 | C78: -1493671891 | D78: 2.956860386e+11 | E78: -21242.54271 | F78: 21135.505 | G78: 29965.90049 | H78: 2.956898112e+11 | I78: 90.28942984 | J78: -5.697461548e+25 | K78: -5.622467693e+25 | L78: 0.9868373215 | M78: 2.681563591e+33 | N78: -2.681563648e+33
A79: 61 | B79: 109.5 | C79: -4843031665 | D79: 2.98999951e+11 | E79: -21240.0277 | F79: 20898.77878 | G79: 29797.61284 | H79: 2.990391708e+11 | I79: 90.92796339 | J79: -5.70036126e+25 | K79: -5.625367406e+25 | L79: 0.9868440172 | M79: 2.651528994e+33 | N79: -2.651529051e+33
A80: 62 | B80: 111.325 | C80: -8191795898 | D80: 3.022769552e+11 | E80: -21235.0174 | F80: 20667.33739 | G80: 29632.15819 | H80: 3.023879349e+11 | I80: 91.5523528 | J80: -5.703139859e+25 | K80: -5.628146004e+25 | L80: 0.9868504269 | M80: 2.622164909e+33 | N80: -2.622164966e+33
A81: 63 | B81: 113.15 | C81: -1.153958432e+10 | D81: 3.055178725e+11 | E81: -21227.67727 | F81: 20441.03124 | G81: 29469.47642 | H81: 3.057357231e+11 | I81: 92.16306603 | J81: -5.705799822e+25 | K81: -5.630805967e+25 | L81: 0.986856557 | M81: 2.593452356e+33 | N81: -2.593452413e+33
A82: 64 | B82: 114.975 | C82: -1.488604191e+10 | D82: 3.08723501e+11 | E82: -21218.16218 | F82: 20219.71454 | G82: 29309.50805 | H82: 3.090821806e+11 | I82: 92.76055205 | J82: -5.708343858e+25 | K82: -5.633350004e+25 | L82: 0.9868624147 | M82: 2.56537284e+33 | N82: -2.565372897e+33
A83: 65 | B83: 116.8 | C83: -1.823083727e+10 | D83: 3.118946164e+11 | E83: -21206.6171 | F83: 20003.24537 | G83: 29152.19433 | H83: 3.124269757e+11 | I83: 93.34524161 | J83: -5.710774822e+25 | K83: -5.635780968e+25 | L83: 0.9868680071 | M83: 2.537908352e+33 | N83: -2.537908409e+33
A84: 66 | B84: 118.625 | C84: -2.157366113e+10 | D84: 3.15031972e+11 | E84: -21193.17781 | F84: 19791.48564 | G84: 28997.4773 | H84: 3.157697994e+11 | I84: 93.91754807 | J84: =0.5*$L$4*G84^2-$L$2*$L$3*$L$4/H84 -> -5.713095999e+25 | K84: -5.638102144e+25 | L84: =K84/J84 -> 0.9868733425 | M84: =0.5*$L$4*G84^2 -> 2.511041373e+33 | N84: =-$L$2*$L$3*$L$4/H84 -> -2.51104143e+33
A85: 67 | B85: 120.45 | C85: -2.491422496e+10 | D85: 3.181362998e+11 | E85: -21177.97146 | F85: 19584.30113 | G85: 28845.2999 | H85: 3.191103631e+11 | I85: 94.47786818 | J85: -5.715311021e+25 | K85: =J85-$J$20 -> -5.640317166e+25 | L85: 0.9868784298 | M85: 2.484754876e+33 | N85: -2.484754933e+33
A86: 68 | B86: 122.275 | C86: -2.825225961e+10 | D86: 3.212083108e+11 | E86: -21161.11717 | F86: 19381.56148 | G86: 28695.60602 | H86: 3.224483976e+11 | I86: 95.02658279 | J86: -5.71742323e+25 | K86: -5.642429376e+25 | L86: 0.9868832774 | M86: 2.459032317e+33 | N86: -2.459032375e+33
A87: 69 | B87: 124.1 | C87: -3.158751414e+10 | D87: 3.24248696e+11 | E87: -21142.72652 | F87: 19183.1401 | G87: 28548.34056 | H87: 3.25783652e+11 | I87: 95.56405758 | J87: -5.719436548e+25 | K87: -5.644442694e+25 | L87: 0.9868878947 | M87: 2.43385764e+33 | N87: -2.433857697e+33
A88: 70 | B88: 125.925 | C88: -3.491975461e+10 | D88: 3.272581264e+11 | E88: -21122.90409 | F88: 18988.91417 | G88: 28403.44942 | H88: 3.291158923e+11 | I88: 96.09064372 | J88: -5.721354722e+25 | K88: -5.646360867e+25 | L88: 0.9868922907 | M88: 2.40921526e+33 | N88: -2.409215317e+33
A89: 71 | B89: 127.75 | C89: -3.824876308e+10 | D89: 3.302372542e+11 | E89: -21101.74791 | F89: 18798.76459 | G89: 28260.87959 | H89: 3.324449006e+11 | I89: 96.60667852 | J89: -5.723181526e+25 | K89: -5.648187671e+25 | L89: 0.9868964746 | M89: 2.385090066e+33 | N89: -2.385090123e+33
A90: 72 | B90: 129.575 | C90: -4.157433657e+10 | D90: 3.33186713e+11 | E90: -21079.34985 | F90: 18612.57587 | G90: 28120.57913 | H90: 3.357704739e+11 | I90: 97.11248607 | J90: -5.72492065e+25 | K90: -5.649926796e+25 | L90: 0.9869004552 | M90: 2.361467405e+33 | N90: -2.361467462e+33
A91: 73 | B91: 131.4 | C91: -4.489628612e+10 | D91: 3.361071184e+11 | E91: -21055.79608 | F91: 18430.23609 | G91: 27982.49722 | H91: 3.390924233e+11 | I91: 97.60837781 | J91: -5.726575957e+25 | K91: -5.651582103e+25 | L91: 0.9869042417 | M91: 2.338333076e+33 | N91: -2.338333134e+33
A92: 74 | B92: 133.225 | C92: -4.821443593e+10 | D92: 3.389990688e+11 | E92: -21031.16741 | F92: 18251.63679 | G92: 27846.58414 | H92: 3.42410573e+11 | I92: 98.09465307 | J92: -5.728150992e+25 | K92: -5.653157138e+25 | L92: 0.9869078426 | M92: 2.315673323e+33 | N92: -2.31567338e+33
A93: 75 | B93: 135.05 | C93: -5.152862257e+10 | D93: 3.418631457e+11 | E93: -21005.53962 | F93: 18076.67295 | G93: 27712.79127 | H93: 3.457247595e+11 | I93: 98.57159967 | J93: -5.729649444e+25 | K93: -5.65465559e+25 | L93: 0.9869112665 | M93: 2.293474816e+33 | N93: -2.293474873e+33
A94: 76 | B94: 136.875 | C94: -5.483869414e+10 | D94: 3.446999141e+11 | E94: -20978.98384 | F94: 17905.24283 | G94: 27581.07112 | H94: 3.490348309e+11 | I94: 99.03949437 | J94: -5.731074715e+25 | K94: -5.65608086e+25 | L94: 0.9869145216 | M94: 2.271724649e+33 | N94: -2.271724707e+33
A95: 77 | B95: 138.7 | C95: -5.814450965e+10 | D95: 3.475099236e+11 | E95: -20951.5668 | F95: 17737.24793 | G95: 27451.3773 | H95: 3.523406462e+11 | I95: 99.49860342 | J95: -5.732430349e+25 | K95: -5.657436494e+25 | L95: 0.9869176161 | M95: 2.250410326e+33 | N95: -2.250410384e+33
A96: 78 | B96: 140.525 | C96: -6.144593828e+10 | D96: 3.502937082e+11 | E96: -20923.35112 | F96: 17572.59289 | G96: 27323.66453 | H96: 3.556420747e+11 | I96: 99.94918295 | J96: -5.733719517e+25 | K96: -5.658725662e+25 | L96: 0.9869205575 | M96: 2.229519747e+33 | N96: -2.229519804e+33
A97: 79 | B97: 142.35 | C97: -6.474285878e+10 | D97: 3.530517872e+11 | E97: -20894.39561 | F97: 17411.18539 | G97: 27197.88861 | H97: 3.589389951e+11 | I97: 100.3914795 | J97: -5.734945476e+25 | K97: -5.659951621e+25 | L97: 0.9869233535 | M97: 2.2090412e+33 | N97: -2.209041257e+33
A98: 80 | B98: 144.175 | C98: -6.80351589e+10 | D98: 3.557846656e+11 | E98: -20864.75546 | F98: 17252.93609 | G98: 27074.00643 | H98: 3.62231295e+11 | I98: 100.8257304 | J98: -5.736111252e+25 | K98: -5.661117398e+25 | L98: 0.9869260112 | M98: 2.188963347e+33 | N98: -2.188963405e+33
A99: 81 | B99: 146 | C99: -7.132273481e+10 | D99: 3.584928345e+11 | E99: -20834.48251 | F99: 17097.7585 | G99: 26951.97594 | H99: 3.655188708e+11 | I99: 101.2521641 | J99: -5.737219757e+25 | K99: -5.662225903e+25 | L99: 0.9869285372 | M99: 2.169275217e+33 | N99: -2.169275275e+33
A100: 82 | B100: 147.825 | C100: -7.460549061e+10 | D100: 3.611767717e+11 | E100: -20803.62544 | F100: 16945.56891 | G100: 26831.75613 | H100: 3.688016264e+11 | I100: 101.6710007 | J100: -5.738273845e+25 | K100: -5.66327999e+25 | L100: 0.9869309384 | M100: 2.14996619e+33 | N100: -2.149966247e+33
A101: 83 | B101: 149.65 | C101: -7.788333784e+10 | D101: 3.638369419e+11 | E101: -20772.22999 | F101: 16796.28632 | G101: 26713.30703 | H101: 3.720794735e+11 | I101: 102.0824523 | J101: -5.739276252e+25 | K101: -5.664282398e+25 | L101: 0.986933221 | M101: 2.131025987e+33 | N101: -2.131026045e+33
A102: 84 | B102: 151.475 | C102: -8.115619503e+10 | D102: 3.664737973e+11 | E102: -20740.33912 | F102: 16649.83232 | G102: 26596.58969 | H102: 3.753523306e+11 | I102: 102.4867232 | J102: -5.740229488e+25 | K102: -5.665235633e+25 | L102: 0.9869353909 | M102: 2.112444663e+33 | N102: -2.11244472e+33
A103: 85 | B103: 153.3 | C103: -8.442398727e+10 | D103: 3.690877777e+11 | E103: -20707.9932 | F103: 16506.13104 | G103: 26481.56612 | H103: 3.786201227e+11 | I103: 102.8840103 | J103: -5.741136232e+25 | K103: -5.666142377e+25 | L103: 0.9869374543 | M103: 2.094212588e+33 | N103: -2.094212646e+33
A104: 86 | B104: 155.125 | C104: -8.768664584e+10 | D104: 3.716793116e+11 | E104: -20675.23017 | F104: 16365.10905 | G104: 26368.19934 | H104: 3.818827811e+11 | I104: 103.2745035 | J104: -5.741998531e+25 | K104: -5.667004676e+25 | L104: 0.9869394159 | M104: 2.076320447e+33 | N104: -2.076320505e+33
A105: 87 | B105: 156.95 | C105: -9.094410781e+10 | D105: 3.742488156e+11 | E105: -20642.08568 | F105: 16226.69525 | G105: 26256.4533 | H105: 3.851402429e+11 | I105: 103.658386 | J105: -5.74281895e+25 | K105: -5.667825095e+25 | L105: 0.9869412818 | M105: 2.058759222e+33 | N105: -2.058759279e+33
A106: 88 | B106: 158.775 | C106: -9.41963157e+10 | D106: 3.767966956e+11 | E106: -20608.59324 | F106: 16090.82086 | G106: 26146.29288 | H106: 3.883924507e+11 | I106: 104.0358344 | J106: -5.743599391e+25 | K106: -5.668605536e+25 | L106: 0.9869430562 | M106: 2.041520182e+33 | N106: -2.041520239e+33
A107: 89 | B107: 160.6 | C107: -9.744321715e+10 | D107: 3.793233468e+11 | E107: -20574.78436 | F107: 15957.41927 | G107: 26037.68387 | H107: 3.91639352e+11 | I107: 104.4070192 | J107: -5.74434193e+25 | K107: -5.669348075e+25 | L107: 0.986944744 | M107: 2.024594879e+33 | N107: -2.024594936e+33
A108: 90 | B108: 162.425 | C108: -1.006847646e+11 | D108: 3.81829154e+11 | E108: -20540.68866 | F108: 15826.42602 | G108: 25930.59296 | H108: 3.948808993e+11 | I108: 104.7721049 | J108: -5.745048642e+25 | K108: -5.670054788e+25 | L108: 0.9869463499 | M108: 2.007975133e+33 | N108: -2.00797519e+33
A109: 91 | B109: 164.25 | C109: -1.039209151e+11 | D109: 3.843144918e+11 | E109: -20506.33397 | F109: 15697.77868 | G109: 25824.98767 | H109: 3.981170497e+11 | I109: 105.1312503 | J109: -5.745721285e+25 | K109: -5.670727431e+25 | L109: 0.9869478781 | M109: 1.991653024e+33 | N109: -1.991653082e+33
A110: 92 | B110: 166.075 | C110: -1.071516299e+11 | D110: 3.867797256e+11 | E110: -20471.74648 | F110: 15571.41682 | G110: 25720.83642 | H110: 4.013477643e+11 | I110: 105.4846089 | J110: -5.746361676e+25 | K110: -5.671367821e+25 | L110: 0.9869493327 | M110: 1.975620886e+33 | N110: -1.975620944e+33
A111: 93 | B111: 167.9 | C111: -1.103768741e+11 | D111: 3.892252109e+11 | E111: -20436.95081 | F111: 15447.28194 | G111: 25618.10839 | H111: 4.045730084e+11 | I111: 105.8323288 | J111: -5.746971312e+25 | K111: -5.671977457e+25 | L111: 0.9869507171 | M111: 1.959871294e+33 | N111: -1.959871352e+33
A112: 94 | B112: 169.725 | C112: -1.13596617e+11 | D112: 3.916512945e+11 | E112: -20401.9701 | F112: 15325.31734 | G112: 25516.77361 | H112: 4.077927511e+11 | I112: 106.1745531 | J112: -5.747551779e+25 | K112: -5.672557924e+25 | L112: 0.986952035 | M112: 1.944397058e+33 | N112: -1.944397115e+33
A113: 95 | B113: 171.55 | C113: -1.168108309e+11 | D113: 3.940583141e+11 | E113: -20366.82611 | F113: 15205.46816 | G113: 25416.80286 | H113: 4.110069648e+11 | I113: 106.5114202 | J113: -5.748104691e+25 | K113: -5.673110837e+25 | L113: 0.9869532901 | M113: 1.929191213e+33 | N113: -1.929191271e+33
A114: 96 | B114: 173.375 | C114: -1.200194917e+11 | D114: 3.964465993e+11 | E114: -20331.53933 | F114: 15087.68121 | G114: 25318.1677 | H114: 4.142156256e+11 | I114: 106.8430638 | J114: -5.748631461e+25 | K114: -5.673637606e+25 | L114: 0.9869544856 | M114: 1.914247015e+33 | N114: -1.914247073e+33
A115: 97 | B115: 175.2 | C115: -1.232225786e+11 | D115: 3.98816471e+11 | E115: -20296.12898 | F115: 14971.905 | G115: 25220.84041 | H115: 4.174187123e+11 | I115: 107.1696132 | J115: -5.749133328e+25 | K115: -5.674139473e+25 | L115: 0.9869556244 | M115: 1.899557929e+33 | N115: -1.899557987e+33
A116: 98 | B116: 177.025 | C116: -1.264200734e+11 | D116: 4.011682423e+11 | E116: -20260.61318 | F116: 14858.08963 | G116: 25124.794 | H116: 4.20616207e+11 | I116: 107.4911934 | J116: -5.749611675e+25 | K116: -5.67461782e+25 | L116: 0.9869567096 | M116: 1.885117624e+33 | N116: -1.885117681e+33
A117: 99 | B117: 178.85 | C117: -1.296119609e+11 | D117: 4.035022186e+11 | E117: -20225.00892 | F117: 14746.18673 | G117: 25030.00218 | H117: 4.238080944e+11 | I117: 107.8079255 | J117: -5.750067598e+25 | K117: -5.675073743e+25 | L117: 0.9869577438 | M117: 1.870919964e+33 | N117: -1.870920021e+33
A118: 100 | B118: 180.675 | C118: -1.327982284e+11 | D118: 4.058186978e+11 | E118: -20189.33222 | F118: 14636.14945 | G118: 24936.43933 | H118: 4.269943617e+11 | I118: 108.1199265 | J118: -5.750502278e+25 | K118: -5.675508423e+25 | L118: 0.9869587297 | M118: 1.856959003e+33 | N118: -1.856959061e+33
A119: 101 | B119: 182.5 | C119: -1.359788657e+11 | D119: 4.081179704e+11 | E119: -20153.59812 | F119: 14527.93237 | G119: 24844.0805 | H119: 4.301749989e+11 | I119: 108.4273096 | J119: -5.750916897e+25 | K119: -5.675923043e+25 | L119: 0.9869596699 | M119: 1.843228979e+33 | N119: -1.843229037e+33
A120: 102 | B120: 184.325 | C120: -1.391538649e+11 | D120: 4.104003199e+11 | E120: -20117.82073 | F120: 14421.49144 | G120: 24752.90137 | H120: 4.333499979e+11 | I120: 108.7301845 | J120: -5.751312349e+25 | K120: -5.676318495e+25 | L120: 0.9869605666 | M120: 1.829724305e+33 | N120: -1.829724363e+33
A121: 103 | B121: 186.15 | C121: -1.423232201e+11 | D121: 4.12666023e+11 | E121: -20082.01337 | F121: 14316.78398 | G121: 24662.87827 | H121: 4.36519353e+11 | I121: 109.0286575 | J121: -5.751689614e+25 | K121: -5.67669576e+25 | L121: 0.9869614219 | M121: 1.816439565e+33 | N121: -1.816439623e+33
A122: 104 | B122: 187.975 | C122: -1.454869277e+11 | D122: 4.149153498e+11 | E122: -20046.18851 | F122: 14213.7686 | G122: 24573.98811 | H122: 4.396830605e+11 | I122: 109.3228313 | J122: -5.752049614e+25 | K122: -5.677055759e+25 | L122: 0.9869622379 | M122: 1.803369506e+33 | N122: -1.803369564e+33
A123: 105 | B123: 189.8 | C123: -1.486449858e+11 | D123: 4.171485639e+11 | E123: -20010.35788 | F123: 14112.40513 | G123: 24486.20839 | H123: 4.428411184e+11 | I123: 109.6128057 | J123: -5.752393213e+25 | K123: -5.677399359e+25 | L123: 0.9869630167 | M123: 1.790509034e+33 | N123: -1.790509092e+33
A124: 106 | B124: 191.625 | C124: -1.517973944e+11 | D124: 4.193659227e+11 | E124: -19974.53252 | F124: 14012.65465 | G124: 24399.5172 | H124: 4.459935269e+11 | I124: 109.8986772 | J124: -5.752721363e+25 | K124: -5.677727509e+25 | L124: 0.9869637603 | M124: 1.777853209e+33 | N124: -1.777853267e+33
A125: 107 | B125: 193.45 | C125: -1.549441552e+11 | D125: 4.215676775e+11 | E125: -19938.72276 | F125: 13914.47937 | G125: 24313.89317 | H125: 4.491402876e+11 | I125: 110.1805394 | J125: -5.753034583e+25 | K125: -5.678040729e+25 | L125: 0.9869644701 | M125: 1.765397238e+33 | N125: -1.765397295e+33
A126: 108 | B126: 195.275 | C126: -1.580852714e+11 | D126: 4.237540738e+11 | E126: -19902.93833 | F126: 13817.84263 | G126: 24229.31549 | H126: 4.522814036e+11 | I126: 110.4584829 | J126: -5.753333853e+25 | K126: -5.678339999e+25 | L126: 0.9869651481 | M126: 1.753136469e+33 | N126: -1.753136526e+33
A127: 109 | B127: 197.1 | C127: -1.612207476e+11 | D127: 4.259253513e+11 | E127: -19867.18835 | F127: 13722.70887 | G127: 24145.76385 | H127: 4.554168798e+11 | I127: 110.7325959 | J127: -5.753619691e+25 | K127: -5.678625837e+25 | L127: 0.9869657957 | M127: 1.74106639e+33 | N127: -1.741066447e+33
A128: 110 | B128: 198.925 | C128: -1.643505901e+11 | D128: 4.280817444e+11 | E128: -19831.48139 | F128: 13629.04356 | G128: 24063.21846 | H128: 4.585467221e+11 | I128: 111.0029635 | J128: -5.753892934e+25 | K128: -5.678899079e+25 | L128: 0.9869664147 | M128: 1.72918262e+33 | N128: -1.729182678e+33
A129: 111 | B129: 200.75 | C129: -1.674748063e+11 | D129: 4.302234819e+11 | E129: -19795.82547 | F129: 13536.81319 | G129: 23981.66003 | H129: 4.616709382e+11 | I129: 111.2696685 | J129: -5.75415407e+25 | K129: -5.679160216e+25 | L129: 0.9869670062 | M129: 1.717480908e+33 | N129: -1.717480966e+33
A130: 112 | B130: 202.575 | C130: -1.705934047e+11 | D130: 4.323507875e+11 | E130: -19760.22813 | F130: 13445.98523 | G130: 23901.06974 | H130: 4.647895365e+11 | I130: 111.5327913 | J130: -5.754403735e+25 | K130: -5.679409881e+25 | L130: 0.9869675716 | M130: 1.705957127e+33 | N130: -1.705957184e+33
A131: 113 | B131: 204.4 | C131: -1.737063953e+11 | D131: 4.344638799e+11 | E131: -19724.69643 | F131: 13356.52808 | G131: 23821.42925 | H131: 4.679025269e+11 | I131: 111.7924098 | J131: -5.754642448e+25 | K131: -5.679648593e+25 | L131: 0.9869681122 | M131: 1.694607266e+33 | N131: -1.694607324e+33
A132: 114 | B132: 206.225 | C132: -1.768137888e+11 | D132: 4.365629727e+11 | E132: -19689.23698 | F132: 13268.41106 | G132: 23742.72067 | H132: 4.710099203e+11 | I132: 112.0485997 | J132: -5.754870813e+25 | K132: -5.679876958e+25 | L132: 0.9869686294 | M132: 1.683427434e+33 | N132: -1.683427492e+33
A133: 115 | B133: 208.05 | C133: -1.799155972e+11 | D133: 4.386482749e+11 | E133: -19653.85597 | F133: 13181.60437 | G133: 23664.92654 | H133: 4.741117285e+11 | I133: 112.3014344 | J133: -5.755089349e+25 | K133: -5.680095494e+25 | L133: 0.9869691242 | M133: 1.672413851e+33 | N133: -1.672413908e+33
A134: 116 | B134: 209.875 | C134: -1.830118333e+11 | D134: 4.407199908e+11 | E134: -19618.5592 | F134: 13096.07905 | G134: 23588.02984 | H134: 4.772079645e+11 | I134: 112.5509852 | J134: -5.755298402e+25 | K134: -5.680304548e+25 | L134: 0.9869695975 | M134: 1.661562841e+33 | N134: -1.661562899e+33
A135: 117 | B135: 211.7 | C135: -1.861025107e+11 | D135: 4.427783202e+11 | E135: -19583.35209 | F135: 13011.80698 | G135: 23512.01395 | H135: 4.802986418e+11 | I135: 112.7973215 | J135: -5.755498578e+25 | K135: -5.680504724e+25 | L135: 0.9869700507 | M135: 1.650870838e+33 | N135: -1.650870895e+33
A136: 118 | B136: 213.525 | C136: -1.891876442e+11 | D136: 4.448234586e+11 | E136: -19548.23971 | F136: 12928.76083 | G136: 23436.86268 | H136: 4.833837751e+11 | I136: 113.0405105 | J136: -5.755690165e+25 | K136: -5.680696311e+25 | L136: 0.9869704844 | M136: 1.640334372e+33 | N136: -1.640334429e+33
A137: 119 | B137: 215.35 | C137: -1.922672488e+11 | D137: 4.468555973e+11 | E137: -19513.22679 | F137: 12846.91402 | G137: 23362.56021 | H137: 4.864633797e+11 | I137: 113.2806177 | J137: -5.755873681e+25 | K137: -5.680879827e+25 | L137: 0.9869708999 | M137: 1.629950072e+33 | N137: -1.62995013e+33
A138: 120 | B138: 217.175 | C138: -1.953413408e+11 | D138: 4.488749231e+11 | E138: -19478.31774 | F138: 12766.24073 | G138: 23289.0911 | H138: 4.895374715e+11 | I138: 113.5177067 | J138: -5.756049473e+25 | K138: -5.681055619e+25 | L138: 0.9869712978 | M138: 1.619714663e+33 | N138: -1.61971472e+33
A139: 121 | B139: 219 | C139: -1.984099368e+11 | D139: 4.508816193e+11 | E139: -19443.51668 | F139: 12686.71586 | G139: 23216.4403 | H139: 4.926060674e+11 | I139: 113.7518392 | J139: -5.756217886e+25 | K139: -5.681224032e+25 | L139: 0.986971679 | M139: 1.609624958e+33 | N139: -1.609625015e+33
A140: 122 | B140: 220.825 | C140: -2.014730541e+11 | D140: 4.528758649e+11 | E140: -19408.82745 | F140: 12608.31497 | G140: 23144.5931 | H140: 4.956691846e+11 | I140: 113.9830754 | J140: -5.756379295e+25 | K140: -5.681385441e+25 | L140: 0.9869720443 | M140: 1.59967786e+33 | N140: -1.599677917e+33
A141: 123 | B141: 222.65 | C141: -2.045307107e+11 | D141: 4.548578353e+11 | E141: -19374.25362 | F141: 12531.01434 | G141: 23073.53514 | H141: 4.98726841e+11 | I141: 114.2114737 | J141: -5.756534017e+25 | K141: -5.681540163e+25 | L141: 0.9869723944 | M141: 1.589870356e+33 | N141: -1.589870413e+33
A142: 124 | B142: 224.475 | C142: -2.07582925e+11 | D142: 4.568277022e+11 | E142: -19339.79851 | F142: 12454.79087 | G142: 23003.25242 | H142: 5.017790552e+11 | I142: 114.4370909 | J142: -5.756682312e+25 | K142: -5.681688457e+25 | L142: 0.98697273 | M142: 1.580199516e+33 | N142: -1.580199573e+33
A143: 125 | B143: 226.3 | C143: -2.106297159e+11 | D143: 4.587856336e+11 | E143: -19305.46518 | F143: 12379.62208 | G143: 22933.73124 | H143: 5.048258461e+11 | I143: 114.6599823 | J143: -5.756824553e+25 | K143: -5.681830699e+25 | L143: 0.9869730519 | M143: 1.570662489e+33 | N143: -1.570662546e+33
A144: 126 | B144: 228.125 | C144: -2.13671103e+11 | D144: 4.607317941e+11 | E144: -19271.25651 | F144: 12305.48612 | G144: 22864.95826 | H144: 5.07867233e+11 | I144: 114.8802018 | J144: -5.756961002e+25 | K144: -5.681967147e+25 | L144: 0.9869733607 | M144: 1.561256502e+33 | N144: -1.561256559e+33
A145: 127 | B145: 229.95 | C145: -2.167071061e+11 | D145: 4.626663449e+11 | E145: -19237.17513 | F145: 12232.36171 | G145: 22796.9204 | H145: 5.10903236e+11 | I145: 115.0978016 | J145: -5.757091887e+25 | K145: -5.682098033e+25 | L145: 0.9869736568 | M145: 1.551978856e+33 | N145: -1.551978913e+33
A146: 128 | B146: 231.775 | C146: -2.197377454e+11 | D146: 4.645894438e+11 | E146: -19203.22347 | F146: 12160.22816 | G146: 22729.60494 | H146: 5.139338752e+11 | I146: 115.3128329 | J146: -5.757217498e+25 | K146: -5.682223643e+25 | L146: 0.986973941 | M146: 1.542826923e+33 | N146: -1.542826981e+33
A147: 129 | B147: 233.6 | C147: -2.227630416e+11 | D147: 4.665012455e+11 | E147: -19169.4038 | F147: 12089.06529 | G147: 22662.9994 | H147: 5.169591712e+11 | I147: 115.5253452 | J147: -5.757338122e+25 | K147: -5.682344268e+25 | L147: 0.986974214 | M147: 1.533798147e+33 | N147: -1.533798205e+33
A148: 130 | B148: 235.425 | C148: -2.257830156e+11 | D148: 4.684019014e+11 | E148: -19135.71819 | F148: 12018.8535 | G148: 22597.09163 | H148: 5.199791451e+11 | I148: 115.7353868 | J148: =0.5*$L$4*G148^2-$L$2*$L$3*$L$4/H148 -> -5.757453818e+25 | K148: -5.682459964e+25 | L148: =K148/J148 -> 0.9869744757 | M148: =0.5*$L$4*G148^2 -> 1.524890039e+33 | N148: =-$L$2*$L$3*$L$4/H148 -> -1.524890097e+33
A149: 131 | B149: 237.25 | C149: -2.287976888e+11 | D149: 4.702915601e+11 | E149: -19102.16852 | F149: 11949.57368 | G149: 22531.86973 | H149: 5.229938182e+11 | I149: 115.9430048 | J149: -5.757565017e+25 | K149: =J149-$J$20 -> -5.682571163e+25 | L149: 0.9869747273 | M149: 1.516100174e+33 | N149: -1.516100231e+33
A150: 132 | B150: 239.075 | C150: -2.318070827e+11 | D150: 4.72170367e+11 | E150: -19068.75656 | F150: 11881.20723 | G150: 22467.32209 | H150: 5.26003212e+11 | I150: 116.1482451 | J150: -5.757671864e+25 | K150: -5.68267801e+25 | L150: 0.986974969 | M150: 1.507426191e+33 | N150: -1.507426249e+33
A151: 133 | B151: 240.9 | C151: -2.348112192e+11 | D151: 4.740384646e+11 | E151: -19035.48387 | F151: 11813.73601 | G151: 22403.43734 | H151: 5.290073484e+11 | I151: 116.3511522 | J151: -5.757774446e+25 | K151: -5.682780591e+25 | L151: 0.9869752011 | M151: 1.498865792e+33 | N151: -1.49886585e+33
A152: 134 | B152: 242.725 | C152: -2.378101203e+11 | D152: 4.758959929e+11 | E152: -19002.35192 | F152: 11747.14237 | G152: 22340.2044 | H152: 5.320062494e+11 | I152: 116.5517699 | J152: -5.757873049e+25 | K152: -5.682879195e+25 | L152: 0.9869754241 | M152: 1.490416737e+33 | N152: -1.490416795e+33
A153: 135 | B153: 244.55 | C153: -2.408038084e+11 | D153: 4.777430887e+11 | E153: -18969.36202 | F153: 11681.40913 | G153: 22277.61241 | H153: 5.349999373e+11 | I153: 116.7501404 | J153: -5.75796779e+25 | K153: -5.682973936e+25 | L153: 0.9869756384 | M153: 1.482076843e+33 | N153: -1.482076901e+33
A154: 136 | B154: 246.375 | C154: -2.437923059e+11 | D154: 4.795798864e+11 | E154: -18936.51533 | F154: 11616.51951 | G154: 22215.65075 | H154: 5.379884347e+11 | I154: 116.9463051 | J154: -5.758058871e+25 | K154: -5.683065017e+25 | L154: 0.9869758444 | M154: 1.473843984e+33 | N154: -1.473844042e+33
A155: 137 | B155: 248.2 | C155: -2.467756354e+11 | D155: 4.814065178e+11 | E155: -18903.81293 | F155: 11552.45719 | G155: 22154.30907 | H155: 5.409717641e+11 | I155: 117.1403043 | J155: -5.758146522e+25 | K155: -5.683152668e+25 | L155: 0.9869760427 | M155: 1.465716088e+33 | N155: -1.465716145e+33
A156: 138 | B156: 250.025 | C156: -2.497538199e+11 | D156: 4.832231119e+11 | E156: -18871.25577 | F156: 11489.20624 | G156: 22093.57722 | H156: 5.439499485e+11 | I156: 117.3321774 | J156: -5.758230743e+25 | K156: -5.683236888e+25 | L156: 0.9869762332 | M156: 1.457691134e+33 | N156: -1.457691192e+33
A157: 139 | B157: 251.85 | C157: -2.527268823e+11 | D157: 4.850297957e+11 | E157: -18838.84468 | F157: 11426.75114 | G157: 22033.44527 | H157: 5.469230108e+11 | I157: 117.5219626 | J157: -5.758311851e+25 | K157: -5.683317997e+25 | L157: 0.9869764166 | M157: 1.449767155e+33 | N157: -1.449767213e+33
A158: 140 | B158: 253.675 | C158: -2.556948457e+11 | D158: 4.868266932e+11 | E158: -18806.58039 | F158: 11365.07676 | G158: 21973.90352 | H158: 5.498909741e+11 | I158: 117.7096975 | J158: -5.758389817e+25 | K158: -5.683395963e+25 | L158: 0.986976593 | M158: 1.44194223e+33 | N158: -1.441942287e+33
A159: 141 | B159: 255.5 | C159: -2.586577333e+11 | D159: 4.886139265e+11 | E159: -18774.46356 | F159: 11304.16836 | G159: 21914.94249 | H159: 5.528538615e+11 | I159: 117.8954183 | J159: -5.758464815e+25 | K159: -5.68347096e+25 | L159: 0.9869767626 | M159: 1.434214486e+33 | N159: -1.434214544e+33
A160: 142 | B160: 257.325 | C160: -2.616155683e+11 | D160: 4.903916153e+11 | E160: -18742.49472 | F160: 11244.01153 | G160: 21856.55288 | H160: 5.558116964e+11 | I160: 118.0791608 | J160: -5.758537074e+25 | K160: -5.68354322e+25 | L160: 0.986976926 | M160: 1.4265821e+33 | N160: -1.426582157e+33
A161: 143 | B161: 259.15 | C161: -2.645683742e+11 | D161: 4.921598768e+11 | E161: -18710.67435 | F161: 11184.59225 | G161: 21798.72561 | H161: 5.587645022e+11 | I161: 118.2609596 | J161: -5.758606595e+25 | K161: -5.683612741e+25 | L161: 0.9869770832 | M161: 1.419043288e+33 | N161: -1.419043346e+33
A162: 144 | B162: 260.975 | C162: -2.675161744e+11 | D162: 4.939188263e+11 | E162: -18679.00282 | F162: 11125.89682 | G162: 21741.4518 | H162: 5.617123023e+11 | I162: 118.4408487 | J162: -5.758673609e+25 | K162: -5.683679754e+25 | L162: 0.9869772348 | M162: 1.411596316e+33 | N162: -1.411596373e+33
A163: 145 | B163: 262.8 | C163: -2.704589924e+11 | D163: 4.956685769e+11 | E163: -18647.48043 | F163: 11067.91188 | G163: 21684.72273 | H163: 5.646551202e+11 | I163: 118.6188612 | J163: -5.758738115e+25 | K163: -5.68374426e+25 | L163: 0.9869773806 | M163: 1.404239487e+33 | N163: -1.404239545e+33
A164: 146 | B164: 264.625 | C164: -2.733968517e+11 | D164: 4.974092397e+11 | E164: -18616.10743 | F164: 11010.6244 | G164: 21628.5299 | H164: 5.675929794e+11 | I164: 118.7950293 | J164: -5.758800315e+25 | K164: -5.683806461e+25 | L164: 0.9869775213 | M164: 1.396971148e+33 | N164: -1.396971206e+33
A165: 147 | B165: 266.45 | C165: -2.763297759e+11 | D165: 4.991409234e+11 | E165: -18584.88397 | F165: 10954.02166 | G165: 21572.86496 | H165: 5.705259034e+11 | I165: 118.9693846 | J165: -5.758860209e+25 | K165: -5.683866355e+25 | L165: 0.9869776567 | M165: 1.389789686e+33 | N165: -1.389789743e+33
A166: 148 | B166: 268.275 | C166: -2.792577886e+11 | D166: 5.008637353e+11 | E166: -18553.81015 | F166: 10898.09125 | G166: 21517.71977 | H166: 5.73453916e+11 | I166: 119.141958 | J166: -5.758917884e+25 | K166: -5.68392403e+25 | L166: 0.9869777871 | M166: 1.382693524e+33 | N166: -1.382693581e+33
A167: 149 | B167: 270.1 | C167: -2.821809133e+11 | D167: 5.025777802e+11 | E167: -18522.88601 | F167: 10842.82103 | G167: 21463.08632 | H167: 5.763770406e+11 | I167: 119.3127795 | J167: -5.758973513e+25 | K167: -5.683979658e+25 | L167: 0.9869779129 | M167: 1.375681125e+33 | N167: -1.375681183e+33
A168: 150 | B168: 271.925 | C168: -2.850991738e+11 | D168: 5.042831614e+11 | E168: -18492.11154 | F168: 10788.19919 | G168: 21408.95679 | H168: 5.79295301e+11 | I168: 119.4818784 | J168: -5.759027152e+25 | K168: -5.684033298e+25 | L168: 0.9869780342 | M168: 1.368750988e+33 | N168: -1.368751045e+33
A169: 151 | B169: 273.75 | C169: -2.880125935e+11 | D169: 5.059799802e+11 | E169: -18461.48666 | F169: 10734.21416 | G169: 21355.32353 | H169: 5.822087206e+11 | I169: 119.6492836 | J169: -5.759078947e+25 | K169: -5.684085093e+25 | L169: 0.9869781513 | M169: 1.361901647e+33 | N169: -1.361901704e+33
A170: 152 | B170: 275.575 | C170: -2.90921196e+11 | D170: 5.07668336e+11 | E170: -18431.01124 | F170: 10680.85466 | G170: 21302.17903 | H170: 5.85117323e+11 | I170: 119.8150231 | J170: -5.759128782e+25 | K170: -5.684134928e+25 | L170: 0.986978264 | M170: 1.35513167e+33 | N170: -1.355131728e+33
A171: 153 | B171: 277.4 | C171: -2.93825005e+11 | D171: 5.093483268e+11 | E171: -18400.68511 | F171: 10628.10968 | G171: 21249.51595 | H171: 5.880211319e+11 | I171: 119.9791243 | J171: -5.759176917e+25 | K171: -5.684183062e+25 | L171: 0.9869783728 | M171: 1.34843966e+33 | N171: -1.348439717e+33
A172: 154 | B172: 279.225 | C172: -2.967240439e+11 | D172: 5.110200484e+11 | E172: -18370.50806 | F172: 10575.96845 | G172: 21197.32707 | H172: 5.909201707e+11 | I172: 120.1416141 | J172: -5.759223351e+25 | K172: -5.684229496e+25 | L172: 0.9869784778 | M172: 1.34182425e+33 | N172: -1.341824307e+33
A173: 155 | B173: 281.05 | C173: -2.996183363e+11 | D173: 5.126835954e+11 | E173: -18340.47983 | F173: 10524.42045 | G173: 21145.60536 | H173: 5.938144629e+11 | I173: 120.3025185 | J173: -5.759268199e+25 | K173: -5.684274345e+25 | L173: 0.9869785792 | M173: 1.335284107e+33 | N173: -1.335284164e+33
A174: 156 | B174: 282.875 | C174: -3.025079055e+11 | D174: 5.143390603e+11 | E174: -18310.60011 | F174: 10473.45541 | G174: 21094.3439 | H174: 5.96704032e+11 | I174: 120.4618633 | J174: -5.759311434e+25 | K174: -5.684317579e+25 | L174: 0.986978677 | M174: 1.328817926e+33 | N174: -1.328817984e+33
A175: 157 | B175: 284.7 | C175: -3.053927749e+11 | D175: 5.159865344e+11 | E175: -18280.86857 | F175: 10423.06329 | G175: 21043.53592 | H175: 5.995889014e+11 | I175: 120.6196736 | J175: -5.759353227e+25 | K175: -5.684359373e+25 | L175: 0.9869787715 | M175: 1.322424435e+33 | N175: -1.322424493e+33
A176: 158 | B176: 286.525 | C176: -3.082729679e+11 | D176: 5.176261072e+11 | E176: -18251.28483 | F176: 10373.23429 | G176: 20993.17478 | H176: 6.024690943e+11 | I176: 120.7759737 | J176: -5.759393551e+25 | K176: -5.684399696e+25 | L176: 0.9869788626 | M176: 1.316102389e+33 | N176: -1.316102446e+33
A177: 159 | B177: 288.35 | C177: -3.111485078e+11 | D177: 5.192578666e+11 | E177: -18221.84848 | F177: 10323.9588 | G177: 20943.25399 | H177: 6.053446341e+11 | I177: 120.9307877 | J177: -5.759432462e+25 | K177: -5.684438607e+25 | L177: 0.9869789506 | M177: 1.30985057e+33 | N177: -1.309850628e+33
A178: 160 | B178: 290.175 | C178: -3.140194178e+11 | D178: 5.208818994e+11 | E178: -18192.5591 | F178: 10275.22746 | G178: 20893.76716 | H178: 6.082155439e+11 | I178: 121.084139 | J178: -5.759470134e+25 | K178: -5.684476279e+25 | L178: 0.9869790358 | M178: 1.30366779e+33 | N178: -1.303667847e+33
A179: 161 | B179: 292 | C179: -3.16885721e+11 | D179: 5.224982905e+11 | E179: -18163.41621 | F179: 10227.0311 | G179: 20844.70805 | H179: 6.11081847e+11 | I179: 121.2360506 | J179: -5.759506508e+25 | K179: -5.684512654e+25 | L179: 0.986979118 | M179: 1.297552885e+33 | N179: -1.297552943e+33
A180: 162 | B180: 293.825 | C180: -3.197474404e+11 | D180: 5.241071236e+11 | E180: -18134.41931 | F180: 10179.36077 | G180: 20796.07053 | H180: 6.139435663e+11 | I180: 121.3865448 | J180: -5.7595416e+25 | K180: -5.684547746e+25 | L180: 0.9869791974 | M180: 1.29150472e+33 | N180: -1.291504777e+33
A181: 163 | B181: 295.65 | C181: -3.226045991e+11 | D181: 5.257084809e+11 | E181: -18105.5679 | F181: 10132.20769 | G181: 20747.8486 | H181: 6.168007249e+11 | I181: 121.5356437 | J181: -5.759575539e+25 | K181: -5.684581685e+25 | L181: 0.9869792741 | M181: 1.285522181e+33 | N181: -1.285522239e+33
A182: 164 | B182: 297.475 | C182: -3.254572199e+11 | D182: 5.273024433e+11 | E182: -18076.86141 | F182: 10085.56331 | G182: 20700.03637 | H182: 6.196533456e+11 | I182: 121.6833687 | J182: -5.759608326e+25 | K182: -5.684614471e+25 | L182: 0.9869793482 | M182: 1.279604183e+33 | N182: -1.279604241e+33
A183: 165 | B183: 299.3 | C183: -3.283053257e+11 | D183: 5.288890904e+11 | E183: -18048.29929 | F183: 10039.41923 | G183: 20652.62806 | H183: 6.225014513e+11 | I183: 121.8297409 | J183: -5.759640103e+25 | K183: -5.684646249e+25 | L183: 0.98697942 | M183: 1.273749662e+33 | N183: -1.273749719e+33
A184: 166 | B184: 301.125 | C184: -3.311489391e+11 | D184: 5.304685004e+11 | E184: -18019.88094 | F184: 9993.767267 | G184: 20605.61801 | H184: 6.253450646e+11 | I184: 121.9747808 | J184: -5.759670814e+25 | K184: -5.68467696e+25 | L184: 0.9869794895 | M184: 1.267957577e+33 | N184: -1.267957634e+33
A185: 167 | B185: 302.95 | C185: -3.339880829e+11 | D185: 5.320407503e+11 | E185: -17991.60577 | F185: 9948.599394 | G185: 20559.00066 | H185: 6.281842083e+11 | I185: 122.1185087 | J185: -5.759700487e+25 | K185: -5.684706633e+25 | L185: 0.9869795565 | M185: 1.262226911e+33 | N185: -1.262226968e+33
A186: 168 | B186: 304.775 | C186: -3.368227794e+11 | D186: 5.336059158e+11 | E186: -17963.47314 | F186: 9903.907765 | G186: 20512.77056 | H186: 6.310189047e+11 | I186: 122.2609442 | J186: -5.759729123e+25 | K186: -5.684735269e+25 | L186: 0.9869796213 | M186: 1.256556668e+33 | N186: -1.256556726e+33
A187: 169 | B187: 306.6 | C187: -3.396530512e+11 | D187: 5.351640713e+11 | E187: -17935.48241 | F187: 9859.6847 | G187: 20466.92238 | H187: 6.338491764e+11 | I187: 122.4021068 | J187: -5.759756937e+25 | K187: -5.684763083e+25 | L187: 0.9869796842 | M187: 1.250945875e+33 | N187: -1.250945932e+33
A188: 170 | B188: 308.425 | C188: -3.424789206e+11 | D188: 5.367152902e+11 | E188: -17907.63292 | F188: 9815.922685 | G188: 20421.45085 | H188: 6.366750457e+11 | I188: 122.5420153 | J188: -5.759783815e+25 | K188: -5.68478996e+25 | L188: 0.9869797449 | M188: 1.245393577e+33 | N188: -1.245393634e+33
A189: 171 | B189: 310.25 | C189: -3.453004097e+11 | D189: 5.382596445e+11 | E189: -17879.924 | F189: 9772.614363 | G189: 20376.35085 | H189: 6.394965347e+11 | I189: 122.6806882 | J189: -5.759809856e+25 | K189: -5.684816002e+25 | L189: 0.9869798038 | M189: 1.239898841e+33 | N189: -1.239898898e+33
A190: 172 | B190: 312.075 | C190: -3.481175408e+11 | D190: 5.397972053e+11 | E190: -17852.35497 | F190: 9729.752535 | G190: 20331.6173 | H190: 6.423136656e+11 | I190: 122.8181438 | J190: -5.75983499e+25 | K190: -5.684841136e+25 | L190: 0.9869798606 | M190: 1.234460754e+33 | N190: -1.234460811e+33
A191: 173 | B191: 313.9 | C191: -3.509303357e+11 | D191: 5.413280424e+11 | E191: -17824.92511 | F191: 9687.330153 | G191: 20287.24527 | H191: 6.451264605e+11 | I191: 122.9543998 | J191: -5.759859374e+25 | K191: -5.68486552e+25 | L191: 0.9869799157 | M191: 1.229078421e+33 | N191: -1.229078479e+33
A192: 174 | B192: 315.725 | C192: -3.537388164e+11 | D192: 5.428522245e+11 | E192: -17797.63373 | F192: 9645.340316 | G192: 20243.22989 | H192: 6.479349411e+11 | I192: 123.0894737 | J192: -5.759882966e+25 | K192: -5.684889111e+25 | L192: 0.986979969 | M192: 1.223750968e+33 | N192: -1.223751026e+33
A193: 175 | B193: 317.55 | C193: -3.565430047e+11 | D193: 5.443698193e+11 | E193: -17770.4801 | F193: 9603.776267 | G193: 20199.56637 | H193: 6.507391293e+11 | I193: 123.2233826 | J193: -5.759905779e+25 | K193: -5.684911925e+25 | L193: 0.9869800206 | M193: 1.218477537e+33 | N193: -1.218477594e+33
A194: 176 | B194: 319.375 | C194: -3.593429222e+11 | D194: 5.458808934e+11 | E194: -17743.46349 | F194: 9562.63139 | G194: 20156.25004 | H194: 6.535390467e+11 | I194: 123.3561433 | J194: -5.75992793e+25 | K194: -5.684934075e+25 | L194: 0.9869800707 | M194: 1.213257288e+33 | N194: -1.213257345e+33
A195: 177 | B195: 321.2 | C195: -3.621385905e+11 | D195: 5.473855124e+11 | E195: -17716.58316 | F195: 9521.899204 | G195: 20113.27629 | H195: 6.563347149e+11 | I195: 123.4877721 | J195: -5.75994936e+25 | K195: -5.684955505e+25 | L195: 0.9869801191 | M195: 1.208089399e+33 | N195: -1.208089456e+33
A196: 178 | B196: 323.025 | C196: -3.64930031e+11 | D196: 5.488837409e+11 | E196: -17689.83836 | F196: 9481.573361 | G196: 20070.64061 | H196: 6.591261553e+11 | I196: 123.6182851 | J196: -5.759970185e+25 | K196: -5.68497633e+25 | L196: 0.9869801662 | M196: 1.202973064e+33 | N196: -1.202973122e+33
A197: 179 | B197: 324.85 | C197: -3.67717265e+11 | D197: 5.503756424e+11 | E197: -17663.22834 | F197: 9441.647645 | G197: 20028.33856 | H197: 6.619133892e+11 | I197: 123.7476981 | J197: -5.759990303e+25 | K197: -5.684996448e+25 | L197: 0.9869802117 | M197: 1.197907496e+33 | N197: -1.197907554e+33
A198: 180 | B198: 326.675 | C198: -3.705003138e+11 | D198: 5.518612796e+11 | E198: -17636.75233 | F198: 9402.115963 | G198: 19986.36579 | H198: 6.646964378e+11 | I198: 123.8760267 | J198: -5.760009759e+25 | K198: -5.685015904e+25 | L198: 0.9869802556 | M198: 1.192891921e+33 | N198: -1.192891979e+33
A199: 181 | B199: 328.5 | C199: -3.732791983e+11 | D199: 5.533407141e+11 | E199: -17610.40957 | F199: 9362.972349 | G199: 19944.71801 | H199: 6.674753222e+11 | I199: 124.0032859 | J199: -5.760028695e+25 | K199: -5.685034841e+25 | L199: 0.9869802985 | M199: 1.187925582e+33 | N199: -1.187925639e+33
A200: 182 | B200: 330.325 | C200: -3.760539395e+11 | D200: 5.548140066e+11 | E200: -17584.19928 | F200: 9324.210953 | G200: 19903.39102 | H200: 6.702500633e+11 | I200: 124.1294907 | J200: -5.760047027e+25 | K200: -5.685053172e+25 | L200: 0.9869803399 | M200: 1.183007736e+33 | N200: -1.183007794e+33
A201: 183 | B201: 332.15 | C201: -3.788245583e+11 | D201: 5.562812171e+11 | E201: -17558.12069 | F201: 9285.826046 | G201: 19862.38071 | H201: 6.73020682e+11 | I201: 124.2546556 | J201: -5.760064811e+25 | K201: -5.685070956e+25 | L201: 0.9869803801 | M201: 1.178137658e+33 | N201: -1.178137716e+33
A202: 184 | B202: 333.975 | C202: -3.815910753e+11 | D202: 5.577424042e+11 | E202: -17532.17301 | F202: 9247.812011 | G202: 19821.68301 | H202: 6.757871989e+11 | I202: 124.3787949 | J202: -5.760082061e+25 | K202: -5.685088207e+25 | L202: 0.9869804191 | M202: 1.173314634e+33 | N202: -1.173314692e+33
A203: 185 | B203: 335.8 | C203: -3.843535112e+11 | D203: 5.591976263e+11 | E203: -17506.35545 | F203: 9210.163342 | G203: 19781.29394 | H203: 6.785496347e+11 | I203: 124.5019227 | J203: -5.760098793e+25 | K203: -5.685104938e+25 | L203: 0.9869804569 | M203: 1.168537966e+33 | N203: -1.168538023e+33
A204: 186 | B204: 337.625 | C204: -3.871118864e+11 | D204: 5.606469403e+11 | E204: -17480.66724 | F204: 9172.874645 | G204: 19741.2096 | H204: 6.813080098e+11 | I204: 124.6240528 | J204: -5.760114977e+25 | K204: -5.685121123e+25 | L204: 0.9869804935 | M204: 1.163806969e+33 | N204: -1.163807026e+33
A205: 187 | B205: 339.45 | C205: -3.898662212e+11 | D205: 5.620904026e+11 | E205: -17455.10757 | F205: 9135.940628 | G205: 19701.42613 | H205: 6.840623445e+11 | I205: 124.7451987 | J205: -5.760130714e+25 | K205: -5.68513686e+25 | L205: 0.986980529 | M205: 1.159120972e+33 | N205: -1.159121029e+33
A206: 188 | B206: 341.275 | C206: -3.926165358e+11 | D206: 5.635280689e+11 | E206: -17429.67566 | F206: 9099.356104 | G206: 19661.93976 | H206: 6.86812659e+11 | I206: 124.8653736 | J206: -5.760145947e+25 | K206: -5.685152093e+25 | L206: 0.9869805635 | M206: 1.154479317e+33 | N206: -1.154479374e+33
A207: 189 | B207: 343.1 | C207: -3.953628503e+11 | D207: 5.649599937e+11 | E207: -17404.37071 | F207: 9063.115989 | G207: 19622.74678 | H207: 6.895589735e+11 | I207: 124.9845906 | J207: -5.760160777e+25 | K207: -5.685166922e+25 | L207: 0.986980597 | M207: 1.149881358e+33 | N207: -1.149881416e+33
A208: 190 | B208: 344.925 | C208: -3.981051848e+11 | D208: 5.66386231e+11 | E208: -17379.19192 | F208: 9027.215295 | G208: 19583.84354 | H208: 6.923013078e+11 | I208: 125.1028624 | J208: -5.760175145e+25 | K208: -5.685181291e+25 | L208: 0.9869806295 | M208: 1.145326464e+33 | N208: -1.145326522e+33
A209: 191 | B209: 346.75 | C209: -4.008435589e+11 | D209: 5.678068339e+11 | E209: -17354.13849 | F209: 8991.649131 | G209: 19545.22645 | H209: 6.950396818e+11 | I209: 125.2202016 | J209: -5.760189081e+25 | K209: -5.685195227e+25 | L209: 0.986980661 | M209: 1.140814013e+33 | N209: -1.140814071e+33
... 1010 more rows

Sheet VO> VII IPERBOLICA
A1: GRAVITAZIONE - TERRA(1) E SOLE(2)
H2: 6 | K2: kg= costante gravitazione universale | L2: 6.67428e-11 | M2: N*m^2/kg^2 | R2: Ep | S2: =-L2*L3*L4/A4 -> -5.390356429e+33 | T2: J
A3: xterra (m) | B3: yterra (m) | C3: vx terra (m/s) | D3: vy terra (m/s) | E3: massasole (kg) | F3: tf (g) | G3: NSTEP | K3: M= massa Sole | L3: 1.9891e+30 | M3: kg | R3: Ec | S3: =0.5*L4*D4^2 -> 6.522331279e+33 | T3: J
A4: =147098074000 -> 147098074000 | B4: 0 | C4: 0 | D4: ='VO= VII ORBITA PARABOLICA'!D4*1.1 -> 46734.1889 | E4: 1.9891e+30 | F4: =365*H2 -> 2190 | G4: =200*H2 -> 1200 | K4: m=massa Terra | L4: 5.9726e+24 | M4: kg | R4: Ec | S4: =SUM(S2:S3) -> 1.13197485e+33 | T4: J
S5: iperbole
C10: =MAX(C19:C3000) -> 147098074000 | D10: 3.34785309e+12 | E10: 0 | F10: 46734.1889 | G10: 46734.1889 | H10: 4.391362593e+12 | I10: dmax | K10: E0 | L10: =0.5*L4*D4^2-L2*L3*L4/A4 -> 1.13197485e+33 | M10: J | N10: --->> ellisse
C11: =MIN(C19:C3000) -> -2.84182074e+12 | D11: 0 | E11: -19311.63963 | F11: 14925.22481 | G11: 20964.71387 | H11: 147098074000 | I11: dmin
C12: CONCLUSIONE: SIMULAZIONE QUASI PERFETTA .AUMENTANDO GLI STEPS I RISULTATI NON CAMBIANO | L12: =0.5*L4*D4^2 -> 6.522331279e+33
A14: MOTO TERRA ATTORNO AL SOLE"
A18: step | B18: t(giorni) | C18: xterra | D18: yterra | E18: vxterra | F18: vyterra | G18: vterra | H18: distanza | I18: angolo | Q18: (x,y) sole
A19: 1 | B19: 0 | C19: 147098074000 | D19: 0 | E19: 0 | F19: 46734.1889 | G19: 46734.1889 | H19: 147098074000 | I19: 0
A20: 2 | B20: 1.825 | C20: 1.470218357e+11 | D20: 7367773948 | E20: -966.5608195 | F20: 46709.98522 | G20: 46719.98458 | H20: 1.472063323e+11 | I20: 2.86889017
A21: 3 | B21: 3.65 | C21: 1.467935353e+11 | D21: 1.472793314e+10 | E21: -1927.876987 | F21: 46637.71819 | G21: 46677.54779 | H21: 1.47530519e+11 | I21: 5.729366153
A22: 4 | B22: 5.475 | C22: 1.464144056e+11 | D22: 2.207297057e+10 | E22: -2878.832309 | F22: 46518.40622 | G22: 46607.40062 | H22: 1.480688833e+11 | I22: 8.573169443
A23: 5 | B23: 7.3 | C23: 1.458864679e+11 | D23: 2.939559056e+10 | E23: -3814.560352 | F23: 46353.70243 | G23: 46510.39239 | H23: 1.488185548e+11 | I23: 11.39234567
A24: 6 | B24: 9.125 | C24: 1.452124841e+11 | D24: 3.668880414e+10 | E24: -4730.552166 | F24: 46145.83184 | G24: 46387.66992 | H24: 1.497756118e+11 | I24: 14.17937922
A25: 7 | B25: 10.95 | C25: 1.443958929e+11 | D25: 4.3946013e+10 | E25: -5622.74526 | F25: 45897.51 | G25: 46240.63893 | H25: 1.509351713e+11 | I25: 16.92730856
A26: 8 | B26: 12.775 | C26: 1.434407338e+11 | D26: 5.116107957e+10 | E26: -6487.590394 | F26: 45611.8487 | G26: 46070.91893 | H26: 1.522914974e+11 | I26: 19.62981842
A27: 9 | B27: 14.6 | C27: 1.423515624e+11 | D27: 5.832838158e+10 | E27: -7322.094627 | F27: 45292.25488 | G27: 45880.29449 | H27: 1.538381208e+11 | I27: 22.28130651
A28: 10 | B28: 16.425 | C28: 1.41133361e+11 | D28: 6.544285049e+10 | E28: -8123.840858 | F28: 44942.3285 | G28: 45670.66543 | H28: 1.555679667e+11 | I28: 24.87692462
A29: 11 | B29: 18.25 | C29: 1.397914477e+11 | D29: 7.249999413e+10 | E29: -8890.985664 | F29: 44565.76469 | G29: 45443.9986 | H29: 1.574734835e+11 | I29: 27.41259483
A30: 12 | B30: 20.075 | C30: 1.383313874e+11 | D30: 7.949590456e+10 | E30: -9622.238402 | F30: 44166.2644 | G30: 45202.28294 | H30: 1.595467692e+11 | I30: 29.88500353
A31: 13 | B31: 21.9 | C31: 1.367589068e+11 | D31: 8.642725266e+10 | E31: -10316.82527 | F31: 43747.45639 | G31: 44947.48963 | H31: 1.617796915e+11 | I31: 32.29157627
A32: 14 | B32: 23.725 | C32: 1.350798174e+11 | D32: 9.329127145e+10 | E32: -10974.4423 | F32: 43312.83247 | G32: 44681.53803 | H32: 1.641639984e+11 | I32: 34.6304373
A33: 15 | B33: 25.55 | C33: 1.332999447e+11 | D33: 1.000857303e+11 | E33: -11595.20123 | F33: 42865.69664 | G33: 44406.26802 | H33: 1.666914175e+11 | I33: 36.90035754
A34: 16 | B34: 27.375 | C34: 1.314250679e+11 | D34: 1.068089022e+11 | E34: -12179.57178 | F34: 42409.12766 | G34: 44123.4187 | H34: 1.693537424e+11 | I34: 39.1006949
A35: 17 | B35: 29.2 | C35: 1.294608676e+11 | D35: 1.134595262e+11 | E35: -12728.32333 | F35: 41945.95434 | G35: 43834.61304 | H35: 1.721429067e+11 | I35: 41.23133011
A36: 18 | B36: 31.025 | C36: 1.274128832e+11 | D36: 1.200367666e+11 | E36: -13242.46844 | F36: 41478.74179 | G36: 43541.34806 | H36: 1.750510443e+11 | I36: 43.29260116
A37: 19 | B37: 32.85 | C37: 1.252864787e+11 | D37: 1.265401711e+11 | E37: -13723.21 | F37: 41009.78721 | G37: 43244.98977 | H37: 1.780705384e+11 | I37: 45.28523864
A38: 20 | B38: 34.675 | C38: 1.230868168e+11 | D38: 1.329696288e+11 | E38: -14171.8931 | F38: 40541.12322 | G38: 42946.77201 | H38: 1.811940581e+11 | I38: 47.21030365
A39: 21 | B39: 36.5 | C39: 1.208188397e+11 | D39: 1.393253289e+11 | E39: -14589.9624 | F39: 40074.52708 | G39: 42647.79858 | H39: 1.844145854e+11 | I39: 49.06912986
A40: 22 | B40: 38.325 | C40: 1.184872562e+11 | D40: 1.456077215e+11 | E40: -14978.92518 | F40: 39611.53425 | G40: 42349.04775 | H40: 1.877254337e+11 | I40: 50.86327032
A41: 23 | B41: 40.15 | C41: 1.160965348e+11 | D41: 1.51817481e+11 | E41: -15340.32003 | F41: 39153.4548 | G41: 42051.3786 | H41: 1.911202578e+11 | I41: 52.59444951
A42: 24 | B42: 41.975 | C42: 1.136509006e+11 | D42: 1.579554716e+11 | E42: -15675.69094 | F42: 38701.39166 | G42: 41755.53859 | H42: 1.94593058e+11 | I42: 54.26452099
A43: 25 | B43: 43.8 | C43: 1.111543363e+11 | D43: 1.640227165e+11 | E43: -15986.56631 | F43: 38256.25954 | G43: 41462.17188 | H43: 1.981381791e+11 | I43: 55.87543029
A44: 26 | B44: 45.625 | C44: 1.086105858e+11 | D44: 1.700203694e+11 | E44: -16274.44238 | F44: 37818.8041 | G44: 41171.82797 | H44: 2.017503045e+11 | I44: 57.42918304
A45: 27 | B45: 47.45 | C45: 1.060231606e+11 | D45: 1.759496896e+11 | E45: -16540.77052 | F45: 37389.62046 | G45: 40884.97044 | H45: 2.05424448e+11 | I45: 58.92781784
A46: 28 | B46: 49.275 | C46: 1.033953474e+11 | D46: 1.818120194e+11 | E46: -16786.9479 | F46: 36969.17098 | G46: 40601.98545 | H46: 2.091559425e+11 | I46: 60.3733836
A47: 29 | B47: 51.1 | C47: 1.007302174e+11 | D47: 1.876087648e+11 | E47: -17014.31088 | F47: 36557.8018 | G47: 40323.18995 | H47: 2.129404267e+11 | I47: 61.7679207
A48: 30 | B48: 52.925 | C48: 9.803063624e+10 | D48: 1.933413781e+11 | E48: -17224.13081 | F48: 36155.75826 | G48: 40048.8394 | H48: 2.167738318e+11 | I48: 63.11344577
A49: 31 | B49: 54.75 | C49: 9.529927418e+10 | D49: 1.990113434e+11 | E49: -17417.61164 | F49: 35763.19874 | G49: 39779.13498 | H49: 2.206523656e+11 | I49: 64.41193943
A50: 32 | B50: 56.575 | C50: 9.253861717e+10 | D50: 2.046201635e+11 | E50: -17595.88911 | F50: 35380.20738 | G50: 39514.2302 | H50: 2.245724983e+11 | I50: 65.66533675
A51: 33 | B51: 58.4 | C51: 8.975097741e+10 | D51: 2.101693497e+11 | E51: -17760.03108 | F51: 35006.8053 | G51: 39254.23698 | H51: 2.285309464e+11 | I51: 66.87551988
A52: 34 | B52: 60.225 | C52: 8.693850396e+10 | D52: 2.15660412e+11 | E52: -17911.0388 | F52: 34642.96058 | G52: 38999.23113 | H52: 2.325246584e+11 | I52: 68.04431267
A53: 35 | B53: 62.05 | C53: 8.410319318e+10 | D53: 2.210948521e+11 | E53: -18049.84886 | F53: 34288.59713 | G53: 38749.25725 | H53: 2.365507995e+11 | I53: 69.17347687
A54: 36 | B54: 63.875 | C54: 8.124689865e+10 | D54: 2.264741565e+11 | E54: -18177.33561 | F54: 33943.6024 | G54: 38504.33318 | H54: 2.406067374e+11 | I54: 70.26470963
A55: 37 | B55: 65.7 | C55: 7.837134082e+10 | D55: 2.317997915e+11 | E55: -18294.31393 | F55: 33607.83407 | G55: 38264.45391 | H55: 2.446900293e+11 | I55: 71.31964219
A56: 38 | B56: 67.525 | C56: 7.547811615e+10 | D56: 2.370731993e+11 | E56: -18401.54222 | F56: 33281.12592 | G56: 38029.59504 | H56: 2.48798408e+11 | I56: 72.33983935
A57: 39 | B57: 69.35 | C57: 7.256870576e+10 | D57: 2.422957939e+11 | E57: -18499.72549 | F57: 32963.29283 | G57: 37799.71584 | H57: 2.529297705e+11 | I57: 73.32679977
A58: 40 | B58: 71.175 | C58: 6.964448361e+10 | D58: 2.474689593e+11 | E58: -18589.51851 | F58: 32654.13507 | G58: 37574.76195 | H58: 2.570821657e+11 | I58: 74.28195674
A59: 41 | B59: 73 | C59: 6.670672416e+10 | D59: 2.525940469e+11 | E59: -18671.52888 | F59: 32353.44204 | G59: 37354.66774 | H59: 2.612537838e+11 | I59: 75.20667946
A60: 42 | B60: 74.825 | C60: 6.375660961e+10 | D60: 2.576723742e+11 | E60: -18746.32012 | F60: 32060.9953 | G60: 37139.35833 | H60: 2.654429462e+11 | I60: 76.10227468
A61: 43 | B61: 76.65 | C61: 6.079523655e+10 | D61: 2.62705224e+11 | E61: -18814.41461 | F61: 31776.57129 | G61: 36928.7514 | H61: 2.696480957e+11 | I61: 76.96998851
A62: 44 | B62: 78.475 | C62: 5.782362228e+10 | D62: 2.676938435e+11 | E62: -18876.29642 | F62: 31499.9435 | G62: 36722.75871 | H62: 2.738677877e+11 | I62: 77.8110085
A63: 45 | B63: 80.3 | C63: 5.484271061e+10 | D63: 2.72639444e+11 | E63: -18932.41398 | F63: 31230.88434 | G63: 36521.28743 | H63: 2.78100682e+11 | I63: 78.6264658
A64: 46 | B64: 82.125 | C64: 5.185337727e+10 | D64: 2.77543201e+11 | E64: -18983.18269 | F64: 30969.16667 | G64: 36324.24135 | H64: 2.823455351e+11 | I64: 79.41743742
A65: 47 | B65: 83.95 | C65: 4.885643496e+10 | D65: 2.824062544e+11 | E65: -19028.98728 | F65: 30714.56506 | G65: 36131.52175 | H65: 2.866011929e+11 | I65: 80.18494846
A66: 48 | B66: 85.775 | C66: 4.585263797e+10 | D66: 2.872297086e+11 | E66: -19070.18409 | F66: 30466.85683 | G66: 35943.02834 | H66: 2.908665844e+11 | I66: 80.92997446
A67: 49 | B67: 87.6 | C67: 4.28426865e+10 | D67: 2.920146332e+11 | E67: -19107.10316 | F67: 30225.82288 | G67: 35758.65993 | H67: 2.951407152e+11 | I67: 81.65344362
A68: 50 | B68: 89.425 | C68: 3.982723064e+10 | D68: 2.967620636e+11 | E68: -19140.05025 | F68: 29991.24834 | G68: 35578.31504 | H68: 2.994226623e+11 | I68: 82.35623907
A69: 51 | B69: 91.25 | C69: 3.680687408e+10 | D69: 3.014730017e+11 | E69: -19169.30862 | F69: 29762.92312 | G69: 35401.8924 | H69: 3.037115683e+11 | I69: 83.03920103
A70: 52 | B70: 93.075 | C70: 3.378217751e+10 | D70: 3.061484167e+11 | E70: -19195.14077 | F70: 29540.64225 | G70: 35229.29141 | H70: 3.080066372e+11 | I70: 83.7031289
A71: 53 | B71: 94.9 | C71: 3.075366175e+10 | D71: 3.107892458e+11 | E71: -19217.78998 | F71: 29324.20623 | G71: 35060.41247 | H71: 3.123071293e+11 | I71: 84.34878335
A72: 54 | B72: 96.725 | C72: 2.772181067e+10 | D72: 3.153963953e+11 | E72: -19237.48183 | F72: 29113.42118 | G72: 34895.15726 | H72: 3.166123576e+11 | I72: 84.97688827
A73: 55 | B73: 98.55 | C73: 2.468707389e+10 | D73: 3.199707414e+11 | E73: -19254.42548 | F73: 28908.09904 | G73: 34733.42901 | H73: 3.209216836e+11 | I73: 85.58813264
A74: 56 | B74: 100.375 | C74: 2.164986926e+10 | D74: 3.24513131e+11 | E74: -19268.81498 | F74: 28708.05757 | G74: 34575.13269 | H74: 3.252345139e+11 | I74: 86.18317239
A75: 57 | B75: 102.2 | C75: 1.861058515e+10 | D75: 3.290243827e+11 | E75: -19280.83039 | F75: 28513.1204 | G75: 34420.17513 | H75: 3.295502971e+11 | I75: 86.76263204
A76: 58 | B76: 104.025 | C76: 1.556958256e+10 | D76: 3.33505288e+11 | E76: -19290.63885 | F76: 28323.11704 | G76: 34268.46518 | H76: 3.338685205e+11 | I76: 87.32710642
A77: 59 | B77: 105.85 | C77: 1.25271971e+10 | D77: 3.379566116e+11 | E77: -19298.39555 | F77: 28137.88277 | G77: 34119.9138 | H77: 3.381887076e+11 | I77: 87.87716221
A78: 60 | B78: 107.675 | C78: 9483740781 | D78: 3.42379093e+11 | E78: -19304.24467 | F78: 27957.25859 | G78: 33974.43407 | H78: 3.425104154e+11 | I78: 88.4133394
A79: 61 | B79: 109.5 | C79: 6439503703 | D79: 3.467734469e+11 | E79: -19308.32016 | F79: 27781.09114 | G79: 33831.94131 | H79: 3.468332318e+11 | I79: 88.93615272
A80: 62 | B80: 111.325 | C80: 3394755594 | D80: 3.511403643e+11 | E80: -19310.74654 | F80: 27609.23253 | G80: 33692.35304 | H80: 3.511567738e+11 | I80: 89.44609298
A81: 63 | B81: 113.15 | C81: 349747245.4 | D81: 3.554805134e+11 | E81: -19311.63963 | F81: 27441.54024 | G81: 33555.58904 | H81: 3.554806855e+11 | I81: 89.94362831
A82: 64 | B82: 114.975 | C82: -2695288167 | D82: 3.597945402e+11 | E82: -19311.10714 | F82: 27277.87695 | G82: 33421.57133 | H82: 3.598046355e+11 | I82: 90.42920536
A83: 65 | B83: 116.8 | C83: -5740133856 | D83: 3.640830695e+11 | E83: -19309.24931 | F83: 27118.11044 | G83: 33290.22413 | H83: 3.641283162e+11 | I83: 90.90325044
A84: 66 | B84: 118.625 | C84: -8784588288 | D84: 3.683467056e+11 | E84: -19306.15947 | F84: 26962.11337 | G84: 33161.47389 | H84: 3.684514412e+11 | I84: 91.3661706
A85: 67 | B85: 120.45 | C85: -1.182846413e+10 | D85: 3.725860332e+11 | E85: -19301.92453 | F85: 26809.76316 | G85: 33035.24923 | H85: 3.727737447e+11 | I85: 91.81835458
A86: 68 | B86: 122.275 | C86: -1.487158729e+10 | D86: 3.76801618e+11 | E86: -19296.62547 | F86: 26660.94184 | G86: 32911.48089 | H86: 3.770949793e+11 | I86: 92.26017384
A87: 69 | B87: 124.1 | C87: -1.791379599e+10 | D87: 3.809940073e+11 | E87: -19290.33773 | F87: 26515.53587 | G87: 32790.10174 | H87: 3.814149154e+11 | I87: 92.6919834
A88: 70 | B88: 125.925 | C88: -2.095493994e+10 | D88: 3.851637311e+11 | E88: -19283.13166 | F88: 26373.43595 | G88: 32671.04667 | H88: 3.857333396e+11 | I88: 93.1141227
A89: 71 | B89: 127.75 | C89: -2.399487958e+10 | D89: 3.893113023e+11 | E89: -19275.07289 | F89: 26234.53695 | G89: 32554.25263 | H89: 3.900500537e+11 | I89: 93.52691642
A90: 72 | B90: 129.575 | C90: -2.703348533e+10 | D90: 3.934372176e+11 | E90: -19266.2226 | F90: 26098.73767 | G90: 32439.65847 | H90: 3.943648736e+11 | I90: 93.93067523
A91: 73 | B91: 131.4 | C91: -3.007063695e+10 | D91: 3.97541958e+11 | E91: -19256.63794 | F91: 25965.94073 | G91: 32327.205 | H91: 3.986776287e+11 | I91: 94.32569647
A92: 74 | B92: 133.225 | C92: -3.310622288e+10 | D92: 4.016259896e+11 | E92: -19246.37221 | F92: 25836.05243 | G92: 32216.83486 | H92: 4.029881605e+11 | I92: 94.71226489
A93: 75 | B93: 135.05 | C93: -3.614013972e+10 | D93: 4.056897637e+11 | E93: -19235.47522 | F93: 25708.98256 | G93: 32108.49251 | H93: 4.072963222e+11 | I93: 95.09065322
A94: 76 | B94: 136.875 | C94: -3.917229162e+10 | D94: 4.097337179e+11 | E94: -19223.99348 | F94: 25584.64432 | G94: 32002.12416 | H94: 4.116019776e+11 | I94: 95.46112279
A95: 77 | B95: 138.7 | C95: -4.220258986e+10 | D95: 4.137582763e+11 | E95: -19211.97047 | F95: 25462.95417 | G95: 31897.67772 | H95: 4.159050009e+11 | I95: 95.82392412
A96: 78 | B96: 140.525 | C96: -4.523095232e+10 | D96: 4.177638501e+11 | E96: -19199.4468 | F96: 25343.83164 | G96: 31795.10276 | H96: 4.202052754e+11 | I96: 96.17929744
A97: 79 | B97: 142.35 | C97: -4.825730309e+10 | D97: 4.217508379e+11 | E97: -19186.46046 | F97: 25227.1993 | G97: 31694.35044 | H97: 4.245026932e+11 | I97: 96.52747316
A98: 80 | B98: 144.175 | C98: -5.128157204e+10 | D98: 4.257196266e+11 | E98: -19173.04697 | F98: 25112.98256 | G98: 31595.37345 | H98: 4.287971549e+11 | I98: 96.86867243
A99: 81 | B99: 146 | C99: -5.430369448e+10 | D99: 4.296705913e+11 | E99: -19159.23956 | F99: 25001.1096 | G99: 31498.12601 | H99: 4.330885686e+11 | I99: 97.20310749
A100: 82 | B100: 147.825 | C100: -5.732361076e+10 | D100: 4.336040961e+11 | E100: -19145.06932 | F100: 24891.51124 | G100: 31402.56376 | H100: 4.373768495e+11 | I100: 97.53098218
A101: 83 | B101: 149.65 | C101: -6.0341266e+10 | D101: 4.375204943e+11 | E101: -19130.56533 | F101: 24784.12082 | G101: 31308.64377 | H101: 4.416619197e+11 | I101: 97.85249231
A102: 84 | B102: 151.475 | C102: -6.335660974e+10 | D102: 4.414201291e+11 | E102: -19115.75484 | F102: 24678.87411 | G102: 31216.32442 | H102: 4.459437076e+11 | I102: 98.16782602
A103: 85 | B103: 153.3 | C103: -6.636959568e+10 | D103: 4.453033335e+11 | E103: -19100.66335 | F103: 24575.70923 | G103: 31125.56544 | H103: 4.502221474e+11 | I103: 98.47716418
A104: 86 | B104: 155.125 | C104: -6.938018142e+10 | D104: 4.49170431e+11 | E104: -19085.31472 | F104: 24474.56651 | G104: 31036.3278 | H104: 4.544971789e+11 | I104: 98.78068071
A105: 87 | B105: 156.95 | C105: -7.23883282e+10 | D105: 4.53021736e+11 | E105: -19069.73133 | F105: 24375.38843 | G105: 30948.5737 | H105: 4.587687471e+11 | I105: 99.07854289
A106: 88 | B106: 158.775 | C106: -7.539400066e+10 | D106: 4.568575538e+11 | E106: -19053.93412 | F106: 24278.11953 | G106: 30862.2665 | H106: 4.630368018e+11 | I106: 99.37091171
A107: 89 | B107: 160.6 | C107: -7.839716666e+10 | D107: 4.606781813e+11 | E107: -19037.94273 | F107: 24182.70632 | G107: 30777.37071 | H107: 4.673012973e+11 | I107: 99.6579421
A108: 90 | B108: 162.425 | C108: -8.139779704e+10 | D108: 4.644839069e+11 | E108: -19021.77554 | F108: 24089.09718 | G108: 30693.85195 | H108: 4.715621922e+11 | I108: 99.93978326
A109: 91 | B109: 164.25 | C109: -8.439586546e+10 | D109: 4.682750112e+11 | E109: -19005.44978 | F109: 23997.24234 | G109: 30611.67688 | H109: 4.758194492e+11 | I109: 100.2165789
A110: 92 | B110: 166.075 | C110: -8.73913482e+10 | D110: 4.720517669e+11 | E110: -18988.98162 | F110: 23907.09374 | G110: 30530.81319 | H110: 4.800730345e+11 | I110: 100.4884674
A111: 93 | B111: 167.9 | C111: -9.038422402e+10 | D111: 4.758144395e+11 | E111: -18972.38619 | F111: 23818.60499 | G111: 30451.22956 | H111: 4.843229179e+11 | I111: 100.7555823
A112: 94 | B112: 169.725 | C112: -9.337447397e+10 | D112: 4.795632871e+11 | E112: -18955.67769 | F112: 23731.73132 | G112: 30372.89562 | H112: 4.885690726e+11 | I112: 101.0180521
A113: 95 | B113: 171.55 | C113: -9.636208129e+10 | D113: 4.832985609e+11 | E113: -18938.86941 | F113: 23646.42948 | G113: 30295.78191 | H113: 4.928114748e+11 | I113: 101.276001
A114: 96 | B114: 173.375 | C114: -9.934703124e+10 | D114: 4.870205055e+11 | E114: -18921.97384 | F114: 23562.6577 | G114: 30219.85989 | H114: 4.970501035e+11 | I114: 101.5295485
A115: 97 | B115: 175.2 | C115: -1.02329311e+11 | D115: 4.907293589e+11 | E115: -18905.00265 | F115: 23480.37562 | G115: 30145.10183 | H115: 5.012849405e+11 | I115: 101.7788102
A116: 98 | B116: 177.025 | C116: -1.053089095e+11 | D116: 4.94425353e+11 | E116: -18887.96682 | F116: 23399.54426 | G116: 30071.48088 | H116: 5.055159702e+11 | I116: 102.0238975
A117: 99 | B117: 178.85 | C117: -1.082858173e+11 | D117: 4.981087135e+11 | E117: -18870.87661 | F117: 23320.12593 | G117: 29998.97094 | H117: 5.097431792e+11 | I117: 102.2649181
A118: 100 | B118: 180.675 | C118: -1.112600268e+11 | D118: 5.017796603e+11 | E118: -18853.74165 | F118: 23242.08419 | G118: 29927.5467 | H118: 5.139665563e+11 | I118: 102.5019758
A119: 101 | B119: 182.5 | C119: -1.142315314e+11 | D119: 5.054384077e+11 | E119: -18836.57098 | F119: 23165.38381 | G119: 29857.18362 | H119: 5.181860927e+11 | I119: 102.7351711
A120: 102 | B120: 184.325 | C120: -1.172003264e+11 | D120: 5.090851644e+11 | E120: -18819.37305 | F120: 23089.99073 | G120: 29787.85783 | H120: 5.224017813e+11 | I120: 102.964601
A121: 103 | B121: 186.15 | C121: -1.201664079e+11 | D121: 5.127201341e+11 | E121: -18802.15579 | F121: 23015.87199 | G121: 29719.54619 | H121: 5.266136169e+11 | I121: 103.1903593
A122: 104 | B122: 187.975 | C122: -1.231297736e+11 | D122: 5.163435151e+11 | E122: -18784.92662 | F122: 22942.9957 | G122: 29652.22622 | H122: 5.30821596e+11 | I122: 103.4125366
A123: 105 | B123: 189.8 | C123: -1.260904221e+11 | D123: 5.199555009e+11 | E123: -18767.6925 | F123: 22871.331 | G123: 29585.87608 | H123: 5.350257167e+11 | I123: 103.6312207
A124: 106 | B124: 191.625 | C124: -1.290483532e+11 | D124: 5.235562802e+11 | E124: -18750.45995 | F124: 22800.84802 | G124: 29520.47457 | H124: 5.392259786e+11 | I124: 103.8464964
A125: 107 | B125: 193.45 | C125: -1.320035676e+11 | D125: 5.271460369e+11 | E125: -18733.23507 | F125: 22731.51784 | G125: 29456.00107 | H125: 5.434223828e+11 | I125: 104.0584457
A126: 108 | B126: 195.275 | C126: -1.349560669e+11 | D126: 5.307249508e+11 | E126: -18716.02356 | F126: 22663.31245 | G126: 29392.43558 | H126: 5.476149316e+11 | I126: 104.2671482
A127: 109 | B127: 197.1 | C127: -1.379058537e+11 | D127: 5.342931968e+11 | E127: -18698.83079 | F127: 22596.20473 | G127: 29329.75863 | H127: 5.518036287e+11 | I127: 104.4726807
A128: 110 | B128: 198.925 | C128: -1.408529314e+11 | D128: 5.378509462e+11 | E128: -18681.66173 | F128: 22530.1684 | G128: 29267.9513 | H128: 5.559884788e+11 | I128: 104.6751178
A129: 111 | B129: 200.75 | C129: -1.437973041e+11 | D129: 5.413983657e+11 | E129: -18664.52107 | F129: 22465.178 | G129: 29206.99522 | H129: 5.601694878e+11 | I129: 104.8745316
A130: 112 | B130: 202.575 | C130: -1.467389765e+11 | D130: 5.449356184e+11 | E130: -18647.41318 | F130: 22401.20885 | G130: 29146.8725 | H130: 5.643466625e+11 | I130: 105.070992
A131: 113 | B131: 204.4 | C131: -1.496779542e+11 | D131: 5.484628634e+11 | E131: -18630.34214 | F131: 22338.23703 | G131: 29087.56576 | H131: 5.685200106e+11 | I131: 105.2645668
A132: 114 | B132: 206.225 | C132: -1.526142433e+11 | D132: 5.51980256e+11 | E132: -18613.31175 | F132: 22276.23934 | G132: 29029.05809 | H132: 5.72689541e+11 | I132: 105.4553216
A133: 115 | B133: 208.05 | C133: -1.555478505e+11 | D133: 5.554879482e+11 | E133: -18596.32558 | F133: 22215.1933 | G133: 28971.33304 | H133: 5.76855263e+11 | I133: 105.6433201
A134: 116 | B134: 209.875 | C134: -1.584787831e+11 | D134: 5.589860883e+11 | E134: -18579.38694 | F134: 22155.07708 | G134: 28914.37462 | H134: 5.81017187e+11 | I134: 105.828624
A135: 117 | B135: 211.7 | C135: -1.614070487e+11 | D135: 5.624748211e+11 | E135: -18562.49892 | F135: 22095.86952 | G135: 28858.16723 | H135: 5.851753239e+11 | I135: 106.0112933
A136: 118 | B136: 213.525 | C136: -1.643326556e+11 | D136: 5.659542883e+11 | E136: -18545.6644 | F136: 22037.55008 | G136: 28802.69574 | H136: 5.893296855e+11 | I136: 106.191386
A137: 119 | B137: 215.35 | C137: -1.672556124e+11 | D137: 5.694246285e+11 | E137: -18528.88606 | F137: 21980.09883 | G137: 28747.94538 | H137: 5.934802839e+11 | I137: 106.3689585
A138: 120 | B138: 217.175 | C138: -1.701759281e+11 | D138: 5.728859769e+11 | E138: -18512.16639 | F138: 21923.49643 | G138: 28693.90179 | H138: 5.976271322e+11 | I138: 106.5440657
A139: 121 | B139: 219 | C139: -1.730936124e+11 | D139: 5.76338466e+11 | E139: -18495.50769 | F139: 21867.72408 | G139: 28640.55099 | H139: 6.017702435e+11 | I139: 106.7167606
A140: 122 | B140: 220.825 | C140: -1.760086748e+11 | D140: 5.797822251e+11 | E140: -18478.9121 | F140: 21812.76354 | G140: 28587.87935 | H140: 6.05909632e+11 | I140: 106.8870948
A141: 123 | B141: 222.65 | C141: -1.789211255e+11 | D141: 5.832173808e+11 | E141: -18462.38163 | F141: 21758.5971 | G141: 28535.87361 | H141: 6.100453118e+11 | I141: 107.0551185
A142: 124 | B142: 224.475 | C142: -1.81830975e+11 | D142: 5.866440571e+11 | E142: -18445.91808 | F142: 21705.20753 | G142: 28484.52085 | H142: 6.141772978e+11 | I142: 107.2208804
A143: 125 | B143: 226.3 | C143: -1.847382338e+11 | D143: 5.90062375e+11 | E143: -18429.52318 | F143: 21652.57813 | G143: 28433.80847 | H143: 6.183056052e+11 | I143: 107.3844278
A144: 126 | B144: 228.125 | C144: -1.876429131e+11 | D144: 5.934724532e+11 | E144: -18413.19846 | F144: 21600.69263 | G144: 28383.72421 | H144: 6.224302495e+11 | I144: 107.5458066
A145: 127 | B145: 229.95 | C145: -1.905450239e+11 | D145: 5.968744077e+11 | E145: -18396.94539 | F145: 21549.53524 | G145: 28334.2561 | H145: 6.265512467e+11 | I145: 107.7050617
A146: 128 | B146: 231.775 | C146: -1.934445776e+11 | D146: 6.002683521e+11 | E146: -18380.76526 | F146: 21499.0906 | G146: 28285.39249 | H146: 6.306686128e+11 | I146: 107.8622364
A147: 129 | B147: 233.6 | C147: -1.963415859e+11 | D147: 6.036543976e+11 | E147: -18364.6593 | F147: 21449.34378 | G147: 28237.12202 | H147: 6.347823644e+11 | I147: 108.0173731
A148: 130 | B148: 235.425 | C148: -1.992360605e+11 | D148: 6.070326531e+11 | E148: -18348.62861 | F148: 21400.28025 | G148: 28189.4336 | H148: 6.388925181e+11 | I148: 108.1705128
A149: 131 | B149: 237.25 | C149: -2.021280134e+11 | D149: 6.104032252e+11 | E149: -18332.67419 | F149: 21351.8859 | G149: 28142.31643 | H149: 6.42999091e+11 | I149: 108.3216956
A150: 132 | B150: 239.075 | C150: -2.050174567e+11 | D150: 6.137662183e+11 | E150: -18316.79696 | F150: 21304.14696 | G150: 28095.75998 | H150: 6.471021003e+11 | I150: 108.4709604
A151: 133 | B151: 240.9 | C151: -2.079044026e+11 | D151: 6.171217347e+11 | E151: -18300.99774 | F151: 21257.05009 | G151: 28049.75396 | H151: 6.512015633e+11 | I151: 108.618345
A152: 134 | B152: 242.725 | C152: -2.107888635e+11 | D152: 6.204698746e+11 | E152: -18285.27728 | F152: 21210.58226 | G152: 28004.28833 | H152: 6.552974976e+11 | I152: 108.7638865
A153: 135 | B153: 244.55 | C153: -2.136708518e+11 | D153: 6.238107363e+11 | E153: -18269.63624 | F153: 21164.73081 | G153: 27959.35333 | H153: 6.593899208e+11 | I153: 108.9076205
A154: 136 | B154: 246.375 | C154: -2.165503802e+11 | D154: 6.271444159e+11 | E154: -18254.07521 | F154: 21119.48341 | G154: 27914.93939 | H154: 6.634788509e+11 | I154: 109.0495822
A155: 137 | B155: 248.2 | C155: -2.194274612e+11 | D155: 6.304710077e+11 | E155: -18238.59471 | F155: 21074.82805 | G155: 27871.0372 | H155: 6.675643057e+11 | I155: 109.1898056
A156: 138 | B156: 250.025 | C156: -2.223021077e+11 | D156: 6.337906042e+11 | E156: -18223.19521 | F156: 21030.75304 | G156: 27827.63765 | H156: 6.716463035e+11 | I156: 109.3283238
A157: 139 | B157: 251.85 | C157: -2.251743323e+11 | D157: 6.371032959e+11 | E157: -18207.87709 | F157: 20987.247 | G157: 27784.73187 | H157: 6.757248623e+11 | I157: 109.4651691
A158: 140 | B158: 253.675 | C158: -2.280441481e+11 | D158: 6.404091717e+11 | E158: -18192.64069 | F158: 20944.29883 | G158: 27742.31117 | H158: 6.798000005e+11 | I158: 109.6003731
A159: 141 | B159: 255.5 | C159: -2.309115678e+11 | D159: 6.437083187e+11 | E159: -18177.48631 | F159: 20901.89773 | G159: 27700.3671 | H159: 6.838717363e+11 | I159: 109.7339665
A160: 142 | B160: 257.325 | C160: -2.337766045e+11 | D160: 6.470008224e+11 | E160: -18162.41416 | F160: 20860.03317 | G160: 27658.89137 | H160: 6.879400882e+11 | I160: 109.865979
A161: 143 | B161: 259.15 | C161: -2.366392711e+11 | D161: 6.502867664e+11 | E161: -18147.42443 | F161: 20818.69487 | G161: 27617.87591 | H161: 6.920050746e+11 | I161: 109.99644
A162: 144 | B162: 260.975 | C162: -2.394995806e+11 | D162: 6.535662331e+11 | E162: -18132.51727 | F162: 20777.87285 | G162: 27577.31282 | H162: 6.960667139e+11 | I162: 110.1253779
A163: 145 | B163: 262.8 | C163: -2.423575461e+11 | D163: 6.56839303e+11 | E163: -18117.69275 | F163: 20737.55733 | G163: 27537.19439 | H163: 7.001250247e+11 | I163: 110.2528203
A164: 146 | B164: 264.625 | C164: -2.452131805e+11 | D164: 6.601060553e+11 | E164: -18102.95095 | F164: 20697.73882 | G164: 27497.51308 | H164: 7.041800254e+11 | I164: 110.3787945
A165: 147 | B165: 266.45 | C165: -2.48066497e+11 | D165: 6.633665676e+11 | E165: -18088.29187 | F165: 20658.40805 | G165: 27458.26152 | H165: 7.082317346e+11 | I165: 110.5033266
A166: 148 | B166: 268.275 | C166: -2.509175086e+11 | D166: 6.66620916e+11 | E166: -18073.7155 | F166: 20619.55595 | G166: 27419.43252 | H166: 7.122801709e+11 | I166: 110.6264426
A167: 149 | B167: 270.1 | C167: -2.537662283e+11 | D167: 6.698691755e+11 | E167: -18059.22178 | F167: 20581.17372 | G167: 27381.01903 | H167: 7.163253527e+11 | I167: 110.7481675
A168: 150 | B168: 271.925 | C168: -2.566126691e+11 | D168: 6.731114192e+11 | E168: -18044.81063 | F168: 20543.25274 | G168: 27343.01417 | H168: 7.203672984e+11 | I168: 110.8685259
A169: 151 | B169: 273.75 | C169: -2.594568441e+11 | D169: 6.763477194e+11 | E169: -18030.48193 | F169: 20505.78462 | G169: 27305.41122 | H169: 7.244060267e+11 | I169: 110.9875416
A170: 152 | B170: 275.575 | C170: -2.622987662e+11 | D170: 6.795781468e+11 | E170: -18016.23555 | F170: 20468.76115 | G170: 27268.20358 | H170: 7.28441556e+11 | I170: 111.1052382
A171: 153 | B171: 277.4 | C171: -2.651384485e+11 | D171: 6.828027709e+11 | E171: -18002.07132 | F171: 20432.17434 | G171: 27231.38483 | H171: 7.324739045e+11 | I171: 111.2216384
A172: 154 | B172: 279.225 | C172: -2.679759038e+11 | D172: 6.860216599e+11 | E172: -17987.98903 | F172: 20396.01638 | G172: 27194.94868 | H172: 7.365030908e+11 | I172: 111.3367646
A173: 155 | B173: 281.05 | C173: -2.70811145e+11 | D173: 6.892348808e+11 | E173: -17973.98849 | F173: 20360.27963 | G173: 27158.88895 | H173: 7.405291332e+11 | I173: 111.4506384
A174: 156 | B174: 282.875 | C174: -2.73644185e+11 | D174: 6.924424994e+11 | E174: -17960.06945 | F174: 20324.95667 | G174: 27123.19963 | H174: 7.445520499e+11 | I174: 111.5632812
A175: 157 | B175: 284.7 | C175: -2.764750368e+11 | D175: 6.956445805e+11 | E175: -17946.23165 | F175: 20290.0402 | G175: 27087.87481 | H175: 7.485718591e+11 | I175: 111.6747137
A176: 158 | B176: 286.525 | C176: -2.793037129e+11 | D176: 6.988411875e+11 | E176: -17932.47482 | F176: 20255.52314 | G176: 27052.90873 | H176: 7.525885791e+11 | I176: 111.7849564
A177: 159 | B177: 288.35 | C177: -2.821302263e+11 | D177: 7.020323829e+11 | E177: -17918.79866 | F177: 20221.39855 | G177: 27018.29574 | H177: 7.566022278e+11 | I177: 111.8940289
A178: 160 | B178: 290.175 | C178: -2.849545895e+11 | D178: 7.05218228e+11 | E178: -17905.20287 | F178: 20187.65965 | G178: 26984.03031 | H178: 7.606128234e+11 | I178: 112.0019507
A179: 161 | B179: 292 | C179: -2.877768152e+11 | D179: 7.083987832e+11 | E179: -17891.68712 | F179: 20154.29981 | G179: 26950.10703 | H179: 7.646203838e+11 | I179: 112.1087409
A180: 162 | B180: 293.825 | C180: -2.905969161e+11 | D180: 7.115741076e+11 | E180: -17878.25108 | F180: 20121.31257 | G180: 26916.5206 | H180: 7.686249269e+11 | I180: 112.2144178
A181: 163 | B181: 295.65 | C181: -2.934149047e+11 | D181: 7.147442595e+11 | E181: -17864.89438 | F181: 20088.6916 | G181: 26883.26582 | H181: 7.726264704e+11 | I181: 112.3189998
A182: 164 | B182: 297.475 | C182: -2.962307934e+11 | D182: 7.179092963e+11 | E182: -17851.61667 | F182: 20056.43072 | G182: 26850.33763 | H182: 7.766250322e+11 | I182: 112.4225044
A183: 165 | B183: 299.3 | C183: -2.990445946e+11 | D183: 7.210692741e+11 | E183: -17838.41756 | F183: 20024.52389 | G183: 26817.73104 | H183: 7.806206298e+11 | I183: 112.524949
A184: 166 | B184: 301.125 | C184: -3.018563208e+11 | D184: 7.242242484e+11 | E184: -17825.29668 | F184: 19992.9652 | G184: 26785.44118 | H184: 7.846132808e+11 | I184: 112.6263507
A185: 167 | B185: 302.95 | C185: -3.046659843e+11 | D185: 7.273742736e+11 | E185: -17812.25362 | F185: 19961.74886 | G185: 26753.46326 | H185: 7.886030027e+11 | I185: 112.7267259
A186: 168 | B186: 304.775 | C186: -3.074735972e+11 | D186: 7.305194033e+11 | E186: -17799.28798 | F186: 19930.86924 | G186: 26721.79263 | H186: 7.925898129e+11 | I186: 112.826091
A187: 169 | B187: 306.6 | C187: -3.102791718e+11 | D187: 7.3365969e+11 | E187: -17786.39935 | F187: 19900.3208 | G187: 26690.42468 | H187: 7.965737286e+11 | I187: 112.9244618
A188: 170 | B188: 308.425 | C188: -3.130827201e+11 | D188: 7.367951855e+11 | E188: -17773.58729 | F188: 19870.09814 | G188: 26659.35493 | H188: 8.005547671e+11 | I188: 113.0218538
A189: 171 | B189: 310.25 | C189: -3.158842543e+11 | D189: 7.39925941e+11 | E189: -17760.8514 | F189: 19840.19597 | G189: 26628.57898 | H189: 8.045329454e+11 | I189: 113.1182824
A190: 172 | B190: 312.075 | C190: -3.186837862e+11 | D190: 7.430520063e+11 | E190: -17748.19122 | F190: 19810.60911 | G190: 26598.0925 | H190: 8.085082805e+11 | I190: 113.2137624
A191: 173 | B191: 313.9 | C191: -3.214813278e+11 | D191: 7.46173431e+11 | E191: -17735.60632 | F191: 19781.33251 | G191: 26567.89128 | H191: 8.124807894e+11 | I191: 113.3083084
A192: 174 | B192: 315.725 | C192: -3.242768909e+11 | D192: 7.492902634e+11 | E192: -17723.09625 | F192: 19752.36121 | G192: 26537.97117 | H192: 8.164504889e+11 | I192: 113.4019347
A193: 175 | B193: 317.55 | C193: -3.270704874e+11 | D193: 7.524025514e+11 | E193: -17710.66056 | F193: 19723.69035 | G193: 26508.3281 | H193: 8.204173956e+11 | I193: 113.4946552
A194: 176 | B194: 319.375 | C194: -3.298621287e+11 | D194: 7.555103419e+11 | E194: -17698.29879 | F194: 19695.3152 | G194: 26478.95808 | H194: 8.243815262e+11 | I194: 113.5864838
A195: 177 | B195: 321.2 | C195: -3.326518267e+11 | D195: 7.586136813e+11 | E195: -17686.01049 | F195: 19667.2311 | G195: 26449.85721 | H195: 8.283428971e+11 | I195: 113.6774337
A196: 178 | B196: 323.025 | C196: -3.354395929e+11 | D196: 7.61712615e+11 | E196: -17673.7952 | F196: 19639.43351 | G196: 26421.02165 | H196: 8.323015249e+11 | I196: 113.7675181
A197: 179 | B197: 324.85 | C197: -3.382254386e+11 | D197: 7.648071879e+11 | E197: -17661.65243 | F197: 19611.91797 | G197: 26392.44765 | H197: 8.362574256e+11 | I197: 113.85675
A198: 180 | B198: 326.675 | C198: -3.410093754e+11 | D198: 7.67897444e+11 | E198: -17649.58174 | F198: 19584.68012 | G198: 26364.13152 | H198: 8.402106156e+11 | I198: 113.9451419
A199: 181 | B199: 328.5 | C199: -3.437914145e+11 | D199: 7.709834269e+11 | E199: -17637.58264 | F199: 19557.71568 | G199: 26336.06964 | H199: 8.44161111e+11 | I199: 114.0327062
A200: 182 | B200: 330.325 | C200: -3.465715672e+11 | D200: 7.740651794e+11 | E200: -17625.65467 | F200: 19531.02046 | G200: 26308.25846 | H200: 8.481089276e+11 | I200: 114.1194551
A201: 183 | B201: 332.15 | C201: -3.493498446e+11 | D201: 7.771427435e+11 | E201: -17613.79735 | F201: 19504.59038 | G201: 26280.69449 | H201: 8.520540814e+11 | I201: 114.2054004
A202: 184 | B202: 333.975 | C202: -3.52126258e+11 | D202: 7.802161607e+11 | E202: -17602.0102 | F202: 19478.42141 | G202: 26253.37433 | H202: 8.559965882e+11 | I202: 114.2905537
A203: 185 | B203: 335.8 | C203: -3.549008182e+11 | D203: 7.83285472e+11 | E203: -17590.29275 | F203: 19452.50962 | G203: 26226.29462 | H203: 8.599364636e+11 | I203: 114.3749264
A204: 186 | B204: 337.625 | C204: -3.576735363e+11 | D204: 7.863507175e+11 | E204: -17578.64451 | F204: 19426.85115 | G204: 26199.45207 | H204: 8.638737231e+11 | I204: 114.4585299
A205: 187 | B205: 339.45 | C205: -3.604444232e+11 | D205: 7.894119369e+11 | E205: -17567.06502 | F205: 19401.44222 | G205: 26172.84344 | H205: 8.678083822e+11 | I205: 114.5413749
A206: 188 | B206: 341.275 | C206: -3.632134895e+11 | D206: 7.924691692e+11 | E206: -17555.5538 | F206: 19376.27913 | G206: 26146.46557 | H206: 8.717404563e+11 | I206: 114.6234724
A207: 189 | B207: 343.1 | C207: -3.659807462e+11 | D207: 7.95522453e+11 | E207: -17544.11035 | F207: 19351.35825 | G207: 26120.31535 | H207: 8.756699605e+11 | I207: 114.7048328
A208: 190 | B208: 344.925 | C208: -3.687462037e+11 | D208: 7.985718261e+11 | E208: -17532.73422 | F208: 19326.67601 | G208: 26094.38972 | H208: 8.795969101e+11 | I208: 114.7854665
... 1011 more rows

Sheet VO = 0
A1: GRAVITAZIONE - TERRA(1) E SOLE(2) | F1: giorno 1 = Perielio ( 3 gennaio 2010)
K2: kg= costante gravitazione universale | L2: 6.67428e-11 | M2: N*m^2/kg^2 | R2: Ep | S2: =-L2*L3*L4/A4 -> -5.390356429e+33 | T2: J
A3: xterra (m) | B3: yterra (m) | C3: vx terra (m/s) | D3: vy terra (m/s) | E3: massasole (kg) | F3: tf (g) | G3: NSTEP | K3: M= massa Sole | L3: 1.9891e+30 | M3: kg | R3: Ec | S3: =0.5*L4*D4^2 -> 0 | T3: J
A4: =147098074000 -> 147098074000 | B4: 0 | C4: 0 | D4: 0 | E4: 1.9891e+30 | F4: 62.88 | G4: 1000 | K4: m=massa Terra | L4: 5.9726e+24 | M4: kg | R4: Ec | S4: =SUM(S2:S3) -> -5.390356429e+33 | T4: J
C10: =MAX(C19:C385) -> 147098074000 | D10: 0 | E10: 0 | F10: 0 | G10: 12938.45286 | H10: 147098074000 | I10: dmax | K10: E0 | L10: =0.5*L4*D4^2-L2*L3*L4/A4 -> -5.390356429e+33 | M10: J | N10: --->> ellisse
C11: =MIN(C19:C1019) -> 2691141970 | D11: 0 | E11: -311584.588 | F11: 0 | G11: 0 | H11: 2691141970 | I11: dmin
L12: =0.5*L4*D4^2 -> 0
A14: MOTO TERRA ATTORNO AL SOLE"
A18: step | B18: t(giorni) | C18: xterra | D18: yterra | E18: vxterra | F18: vyterra | G18: vterra | H18: distanza | I18: angolo | J18: Acc | K18: E | Q18: (x,y) sole
A19: 1 | B19: 0 | C19: 147098074000 | D19: 0 | E19: 0 | F19: 0 | G19: 0 | H19: 147098074000 | I19: 0 | J19: =-$L$2*$L$3/H19^2 -> -0.00613545912 | K19: =0.5*$L$4*G19^2-$L$2*$L$3*$L$4/H19 -> -5.390356429e+33
A20: 2 | B20: 0.06288 | C20: 1.470979835e+11 | D20: 0 | E20: -33.33293232 | F20: 0 | G20: 33.33293232 | H20: 1.470979835e+11 | I20: 0 | J20: =-$L$2*$L$3/H20^2 -> -0.006135466674 | K20: =0.5*$L$4*G20^2-$L$2*$L$3*$L$4/H20 -> -5.390356429e+33
A21: 3 | B21: 0.12576 | C21: 1.470977118e+11 | D21: 0 | E21: -66.66594672 | F21: 0 | G21: 66.66594672 | H21: 1.470977118e+11 | I21: 0 | J21: =-$L$2*$L$3/H21^2 -> -0.006135489334 | K21: -5.390356429e+33
A22: 4 | B22: 0.18864 | C22: 1.470972591e+11 | D22: 0 | E22: -99.99912526 | F22: 0 | G22: 99.99912526 | H22: 1.470972591e+11 | I22: 0 | J22: -0.006135527101 | K22: -5.390356429e+33
A23: 5 | B23: 0.25152 | C23: 1.470966253e+11 | D23: 0 | E23: -133.33255 | F23: 0 | G23: 133.33255 | H23: 1.470966253e+11 | I23: 0 | J23: -0.006135579976 | K23: -5.390356429e+33
A24: 6 | B24: 0.3144 | C24: 1.470958103e+11 | D24: 0 | E24: -166.6663031 | F24: 0 | G24: 166.6663031 | H24: 1.470958103e+11 | I24: 0 | J24: -0.00613564796 | K24: -5.390356429e+33
A25: 7 | B25: 0.37728 | C25: 1.470948143e+11 | D25: 0 | E25: -200.0004665 | F25: 0 | G25: 200.0004665 | H25: 1.470948143e+11 | I25: 0 | J25: -0.006135731052 | K25: -5.390356429e+33
A26: 8 | B26: 0.44016 | C26: 1.470936372e+11 | D26: 0 | E26: -233.3351225 | F26: 0 | G26: 233.3351225 | H26: 1.470936372e+11 | I26: 0 | J26: -0.006135829255 | K26: -5.390356429e+33
A27: 9 | B27: 0.50304 | C27: 1.47092279e+11 | D27: 0 | E27: -266.670353 | F27: 0 | G27: 266.670353 | H27: 1.47092279e+11 | I27: 0 | J27: -0.00613594257 | K27: -5.390356429e+33
A28: 10 | B28: 0.56592 | C28: 1.470907396e+11 | D28: 0 | E28: -300.0062401 | F28: 0 | G28: 300.0062401 | H28: 1.470907396e+11 | I28: 0 | J28: -0.006136070998 | K28: -5.390356429e+33
A29: 11 | B29: 0.6288 | C29: 1.470890192e+11 | D29: 0 | E29: -333.3428661 | F29: 0 | G29: 333.3428661 | H29: 1.470890192e+11 | I29: 0 | J29: -0.006136214541 | K29: -5.390356429e+33
A30: 12 | B30: 0.69168 | C30: 1.470871177e+11 | D30: 0 | E30: -366.6803129 | F30: 0 | G30: 366.6803129 | H30: 1.470871177e+11 | I30: 0 | J30: -0.006136373201 | K30: -5.390356429e+33
A31: 13 | B31: 0.75456 | C31: 1.47085035e+11 | D31: 0 | E31: -400.0186628 | F31: 0 | G31: 400.0186628 | H31: 1.47085035e+11 | I31: 0 | J31: -0.00613654698 | K31: -5.390356429e+33
A32: 14 | B32: 0.81744 | C32: 1.470827712e+11 | D32: 0 | E32: -433.3579979 | F32: 0 | G32: 433.3579979 | H32: 1.470827712e+11 | I32: 0 | J32: -0.00613673588 | K32: -5.390356429e+33
A33: 15 | B33: 0.88032 | C33: 1.470803263e+11 | D33: 0 | E33: -466.6984003 | F33: 0 | G33: 466.6984003 | H33: 1.470803263e+11 | I33: 0 | J33: -0.006136939905 | K33: -5.390356429e+33
A34: 16 | B34: 0.9432 | C34: 1.470777002e+11 | D34: 0 | E34: -500.0399523 | F34: 0 | G34: 500.0399523 | H34: 1.470777002e+11 | I34: 0 | J34: -0.006137159056 | K34: -5.390356429e+33
A35: 17 | B35: 1.00608 | C35: 1.47074893e+11 | D35: 0 | E35: -533.382736 | F35: 0 | G35: 533.382736 | H35: 1.47074893e+11 | I35: 0 | J35: -0.006137393337 | K35: -5.390356429e+33
A36: 18 | B36: 1.06896 | C36: 1.470719046e+11 | D36: 0 | E36: -566.7268335 | F36: 0 | G36: 566.7268335 | H36: 1.470719046e+11 | I36: 0 | J36: -0.006137642751 | K36: -5.390356429e+33
A37: 19 | B37: 1.13184 | C37: 1.470687351e+11 | D37: 0 | E37: -600.0723273 | F37: 0 | G37: 600.0723273 | H37: 1.470687351e+11 | I37: 0 | J37: -0.006137907302 | K37: -5.390356429e+33
A38: 20 | B38: 1.19472 | C38: 1.470653844e+11 | D38: 0 | E38: -633.4192994 | F38: 0 | G38: 633.4192994 | H38: 1.470653844e+11 | I38: 0 | J38: -0.006138186992 | K38: -5.390356429e+33
A39: 21 | B39: 1.2576 | C39: 1.470618526e+11 | D39: 0 | E39: -666.7678321 | F39: 0 | G39: 666.7678321 | H39: 1.470618526e+11 | I39: 0 | J39: -0.006138481826 | K39: -5.390356429e+33
A40: 22 | B40: 1.32048 | C40: 1.470581396e+11 | D40: 0 | E40: -700.1180078 | F40: 0 | G40: 700.1180078 | H40: 1.470581396e+11 | I40: 0 | J40: -0.006138791807 | K40: -5.390356429e+33
A41: 23 | B41: 1.38336 | C41: 1.470542453e+11 | D41: 0 | E41: -733.4699087 | F41: 0 | G41: 733.4699087 | H41: 1.470542453e+11 | I41: 0 | J41: -0.00613911694 | K41: -5.390356429e+33
A42: 24 | B42: 1.44624 | C42: 1.470501699e+11 | D42: 0 | E42: -766.8236172 | F42: 0 | G42: 766.8236172 | H42: 1.470501699e+11 | I42: 0 | J42: -0.00613945723 | K42: -5.390356429e+33
A43: 25 | B43: 1.50912 | C43: 1.470459133e+11 | D43: 0 | E43: -800.1792156 | F43: 0 | G43: 800.1792156 | H43: 1.470459133e+11 | I43: 0 | J43: -0.006139812681 | K43: -5.390356429e+33
A44: 26 | B44: 1.572 | C44: 1.470414754e+11 | D44: 0 | E44: -833.5367862 | F44: 0 | G44: 833.5367862 | H44: 1.470414754e+11 | I44: 0 | J44: -0.006140183297 | K44: -5.390356429e+33
A45: 27 | B45: 1.63488 | C45: 1.470368564e+11 | D45: 0 | E45: -866.8964116 | F45: 0 | G45: 866.8964116 | H45: 1.470368564e+11 | I45: 0 | J45: -0.006140569084 | K45: -5.390356429e+33
A46: 28 | B46: 1.69776 | C46: 1.47032056e+11 | D46: 0 | E46: -900.2581742 | F46: 0 | G46: 900.2581742 | H46: 1.47032056e+11 | I46: 0 | J46: -0.006140970047 | K46: -5.390356429e+33
A47: 29 | B47: 1.76064 | C47: 1.470270745e+11 | D47: 0 | E47: -933.6221563 | F47: 0 | G47: 933.6221563 | H47: 1.470270745e+11 | I47: 0 | J47: -0.006141386192 | K47: -5.390356429e+33
A48: 30 | B48: 1.82352 | C48: 1.470219116e+11 | D48: 0 | E48: -966.9884405 | F48: 0 | G48: 966.9884405 | H48: 1.470219116e+11 | I48: 0 | J48: -0.006141817524 | K48: -5.390356429e+33
A49: 31 | B49: 1.8864 | C49: 1.470165675e+11 | D49: 0 | E49: -1000.357109 | F49: 0 | G49: 1000.357109 | H49: 1.470165675e+11 | I49: 0 | J49: -0.006142264048 | K49: -5.390356429e+33
A50: 32 | B50: 1.94928 | C50: 1.470110421e+11 | D50: 0 | E50: -1033.728245 | F50: 0 | G50: 1033.728245 | H50: 1.470110421e+11 | I50: 0 | J50: -0.006142725772 | K50: -5.390356429e+33
A51: 33 | B51: 2.01216 | C51: 1.470053353e+11 | D51: 0 | E51: -1067.101931 | F51: 0 | G51: 1067.101931 | H51: 1.470053353e+11 | I51: 0 | J51: -0.006143202701 | K51: -5.390356429e+33
A52: 34 | B52: 2.07504 | C52: 1.469994473e+11 | D52: 0 | E52: -1100.478249 | F52: 0 | G52: 1100.478249 | H52: 1.469994473e+11 | I52: 0 | J52: -0.006143694841 | K52: -5.390356429e+33
A53: 35 | B53: 2.13792 | C53: 1.469933779e+11 | D53: 0 | E53: -1133.857283 | F53: 0 | G53: 1133.857283 | H53: 1.469933779e+11 | I53: 0 | J53: -0.0061442022 | K53: -5.390356429e+33
A54: 36 | B54: 2.2008 | C54: 1.469871272e+11 | D54: 0 | E54: -1167.239114 | F54: 0 | G54: 1167.239114 | H54: 1.469871272e+11 | I54: 0 | J54: -0.006144724785 | K54: -5.390356429e+33
A55: 37 | B55: 2.26368 | C55: 1.469806951e+11 | D55: 0 | E55: -1200.623825 | F55: 0 | G55: 1200.623825 | H55: 1.469806951e+11 | I55: 0 | J55: -0.006145262601 | K55: -5.390356429e+33
A56: 38 | B56: 2.32656 | C56: 1.469740816e+11 | D56: 0 | E56: -1234.0115 | F56: 0 | G56: 1234.0115 | H56: 1.469740816e+11 | I56: 0 | J56: -0.006145815658 | K56: -5.390356429e+33
A57: 39 | B57: 2.38944 | C57: 1.469672867e+11 | D57: 0 | E57: -1267.402221 | F57: 0 | G57: 1267.402221 | H57: 1.469672867e+11 | I57: 0 | J57: -0.006146383962 | K57: -5.390356429e+33
A58: 40 | B58: 2.45232 | C58: 1.469603104e+11 | D58: 0 | E58: -1300.79607 | F58: 0 | G58: 1300.79607 | H58: 1.469603104e+11 | I58: 0 | J58: -0.006146967521 | K58: -5.390356429e+33
A59: 41 | B59: 2.5152 | C59: 1.469531527e+11 | D59: 0 | E59: -1334.193132 | F59: 0 | G59: 1334.193132 | H59: 1.469531527e+11 | I59: 0 | J59: -0.006147566343 | K59: -5.390356429e+33
A60: 42 | B60: 2.57808 | C60: 1.469458135e+11 | D60: 0 | E60: -1367.593488 | F60: 0 | G60: 1367.593488 | H60: 1.469458135e+11 | I60: 0 | J60: -0.006148180435 | K60: -5.390356429e+33
A61: 43 | B61: 2.64096 | C61: 1.469382929e+11 | D61: 0 | E61: -1400.997222 | F61: 0 | G61: 1400.997222 | H61: 1.469382929e+11 | I61: 0 | J61: -0.006148809808 | K61: -5.390356429e+33
A62: 44 | B62: 2.70384 | C62: 1.469305907e+11 | D62: 0 | E62: -1434.404417 | F62: 0 | G62: 1434.404417 | H62: 1.469305907e+11 | I62: 0 | J62: -0.006149454468 | K62: -5.390356429e+33
A63: 45 | B63: 2.76672 | C63: 1.469227071e+11 | D63: 0 | E63: -1467.815156 | F63: 0 | G63: 1467.815156 | H63: 1.469227071e+11 | I63: 0 | J63: -0.006150114425 | K63: -5.390356429e+33
A64: 46 | B64: 2.8296 | C64: 1.469146419e+11 | D64: 0 | E64: -1501.229522 | F64: 0 | G64: 1501.229522 | H64: 1.469146419e+11 | I64: 0 | J64: -0.006150789688 | K64: -5.390356429e+33
A65: 47 | B65: 2.89248 | C65: 1.469063952e+11 | D65: 0 | E65: -1534.647598 | F65: 0 | G65: 1534.647598 | H65: 1.469063952e+11 | I65: 0 | J65: -0.006151480266 | K65: -5.390356429e+33
A66: 48 | B66: 2.95536 | C66: 1.46897967e+11 | D66: 0 | E66: -1568.069467 | F66: 0 | G66: 1568.069467 | H66: 1.46897967e+11 | I66: 0 | J66: -0.006152186169 | K66: -5.390356429e+33
A67: 49 | B67: 3.01824 | C67: 1.468893571e+11 | D67: 0 | E67: -1601.495214 | F67: 0 | G67: 1601.495214 | H67: 1.468893571e+11 | I67: 0 | J67: -0.006152907405 | K67: -5.390356429e+33
A68: 50 | B68: 3.08112 | C68: 1.468805657e+11 | D68: 0 | E68: -1634.92492 | F68: 0 | G68: 1634.92492 | H68: 1.468805657e+11 | I68: 0 | J68: -0.006153643986 | K68: -5.390356429e+33
A69: 51 | B69: 3.144 | C69: 1.468715926e+11 | D69: 0 | E69: -1668.358669 | F69: 0 | G69: 1668.358669 | H69: 1.468715926e+11 | I69: 0 | J69: -0.00615439592 | K69: -5.390356429e+33
A70: 52 | B70: 3.20688 | C70: 1.468624378e+11 | D70: 0 | E70: -1701.796546 | F70: 0 | G70: 1701.796546 | H70: 1.468624378e+11 | I70: 0 | J70: -0.006155163218 | K70: -5.390356429e+33
A71: 53 | B71: 3.26976 | C71: 1.468531014e+11 | D71: 0 | E71: -1735.238633 | F71: 0 | G71: 1735.238633 | H71: 1.468531014e+11 | I71: 0 | J71: -0.006155945891 | K71: -5.390356429e+33
A72: 54 | B72: 3.33264 | C72: 1.468435833e+11 | D72: 0 | E72: -1768.685013 | F72: 0 | G72: 1768.685013 | H72: 1.468435833e+11 | I72: 0 | J72: -0.00615674395 | K72: -5.390356429e+33
A73: 55 | B73: 3.39552 | C73: 1.468338835e+11 | D73: 0 | E73: -1802.135772 | F73: 0 | G73: 1802.135772 | H73: 1.468338835e+11 | I73: 0 | J73: -0.006157557405 | K73: -5.390356429e+33
A74: 56 | B74: 3.4584 | C74: 1.468240019e+11 | D74: 0 | E74: -1835.590991 | F74: 0 | G74: 1835.590991 | H74: 1.468240019e+11 | I74: 0 | J74: -0.006158386267 | K74: -5.390356429e+33
A75: 57 | B75: 3.52128 | C75: 1.468139385e+11 | D75: 0 | E75: -1869.050755 | F75: 0 | G75: 1869.050755 | H75: 1.468139385e+11 | I75: 0 | J75: -0.006159230548 | K75: -5.390356429e+33
A76: 58 | B76: 3.58416 | C76: 1.468036934e+11 | D76: 0 | E76: -1902.515149 | F76: 0 | G76: 1902.515149 | H76: 1.468036934e+11 | I76: 0 | J76: -0.006160090259 | K76: -5.390356429e+33
A77: 59 | B77: 3.64704 | C77: 1.467932664e+11 | D77: 0 | E77: -1935.984254 | F77: 0 | G77: 1935.984254 | H77: 1.467932664e+11 | I77: 0 | J77: -0.006160965412 | K77: -5.390356429e+33
A78: 60 | B78: 3.70992 | C78: 1.467826576e+11 | D78: 0 | E78: -1969.458157 | F78: 0 | G78: 1969.458157 | H78: 1.467826576e+11 | I78: 0 | J78: -0.006161856019 | K78: -5.390356429e+33
A79: 61 | B79: 3.7728 | C79: 1.46771867e+11 | D79: 0 | E79: -2002.936939 | F79: 0 | G79: 2002.936939 | H79: 1.46771867e+11 | I79: 0 | J79: -0.006162762092 | K79: -5.390356429e+33
A80: 62 | B80: 3.83568 | C80: 1.467608944e+11 | D80: 0 | E80: -2036.420687 | F80: 0 | G80: 2036.420687 | H80: 1.467608944e+11 | I80: 0 | J80: -0.006163683644 | K80: -5.390356429e+33
A81: 63 | B81: 3.89856 | C81: 1.467497399e+11 | D81: 0 | E81: -2069.909483 | F81: 0 | G81: 2069.909483 | H81: 1.467497399e+11 | I81: 0 | J81: -0.006164620687 | K81: -5.390356429e+33
A82: 64 | B82: 3.96144 | C82: 1.467384034e+11 | D82: 0 | E82: -2103.403412 | F82: 0 | G82: 2103.403412 | H82: 1.467384034e+11 | I82: 0 | J82: -0.006165573234 | K82: -5.390356429e+33
A83: 65 | B83: 4.02432 | C83: 1.46726885e+11 | D83: 0 | E83: -2136.902558 | F83: 0 | G83: 2136.902558 | H83: 1.46726885e+11 | I83: 0 | J83: -0.006166541298 | K83: -5.390356429e+33
A84: 66 | B84: 4.0872 | C84: 1.467151846e+11 | D84: 0 | E84: -2170.407006 | F84: 0 | G84: 2170.407006 | H84: 1.467151846e+11 | I84: 0 | J84: -0.006167524893 | K84: =0.5*$L$4*G84^2-$L$2*$L$3*$L$4/H84 -> -5.390356429e+33
A85: 67 | B85: 4.15008 | C85: 1.467033021e+11 | D85: 0 | E85: -2203.91684 | F85: 0 | G85: 2203.91684 | H85: 1.467033021e+11 | I85: 0 | J85: =-$L$2*$L$3/H85^2 -> -0.006168524032 | K85: -5.390356429e+33
A86: 68 | B86: 4.21296 | C86: 1.466912375e+11 | D86: 0 | E86: -2237.432144 | F86: 0 | G86: 2237.432144 | H86: 1.466912375e+11 | I86: 0 | J86: -0.006169538728 | K86: -5.390356429e+33
A87: 69 | B87: 4.27584 | C87: 1.466789909e+11 | D87: 0 | E87: -2270.953003 | F87: 0 | G87: 2270.953003 | H87: 1.466789909e+11 | I87: 0 | J87: -0.006170568996 | K87: -5.390356429e+33
A88: 70 | B88: 4.33872 | C88: 1.466665621e+11 | D88: 0 | E88: -2304.479501 | F88: 0 | G88: 2304.479501 | H88: 1.466665621e+11 | I88: 0 | J88: -0.006171614849 | K88: -5.390356429e+33
A89: 71 | B89: 4.4016 | C89: 1.466539512e+11 | D89: 0 | E89: -2338.011724 | F89: 0 | G89: 2338.011724 | H89: 1.466539512e+11 | I89: 0 | J89: -0.006172676303 | K89: -5.390356429e+33
A90: 72 | B90: 4.46448 | C90: 1.466411581e+11 | D90: 0 | E90: -2371.549756 | F90: 0 | G90: 2371.549756 | H90: 1.466411581e+11 | I90: 0 | J90: -0.006173753371 | K90: -5.390356429e+33
A91: 73 | B91: 4.52736 | C91: 1.466281827e+11 | D91: 0 | E91: -2405.093682 | F91: 0 | G91: 2405.093682 | H91: 1.466281827e+11 | I91: 0 | J91: -0.006174846069 | K91: -5.390356429e+33
A92: 74 | B92: 4.59024 | C92: 1.466150251e+11 | D92: 0 | E92: -2438.643587 | F92: 0 | G92: 2438.643587 | H92: 1.466150251e+11 | I92: 0 | J92: -0.006175954411 | K92: -5.390356429e+33
A93: 75 | B93: 4.65312 | C93: 1.466016852e+11 | D93: 0 | E93: -2472.199556 | F93: 0 | G93: 2472.199556 | H93: 1.466016852e+11 | I93: 0 | J93: -0.006177078413 | K93: -5.390356429e+33
A94: 76 | B94: 4.716 | C94: 1.46588163e+11 | D94: 0 | E94: -2505.761674 | F94: 0 | G94: 2505.761674 | H94: 1.46588163e+11 | I94: 0 | J94: -0.00617821809 | K94: -5.390356429e+33
A95: 77 | B95: 4.77888 | C95: 1.465744584e+11 | D95: 0 | E95: -2539.330026 | F95: 0 | G95: 2539.330026 | H95: 1.465744584e+11 | I95: 0 | J95: -0.006179373459 | K95: -5.390356429e+33
A96: 78 | B96: 4.84176 | C96: 1.465605715e+11 | D96: 0 | E96: -2572.904698 | F96: 0 | G96: 2572.904698 | H96: 1.465605715e+11 | I96: 0 | J96: -0.006180544534 | K96: -5.390356429e+33
A97: 79 | B97: 4.90464 | C97: 1.465465021e+11 | D97: 0 | E97: -2606.485775 | F97: 0 | G97: 2606.485775 | H97: 1.465465021e+11 | I97: 0 | J97: -0.006181731333 | K97: -5.390356429e+33
A98: 80 | B98: 4.96752 | C98: 1.465322503e+11 | D98: 0 | E98: -2640.073342 | F98: 0 | G98: 2640.073342 | H98: 1.465322503e+11 | I98: 0 | J98: -0.006182933871 | K98: -5.390356429e+33
A99: 81 | B99: 5.0304 | C99: 1.465178159e+11 | D99: 0 | E99: -2673.667486 | F99: 0 | G99: 2673.667486 | H99: 1.465178159e+11 | I99: 0 | J99: -0.006184152165 | K99: -5.390356429e+33
A100: 82 | B100: 5.09328 | C100: 1.465031991e+11 | D100: 0 | E100: -2707.26829 | F100: 0 | G100: 2707.26829 | H100: 1.465031991e+11 | I100: 0 | J100: -0.006185386232 | K100: -5.390356429e+33
A101: 83 | B101: 5.15616 | C101: 1.464883997e+11 | D101: 0 | E101: -2740.875843 | F101: 0 | G101: 2740.875843 | H101: 1.464883997e+11 | I101: 0 | J101: -0.006186636088 | K101: -5.390356429e+33
A102: 84 | B102: 5.21904 | C102: 1.464734176e+11 | D102: 0 | E102: -2774.490228 | F102: 0 | G102: 2774.490228 | H102: 1.464734176e+11 | I102: 0 | J102: -0.006187901753 | K102: -5.390356429e+33
A103: 85 | B103: 5.28192 | C103: 1.46458253e+11 | D103: 0 | E103: -2808.111533 | F103: 0 | G103: 2808.111533 | H103: 1.46458253e+11 | I103: 0 | J103: -0.006189183242 | K103: -5.390356429e+33
A104: 86 | B104: 5.3448 | C104: 1.464429056e+11 | D104: 0 | E104: -2841.739842 | F104: 0 | G104: 2841.739842 | H104: 1.464429056e+11 | I104: 0 | J104: -0.006190480573 | K104: -5.390356429e+33
A105: 87 | B105: 5.40768 | C105: 1.464273756e+11 | D105: 0 | E105: -2875.375243 | F105: 0 | G105: 2875.375243 | H105: 1.464273756e+11 | I105: 0 | J105: -0.006191793765 | K105: -5.390356429e+33
A106: 88 | B106: 5.47056 | C106: 1.464116628e+11 | D106: 0 | E106: -2909.017822 | F106: 0 | G106: 2909.017822 | H106: 1.464116628e+11 | I106: 0 | J106: -0.006193122836 | K106: -5.390356429e+33
A107: 89 | B107: 5.53344 | C107: 1.463957671e+11 | D107: 0 | E107: -2942.667664 | F107: 0 | G107: 2942.667664 | H107: 1.463957671e+11 | I107: 0 | J107: -0.006194467804 | K107: -5.390356429e+33
A108: 90 | B108: 5.59632 | C108: 1.463796887e+11 | D108: 0 | E108: -2976.324856 | F108: 0 | G108: 2976.324856 | H108: 1.463796887e+11 | I108: 0 | J108: -0.006195828688 | K108: -5.390356429e+33
A109: 91 | B109: 5.6592 | C109: 1.463634274e+11 | D109: 0 | E109: -3009.989485 | F109: 0 | G109: 3009.989485 | H109: 1.463634274e+11 | I109: 0 | J109: -0.006197205506 | K109: -5.390356429e+33
A110: 92 | B110: 5.72208 | C110: 1.463469832e+11 | D110: 0 | E110: -3043.661638 | F110: 0 | G110: 3043.661638 | H110: 1.463469832e+11 | I110: 0 | J110: -0.006198598278 | K110: -5.390356429e+33
A111: 93 | B111: 5.78496 | C111: 1.46330356e+11 | D111: 0 | E111: -3077.341401 | F111: 0 | G111: 3077.341401 | H111: 1.46330356e+11 | I111: 0 | J111: -0.006200007024 | K111: -5.390356429e+33
A112: 94 | B112: 5.84784 | C112: 1.463135458e+11 | D112: 0 | E112: -3111.02886 | F112: 0 | G112: 3111.02886 | H112: 1.463135458e+11 | I112: 0 | J112: -0.006201431762 | K112: -5.390356429e+33
A113: 95 | B113: 5.91072 | C113: 1.462965526e+11 | D113: 0 | E113: -3144.724103 | F113: 0 | G113: 3144.724103 | H113: 1.462965526e+11 | I113: 0 | J113: -0.006202872513 | K113: -5.390356429e+33
A114: 96 | B114: 5.9736 | C114: 1.462793763e+11 | D114: 0 | E114: -3178.427218 | F114: 0 | G114: 3178.427218 | H114: 1.462793763e+11 | I114: 0 | J114: -0.006204329296 | K114: -5.390356429e+33
A115: 97 | B115: 6.03648 | C115: 1.462620168e+11 | D115: 0 | E115: -3212.13829 | F115: 0 | G115: 3212.13829 | H115: 1.462620168e+11 | I115: 0 | J115: -0.006205802133 | K115: -5.390356429e+33
A116: 98 | B116: 6.09936 | C116: 1.462444742e+11 | D116: 0 | E116: -3245.857408 | F116: 0 | G116: 3245.857408 | H116: 1.462444742e+11 | I116: 0 | J116: -0.006207291042 | K116: -5.390356429e+33
A117: 99 | B117: 6.16224 | C117: 1.462267484e+11 | D117: 0 | E117: -3279.584658 | F117: 0 | G117: 3279.584658 | H117: 1.462267484e+11 | I117: 0 | J117: -0.006208796047 | K117: -5.390356429e+33
A118: 100 | B118: 6.22512 | C118: 1.462088393e+11 | D118: 0 | E118: -3313.320128 | F118: 0 | G118: 3313.320128 | H118: 1.462088393e+11 | I118: 0 | J118: -0.006210317166 | K118: -5.390356429e+33
A119: 101 | B119: 6.288 | C119: 1.46190747e+11 | D119: 0 | E119: -3347.063907 | F119: 0 | G119: 3347.063907 | H119: 1.46190747e+11 | I119: 0 | J119: -0.006211854422 | K119: -5.390356429e+33
A120: 102 | B120: 6.35088 | C120: 1.461724713e+11 | D120: 0 | E120: -3380.816081 | F120: 0 | G120: 3380.816081 | H120: 1.461724713e+11 | I120: 0 | J120: -0.006213407837 | K120: -5.390356429e+33
A121: 103 | B121: 6.41376 | C121: 1.461540122e+11 | D121: 0 | E121: -3414.576738 | F121: 0 | G121: 3414.576738 | H121: 1.461540122e+11 | I121: 0 | J121: -0.00621497743 | K121: -5.390356429e+33
A122: 104 | B122: 6.47664 | C122: 1.461353696e+11 | D122: 0 | E122: -3448.345967 | F122: 0 | G122: 3448.345967 | H122: 1.461353696e+11 | I122: 0 | J122: -0.006216563226 | K122: -5.390356429e+33
A123: 105 | B123: 6.53952 | C123: 1.461165436e+11 | D123: 0 | E123: -3482.123855 | F123: 0 | G123: 3482.123855 | H123: 1.461165436e+11 | I123: 0 | J123: -0.006218165246 | K123: -5.390356429e+33
A124: 106 | B124: 6.6024 | C124: 1.46097534e+11 | D124: 0 | E124: -3515.91049 | F124: 0 | G124: 3515.91049 | H124: 1.46097534e+11 | I124: 0 | J124: -0.006219783511 | K124: -5.390356429e+33
A125: 107 | B125: 6.66528 | C125: 1.460783408e+11 | D125: 0 | E125: -3549.705962 | F125: 0 | G125: 3549.705962 | H125: 1.460783408e+11 | I125: 0 | J125: -0.006221418046 | K125: -5.390356429e+33
A126: 108 | B126: 6.72816 | C126: 1.460589641e+11 | D126: 0 | E126: -3583.510358 | F126: 0 | G126: 3583.510358 | H126: 1.460589641e+11 | I126: 0 | J126: -0.006223068873 | K126: -5.390356429e+33
A127: 109 | B127: 6.79104 | C127: 1.460394036e+11 | D127: 0 | E127: -3617.323767 | F127: 0 | G127: 3617.323767 | H127: 1.460394036e+11 | I127: 0 | J127: -0.006224736015 | K127: -5.390356429e+33
A128: 110 | B128: 6.85392 | C128: 1.460196594e+11 | D128: 0 | E128: -3651.146277 | F128: 0 | G128: 3651.146277 | H128: 1.460196594e+11 | I128: 0 | J128: -0.006226419496 | K128: -5.390356429e+33
A129: 111 | B129: 6.9168 | C129: 1.459997315e+11 | D129: 0 | E129: -3684.977979 | F129: 0 | G129: 3684.977979 | H129: 1.459997315e+11 | I129: 0 | J129: -0.006228119339 | K129: -5.390356429e+33
A130: 112 | B130: 6.97968 | C130: 1.459796197e+11 | D130: 0 | E130: -3718.818959 | F130: 0 | G130: 3718.818959 | H130: 1.459796197e+11 | I130: 0 | J130: -0.006229835569 | K130: -5.390356429e+33
A131: 113 | B131: 7.04256 | C131: 1.45959324e+11 | D131: 0 | E131: -3752.669308 | F131: 0 | G131: 3752.669308 | H131: 1.45959324e+11 | I131: 0 | J131: -0.006231568208 | K131: -5.390356429e+33
A132: 114 | B132: 7.10544 | C132: 1.459388444e+11 | D132: 0 | E132: -3786.529115 | F132: 0 | G132: 3786.529115 | H132: 1.459388444e+11 | I132: 0 | J132: -0.006233317283 | K132: -5.390356429e+33
A133: 115 | B133: 7.16832 | C133: 1.459181808e+11 | D133: 0 | E133: -3820.398469 | F133: 0 | G133: 3820.398469 | H133: 1.459181808e+11 | I133: 0 | J133: -0.006235082816 | K133: -5.390356429e+33
A134: 116 | B134: 7.2312 | C134: 1.458973332e+11 | D134: 0 | E134: -3854.27746 | F134: 0 | G134: 3854.27746 | H134: 1.458973332e+11 | I134: 0 | J134: -0.006236864835 | K134: -5.390356429e+33
A135: 117 | B135: 7.29408 | C135: 1.458763015e+11 | D135: 0 | E135: -3888.166177 | F135: 0 | G135: 3888.166177 | H135: 1.458763015e+11 | I135: 0 | J135: -0.006238663362 | K135: -5.390356429e+33
A136: 118 | B136: 7.35696 | C136: 1.458550857e+11 | D136: 0 | E136: -3922.06471 | F136: 0 | G136: 3922.06471 | H136: 1.458550857e+11 | I136: 0 | J136: -0.006240478425 | K136: -5.390356429e+33
A137: 119 | B137: 7.41984 | C137: 1.458336857e+11 | D137: 0 | E137: -3955.973149 | F137: 0 | G137: 3955.973149 | H137: 1.458336857e+11 | I137: 0 | J137: -0.006242310048 | K137: -5.390356429e+33
A138: 120 | B138: 7.48272 | C138: 1.458121014e+11 | D138: 0 | E138: -3989.891584 | F138: 0 | G138: 3989.891584 | H138: 1.458121014e+11 | I138: 0 | J138: -0.006244158258 | K138: -5.390356429e+33
A139: 121 | B139: 7.5456 | C139: 1.457903328e+11 | D139: 0 | E139: -4023.820104 | F139: 0 | G139: 4023.820104 | H139: 1.457903328e+11 | I139: 0 | J139: -0.00624602308 | K139: -5.390356429e+33
